Workbook

Sheet Profil_Investisseur
A3: =TODAY() -> 2019-03-29
A4: I. Présentation
A6: Nom complet | B6: André KAMBA
A7: Date de naissance:
A8: Situation familiale | B8: Célibataire-Divorcé-Veuf | C8: =IF(B8="Marié-Pacsé",5,3) -> 3
A10: Nombre d'enfants à charge | B10: 0 | C10: =IF(B10=0,6,IF(B10=1,5,IF(B10=2,4,IF(B10=3,3,IF(B10=4,2,1))))) -> 6
A11: Revenu net par an | B11: 40000
A12: Revenu net par an conjoint(e) | B12: 0
A14: Quel objectif poursuivez-vous (a,b,c) : | B14: c | C14: précisez le montant : | D14: 20000
A15: a) Je souhaite acquérir une résidence principale
A16: b) Je souhaite compléter mes revenus dès maintenant
A17: c) Je souhaite mettre de l’argent de côté sans objectif ou échéance précis
A18: b) Je souhaite préparer ma retraite
A19: c) Je souhaite constituer une épargne de précaution / financer un projet
A23: En considérant qu’une épargne est placée sur ces trois supports pendant deux ans, indiquez le niveau de risque de chacun des supports :
A25: Assurance vie : | B25: Risqué | C25: =IF(B25="Très risqué",1,IF(B25="Risqué",3,6)) -> 3
A26: Obligations: | B26: Très risqué | C26: =IF(B26="Très risqué",3,IF(B26="Risqué",6,9)) -> 3
A27: Actions: | B27: Peu risqué | C27: =IF(B27="Très risqué",2,IF(B27="Risqué",4,6)) -> 6
A30: Pour vos placements financiers, vous souhaitez a,b,c ou d) : | C30: d | D30: =IF(C30="a",1,IF(C30="b",3,IF(C30="c",5,7))) -> 7
A31: a) Ne pas prendre de risque et placer toutes vos économies sur des placements sûrs.
A32: b) Placer une petite partie de vos économies sur des placements risqués.
A33: c) Placer une part important de vos économies sur des actifs risqués si le gain est potentiel.
A34: d) Placer l'essentiel de vos économies sur des actifs risqués si les gains potentiels sont très importants.
A36: Parmi les 3 types de placements ci-dessous, lequel choisiriez-vous (a,b ou c) : | C36: c | D36: =IF(C36="a",2,IF(C36="b",4,6)) -> 6
A37: a) Préserver le capital et obtenir des performances proches de celles des investissements sécurisés.
A38: b) Investir une partie de votre capital sur des supports plus risqués pour un potentiel de performance plus élevé.
A39: c) Investir une partie significative de votre capital sur des supports risqués pour recherche une très bonne performance
A41: Compte tenu des fluctuations d'un placement risqué, combien de temps seriez-vous disposé à attendre pour retrouver votre investissement : | D41: Plus de 5 ans | E41: =IF(D41="Plus de 5 ans",6,IF(D41="1 an",2,4)) -> 6
A43: TOTAL | B43: =C8+C10+C25+C26+C27+D30+D36+E41 -> 40
A44: Votre profil est : | B44: =IF(B43<=26,"Prudent",IF(B43<=40,"Standard","Risqué")) -> Standard
A46: Prudent (0-26) Standard (26- 40) Risqué (40-51)
A49: De manière générale, vous considérez-vous plutôt : | B49: Econome
A54: II. État financier
A56: Salaires, Autres revenus (exceptées rentes immobilières) | D56: Dépenses
A57: Type | B57: Mensualité € | D57: Type | E57: Profil | F57: Mensualités €
A58: Salaire mensuelle net | B58: =B11/12 -> 3333.333333 | C58: RNI/12 | D58: Loisirs | E58: Econome | F58: =IF(E58="Econome",B58*0.05,IF(E58="Standard",B58*0.1,B58*0.2)) -> 166.6666667
A59: Autres revenus (exceptées rentes immobilières) | B59: 0 | D59: Vêtements | E59: Standard | F59: =IF(E59="Econome",B58*0.05,IF(E59="Standard",B58*0.1,B58*0.2)) -> 333.3333333
A60: Prime d'intéressement et de participation | B60: 50 | D60: Transports | E60: Standard | F60: =IF(E60="Econome",B58*0.05,IF(E60="Standard",B58*0.1,B58*0.2)) -> 333.3333333
D61: Pension alimentaire | F61: 144
A62: Total: | B62: =SUM(B58:B60) -> 3383.333333
E63: Total: | F63: =SUM(F58+F59+F60+F61) -> 977.3333333
A65: Assurance vie | D65: Don(s) / Bourse(s) / Aide(s) / Allocation(s) / Pension(s)
A66: Rang | B66: Montant € | D66: Type | E66: Mensualités €
A67: Assurance vie Fonds euros | B67: 5000 | D67: Bourse(s) | E67: 0
A68: Assurance vie Unités de compte | B68: 0 | D68: Don(s) | E68: 0
D69: Pension(s) | E69: 0
D70: Allocation(s) | E70: 0
A71: Total: | B71: =SUM(B67:B70) -> 5000
D72: Total: | E72: =SUM(E66:E71) -> 0
B76: Solde €
A77: PEE | B77: =500 -> 500 | D77: Plan Retraites
A78: PERCO | B78: =600 -> 600 | D78: Rang | E78: Solde €
A79: PEL | B79: =300 -> 300 | D79: Plan retraites 1 | E79: =200 -> 200
A80: LIVRET A | B80: =1000 -> 1000 | D80: Plan retraites 2 | E80: 0
A81: LDD | B81: =400 -> 400 | D81: Total: | E81: =SUM(E79:E80) -> 200
A82: CEL | B82: =500 -> 500
A83: Compte(s) courant(s) | B83: =1000 -> 1000
A86: Autres propriétés ( Automobile, Collection, Lingots etc..)
A87: Type | B87: Valeure Marchande € | D87: Actifs financiers
A88: Véhicule | B88: 7500 | D88: PEA | E88: 3500
A89: Collection | B89: 300 | D89: Compte-titre | E89: 3500
A90: Lingots | B90: 0
A92: Total: | B92: =SUM(B87:B91) -> 7800
D94: Prêts, Dettes
D95: Type | E95: Mensualités € | F95: Solde dû €
A96: Autres dettes | D96: Dettes fiscales | E96: 0
A97: Montant total de la dette | B97: 1000 | D97: Prêt étudiant | E97: 0 | F97: 0
A98: Taux d'intérêt annuel | B98: 0.005 | F98: 0
A99: Date de début de la dette | B99: 2017-01-01
A100: Nombre de versements par an | B100: 12 | D100: Total: | E100: =SUM(E96+E97+E98) -> 0 | F100: =SUM(F95:F99) -> 0
A101: Durée de remboursement (en année) | B101: 1
A104: III. Immobilier
B106: POSSESION D'UN BIEN IMMOBILIER (Cas Propriétaire)
A108: Rang | B108: Montant du prêt € | C108: Date de début de l'emprunt | D108: Taux d'intérêt annuel | E108: Durée du prêt en années | F108: Apport personnel | G108: Valeure marchande du bien € | H108: Taux d'assurance % | I108: Assurance habitation/an € | J108: Taxe d'habitation/an €
A109: Principale | B109: 170000 | C109: 2017-10-01 | D109: 0.017 | E109: 20 | F109: 4000 | G109: 180000 | H109: 0.002 | I109: 300 | J109: 881
E111: Total: | F111: =F109 -> 4000 | G111: =G109 -> 180000
A113: Notaire (en une fois) € | B113: Travaux (en une fois) € | C113: Meublé (en une fois) € | D113: Charges totales/mois | E113: Durée de détention avant cession (en années)
A114: 15175 | B114: 6000 | C114: 10000 | D114: 50 | E114: 20
A116: Régime Fiscal | B116: Déficit foncier réel | C116: Votre bien est-il un Pinel ? | D116: Neuf Pinel 6 ans
B120: LOCATION D'UN BIEN IMMOBILIER POSSÉDÉ (Cas Propriétaire investissement locatif)
A122: Valeure marchande € | B122: Rentes immobilières/mois € | C122: Vacance location (en nombre de mois) € | D122: Charges totales €/mois | E122: Assurance habitation/an € | F122: Taxe foncière/an € | J122: Taux d'assurance %
A123: 170000 | B123: 900 | C123: 0 | D123: 50 | E123: 320 | F123: 656 | H123: Durée du prêt en années | J123: 0.002
G124: Taux d'intérêt annuel | H124: 20 | I124: Versements facultatifs €
D125: Rang | E125: Montant du prêt € | F125: Date de début de l'emprunt | G125: 0.015 | I125: 0
A126: Travaux d'entretien et de réparation/an € | B126: Assurance loyers impayés/an € | C126: Divers/an € | D126: Secondaire | E126: 200000 | F126: 2010-10-01 | H126: Total:
A127: 5000 | B127: 600 | C127: 0 | I127: =I125 -> 0
A132: Cas locataire
B133: Mensualités € | D133: Objectif atteint en :
A134: Loyer + charges | B134: 0 | D134: =SUM('Graphique Fonds propres'!Q6:Q16)+1 -> 10
A135: Taxe d'habitation €/mois | B135: 0 | D135: Années
D139: =SUM(D135:D137) -> 0 | E139: =SUM(E135:E137) -> 0

Sheet Feuil1 (hidden)
A1: Liste_Depense
A2: Econome
A3: Standard
A4: Dépensier

Sheet Bilan Fin 2019
C2: Bilan Actif Passif | E2: Date: | F2: =H2 -> 2019-03-29 | H2: =Profil_Investisseur!A3 -> 2019-03-29
A4: Actif | F4: Passif
A5: Actif liquide
A6: Compte(s) courant(s) | F6: Fonds propres
B7: Compte(s) courant(s) | D7: =Profil_Investisseur!B83 -> 1000 | F7: Fonds propres liquide | I7: =D25-SUM(I13:I22) -> -267135.4662
C8: Total compte(s) courant(s) | D8: =D7 -> 1000 | F8: Fonds propres semi-liquide | I8: =D31 -> 357800 | X8: Titres financiers augmentent de 10%
A9: Epargnes classiques | F9: Fonds propres non-liquide | I9: =D35 -> 800
B10: Livret A | D10: =Profil_Investisseur!B80 -> 1000 | F10: Total Fonds propres | I10: =SUM(I7:I9) -> 91464.53379 | K10: =D41-SUM(I13:I22) -> 91464.53379
B11: PEL | D11: =Profil_Investisseur!B79 -> 300 | X11: Assurance vie de 1,5
B12: CEL | D12: =Profil_Investisseur!B82 -> 500
B13: LDD | D13: =Profil_Investisseur!B81 -> 400 | F13: Capital restant dû crédit résidence principale | I13: =VLOOKUP(F2,Tableau1[#All],2,1) -> 159765.6961 | X13: Plan retraite de 1%
B14: Assurance vie Fonds euros | D14: =Profil_Investisseur!B67 -> 5000
B15: Assurance vie Unités de compte | D15: =Profil_Investisseur!B68 -> 0
C16: Total épargnes classiques | D16: =SUM(D10:D14) -> 7200
A17: Actifs financiers | F17: Capital restant dû crédit investissement immo locatif | I17: =VLOOKUP(F2,Tableau17[#All],2,1) -> 123069.7701
B18: PEA | D18: =Profil_Investisseur!E88 -> 3500
B19: Compte-titres | D19: =Profil_Investisseur!E89 -> 3500 | F19: Capital restant dû autres prêts / dettes… | I19: =Profil_Investisseur!F100 -> 0
C20: Total actifs financiers | D20: =SUM(D18,D19) -> 7000 | N20: =SUM(K10,I13,I17) -> 374300
A21: Epargnes salariales
B22: PEE | D22: =Profil_Investisseur!B77 -> 500 | F22: Dettes fiscales | I22: =Profil_Investisseur!F96 -> 0
C23: Total épargnes salariales | D23: =D22 -> 500
C25: Total Actif liquide | D25: =SUM(D8,D16,D20,D23) -> 15700
A26: Actif non-liquide
A27: Biens
B28: Résidence principale (valeur marchande) | D28: =Profil_Investisseur!G109 -> 180000
B29: Investissement immobilier (valeur marchande) | D29: =Profil_Investisseur!A123 -> 170000
B30: Autres propriétés (valeur) | D30: =Profil_Investisseur!B92 -> 7800
C31: Total biens | D31: =SUM(D28,D29,D30) -> 357800
A32: Retraites
B33: Plan Retraites (PERP) | D33: =Profil_Investisseur!E81 -> 200
B34: PERCO | D34: =Profil_Investisseur!B78 -> 600
C35: Total Retraites | D35: =SUM(D33,D34) -> 800
C37: Total Actif non-liquide | D37: =SUM(D31,D35) -> 358600
F39: Total Passif | I39: =SUM(I10:I23) -> 374300
A41: Total Actifs | D41: =SUM(D37+D25) -> 374300
B46: Compte de Résultat
B48: RESSOURCES | D48: =F2 -> 2019-03-29 | E48: =F115 -> 2020-01-01
C49: Salaire | D49: =Profil_Investisseur!B58*12/365*H57 -> 30465.75342
C50: Rentes immobilières | D50: =Profil_Investisseur!B123*12/365*'Bilan Fin 2019'!H57 -> 8225.753425
C51: Prime d'intéressement et de participation | D51: =Profil_Investisseur!B60*12/365*H57 -> 456.9863014
C52: Don(s) / Bourse(s) / Aide(s) / Allocation(s) / Pension(s) | D52: =(Profil_Investisseur!E72)*12/365*H57 -> 0
C53: Plus-value PEA | D53: =D18*'Hypothèses exogènes'!D14/100/365*$H$57 -> 66.64383562
C54: Plus-value des comptes-titres | D54: =D19*'Hypothèses exogènes'!D15/100/365*H57 -> 186.6027397
C55: Plus-value des autres propiétés | D55: =D30*'Hypothèses exogènes'!D16/100/365*H57 -> 0
C56: Plus-value du PEE | D56: =D22*'Hypothèses exogènes'!D17/100/365*H57 -> 5.712328767
C57: Plus-value du PERCO | D57: =D34*'Hypothèses exogènes'!D18/100/365*H57 -> 6.854794521 | G57: nombre de jours restants en 2019: | H57: =(H115-H2) -> 278
C58: Plus-value de Livret A | D58: =D10*'Hypothèses exogènes'!D19/100/365*H57 -> 5.712328767
C59: Plus-value du PEL | D59: =D11*'Hypothèses exogènes'!D20/100/365*H57 -> 2.284931507
C60: Plus-value du CEL | D60: =D12*'Hypothèses exogènes'!D21/100/365*H57 -> 1.904109589
C61: Plus-value du LDD | D61: =D13*'Hypothèses exogènes'!D22/100/365*H57 -> 2.284931507
C62: Plus-value de l'assurance-vie Fonds€ | D62: =D14*'Hypothèses exogènes'!D23/100/365*H57 -> 76.16438356
C63: Plus-value de l'assurance-vie UC | D63: =D15*'Hypothèses exogènes'!D24/100/365*H57 -> 0
C64: Plus-value du plan retraites PERP | D64: =D33*'Hypothèses exogènes'!D25/100/365*H57 -> 2.437260274
C65: Plus-value résidence principale | D65: =D28*'Hypothèses exogènes'!D26/100/365*H57 -> 1370.958904
C66: Plus-value du bien investissement locatif | D66: =D29*'Hypothèses exogènes'!D27/100/365*H57 -> 1294.794521
C67: Autres revenus | D67: =Profil_Investisseur!B59*12/365*H57 -> 0
B68: Total des ressources | D68: =SUM(D49:D67) -> 42170.84822
D70: [42]
B71: CHARGES
C72: Assurance habitation | D72: =(Profil_Investisseur!I109+Profil_Investisseur!E123)/365*$H$57 -> 472.2191781
C73: Autre(s) assurance(s) | D73: =Profil_Investisseur!B127/365*$H$57 -> 456.9863014
B74: Total assurances | D74: =D72+D73 -> 929.2054795
C75: Intérêts crédit A (résidence principale) | D75: ='Feuille de calcul_ammor'!W6 -> 2224.330341
C76: Ammortissement crédit A (résidence principale) | D76: ='Feuille de calcul_ammor'!W10 -> 6136.24283
C77: Intérêts crédit B (Investissement locatif) | D77: ='Feuille de calcul_ammor'!X6 -> 1492.586668
C78: Amortissement crédit B (investissement locatif) | D78: ='Feuille de calcul_ammor'!X10 -> 8158.32151
C79: Intérêts autres dettes | D79: =0 -> 0
C80: Ammortissement autres dettes | D80: =0 -> 0
B81: Total des remboursements | D81: =SUM(D75:D80) -> 18011.48135
C82: Loyer + charges | D82: =Profil_Investisseur!B134*12/365*$H$57 -> 0
C83: Transport, Alimentation, Pension Alimentaire,Loisirs | D83: =Profil_Investisseur!F63*12/365*$H$57 -> 8932.558904
C84: Charges totales (propriétaire investissement locatif) | D84: =Profil_Investisseur!D123*12/365*$H$57 -> 456.9863014
C85: Charges totales (propriétaire principal) | D85: =Profil_Investisseur!D114*12/365*$H$57 -> 456.9863014
B86: Total dépenses personnelles | D86: =SUM(D82:D85) -> 9846.531507
C87: Impôts sur le revenu | D87: ='Impôts revenus'!E6/365*H57 -> 2717.432693
C88: Impôts sur le foncier | D88: ='Impôts revenus'!F6/365*H57 -> 2386.228062
C89: Taxe d'habitation | D89: =Profil_Investisseur!J109/365*$H$57+Profil_Investisseur!B135*12/365*$H$57 -> 671.0082192
C90: Fiscalité sur la plus-value du PEA | D90: =D53*'Hypothèses exogènes'!D43/100 -> 11.46273973
C91: Fiscalité sur la plus-value des comptes-titres | D91: =D54*'Hypothèses exogènes'!D44/100 -> 55.98082192
C92: Fiscalité sur la plus-value des autres propiétés | D92: =D55*'Hypothèses exogènes'!D45/100 -> 0
C93: Fiscalité sur la plus-value du PEE | D93: =D56*'Hypothèses exogènes'!D46/100 -> 0.9825205479
C94: Fiscalité sur la plus-value du PERCO | D94: =D57*'Hypothèses exogènes'!D47/100 -> 1.179024658
C95: Fiscalité sur la plus-value de Livret A | D95: =D58*'Hypothèses exogènes'!D48/100 -> 0
C96: Fiscalité sur la plus-value du PEL | D96: =D59*'Hypothèses exogènes'!D49/100 -> 0.6854794521
C97: Fiscalité sur la plus-value du CEL | D97: =D60*'Hypothèses exogènes'!D50/100 -> 0.3275068493
C98: Fiscalité sur la plus-value du LDD | D98: =D61*'Hypothèses exogènes'!D51/100 -> 0
C99: Fiscalité sur la plus-value de l'assurance-vie Fonds€ | D99: =D62*'Hypothèses exogènes'!D52/100 -> 13.10027397
C100: Fiscalité sur la plus-value de l'assurance-vie UC | D100: =D63*'Hypothèses exogènes'!D53/100 -> 0
C101: Fiscalité sur la plus-value du plan retraites PERP | D101: =D64*'Hypothèses exogènes'!D54/100 -> 0.4192087671
C102: Fiscalité sur la plus-value de la résidence principale | D102: =D65*'Hypothèses exogènes'!D55/100 -> 0
C103: Fiscalité sur la plus-value du bien investissement locatif | D103: =D66*'Hypothèses exogènes'!D56/100 -> 0
B104: Total fiscalité | D104: =SUM(D87:D103) -> 5858.80655
C105: Dépenses exceptionnelles | D105: =D49*'Hypothèses exogènes'!D57/100 -> 1827.945205 | G105: Pour vérifier
B106: Total des charges | D106: =SUM(D74,D81,D86,D104,D105) -> 36473.97009 | G106: Somme ammortissements + résultat net | I106: =D76+D78+D80+D108 -> 19991.44247
B108: Résultat Net Comptable | D108: =D68-D106 -> 5696.878129 | G108: Différence fonds propres | I108: =I123-I10 -> 19991.44247
G110: Différence Actifs | I110: =D154-D41 -> 5696.878129
C115: Bilan Actif Passif | E115: Date: | F115: 2020-01-01 | H115: =DATE(2020,1,1) -> 2020-01-01
A117: Actif | F117: Passif
A118: Actif liquide
A119: Compte(s) courant(s) | F119: Fonds propres
B120: Compte(s) courant(s) | D120: =F162 -> 1000 | F120: Fonds propres liquide | I120: =D138-SUM(I126:I134) -> -249819.0692
C121: Total compte(s) courant(s) | D121: =D120 -> 1000 | F121: Fonds propres semi-liquide | I121: =D144 -> 360465.7534
A122: Epargnes classiques | F122: Fonds propres non-liquide | I122: =D148 -> 809.2920548
B123: Livret A | D123: =D10+D58 -> 1005.712329 | F123: Total Fonds propres | I123: =SUM(I120:I122) -> 111455.9763
B124: PEL | D124: =D11+D59 -> 302.2849315
B125: CEL | D125: =D12+D60 -> 501.9041096
B126: LDD | D126: =D13+D61 -> 402.2849315 | F126: Capital restant dû crédit résidence principale | I126: =I13-D76 -> 153629.4533
B127: Assurance vie Fonds euros | D127: =D14+D62+F163 -> 6184.932763
B128: Assurance vie Unités de compte | D128: =D15+D63+F164 -> 1108.76838
C129: Total épargnes classiques | D129: =SUM(D123:D128) -> 9505.887444
A130: Actifs financiers | F130: Capital restant dû crédit investissement immo locatif | I130: =I17-D78 -> 114911.4486
B131: PEA | D131: =D18+D53 -> 3566.643836
B132: Compte-titres | D132: =D19+D54 -> 3686.60274 | F132: Capital restant dû autres prêts / dettes… | I132: =0 -> 0
C133: Total actifs financiers | D133: =SUM(D131,D132) -> 7253.246575
A134: Epargnes salariales | F134: Dettes fiscales | I134: =Profil_Investisseur!F173 -> 0
B135: PEE | D135: =D22+D56+D51 -> 962.6986301 | F135: Résultat net comptable | I135: =D108 -> 5696.878129
C136: Total épargnes salariales | D136: =D135 -> 962.6986301
C138: Total Actif liquide | D138: =SUM(D121,D129,D133,D136) -> 18721.83265
A139: Actif non-liquide
A140: Biens
B141: Résidence principale (valeur marchande) | D141: =D28+D65 -> 181370.9589
B142: Investissement immobilier (valeur marchande) | D142: =D29+D66 -> 171294.7945
B143: Autres propriétés (valeur) | D143: =D30+D55 -> 7800
C144: Total biens | D144: =SUM(D141,D142,D143) -> 360465.7534
A145: Retraites
B146: Plan Retraites (PERP) | D146: =D33+D64 -> 202.4372603 | F146: Total Passif | I146: =SUM(I123:I134) -> 379996.8781
B147: PERCO | D147: =D34+D57 -> 606.8547945
C148: Total Retraites | D148: =SUM(D146,D147) -> 809.2920548
C150: Total Actif non-liquide | D150: =SUM(D144,D148) -> 361275.0455
A154: Total Actifs | D154: =SUM(D150+D138) -> 379996.8781
E161: "compte courant intermédiaire" | F161: =D7+D49+D50+D52+D67-D106 -> 3217.536759
E162: compte-courant final | F162: =MIN(1000,F161) -> 1000
E163: Va dans Assurance-Vie Fonds euros | F163: =(F161-F162)*(1-'Hypothèses exogènes'!C3) -> 1108.76838
E164: Va dans Assurance-Vie Unités de compte | F164: =(F161-F162)*'Hypothèses exogènes'!C3 -> 1108.76838

Sheet Feuille tableau pour liste (hidden)
C2: 0 | AA2: Colonne1 | AB2: Colonne2
AA3: 50k-60k | AB3: -3583.333333
AA4: 60k-10k | AB4: -166.6666667
B5: Taux imposition | D5: Type emprunt | F5: Type de bien | H5: Etat du bien | I5: Colonne1 | K5: Régime fiscal | M5: Nbr de parts | O5: Nbr enfants | Q5: Durée emprunt | S5: Durée | T5: % abattement | U5: Colonne1 | X5: Durée | Y5: Colonne2 | AA5: 100k-110k | AB5: -12083.33333
B6: 0 | D6: Amortissable | F6: Appartement | H6: Ancien | K6: Déficit foncier réel | M6: 1 | O6: 0 | Q6: 1 | S6: 0 | T6: 0 | U6: 0 | X6: 0 | Y6: 0 | AA6: 110k-150k | AB6: -250
B7: 0.14 | D7: In fine | F7: Maison | H7: Neuf | I7: Vide | K7: Micro-foncier | M7: 1.25 | O7: 1 | Q7: 2 | S7: 1 | T7: 0 | U7: 0 | X7: 1 | Y7: 0 | AA7: 150k-160k | AB7: -25583.33333
B8: 0.2 | D8: Non | F8: Immeuble | H8: Neuf Pinel 6 ans | I8: LMNP | K8: Micro-bic si LMNP | M8: 1.5 | O8: 2 | Q8: 3 | S8: 2 | T8: 0 | U8: 0 | X8: 2 | Y8: 0 | AA8: 160k-200k | AB8: -333.3333333
B9: 0.3 | D9: Oui | E9: =SI(D9="Non", D8*'Feuille tableau pour liste'!J12,"") | F9: Parking | H9: Neuf Pinel 9 ans | I9: LMP | K9: Reel si LMNP | M9: 1.75 | O9: 3 | Q9: 4 | S9: 3 | T9: 0 | U9: 0 | X9: 3 | Y9: 0 | AA9: 200k-210k | AB9: -44083.33333
B10: 0.41 | H10: Neuf Pinel 12 ans | K10: Reel si LMP | M10: 2 | O10: 4 | Q10: 5 | S10: 4 | T10: 0 | U10: 0 | X10: 4 | Y10: 0 | AA10: 210k-250k | AB10: -416.6666667
B11: 0.45 | E11: 100 | M11: 2.25 | O11: 5 | Q11: 6 | S11: 5 | T11: 0 | U11: 0 | X11: 5 | Y11: 0 | AA11: 250k-260k | AB11: -67583.33333
E12: =RECHERCHEV(' | F12: Fréquence | I12: Colonne1 | J12: 0.08 | M12: 2.5 | O12: 6 | Q12: 7 | S12: 6 | T12: 6 | U12: 1.65 | X12: 6 | Y12: 1.65 | AA12: 260k+ | AB12: -500
E13: 0 | F13: 13 | I13: Oui | M13: 2.75 | O13: 7 | Q13: 8 | S13: 7 | T13: 12 | U13: 3.3 | X13: 7 | Y13: 3.3 | AB13: -3000
E14: 1 | F14: 1 | I14: Non | M14: 3 | O14: 8 | Q14: 9 | S14: 8 | T14: 18 | U14: 4.95 | X14: 8 | Y14: 4.95 | AB14: -3000
E15: 2 | F15: 2 | M15: 3.25 | O15: 9 | Q15: 10 | S15: 9 | T15: 24 | U15: 6.6 | X15: 9 | Y15: 6.6 | AB15: -3000
E16: 3 | F16: 3 | M16: 3.5 | O16: 10 | Q16: 11 | S16: 10 | T16: 30 | U16: 8.25 | X16: 10 | Y16: 8.25 | AB16: -3000
E17: 4 | F17: 4 | M17: 3.75 | O17: 11 | Q17: 12 | S17: 11 | T17: 36 | U17: 9.9 | X17: 11 | Y17: 9.9 | AB17: -3000
E18: 5 | F18: 5 | M18: 4 | O18: 12 | Q18: 13 | S18: 12 | T18: 42 | U18: 11.55 | X18: 12 | Y18: 11.55
E19: 6 | F19: 6 | M19: 4.25 | O19: 13 | Q19: 14 | S19: 13 | T19: 48 | U19: 13.2 | X19: 13 | Y19: 13.2
E20: 7 | F20: 7 | M20: 4.5 | O20: 14 | Q20: 15 | S20: 14 | T20: 54 | U20: 14.85 | X20: 14 | Y20: 14.85
E21: 8 | F21: 8 | M21: 4.75 | O21: 15 | Q21: 16 | S21: 15 | T21: 60 | U21: 16.5 | X21: 15 | Y21: 16.5
E22: 9 | F22: 9 | M22: 5 | Q22: 17 | S22: 16 | T22: 66 | U22: 18.15 | X22: 16 | Y22: 18.15
E23: 10 | F23: 10 | M23: 5.25 | Q23: 18 | S23: 17 | T23: 72 | U23: 19.8 | X23: 17 | Y23: 19.8
E24: 11 | F24: 11 | M24: 5.5 | Q24: 19 | S24: 18 | T24: 78 | U24: 21.45 | X24: 18 | Y24: 21.45
E25: 12 | F25: 12 | M25: 5.75 | Q25: 20 | S25: 19 | T25: 84 | U25: 23.1 | X25: 19 | Y25: 23.1
F26: 14 | M26: 6 | Q26: 21 | S26: 20 | T26: 90 | U26: 24.75 | X26: 20 | Y26: 24.75
F27: 15 | M27: 6.25 | Q27: 22 | S27: 21 | T27: 96 | U27: 26.4 | X27: 21 | Y27: 26.4
F28: 16 | M28: 6.5 | Q28: 23 | S28: 22 | T28: 0 | U28: 28 | X28: 22 | Y28: 28
F29: 17 | M29: 6.75 | Q29: 24 | S29: 23 | T29: 100 | U29: 37 | X29: 23 | Y29: 37
F30: 18 | M30: 7 | Q30: 25 | S30: 24 | T30: 100 | U30: 46 | X30: 24 | Y30: 46
F31: 19 | M31: 7.25 | Q31: 26 | S31: 25 | T31: 100 | U31: 55 | X31: 25 | Y31: 55
F32: 20 | M32: 7.5 | Q32: 27 | S32: 26 | T32: 100 | U32: 64 | X32: 26 | Y32: 64
M33: 7.75 | O33: CALCUL FRAIS DE DOSSIER | Q33: 28 | S33: 27 | T33: 100 | U33: 73 | X33: 27 | Y33: 73
M34: 8 | Q34: 29 | S34: 28 | T34: 100 | U34: 82 | X34: 28 | Y34: 82
M35: 8.25 | Q35: 30 | S35: 29 | T35: 100 | U35: 91 | X35: 29 | Y35: 91
M36: 8.5 | Q36: 31 | S36: 30 | T36: 100 | U36: 100 | X36: 30 | Y36: 100
C37: Rang prix | D37: % taxe sur plus-value élevée | M37: 8.75 | Q37: 32 | S37: 31 | T37: 100 | X37: 31 | Y37: 100
C38: 50001 | M38: 9 | Q38: 33 | S38: 32 | T38: 100 | X38: 32 | Y38: 100
C39: 60000 | M39: 9.25 | Q39: 34 | S39: 33 | T39: 100 | X39: 33 | Y39: 100
C40: 60001 | M40: 9.5 | Q40: 35 | S40: 34 | T40: 100 | X40: 34 | Y40: 100
C41: 100000 | M41: 9.75 | Q41: 36 | S41: 35 | T41: 100 | X41: 35 | Y41: 100
C42: 100001 | M42: 10 | Q42: 37 | S42: 36 | T42: 100 | X42: 36 | Y42: 100
C43: 150000 | M43: 10.25 | Q43: 38 | S43: 37 | T43: 100 | X43: 37 | Y43: 100
C44: 150001 | M44: 10.5 | Q44: 39 | S44: 38 | T44: 100 | X44: 38 | Y44: 100
C45: 160000 | M45: 10.75 | Q45: 40 | S45: 39 | T45: 100 | X45: 39 | Y45: 100
C46: 160001 | M46: 11 | S46: 40 | T46: 100 | X46: 40 | Y46: 100
C47: 200000 | M47: 11.25 | S47: 41 | T47: 100 | X47: 41 | Y47: 100
C48: 200001 | M48: 11.5 | S48: 42 | T48: 100 | X48: 42 | Y48: 100
C49: 210000 | M49: 11.75 | S49: 43 | T49: 100 | X49: 43 | Y49: 100
C50: 210001 | M50: 12 | S50: 44 | T50: 100 | X50: 44 | Y50: 100
C51: 250000 | S51: 45 | T51: 100 | X51: 45 | Y51: 100
C52: 250001 | S52: 46 | T52: 100 | X52: 46 | Y52: 100
C53: 260000 | S53: 47 | T53: 100 | X53: 47 | Y53: 100
C54: 260001 | S54: 48 | T54: 100 | X54: 48 | Y54: 100
C55: 100000000000000 | S55: 49 | T55: 100 | X55: 49 | Y55: 100
S56: 50 | T56: 100 | X56: 50 | Y56: 100

Sheet Bilan 2020
C2: Bilan Actif Passif | E2: Date: | F2: =H2 -> 2020-01-01 | H2: =DATE(2020,1,1) -> 2020-01-01 | L2: =2020-2020 -> 0
A4: Actif | F4: Passif
A5: Actif liquide
A6: Compte(s) courant(s) | F6: Fonds propres
B7: Compte(s) courant(s) | D7: ='Bilan Fin 2019'!D120 -> 1000 | F7: Fonds propres liquide | I7: =D25-SUM(I16:I26) -> -249819.0692
C8: Total compte(s) courant(s) | D8: =D7 -> 1000 | F8: Fonds propres semi-liquide | I8: =D31 -> 360465.7534 | T8: Titres financiers augmentent de 10%
A9: Epargnes classiques | F9: Fonds propres non-liquide | I9: =D35 -> 809.2920548
B10: Livret A | D10: ='Bilan Fin 2019'!D123 -> 1005.712329 | F10: Total Fonds propres | I10: =SUM(I7:I9) -> 111455.9763
B11: PEL | D11: ='Bilan Fin 2019'!D124 -> 302.2849315 | T11: Assurance vie de 1,5
B12: CEL | D12: ='Bilan Fin 2019'!D125 -> 501.9041096
B13: LDD | D13: ='Bilan Fin 2019'!D126 -> 402.2849315 | T13: Plan retraite de 1%
B14: Assurance vie Fonds euros | D14: ='Bilan Fin 2019'!D127 -> 6184.932763
B15: Assurance vie Unités de compte | D15: ='Bilan Fin 2019'!D128 -> 1108.76838
C16: Total épargnes classiques | D16: =SUM(D10:D15) -> 9505.887444 | F16: Capital restant dû crédit résidence principale | I16: =VLOOKUP(F2,Tableau1[#All],2,1) -> 153629.4533
A17: Actifs financiers
B18: PEA | D18: ='Bilan Fin 2019'!D131 -> 3566.643836
B19: Compte-titres | D19: ='Bilan Fin 2019'!D132 -> 3686.60274 | F19: Capital restant dû crédit investissement immo locatif | I19: =VLOOKUP(F2,Tableau17[#All],2,1) -> 114911.4486
C20: Total actifs financiers | D20: =SUM(D18,D19) -> 7253.246575
A21: Epargnes salariales | F21: Capital restant dû autres prêts / dettes… | I21: =Profil_Investisseur!F100 -> 0
B22: PEE | D22: ='Bilan Fin 2019'!D135 -> 962.6986301
C23: Total épargnes salariales | D23: =D22 -> 962.6986301
C25: Total Actif liquide | D25: =SUM(D8,D16,D20,D23) -> 18721.83265 | F25: Dettes fiscales | I25: =Profil_Investisseur!F96 -> 0
A26: Actif non-liquide
A27: Biens
B28: Résidence principale (valeur marchande) | D28: ='Bilan Fin 2019'!D141 -> 181370.9589
B29: Investissement immobilier (valeur marchande) | D29: ='Bilan Fin 2019'!D142 -> 171294.7945
B30: Autres propriétés (valeur) | D30: ='Bilan Fin 2019'!D143 -> 7800
C31: Total biens | D31: =SUM(D28,D29,D30) -> 360465.7534
A32: Retraites
B33: Plan Retraites (PERP) | D33: ='Bilan Fin 2019'!D146 -> 202.4372603
B34: PERCO | D34: ='Bilan Fin 2019'!D147 -> 606.8547945
C35: Total Retraites | D35: =SUM(D33,D34) -> 809.2920548
C37: Total Actif non-liquide | D37: =SUM(D31,D35) -> 361275.0455
F39: Total Passif | I39: =SUM(I10:I25) -> 379996.8781
A41: Total Actifs | D41: =SUM(D37+D25) -> 379996.8781
B46: Compte de Résultat
B48: RESSOURCES | D48: =F2 -> 2020-01-01 | E48: =F115 -> 2021-01-01
C49: Salaire | D49: =Profil_Investisseur!B58*12 -> 40000
C50: Rentes immobilières | D50: =Profil_Investisseur!B123*12 -> 10800
C51: Prime d'intéressement et de participation | D51: =Profil_Investisseur!B60*12 -> 600
C52: Don(s) / Bourse(s) / Aide(s) / Allocation(s) / Pension(s) | D52: =(Profil_Investisseur!E72)*12 -> 0
C53: Plus-value PEA | D53: =D18*'Hypothèses exogènes'!D14/100 -> 89.16609589
C54: Plus-value des comptes-titres | D54: =D19*'Hypothèses exogènes'!D15/100 -> 258.0621918
C55: Plus-value des autres propiétés | D55: =D30*'Hypothèses exogènes'!D16/100 -> 0
C56: Plus-value du PEE | D56: =D22*'Hypothèses exogènes'!D17/100 -> 14.44047945
C57: Plus-value du PERCO | D57: =D34*'Hypothèses exogènes'!D18/100 -> 9.102821918
C58: Plus-value de Livret A | D58: =D10*'Hypothèses exogènes'!D19/100 -> 7.542842466
C59: Plus-value du PEL | D59: =D11*'Hypothèses exogènes'!D20/100 -> 3.022849315
C60: Plus-value du CEL | D60: =D12*'Hypothèses exogènes'!D21/100 -> 2.509520548
C61: Plus-value du LDD | D61: =D13*'Hypothèses exogènes'!D22/100 -> 3.017136986
C62: Plus-value de l'assurance-vie Fonds€ | D62: =D14*'Hypothèses exogènes'!D23/100 -> 123.6986553
C63: Plus-value de l'assurance-vie UC | D63: =D15*'Hypothèses exogènes'!D24/100 -> 72.06994468
C64: Plus-value du plan retraites PERP | D64: =D33*'Hypothèses exogènes'!D25/100 -> 3.238996164
C65: Plus-value résidence principale | D65: =D28*'Hypothèses exogènes'!D26/100 -> 1813.709589
C66: Plus-value du bien investissement locatif | D66: =D29*'Hypothèses exogènes'!D27/100 -> 1712.947945
C67: Autres revenus | D67: =Profil_Investisseur!B59*12 -> 0
B68: Total des ressources | D68: =SUM(D49:D67) -> 55512.52907
D70: [42]
B71: CHARGES
C72: Assurance habitation | D72: =(Profil_Investisseur!I109+Profil_Investisseur!E123) -> 620
C73: Autre(s) assurance(s) | D73: =Profil_Investisseur!B127 -> 600
B74: Total assurances | D74: =D72+D73 -> 1220
C75: Intérêts crédit A (résidence principale) | D75: =VLOOKUP(F115,Tableau18[[#All],[Date du versement]:[Intérêts crédit A cumulés]],2,1)-VLOOKUP(F2,Tableau18[[#All],[Date du versement]:[Intérêts crédit A cumulés]],2,1) -> 2553.604928
C76: Ammortissement crédit A (résidence principale) | D76: =VLOOKUP(F115,Tableau18[#All],3,1)-VLOOKUP(F2,Tableau18[#All],3,1) -> 7479.082877
C77: Intérêts crédit B (Investissement locatif) | D77: =VLOOKUP(F115,Tableau19[[#All],[Date du versement]:[Intérêts crédit B cumulés]],2,1)-VLOOKUP(F2,Tableau19[[#All],[Date du versement]:[Intérêts crédit B cumulés]],2,1) -> 1655.61881
C78: Amortissement crédit B (investissement locatif) | D78: =VLOOKUP(F115,Tableau19[#All],3,1)-VLOOKUP(F2,Tableau19[#All],3,1) -> 9925.471003
C79: Intérêts autres dettes | D79: =0 -> 0
C80: Ammortissement autres dettes | D80: =0 -> 0
B81: Total des remboursements | D81: =SUM(D75:D80) -> 21613.77762
C82: Loyer + charges | D82: =Profil_Investisseur!B134*12 -> 0
C83: Transport, Alimentation, Pension Alimentaire,Loisirs | D83: =Profil_Investisseur!F63*12 -> 11728
C84: Charges totales (propriétaire investissement locatif) | D84: =Profil_Investisseur!D123*12 -> 600
C85: Charges totales (propriétaire principal) | D85: =Profil_Investisseur!D114*12 -> 600
B86: Total dépenses personnelles | D86: =SUM(D82:D85) -> 12928
C87: Impôts sur le revenu | D87: ='Impôts revenus'!E7 -> 3638.786272
C88: Impôts sur le foncier | D88: ='Impôts revenus'!F7 -> 3159.831272
C89: Taxe d'habitation | D89: =Profil_Investisseur!J109+Profil_Investisseur!B135*12 -> 881
C90: Fiscalité sur la plus-value du PEA | D90: =D53*'Hypothèses exogènes'!D43/100 -> 15.33656849
C91: Fiscalité sur la plus-value des comptes-titres | D91: =D54*'Hypothèses exogènes'!D44/100 -> 77.41865753
C92: Fiscalité sur la plus-value des autres propiétés | D92: =D55*'Hypothèses exogènes'!D45/100 -> 0
C93: Fiscalité sur la plus-value du PEE | D93: =D56*'Hypothèses exogènes'!D46/100 -> 2.483762466
C94: Fiscalité sur la plus-value du PERCO | D94: =D57*'Hypothèses exogènes'!D47/100 -> 1.56568537
C95: Fiscalité sur la plus-value de Livret A | D95: =D58*'Hypothèses exogènes'!D48/100 -> 0
C96: Fiscalité sur la plus-value du PEL | D96: =D59*'Hypothèses exogènes'!D49/100 -> 0.9068547945
C97: Fiscalité sur la plus-value du CEL | D97: =D60*'Hypothèses exogènes'!D50/100 -> 0.4316375342
C98: Fiscalité sur la plus-value du LDD | D98: =D61*'Hypothèses exogènes'!D51/100 -> 0
C99: Fiscalité sur la plus-value de l'assurance-vie Fonds€ | D99: =D62*'Hypothèses exogènes'!D52/100 -> 21.27616871
C100: Fiscalité sur la plus-value de l'assurance-vie UC | D100: =D63*'Hypothèses exogènes'!D53/100 -> 12.39603049
C101: Fiscalité sur la plus-value du plan retraites PERP | D101: =D64*'Hypothèses exogènes'!D54/100 -> 0.5571073403
C102: Fiscalité sur la plus-value de la résidence principale | D102: =D65*'Hypothèses exogènes'!D55/100 -> 0
C103: Fiscalité sur la plus-value du bien investissement locatif | D103: =D66*'Hypothèses exogènes'!D56/100 -> 0
B104: Total fiscalité | D104: =SUM(D87:D103) -> 7811.990016
C105: Dépenses exceptionnelles | D105: =D49*'Hypothèses exogènes'!D57/100 -> 2400 | G105: Pour vérifier
B106: Total des charges | D106: =SUM(D74,D81,D86,D104,D105) -> 45973.76763 | G106: Somme ammortissements + résultat net | I106: =D76+D78+D80+D108 -> 26943.31531
B108: Résultat Net Comptable | D108: =D68-D106 -> 9538.761435 | G108: Différence fonds propres | I108: =I123-I10 -> 26943.31531
G110: Différence Actifs | I110: =D154-D41 -> 9538.761435
C115: Bilan Actif Passif | E115: Date: | F115: =H115 -> 2021-01-01 | H115: =EDATE(F2,12) -> 2021-01-01
A117: Actif | F117: Passif
A118: Actif liquide
A119: Compte(s) courant(s) | F119: Fonds propres
B120: Compte(s) courant(s) | D120: =F162 -> 1000 | F120: Fonds propres liquide | I120: =D138-SUM(I126:I134) -> -226414.7533
C121: Total compte(s) courant(s) | D121: =D120 -> 1000 | F121: Fonds propres semi-liquide | I121: =D144 -> 363992.411
A122: Epargnes classiques | F122: Fonds propres non-liquide | I122: =D148 -> 821.6338729
B123: Livret A | D123: =D10+D58 -> 1013.255171 | F123: Total Fonds propres | I123: =SUM(I120:I122) -> 138399.2916
B124: PEL | D124: =D11+D59 -> 305.3077808
B125: CEL | D125: =D12+D60 -> 504.4136301
B126: LDD | D126: =D13+D61 -> 405.3020685 | F126: Capital restant dû crédit résidence principale | I126: =I16-D76 -> 146150.3704
B127: Assurance vie Fonds euros | D127: =D14+D62+F163 -> 8721.747602
B128: Assurance vie Unités de compte | D128: =D15+D63+F164 -> 3593.954507
C129: Total épargnes classiques | D129: =SUM(D123:D128) -> 14543.98076
A130: Actifs financiers | F130: Capital restant dû crédit investissement immo locatif | I130: =I19-D78 -> 104985.9776
B131: PEA | D131: =D18+D53 -> 3655.809932
B132: Compte-titres | D132: =D19+D54 -> 3944.664932 | F132: Capital restant dû autres prêts / dettes… | I132: =0 -> 0
C133: Total actifs financiers | D133: =SUM(D131,D132) -> 7600.474863
A134: Epargnes salariales | F134: Dettes fiscales | I134: =Profil_Investisseur!F173 -> 0
B135: PEE | D135: =D22+D56+D51 -> 1577.13911 | F135: Résultat net comptable | I135: =D108 -> 9538.761435
C136: Total épargnes salariales | D136: =D135 -> 1577.13911
C138: Total Actif liquide | D138: =SUM(D121,D129,D133,D136) -> 24721.59473
A139: Actif non-liquide
A140: Biens
B141: Résidence principale (valeur marchande) | D141: =D28+D65 -> 183184.6685
B142: Investissement immobilier (valeur marchande) | D142: =D29+D66 -> 173007.7425
B143: Autres propriétés (valeur) | D143: =D30+D55 -> 7800
C144: Total biens | D144: =SUM(D141,D142,D143) -> 363992.411
A145: Retraites
B146: Plan Retraites (PERP) | D146: =D33+D64 -> 205.6762564 | F146: Total Passif | I146: =SUM(I123:I134) -> 389535.6396
B147: PERCO | D147: =D34+D57 -> 615.9576164
C148: Total Retraites | D148: =SUM(D146,D147) -> 821.6338729
C150: Total Actif non-liquide | D150: =SUM(D144,D148) -> 364814.0448
A154: Total Actifs | D154: =SUM(D150+D138) -> 389535.6396
E161: "compte courant intermédiaire" | F161: =D7+D49+D50+D52+D67-D106 -> 5826.232366
E162: compte-courant final | F162: =MIN(1000,F161) -> 1000
E163: Va dans Assurance-Vie Fonds euros | F163: =(F161-F162)*(1-'Hypothèses exogènes'!C3) -> 2413.116183
E164: Va dans Assurance-Vie Unités de compte | F164: =(F161-F162)*'Hypothèses exogènes'!C3 -> 2413.116183

Sheet Bilan 2021
C2: Bilan Actif Passif | E2: Date: | F2: =H2 -> 2021-01-01 | H2: =DATE(2021,1,1) -> 2021-01-01 | K2: =YEAR(H2) -> 2021 | L2: =K2-2020 -> 1
A4: Actif | F4: Passif
A5: Actif liquide
A6: Compte(s) courant(s) | F6: Fonds propres
B7: Compte(s) courant(s) | D7: ='Bilan 2020'!D120 -> 1000 | F7: Fonds propres liquide | I7: =D25-SUM(I16:I26) -> -226414.7533
C8: Total compte(s) courant(s) | D8: =D7 -> 1000 | F8: Fonds propres semi-liquide | I8: =D31 -> 363992.411 | T8: Titres financiers augmentent de 10%
A9: Epargnes classiques | F9: Fonds propres non-liquide | I9: =D35 -> 821.6338729
B10: Livret A | D10: ='Bilan 2020'!D123 -> 1013.255171 | F10: Total Fonds propres | I10: =SUM(I7:I9) -> 138399.2916
B11: PEL | D11: ='Bilan 2020'!D124 -> 305.3077808 | T11: Assurance vie de 1,5
B12: CEL | D12: ='Bilan 2020'!D125 -> 504.4136301
B13: LDD | D13: ='Bilan 2020'!D126 -> 405.3020685 | T13: Plan retraite de 1%
B14: Assurance vie Fonds euros | D14: ='Bilan 2020'!D127 -> 8721.747602
B15: Assurance vie Unités de compte | D15: ='Bilan 2020'!D128 -> 3593.954507
C16: Total épargnes classiques | D16: =SUM(D10:D15) -> 14543.98076 | F16: Capital restant dû crédit résidence principale | I16: =VLOOKUP(F2,Tableau1[#All],2,1) -> 146150.3704
A17: Actifs financiers
B18: PEA | D18: ='Bilan 2020'!D131 -> 3655.809932
B19: Compte-titres | D19: ='Bilan 2020'!D132 -> 3944.664932 | F19: Capital restant dû crédit investissement immo locatif | I19: =VLOOKUP(F2,Tableau17[#All],2,1) -> 104985.9776
C20: Total actifs financiers | D20: =SUM(D18,D19) -> 7600.474863
A21: Epargnes salariales | F21: Capital restant dû autres prêts / dettes… | I21: =Profil_Investisseur!F100 -> 0
B22: PEE | D22: ='Bilan 2020'!D135 -> 1577.13911
C23: Total épargnes salariales | D23: =D22 -> 1577.13911
C25: Total Actif liquide | D25: =SUM(D8,D16,D20,D23) -> 24721.59473 | F25: Dettes fiscales | I25: =Profil_Investisseur!F96 -> 0
A26: Actif non-liquide
A27: Biens
B28: Résidence principale (valeur marchande) | D28: ='Bilan 2020'!D141 -> 183184.6685
B29: Investissement immobilier (valeur marchande) | D29: ='Bilan 2020'!D142 -> 173007.7425
B30: Autres propriétés (valeur) | D30: ='Bilan 2020'!D143 -> 7800
C31: Total biens | D31: =SUM(D28,D29,D30) -> 363992.411
A32: Retraites
B33: Plan Retraites (PERP) | D33: ='Bilan 2020'!D146 -> 205.6762564
B34: PERCO | D34: ='Bilan 2020'!D147 -> 615.9576164
C35: Total Retraites | D35: =SUM(D33,D34) -> 821.6338729
C37: Total Actif non-liquide | D37: =SUM(D31,D35) -> 364814.0448
F39: Total Passif | I39: =SUM(I10:I26) -> 389535.6396
A41: Total Actifs | D41: =SUM(D37+D25) -> 389535.6396
B46: Compte de Résultat
B48: RESSOURCES | D48: =F2 -> 2021-01-01 | E48: =F115 -> 2022-01-01
C49: Salaire | D49: ='Bilan 2020'!D49*((1+'Hypothèses exogènes'!E10/100)^$L$2) -> 41200
C50: Rentes immobilières | D50: ='Bilan 2020'!D50*((1+'Hypothèses exogènes'!E11/100)^$L$2) -> 10810.8
C51: Prime d'intéressement et de participation | D51: ='Bilan 2020'!D51*((1+'Hypothèses exogènes'!E12/100)^$L$2) -> 600
C52: Don(s) / Bourse(s) / Aide(s) / Allocation(s) / Pension(s) | D52: ='Bilan 2020'!D52*((1+'Hypothèses exogènes'!E13/100)^$L$2) -> 0
C53: Plus-value PEA | D53: =D18*('Hypothèses exogènes'!D14/100+((1+'Hypothèses exogènes'!E14/100)^$L$2-1)) -> 102.3626781
C54: Plus-value des comptes-titres | D54: =D19*('Hypothèses exogènes'!D15/100+((1+'Hypothèses exogènes'!E15/100)^$L$2-1)) -> 287.96054
C55: Plus-value des autres propiétés | D55: =D30*('Hypothèses exogènes'!D16/100+((1+'Hypothèses exogènes'!E16/100)^$L$2-1)) -> 31.2
C56: Plus-value du PEE | D56: =D22*('Hypothèses exogènes'!D17/100+((1+'Hypothèses exogènes'!E17/100)^$L$2-1)) -> 28.38850397
C57: Plus-value du PERCO | D57: =D34*('Hypothèses exogènes'!D18/100+((1+'Hypothèses exogènes'!E18/100)^$L$2-1)) -> 11.0872371
C58: Plus-value de Livret A | D58: =D10*('Hypothèses exogènes'!D19/100+((1+'Hypothèses exogènes'!E19/100)^$L$2-1)) -> 7.599413784
C59: Plus-value du PEL | D59: =D11*('Hypothèses exogènes'!D20/100+((1+'Hypothèses exogènes'!E20/100)^$L$2-1)) -> 3.969001151
C60: Plus-value du CEL | D60: =D12*('Hypothèses exogènes'!D21/100+((1+'Hypothèses exogènes'!E21/100)^$L$2-1)) -> 4.035309041
C61: Plus-value du LDD | D61: =D13*('Hypothèses exogènes'!D22/100+((1+'Hypothèses exogènes'!E22/100)^$L$2-1)) -> 4.255671719
C62: Plus-value de l'assurance-vie Fonds€ | D62: =D14*('Hypothèses exogènes'!D23/100+((1+'Hypothèses exogènes'!E23/100)^$L$2-1)) -> 200.6001948
C63: Plus-value de l'assurance-vie UC | D63: =D15*('Hypothèses exogènes'!D24/100+((1+'Hypothèses exogènes'!E24/100)^$L$2-1)) -> 244.3889065
C64: Plus-value du plan retraites PERP | D64: =D33*('Hypothèses exogènes'!D25/100+((1+'Hypothèses exogènes'!E25/100)^$L$2-1)) -> 3.907848872
C65: Plus-value résidence principale | D65: =D28*('Hypothèses exogènes'!D26/100+((1+'Hypothèses exogènes'!E26/100)^$L$2-1)) -> 2381.40069
C66: Plus-value du bien investissement locatif | D66: =D29*('Hypothèses exogènes'!D27/100+((1+'Hypothèses exogènes'!E27/100)^$L$2-1)) -> 2249.100652
C67: Autres revenus | D67: =Profil_Investisseur!B59*12 -> 0
B68: Total des ressources | D68: =SUM(D49:D67) -> 58171.05665
D70: [42]
B71: CHARGES
C72: Assurance habitation | D72: =(Profil_Investisseur!I109+Profil_Investisseur!E123) -> 620
C73: Autre(s) assurance(s) | D73: =Profil_Investisseur!B127 -> 600
B74: Total assurances | D74: =D72+D73 -> 1220
C75: Intérêts crédit A (résidence principale) | D75: =VLOOKUP(F115,Tableau18[[#All],[Date du versement]:[Intérêts crédit A cumulés]],2,1)-VLOOKUP(F2,Tableau18[[#All],[Date du versement]:[Intérêts crédit A cumulés]],2,1) -> 2425.465159
C76: Ammortissement crédit A (résidence principale) | D76: =VLOOKUP(F115,Tableau18[#All],3,1)-VLOOKUP(F2,Tableau18[#All],3,1) -> 7607.222645
C77: Intérêts crédit B (Investissement locatif) | D77: =VLOOKUP(F115,Tableau19[[#All],[Date du versement]:[Intérêts crédit B cumulés]],2,1)-VLOOKUP(F2,Tableau19[[#All],[Date du versement]:[Intérêts crédit B cumulés]],2,1) -> 1505.708904
C78: Amortissement crédit B (investissement locatif) | D78: =VLOOKUP(F115,Tableau19[#All],3,1)-VLOOKUP(F2,Tableau19[#All],3,1) -> 10075.38091
C79: Intérêts autres dettes | D79: =0 -> 0
C80: Ammortissement autres dettes | D80: =0 -> 0
B81: Total des remboursements | D81: =SUM(D75:D80) -> 21613.77762
C82: Loyer + charges | D82: =Profil_Investisseur!B134*12 -> 0
C83: Transport, Alimentation, Pension Alimentaire,Loisirs | D83: =Profil_Investisseur!F63*12 -> 11728
C84: Charges totales (propriétaire investissement locatif) | D84: =Profil_Investisseur!D123*12 -> 600
C85: Charges totales (propriétaire principal) | D85: =Profil_Investisseur!D114*12 -> 600
B86: Total dépenses personnelles | D86: =SUM(D82:D85) -> 12928
C87: Impôts sur le revenu | D87: ='Impôts revenus'!E8 -> 4070.237764
C88: Impôts sur le foncier | D88: ='Impôts revenus'!F8 -> 3546.962264
C89: Taxe d'habitation | D89: =Profil_Investisseur!J109+Profil_Investisseur!B135*12 -> 881
C90: Fiscalité sur la plus-value du PEA | D90: =D53*('Hypothèses exogènes'!D43/100+((1+'Hypothèses exogènes'!E43/100)^$L$2-1)) -> 17.91346866
C91: Fiscalité sur la plus-value des comptes-titres | D91: =D54*('Hypothèses exogènes'!D44/100+((1+'Hypothèses exogènes'!E44/100)^$L$2-1)) -> 87.25204362
C92: Fiscalité sur la plus-value des autres propiétés | D92: =D55*('Hypothèses exogènes'!D45/100+((1+'Hypothèses exogènes'!E45/100)^$L$2-1)) -> 5.46
C93: Fiscalité sur la plus-value du PEE | D93: =D56*('Hypothèses exogènes'!D46/100+((1+'Hypothèses exogènes'!E46/100)^$L$2-1)) -> 4.967988195
C94: Fiscalité sur la plus-value du PERCO | D94: =D57*('Hypothèses exogènes'!D47/100+((1+'Hypothèses exogènes'!E47/100)^$L$2-1)) -> 1.940266492
C95: Fiscalité sur la plus-value de Livret A | D95: =D58*('Hypothèses exogènes'!D48/100+((1+'Hypothèses exogènes'!E48/100)^$L$2-1)) -> 0
C96: Fiscalité sur la plus-value du PEL | D96: =D59*('Hypothèses exogènes'!D49/100+((1+'Hypothèses exogènes'!E49/100)^$L$2-1)) -> 1.202607349
C97: Fiscalité sur la plus-value du CEL | D97: =D60*('Hypothèses exogènes'!D50/100+((1+'Hypothèses exogènes'!E50/100)^$L$2-1)) -> 0.7061790822
C98: Fiscalité sur la plus-value du LDD | D98: =D61*('Hypothèses exogènes'!D51/100+((1+'Hypothèses exogènes'!E51/100)^$L$2-1)) -> 0.01276701516
C99: Fiscalité sur la plus-value de l'assurance-vie Fonds€ | D99: =D62*('Hypothèses exogènes'!D52/100+((1+'Hypothèses exogènes'!E52/100)^$L$2-1)) -> 35.1050341
C100: Fiscalité sur la plus-value de l'assurance-vie UC | D100: =D63*('Hypothèses exogènes'!D53/100+((1+'Hypothèses exogènes'!E53/100)^$L$2-1)) -> 42.76805864
C101: Fiscalité sur la plus-value du plan retraites PERP | D101: =D64*('Hypothèses exogènes'!D54/100+((1+'Hypothèses exogènes'!E54/100)^$L$2-1)) -> 0.6838735527
C102: Fiscalité sur la plus-value de la résidence principale | D102: =D65*('Hypothèses exogènes'!D55/100+((1+'Hypothèses exogènes'!E55/100)^$L$2-1)) -> 0
C103: Fiscalité sur la plus-value du bien investissement locatif | D103: =D66*('Hypothèses exogènes'!D56/100+((1+'Hypothèses exogènes'!E56/100)^$L$2-1)) -> 0
B104: Total fiscalité | D104: =SUM(D87:D103) -> 8696.212315
C105: Dépenses exceptionnelles | D105: =D49*'Hypothèses exogènes'!D57/100 -> 2472 | G105: Pour vérifier
B106: Total des charges | D106: =SUM(D74,D81,D86,D104,D105) -> 46929.98993 | G106: Somme ammortissements + résultat net | I106: =D76+D78+D80+D108 -> 28923.67027
B108: Résultat Net Comptable | D108: =D68-D106 -> 11241.06671 | G108: Différence fonds propres | I108: =I123-I10 -> 28923.67027
G110: Différence Actifs | I110: =D154-D41 -> 11241.06671
C115: Bilan Actif Passif | E115: Date: | F115: =H115 -> 2022-01-01 | H115: =EDATE(F2,12) -> 2022-01-01
A117: Actif | F117: Passif
A118: Actif liquide
A119: Compte(s) courant(s) | F119: Fonds propres
B120: Compte(s) courant(s) | D120: =F162 -> 1000 | F120: Fonds propres liquide | I120: =D138-SUM(I126:I134) -> -202167.7794
C121: Total compte(s) courant(s) | D121: =D120 -> 1000 | F121: Fonds propres semi-liquide | I121: =D144 -> 368654.1123
A122: Epargnes classiques | F122: Fonds propres non-liquide | I122: =D148 -> 836.6289588
B123: Livret A | D123: =D10+D58 -> 1020.854585 | F123: Total Fonds propres | I123: =SUM(I120:I122) -> 167322.9618
B124: PEL | D124: =D11+D59 -> 309.276782
B125: CEL | D125: =D12+D60 -> 508.4489392
B126: LDD | D126: =D13+D61 -> 409.5577402 | F126: Capital restant dû crédit résidence principale | I126: =I16-D76 -> 138543.1477
B127: Assurance vie Fonds euros | D127: =D14+D62+F163 -> 11462.75283
B128: Assurance vie Unités de compte | D128: =D15+D63+F164 -> 6378.748447
C129: Total épargnes classiques | D129: =SUM(D123:D128) -> 20089.63932
A130: Actifs financiers | F130: Capital restant dû crédit investissement immo locatif | I130: =I19-D78 -> 94910.59669
B131: PEA | D131: =D18+D53 -> 3758.17261
B132: Compte-titres | D132: =D19+D54 -> 4232.625472 | F132: Capital restant dû autres prêts / dettes… | I132: =0 -> 0
C133: Total actifs financiers | D133: =SUM(D131,D132) -> 7990.798081
A134: Epargnes salariales | F134: Dettes fiscales | I134: =Profil_Investisseur!F173 -> 0
B135: PEE | D135: =D22+D56+D51 -> 2205.527614 | F135: Résultat net comptable | I135: =D108 -> 11241.06671
C136: Total épargnes salariales | D136: =D135 -> 2205.527614
C138: Total Actif liquide | D138: =SUM(D121,D129,D133,D136) -> 31285.96502
A139: Actif non-liquide
A140: Biens
B141: Résidence principale (valeur marchande) | D141: =D28+D65 -> 185566.0692
B142: Investissement immobilier (valeur marchande) | D142: =D29+D66 -> 175256.8431
B143: Autres propriétés (valeur) | D143: =D30+D55 -> 7831.2
C144: Total biens | D144: =SUM(D141,D142,D143) -> 368654.1123
A145: Retraites
B146: Plan Retraites (PERP) | D146: =D33+D64 -> 209.5841053 | F146: Total Passif | I146: =SUM(I123:I134) -> 400776.7063
B147: PERCO | D147: =D34+D57 -> 627.0448535
C148: Total Retraites | D148: =SUM(D146,D147) -> 836.6289588
C150: Total Actif non-liquide | D150: =SUM(D144,D148) -> 369490.7413
A154: Total Actifs | D154: =SUM(D150+D138) -> 400776.7063
E161: "compte courant intermédiaire" | F161: =D7+D49+D50+D52+D67-D106 -> 6080.810067
E162: compte-courant final | F162: =MIN(1000,F161) -> 1000
E163: Va dans Assurance-Vie Fonds euros | F163: =(F161-F162)*(1-'Hypothèses exogènes'!C3) -> 2540.405034
E164: Va dans Assurance-Vie Unités de compte | F164: =(F161-F162)*'Hypothèses exogènes'!C3 -> 2540.405034

Sheet Bilan 2022
C2: Bilan Actif Passif | E2: Date: | F2: =H2 -> 2022-01-01 | H2: =DATE(2022,1,1) -> 2022-01-01 | K2: =YEAR(H2) -> 2022 | L2: =K2-2020 -> 2
A4: Actif | F4: Passif
A5: Actif liquide
A6: Compte(s) courant(s) | F6: Fonds propres
B7: Compte(s) courant(s) | D7: ='Bilan 2021'!D120 -> 1000 | F7: Fonds propres liquide | I7: =D25-SUM(I16:I26) -> -202167.7794
C8: Total compte(s) courant(s) | D8: =D7 -> 1000 | F8: Fonds propres semi-liquide | I8: =D31 -> 368654.1123 | T8: Titres financiers augmentent de 10%
A9: Epargnes classiques | F9: Fonds propres non-liquide | I9: =D35 -> 836.6289588
B10: Livret A | D10: ='Bilan 2021'!D123 -> 1020.854585 | F10: Total Fonds propres | I10: =SUM(I7:I9) -> 167322.9618
B11: PEL | D11: ='Bilan 2021'!D124 -> 309.276782 | T11: Assurance vie de 1,5
B12: CEL | D12: ='Bilan 2021'!D125 -> 508.4489392
B13: LDD | D13: ='Bilan 2021'!D126 -> 409.5577402 | T13: Plan retraite de 1%
B14: Assurance vie Fonds euros | D14: ='Bilan 2021'!D127 -> 11462.75283
B15: Assurance vie Unités de compte | D15: ='Bilan 2021'!D128 -> 6378.748447
C16: Total épargnes classiques | D16: =SUM(D10:D15) -> 20089.63932 | F16: Capital restant dû crédit résidence principale | I16: =VLOOKUP(F2,Tableau1[#All],2,1) -> 138543.1477
A17: Actifs financiers
B18: PEA | D18: ='Bilan 2021'!D131 -> 3758.17261
B19: Compte-titres | D19: ='Bilan 2021'!D132 -> 4232.625472 | F19: Capital restant dû crédit investissement immo locatif | I19: =VLOOKUP(F2,Tableau17[#All],2,1) -> 94910.59669
C20: Total actifs financiers | D20: =SUM(D18,D19) -> 7990.798081
A21: Epargnes salariales | F21: Capital restant dû autres prêts / dettes… | I21: =Profil_Investisseur!F100 -> 0
B22: PEE | D22: ='Bilan 2021'!D135 -> 2205.527614
C23: Total épargnes salariales | D23: =D22 -> 2205.527614
C25: Total Actif liquide | D25: =SUM(D8,D16,D20,D23) -> 31285.96502 | F25: Dettes fiscales | I25: =Profil_Investisseur!F96 -> 0
A26: Actif non-liquide
A27: Biens
B28: Résidence principale (valeur marchande) | D28: ='Bilan 2021'!D141 -> 185566.0692
B29: Investissement immobilier (valeur marchande) | D29: ='Bilan 2021'!D142 -> 175256.8431
B30: Autres propriétés (valeur) | D30: ='Bilan 2021'!D143 -> 7831.2
C31: Total biens | D31: =SUM(D28,D29,D30) -> 368654.1123
A32: Retraites
B33: Plan Retraites (PERP) | D33: ='Bilan 2021'!D146 -> 209.5841053
B34: PERCO | D34: ='Bilan 2021'!D147 -> 627.0448535
C35: Total Retraites | D35: =SUM(D33,D34) -> 836.6289588
C37: Total Actif non-liquide | D37: =SUM(D31,D35) -> 369490.7413
F39: Total Passif | I39: =SUM(I10:I25) -> 400776.7063
A41: Total Actifs | D41: =SUM(D37+D25) -> 400776.7063
B46: Compte de Résultat
B48: RESSOURCES | D48: =F2 -> 2022-01-01 | E48: =F115 -> 2023-01-01
C49: Salaire | D49: ='Bilan 2020'!D49*((1+'Hypothèses exogènes'!E10/100)^$L$2) -> 42436
C50: Rentes immobilières | D50: ='Bilan 2020'!D50*((1+'Hypothèses exogènes'!E11/100)^$L$2) -> 10821.6108
C51: Prime d'intéressement et de participation | D51: ='Bilan 2020'!D51*((1+'Hypothèses exogènes'!E12/100)^$L$2) -> 600
C52: Don(s) / Bourse(s) / Aide(s) / Allocation(s) / Pension(s) | D52: ='Bilan 2020'!D52*((1+'Hypothèses exogènes'!E13/100)^$L$2) -> 0
C53: Plus-value PEA | D53: =D18*('Hypothèses exogènes'!D14/100+((1+'Hypothèses exogènes'!E14/100)^$L$2-1)) -> 116.5371745
C54: Plus-value des comptes-titres | D54: =D19*('Hypothèses exogènes'!D15/100+((1+'Hypothèses exogènes'!E15/100)^$L$2-1)) -> 321.7176295
C55: Plus-value des autres propiétés | D55: =D30*('Hypothèses exogènes'!D16/100+((1+'Hypothèses exogènes'!E16/100)^$L$2-1)) -> 62.7748992
C56: Plus-value du PEE | D56: =D22*('Hypothèses exogènes'!D17/100+((1+'Hypothèses exogènes'!E17/100)^$L$2-1)) -> 46.33592963
C57: Plus-value du PERCO | D57: =D34*('Hypothèses exogènes'!D18/100+((1+'Hypothèses exogènes'!E18/100)^$L$2-1)) -> 13.17358533
C58: Plus-value de Livret A | D58: =D10*('Hypothèses exogènes'!D19/100+((1+'Hypothèses exogènes'!E19/100)^$L$2-1)) -> 7.656409388
C59: Plus-value du PEL | D59: =D11*('Hypothèses exogènes'!D20/100+((1+'Hypothèses exogènes'!E20/100)^$L$2-1)) -> 4.951212003
C60: Plus-value du CEL | D60: =D12*('Hypothèses exogènes'!D21/100+((1+'Hypothèses exogènes'!E21/100)^$L$2-1)) -> 5.597514371
C61: Plus-value du LDD | D61: =D13*('Hypothèses exogènes'!D22/100+((1+'Hypothèses exogènes'!E22/100)^$L$2-1)) -> 5.532715513
C62: Plus-value de l'assurance-vie Fonds€ | D62: =D14*('Hypothèses exogènes'!D23/100+((1+'Hypothèses exogènes'!E23/100)^$L$2-1)) -> 298.1347384
C63: Plus-value de l'assurance-vie UC | D63: =D15*('Hypothèses exogènes'!D24/100+((1+'Hypothèses exogènes'!E24/100)^$L$2-1)) -> 452.9485485
C64: Plus-value du plan retraites PERP | D64: =D33*('Hypothèses exogènes'!D25/100+((1+'Hypothèses exogènes'!E25/100)^$L$2-1)) -> 4.612736574
C65: Plus-value résidence principale | D65: =D28*('Hypothèses exogènes'!D26/100+((1+'Hypothèses exogènes'!E26/100)^$L$2-1)) -> 2970.727202
C66: Plus-value du bien investissement locatif | D66: =D29*('Hypothèses exogènes'!D27/100+((1+'Hypothèses exogènes'!E27/100)^$L$2-1)) -> 2805.686801
C67: Autres revenus | D67: =Profil_Investisseur!B59*12 -> 0
B68: Total des ressources | D68: =SUM(D49:D67) -> 60973.9979
D70: [42]
B71: CHARGES
C72: Assurance habitation | D72: =(Profil_Investisseur!I109+Profil_Investisseur!E123) -> 620
C73: Autre(s) assurance(s) | D73: =Profil_Investisseur!B127 -> 600
B74: Total assurances | D74: =D72+D73 -> 1220
C75: Intérêts crédit A (résidence principale) | D75: =VLOOKUP(F115,Tableau18[[#All],[Date du versement]:[Intérêts crédit A cumulés]],2,1)-VLOOKUP(F2,Tableau18[[#All],[Date du versement]:[Intérêts crédit A cumulés]],2,1) -> 2295.12996
C76: Ammortissement crédit A (résidence principale) | D76: =VLOOKUP(F115,Tableau18[#All],3,1)-VLOOKUP(F2,Tableau18[#All],3,1) -> 7737.557844
C77: Intérêts crédit B (Investissement locatif) | D77: =VLOOKUP(F115,Tableau19[[#All],[Date du versement]:[Intérêts crédit B cumulés]],2,1)-VLOOKUP(F2,Tableau19[[#All],[Date du versement]:[Intérêts crédit B cumulés]],2,1) -> 1353.534825
C78: Amortissement crédit B (investissement locatif) | D78: =VLOOKUP(F115,Tableau19[#All],3,1)-VLOOKUP(F2,Tableau19[#All],3,1) -> 10227.55499
C79: Intérêts autres dettes | D79: =0 -> 0
C80: Ammortissement autres dettes | D80: =0 -> 0
B81: Total des remboursements | D81: =SUM(D75:D80) -> 21613.77762
C82: Loyer + charges | D82: =Profil_Investisseur!B134*12 -> 0
C83: Transport, Alimentation, Pension Alimentaire,Loisirs | D83: =Profil_Investisseur!F63*12 -> 11728
C84: Charges totales (propriétaire investissement locatif) | D84: =Profil_Investisseur!D123*12 -> 600
C85: Charges totales (propriétaire principal) | D85: =Profil_Investisseur!D114*12 -> 600
B86: Total dépenses personnelles | D86: =SUM(D82:D85) -> 12928
C87: Impôts sur le revenu | D87: ='Impôts revenus'!E9 -> 3806.353269
C88: Impôts sur le foncier | D88: ='Impôts revenus'!F9 -> 3238.535667
C89: Taxe d'habitation | D89: =Profil_Investisseur!J109+Profil_Investisseur!B135*12 -> 881
C90: Fiscalité sur la plus-value du PEA | D90: =D53*('Hypothèses exogènes'!D43/100+((1+'Hypothèses exogènes'!E43/100)^$L$2-1)) -> 20.74466589
C91: Fiscalité sur la plus-value des comptes-titres | D91: =D54*('Hypothèses exogènes'!D44/100+((1+'Hypothèses exogènes'!E44/100)^$L$2-1)) -> 98.44849007
C92: Fiscalité sur la plus-value des autres propiétés | D92: =D55*('Hypothèses exogènes'!D45/100+((1+'Hypothèses exogènes'!E45/100)^$L$2-1)) -> 11.17449703
C93: Fiscalité sur la plus-value du PEE | D93: =D56*('Hypothèses exogènes'!D46/100+((1+'Hypothèses exogènes'!E46/100)^$L$2-1)) -> 8.248212498
C94: Fiscalité sur la plus-value du PERCO | D94: =D57*('Hypothèses exogènes'!D47/100+((1+'Hypothèses exogènes'!E47/100)^$L$2-1)) -> 2.345016751
C95: Fiscalité sur la plus-value de Livret A | D95: =D58*('Hypothèses exogènes'!D48/100+((1+'Hypothèses exogènes'!E48/100)^$L$2-1)) -> 0
C96: Fiscalité sur la plus-value du PEL | D96: =D59*('Hypothèses exogènes'!D49/100+((1+'Hypothèses exogènes'!E49/100)^$L$2-1)) -> 1.515115434
C97: Fiscalité sur la plus-value du CEL | D97: =D60*('Hypothèses exogènes'!D50/100+((1+'Hypothèses exogènes'!E50/100)^$L$2-1)) -> 0.9964079357
C98: Fiscalité sur la plus-value du LDD | D98: =D61*('Hypothèses exogènes'!D51/100+((1+'Hypothèses exogènes'!E51/100)^$L$2-1)) -> 0.03324608751
C99: Fiscalité sur la plus-value de l'assurance-vie Fonds€ | D99: =D62*('Hypothèses exogènes'!D52/100+((1+'Hypothèses exogènes'!E52/100)^$L$2-1)) -> 53.07066664
C100: Fiscalité sur la plus-value de l'assurance-vie UC | D100: =D63*('Hypothèses exogènes'!D53/100+((1+'Hypothèses exogènes'!E53/100)^$L$2-1)) -> 80.62891817
C101: Fiscalité sur la plus-value du plan retraites PERP | D101: =D64*('Hypothèses exogènes'!D54/100+((1+'Hypothèses exogènes'!E54/100)^$L$2-1)) -> 0.8211086248
C102: Fiscalité sur la plus-value de la résidence principale | D102: =D65*('Hypothèses exogènes'!D55/100+((1+'Hypothèses exogènes'!E55/100)^$L$2-1)) -> 0
C103: Fiscalité sur la plus-value du bien investissement locatif | D103: =D66*('Hypothèses exogènes'!D56/100+((1+'Hypothèses exogènes'!E56/100)^$L$2-1)) -> 0
B104: Total fiscalité | D104: =SUM(D87:D103) -> 8203.915281
C105: Dépenses exceptionnelles | D105: =D49*'Hypothèses exogènes'!D57/100 -> 2546.16 | G105: Pour vérifier
B106: Total des charges | D106: =SUM(D74,D81,D86,D104,D105) -> 46511.8529 | G106: Somme ammortissements + résultat net | I106: =D76+D78+D80+D108 -> 32427.25783
B108: Résultat Net Comptable | D108: =D68-D106 -> 14462.145 | G108: Différence fonds propres | I108: =I123-I10 -> 32427.25783
G110: Différence Actifs | I110: =D154-D41 -> 14462.145
C115: Bilan Actif Passif | E115: Date: | F115: =H115 -> 2023-01-01 | H115: =EDATE(F2,12) -> 2023-01-01
A117: Actif | F117: Passif
A118: Actif liquide
A119: Compte(s) courant(s) | F119: Fonds propres
B120: Compte(s) courant(s) | D120: =F162 -> 1000 | F120: Fonds propres liquide | I120: =D138-SUM(I126:I134) -> -175597.4968
C121: Total compte(s) courant(s) | D121: =D120 -> 1000 | F121: Fonds propres semi-liquide | I121: =D144 -> 374493.3012
A122: Epargnes classiques | F122: Fonds propres non-liquide | I122: =D148 -> 854.4152807
B123: Livret A | D123: =D10+D58 -> 1028.510994 | F123: Total Fonds propres | I123: =SUM(I120:I122) -> 199750.2197
B124: PEL | D124: =D11+D59 -> 314.227994
B125: CEL | D125: =D12+D60 -> 514.0464535
B126: LDD | D126: =D13+D61 -> 415.0904557 | F126: Capital restant dû crédit résidence principale | I126: =I16-D76 -> 130805.5899
B127: Assurance vie Fonds euros | D127: =D14+D62+F163 -> 15133.76652
B128: Assurance vie Unités de compte | D128: =D15+D63+F164 -> 10204.57595
C129: Total épargnes classiques | D129: =SUM(D123:D128) -> 27610.21836
A130: Actifs financiers | F130: Capital restant dû crédit investissement immo locatif | I130: =I19-D78 -> 84683.0417
B131: PEA | D131: =D18+D53 -> 3874.709784
B132: Compte-titres | D132: =D19+D54 -> 4554.343101 | F132: Capital restant dû autres prêts / dettes… | I132: =0 -> 0
C133: Total actifs financiers | D133: =SUM(D131,D132) -> 8429.052885
A134: Epargnes salariales | F134: Dettes fiscales | I134: =Profil_Investisseur!F173 -> 0
B135: PEE | D135: =D22+D56+D51 -> 2851.863543 | F135: Résultat net comptable | I135: =D108 -> 14462.145
C136: Total épargnes salariales | D136: =D135 -> 2851.863543
C138: Total Actif liquide | D138: =SUM(D121,D129,D133,D136) -> 39891.13479
A139: Actif non-liquide
A140: Biens
B141: Résidence principale (valeur marchande) | D141: =D28+D65 -> 188536.7964
B142: Investissement immobilier (valeur marchande) | D142: =D29+D66 -> 178062.5299
B143: Autres propriétés (valeur) | D143: =D30+D55 -> 7893.974899
C144: Total biens | D144: =SUM(D141,D142,D143) -> 374493.3012
A145: Retraites
B146: Plan Retraites (PERP) | D146: =D33+D64 -> 214.1968419 | F146: Total Passif | I146: =SUM(I123:I134) -> 415238.8513
B147: PERCO | D147: =D34+D57 -> 640.2184389
C148: Total Retraites | D148: =SUM(D146,D147) -> 854.4152807
C150: Total Actif non-liquide | D150: =SUM(D144,D148) -> 375347.7165
A154: Total Actifs | D154: =SUM(D150+D138) -> 415238.8513
E161: "compte courant intermédiaire" | F161: =D7+D49+D50+D52+D67-D106 -> 7745.757902
E162: compte-courant final | F162: =MIN(1000,F161) -> 1000
E163: Va dans Assurance-Vie Fonds euros | F163: =(F161-F162)*(1-'Hypothèses exogènes'!C3) -> 3372.878951
E164: Va dans Assurance-Vie Unités de compte | F164: =(F161-F162)*'Hypothèses exogènes'!C3 -> 3372.878951

Sheet Bilan 2023
C2: Bilan Actif Passif | E2: Date: | F2: =H2 -> 2023-01-01 | H2: =DATE(2023,1,1) -> 2023-01-01 | K2: =YEAR(H2) -> 2023 | L2: =K2-2020 -> 3
A4: Actif | F4: Passif
A5: Actif liquide
A6: Compte(s) courant(s) | F6: Fonds propres
B7: Compte(s) courant(s) | D7: ='Bilan 2022'!D120 -> 1000 | F7: Fonds propres liquide | I7: =D25-SUM(I16:I26) -> -175597.4968
C8: Total compte(s) courant(s) | D8: =D7 -> 1000 | F8: Fonds propres semi-liquide | I8: =D31 -> 374493.3012 | T8: Titres financiers augmentent de 10%
A9: Epargnes classiques | F9: Fonds propres non-liquide | I9: =D35 -> 854.4152807
B10: Livret A | D10: ='Bilan 2022'!D123 -> 1028.510994 | F10: Total Fonds propres | I10: =SUM(I7:I9) -> 199750.2197
B11: PEL | D11: ='Bilan 2022'!D124 -> 314.227994 | T11: Assurance vie de 1,5
B12: CEL | D12: ='Bilan 2022'!D125 -> 514.0464535
B13: LDD | D13: ='Bilan 2022'!D126 -> 415.0904557 | T13: Plan retraite de 1%
B14: Assurance vie Fonds euros | D14: ='Bilan 2022'!D127 -> 15133.76652
B15: Assurance vie Unités de compte | D15: ='Bilan 2022'!D128 -> 10204.57595
C16: Total épargnes classiques | D16: =SUM(D10:D15) -> 27610.21836 | F16: Capital restant dû crédit résidence principale | I16: =VLOOKUP(F2,Tableau1[#All],2,1) -> 130805.5899
A17: Actifs financiers
B18: PEA | D18: ='Bilan 2022'!D131 -> 3874.709784
B19: Compte-titres | D19: ='Bilan 2022'!D132 -> 4554.343101 | F19: Capital restant dû crédit investissement immo locatif | I19: =VLOOKUP(F2,Tableau17[#All],2,1) -> 84683.0417
C20: Total actifs financiers | D20: =SUM(D18,D19) -> 8429.052885
A21: Epargnes salariales | F21: Capital restant dû autres prêts / dettes… | I21: =Profil_Investisseur!F100 -> 0
B22: PEE | D22: ='Bilan 2022'!D135 -> 2851.863543
C23: Total épargnes salariales | D23: =D22 -> 2851.863543
C25: Total Actif liquide | D25: =SUM(D8,D16,D20,D23) -> 39891.13479 | F25: Dettes fiscales | I25: =Profil_Investisseur!F96 -> 0
A26: Actif non-liquide
A27: Biens
B28: Résidence principale (valeur marchande) | D28: ='Bilan 2022'!D141 -> 188536.7964
B29: Investissement immobilier (valeur marchande) | D29: ='Bilan 2022'!D142 -> 178062.5299
B30: Autres propriétés (valeur) | D30: ='Bilan 2022'!D143 -> 7893.974899
C31: Total biens | D31: =SUM(D28,D29,D30) -> 374493.3012
A32: Retraites
B33: Plan Retraites (PERP) | D33: ='Bilan 2022'!D146 -> 214.1968419
B34: PERCO | D34: ='Bilan 2022'!D147 -> 640.2184389
C35: Total Retraites | D35: =SUM(D33,D34) -> 854.4152807
C37: Total Actif non-liquide | D37: =SUM(D31,D35) -> 375347.7165
F39: Total Passif | I39: =SUM(I10:I25) -> 415238.8513
A41: Total Actifs | D41: =SUM(D37+D25) -> 415238.8513
B46: Compte de Résultat
B48: RESSOURCES | D48: =F2 -> 2023-01-01 | E48: =F115 -> 2024-01-01
C49: Salaire | D49: ='Bilan 2020'!D49*((1+'Hypothèses exogènes'!E10/100)^$L$2) -> 43709.08
C50: Rentes immobilières | D50: ='Bilan 2020'!D50*((1+'Hypothèses exogènes'!E11/100)^$L$2) -> 10832.43241
C51: Prime d'intéressement et de participation | D51: ='Bilan 2020'!D51*((1+'Hypothèses exogènes'!E12/100)^$L$2) -> 600
C52: Don(s) / Bourse(s) / Aide(s) / Allocation(s) / Pension(s) | D52: ='Bilan 2020'!D52*((1+'Hypothèses exogènes'!E13/100)^$L$2) -> 0
C53: Plus-value PEA | D53: =D18*('Hypothèses exogènes'!D14/100+((1+'Hypothèses exogènes'!E14/100)^$L$2-1)) -> 131.8448544
C54: Plus-value des comptes-titres | D54: =D19*('Hypothèses exogènes'!D15/100+((1+'Hypothèses exogènes'!E15/100)^$L$2-1)) -> 359.9161952
C55: Plus-value des autres propiétés | D55: =D30*('Hypothèses exogènes'!D16/100+((1+'Hypothèses exogènes'!E16/100)^$L$2-1)) -> 95.1071148
C56: Plus-value du PEE | D56: =D22*('Hypothèses exogènes'!D17/100+((1+'Hypothèses exogènes'!E17/100)^$L$2-1)) -> 68.52180235
C57: Plus-value du PERCO | D57: =D34*('Hypothèses exogènes'!D18/100+((1+'Hypothèses exogènes'!E18/100)^$L$2-1)) -> 15.38254572
C58: Plus-value de Livret A | D58: =D10*('Hypothèses exogènes'!D19/100+((1+'Hypothèses exogènes'!E19/100)^$L$2-1)) -> 7.713832458
C59: Plus-value du PEL | D59: =D11*('Hypothèses exogènes'!D20/100+((1+'Hypothèses exogènes'!E20/100)^$L$2-1)) -> 5.978824526
C60: Plus-value du CEL | D60: =D12*('Hypothèses exogènes'!D21/100+((1+'Hypothèses exogènes'!E21/100)^$L$2-1)) -> 7.210543483
C61: Plus-value du LDD | D61: =D13*('Hypothèses exogènes'!D22/100+((1+'Hypothèses exogènes'!E22/100)^$L$2-1)) -> 6.860211169
C62: Plus-value de l'assurance-vie Fonds€ | D62: =D14*('Hypothèses exogènes'!D23/100+((1+'Hypothèses exogènes'!E23/100)^$L$2-1)) -> 439.2882494
C63: Plus-value de l'assurance-vie UC | D63: =D15*('Hypothèses exogènes'!D24/100+((1+'Hypothèses exogènes'!E24/100)^$L$2-1)) -> 755.4144191
C64: Plus-value du plan retraites PERP | D64: =D33*('Hypothèses exogènes'!D25/100+((1+'Hypothèses exogènes'!E25/100)^$L$2-1)) -> 5.360710145
C65: Plus-value résidence principale | D65: =D28*('Hypothèses exogènes'!D26/100+((1+'Hypothèses exogènes'!E26/100)^$L$2-1)) -> 3587.294715
C66: Plus-value du bien investissement locatif | D66: =D29*('Hypothèses exogènes'!D27/100+((1+'Hypothèses exogènes'!E27/100)^$L$2-1)) -> 3388.000564
C67: Autres revenus | D67: =Profil_Investisseur!B59*12 -> 0
B68: Total des ressources | D68: =SUM(D49:D67) -> 64015.40699
D70: [42]
B71: CHARGES
C72: Assurance habitation | D72: =(Profil_Investisseur!I109+Profil_Investisseur!E123) -> 620
C73: Autre(s) assurance(s) | D73: =Profil_Investisseur!B127 -> 600
B74: Total assurances | D74: =D72+D73 -> 1220
C75: Intérêts crédit A (résidence principale) | D75: =VLOOKUP(F115,Tableau18[[#All],[Date du versement]:[Intérêts crédit A cumulés]],2,1)-VLOOKUP(F2,Tableau18[[#All],[Date du versement]:[Intérêts crédit A cumulés]],2,1) -> 2162.561718
C76: Ammortissement crédit A (résidence principale) | D76: =VLOOKUP(F115,Tableau18[#All],3,1)-VLOOKUP(F2,Tableau18[#All],3,1) -> 7870.126087
C77: Intérêts crédit B (Investissement locatif) | D77: =VLOOKUP(F115,Tableau19[[#All],[Date du versement]:[Intérêts crédit B cumulés]],2,1)-VLOOKUP(F2,Tableau19[[#All],[Date du versement]:[Intérêts crédit B cumulés]],2,1) -> 1199.062377
C78: Amortissement crédit B (investissement locatif) | D78: =VLOOKUP(F115,Tableau19[#All],3,1)-VLOOKUP(F2,Tableau19[#All],3,1) -> 10382.02744
C79: Intérêts autres dettes | D79: =0 -> 0
C80: Ammortissement autres dettes | D80: =0 -> 0
B81: Total des remboursements | D81: =SUM(D75:D80) -> 21613.77762
C82: Loyer + charges | D82: =Profil_Investisseur!B134*12 -> 0
C83: Transport, Alimentation, Pension Alimentaire,Loisirs | D83: =Profil_Investisseur!F63*12 -> 11728
C84: Charges totales (propriétaire investissement locatif) | D84: =Profil_Investisseur!D123*12 -> 600
C85: Charges totales (propriétaire principal) | D85: =Profil_Investisseur!D114*12 -> 600
B86: Total dépenses personnelles | D86: =SUM(D82:D85) -> 12928
C87: Impôts sur le revenu | D87: ='Impôts revenus'!E10 -> 4366.900655
C88: Impôts sur le foncier | D88: ='Impôts revenus'!F10 -> 3754.31824
C89: Taxe d'habitation | D89: =Profil_Investisseur!J109+Profil_Investisseur!B135*12 -> 881
C90: Fiscalité sur la plus-value du PEA | D90: =D53*('Hypothèses exogènes'!D43/100+((1+'Hypothèses exogènes'!E43/100)^$L$2-1)) -> 23.86748202
C91: Fiscalité sur la plus-value des comptes-titres | D91: =D54*('Hypothèses exogènes'!D44/100+((1+'Hypothèses exogènes'!E44/100)^$L$2-1)) -> 111.2238318
C92: Fiscalité sur la plus-value des autres propiétés | D92: =D55*('Hypothèses exogènes'!D45/100+((1+'Hypothèses exogènes'!E45/100)^$L$2-1)) -> 17.21695824
C93: Fiscalité sur la plus-value du PEE | D93: =D56*('Hypothèses exogènes'!D46/100+((1+'Hypothèses exogènes'!E46/100)^$L$2-1)) -> 12.40429816
C94: Fiscalité sur la plus-value du PERCO | D94: =D57*('Hypothèses exogènes'!D47/100+((1+'Hypothèses exogènes'!E47/100)^$L$2-1)) -> 2.784656519
C95: Fiscalité sur la plus-value de Livret A | D95: =D58*('Hypothèses exogènes'!D48/100+((1+'Hypothèses exogènes'!E48/100)^$L$2-1)) -> 0
C96: Fiscalité sur la plus-value du PEL | D96: =D59*('Hypothèses exogènes'!D49/100+((1+'Hypothèses exogènes'!E49/100)^$L$2-1)) -> 1.847618368
C97: Fiscalité sur la plus-value du CEL | D97: =D60*('Hypothèses exogènes'!D50/100+((1+'Hypothèses exogènes'!E50/100)^$L$2-1)) -> 1.30530325
C98: Fiscalité sur la plus-value du LDD | D98: =D61*('Hypothèses exogènes'!D51/100+((1+'Hypothèses exogènes'!E51/100)^$L$2-1)) -> 0.06192731145
C99: Fiscalité sur la plus-value de l'assurance-vie Fonds€ | D99: =D62*('Hypothèses exogènes'!D52/100+((1+'Hypothèses exogènes'!E52/100)^$L$2-1)) -> 79.52304578
C100: Fiscalité sur la plus-value de l'assurance-vie UC | D100: =D63*('Hypothèses exogènes'!D53/100+((1+'Hypothèses exogènes'!E53/100)^$L$2-1)) -> 136.7504264
C101: Fiscalité sur la plus-value du plan retraites PERP | D101: =D64*('Hypothèses exogènes'!D54/100+((1+'Hypothèses exogènes'!E54/100)^$L$2-1)) -> 0.9704334202
C102: Fiscalité sur la plus-value de la résidence principale | D102: =D65*('Hypothèses exogènes'!D55/100+((1+'Hypothèses exogènes'!E55/100)^$L$2-1)) -> 0
C103: Fiscalité sur la plus-value du bien investissement locatif | D103: =D66*('Hypothèses exogènes'!D56/100+((1+'Hypothèses exogènes'!E56/100)^$L$2-1)) -> 0
B104: Total fiscalité | D104: =SUM(D87:D103) -> 9390.174876
C105: Dépenses exceptionnelles | D105: =D49*'Hypothèses exogènes'!D57/100 -> 2622.5448 | G105: Pour vérifier
B106: Total des charges | D106: =SUM(D74,D81,D86,D104,D105) -> 47774.49729 | G106: Somme ammortissements + résultat net | I106: =D76+D78+D80+D108 -> 34493.06322
B108: Résultat Net Comptable | D108: =D68-D106 -> 16240.9097 | G108: Différence fonds propres | I108: =I123-I10 -> 34493.06322
G110: Différence Actifs | I110: =D154-D41 -> 16240.9097
C115: Bilan Actif Passif | E115: Date: | F115: =H115 -> 2024-01-01 | H115: =EDATE(F2,12) -> 2024-01-01
A117: Actif | F117: Passif
A118: Actif liquide
A119: Compte(s) courant(s) | F119: Fonds propres
B120: Compte(s) courant(s) | D120: =F162 -> 1000 | F120: Fonds propres liquide | I120: =D138-SUM(I126:I134) -> -148195.5792
C121: Total compte(s) courant(s) | D121: =D120 -> 1000 | F121: Fonds propres semi-liquide | I121: =D144 -> 381563.7036
A122: Epargnes classiques | F122: Fonds propres non-liquide | I122: =D148 -> 875.1585366
B123: Livret A | D123: =D10+D58 -> 1036.224827 | F123: Total Fonds propres | I123: =SUM(I120:I122) -> 234243.2829
B124: PEL | D124: =D11+D59 -> 320.2068185
B125: CEL | D125: =D12+D60 -> 521.256997
B126: LDD | D126: =D13+D61 -> 421.9506669 | F126: Capital restant dû crédit résidence principale | I126: =I16-D76 -> 122935.4638
B127: Assurance vie Fonds euros | D127: =D14+D62+F163 -> 18956.56233
B128: Assurance vie Unités de compte | D128: =D15+D63+F164 -> 14343.49792
C129: Total épargnes classiques | D129: =SUM(D123:D128) -> 35599.69956
A130: Actifs financiers | F130: Capital restant dû crédit investissement immo locatif | I130: =I19-D78 -> 74301.01426
B131: PEA | D131: =D18+D53 -> 4006.554638
B132: Compte-titres | D132: =D19+D54 -> 4914.259296 | F132: Capital restant dû autres prêts / dettes… | I132: =0 -> 0
C133: Total actifs financiers | D133: =SUM(D131,D132) -> 8920.813935
A134: Epargnes salariales | F134: Dettes fiscales | I134: =Profil_Investisseur!F173 -> 0
B135: PEE | D135: =D22+D56+D51 -> 3520.385346 | F135: Résultat net comptable | I135: =D108 -> 16240.9097
C136: Total épargnes salariales | D136: =D135 -> 3520.385346
C138: Total Actif liquide | D138: =SUM(D121,D129,D133,D136) -> 49040.89884
A139: Actif non-liquide
A140: Biens
B141: Résidence principale (valeur marchande) | D141: =D28+D65 -> 192124.0911
B142: Investissement immobilier (valeur marchande) | D142: =D29+D66 -> 181450.5305
B143: Autres propriétés (valeur) | D143: =D30+D55 -> 7989.082014
C144: Total biens | D144: =SUM(D141,D142,D143) -> 381563.7036
A145: Retraites
B146: Plan Retraites (PERP) | D146: =D33+D64 -> 219.557552 | F146: Total Passif | I146: =SUM(I123:I134) -> 431479.761
B147: PERCO | D147: =D34+D57 -> 655.6009846
C148: Total Retraites | D148: =SUM(D146,D147) -> 875.1585366
C150: Total Actif non-liquide | D150: =SUM(D144,D148) -> 382438.8621
A154: Total Actifs | D154: =SUM(D150+D138) -> 431479.761
E161: "compte courant intermédiaire" | F161: =D7+D49+D50+D52+D67-D106 -> 7767.015117
E162: compte-courant final | F162: =MIN(1000,F161) -> 1000
E163: Va dans Assurance-Vie Fonds euros | F163: =(F161-F162)*(1-'Hypothèses exogènes'!C3) -> 3383.507559
E164: Va dans Assurance-Vie Unités de compte | F164: =(F161-F162)*'Hypothèses exogènes'!C3 -> 3383.507559

Sheet 2023 Chômage
C2: Bilan Actif Passif | E2: Date: | F2: =H2 -> 2023-01-01 | H2: =DATE(2023,1,1) -> 2023-01-01 | K2: =YEAR(H2) -> 2023 | L2: =K2-2020 -> 3
A4: Actif | F4: Passif
A5: Actif liquide
A6: Compte(s) courant(s) | F6: Fonds propres
B7: Compte(s) courant(s) | D7: ='Bilan 2022'!D120 -> 1000 | F7: Fonds propres liquide | I7: =D25-SUM(I16:I26) -> -175597.4968
C8: Total compte(s) courant(s) | D8: =D7 -> 1000 | F8: Fonds propres semi-liquide | I8: =D31 -> 374493.3012 | T8: Titres financiers augmentent de 10%
A9: Epargnes classiques | F9: Fonds propres non-liquide | I9: =D35 -> 854.4152807
B10: Livret A | D10: ='Bilan 2022'!D123 -> 1028.510994 | F10: Total Fonds propres | I10: =SUM(I7:I9) -> 199750.2197
B11: PEL | D11: ='Bilan 2022'!D124 -> 314.227994 | T11: Assurance vie de 1,5
B12: CEL | D12: ='Bilan 2022'!D125 -> 514.0464535
B13: LDD | D13: ='Bilan 2022'!D126 -> 415.0904557 | T13: Plan retraite de 1%
B14: Assurance vie Fonds euros | D14: ='Bilan 2022'!D127 -> 15133.76652
B15: Assurance vie Unités de compte | D15: ='Bilan 2022'!D128 -> 10204.57595
C16: Total épargnes classiques | D16: =SUM(D10:D15) -> 27610.21836 | F16: Capital restant dû crédit résidence principale | I16: =VLOOKUP(F2,Tableau1[#All],2,1) -> 130805.5899
A17: Actifs financiers
B18: PEA | D18: ='Bilan 2022'!D131 -> 3874.709784
B19: Compte-titres | D19: ='Bilan 2022'!D132 -> 4554.343101 | F19: Capital restant dû crédit investissement immo locatif | I19: =VLOOKUP(F2,Tableau17[#All],2,1) -> 84683.0417
C20: Total actifs financiers | D20: =SUM(D18,D19) -> 8429.052885
A21: Epargnes salariales | F21: Capital restant dû autres prêts / dettes… | I21: =Profil_Investisseur!F100 -> 0
B22: PEE | D22: ='Bilan 2022'!D135 -> 2851.863543
C23: Total épargnes salariales | D23: =D22 -> 2851.863543
C25: Total Actif liquide | D25: =SUM(D8,D16,D20,D23) -> 39891.13479 | F25: Dettes fiscales | I25: =Profil_Investisseur!F96 -> 0
A26: Actif non-liquide
A27: Biens
B28: Résidence principale (valeur marchande) | D28: ='Bilan 2022'!D141 -> 188536.7964
B29: Investissement immobilier (valeur marchande) | D29: ='Bilan 2022'!D142 -> 178062.5299
B30: Autres propriétés (valeur) | D30: ='Bilan 2022'!D143 -> 7893.974899
C31: Total biens | D31: =SUM(D28,D29,D30) -> 374493.3012
A32: Retraites
B33: Plan Retraites (PERP) | D33: ='Bilan 2022'!D146 -> 214.1968419
B34: PERCO | D34: ='Bilan 2022'!D147 -> 640.2184389
C35: Total Retraites | D35: =SUM(D33,D34) -> 854.4152807
C37: Total Actif non-liquide | D37: =SUM(D31,D35) -> 375347.7165
F39: Total Passif | I39: =SUM(I10:I25) -> 415238.8513
A41: Total Actifs | D41: =SUM(D37+D25) -> 415238.8513
B46: Compte de Résultat
B48: RESSOURCES | D48: =F2 -> 2023-01-01 | E48: =F115 -> 2024-01-01
C49: Salaire | D49: ='Bilan 2020'!D49*10/12/2 -> 16666.66667
C50: Rentes immobilières | D50: ='Bilan 2020'!D50*((1+'Hypothèses exogènes'!E11/100)^$L$2) -> 10832.43241
C51: Prime d'intéressement et de participation | D51: ='Bilan 2020'!D51*((1+'Hypothèses exogènes'!E12/100)^$L$2) -> 600
C52: Don(s) / Bourse(s) / Aide(s) / Allocation(s) / Pension(s) | D52: ='Bilan 2020'!D52*((1+'Hypothèses exogènes'!E13/100)^$L$2) -> 0
C53: Plus-value PEA | D53: =D18*('Hypothèses exogènes'!D14/100+((1+'Hypothèses exogènes'!E14/100)^$L$2-1)) -> 131.8448544
C54: Plus-value des comptes-titres | D54: =D19*('Hypothèses exogènes'!D15/100+((1+'Hypothèses exogènes'!E15/100)^$L$2-1)) -> 359.9161952
C55: Plus-value des autres propiétés | D55: =D30*('Hypothèses exogènes'!D16/100+((1+'Hypothèses exogènes'!E16/100)^$L$2-1)) -> 95.1071148
C56: Plus-value du PEE | D56: =D22*('Hypothèses exogènes'!D17/100+((1+'Hypothèses exogènes'!E17/100)^$L$2-1)) -> 68.52180235
C57: Plus-value du PERCO | D57: =D34*('Hypothèses exogènes'!D18/100+((1+'Hypothèses exogènes'!E18/100)^$L$2-1)) -> 15.38254572
C58: Plus-value de Livret A | D58: =D10*('Hypothèses exogènes'!D19/100+((1+'Hypothèses exogènes'!E19/100)^$L$2-1)) -> 7.713832458
C59: Plus-value du PEL | D59: =D11*('Hypothèses exogènes'!D20/100+((1+'Hypothèses exogènes'!E20/100)^$L$2-1)) -> 5.978824526
C60: Plus-value du CEL | D60: =D12*('Hypothèses exogènes'!D21/100+((1+'Hypothèses exogènes'!E21/100)^$L$2-1)) -> 7.210543483
C61: Plus-value du LDD | D61: =D13*('Hypothèses exogènes'!D22/100+((1+'Hypothèses exogènes'!E22/100)^$L$2-1)) -> 6.860211169
C62: Plus-value de l'assurance-vie Fonds€ | D62: =D14*('Hypothèses exogènes'!D23/100+((1+'Hypothèses exogènes'!E23/100)^$L$2-1)) -> 439.2882494
C63: Plus-value de l'assurance-vie UC | D63: =D15*('Hypothèses exogènes'!D24/100+((1+'Hypothèses exogènes'!E24/100)^$L$2-1)) -> 755.4144191
C64: Plus-value du plan retraites PERP | D64: =D33*('Hypothèses exogènes'!D25/100+((1+'Hypothèses exogènes'!E25/100)^$L$2-1)) -> 5.360710145
C65: Plus-value résidence principale | D65: =D28*('Hypothèses exogènes'!D26/100+((1+'Hypothèses exogènes'!E26/100)^$L$2-1)) -> 3587.294715
C66: Plus-value du bien investissement locatif | D66: =D29*('Hypothèses exogènes'!D27/100+((1+'Hypothèses exogènes'!E27/100)^$L$2-1)) -> 3388.000564
C67: Autres revenus | D67: =Profil_Investisseur!B59*12 -> 0
B68: Total des ressources | D68: =SUM(D49:D67) -> 36972.99366
D70: [42]
B71: CHARGES
C72: Assurance habitation | D72: =(Profil_Investisseur!I109+Profil_Investisseur!E123) -> 620
C73: Autre(s) assurance(s) | D73: =Profil_Investisseur!B127 -> 600
B74: Total assurances | D74: =D72+D73 -> 1220
C75: Intérêts crédit A (résidence principale) | D75: =VLOOKUP(F115,Tableau18[[#All],[Date du versement]:[Intérêts crédit A cumulés]],2,1)-VLOOKUP(F2,Tableau18[[#All],[Date du versement]:[Intérêts crédit A cumulés]],2,1) -> 2162.561718
C76: Ammortissement crédit A (résidence principale) | D76: =VLOOKUP(F115,Tableau18[#All],3,1)-VLOOKUP(F2,Tableau18[#All],3,1) -> 7870.126087
C77: Intérêts crédit B (Investissement locatif) | D77: =VLOOKUP(F115,Tableau19[[#All],[Date du versement]:[Intérêts crédit B cumulés]],2,1)-VLOOKUP(F2,Tableau19[[#All],[Date du versement]:[Intérêts crédit B cumulés]],2,1) -> 1199.062377
C78: Amortissement crédit B (investissement locatif) | D78: =VLOOKUP(F115,Tableau19[#All],3,1)-VLOOKUP(F2,Tableau19[#All],3,1) -> 10382.02744
C79: Intérêts autres dettes | D79: =0 -> 0
C80: Ammortissement autres dettes | D80: =0 -> 0
B81: Total des remboursements | D81: =SUM(D75:D80) -> 21613.77762
C82: Loyer + charges | D82: =Profil_Investisseur!B134*12 -> 0
C83: Transport, Alimentation, Pension Alimentaire,Loisirs | D83: =Profil_Investisseur!F63*12 -> 11728
C84: Charges totales (propriétaire investissement locatif) | D84: =Profil_Investisseur!D123*12 -> 600
C85: Charges totales (propriétaire principal) | D85: =Profil_Investisseur!D114*12 -> 600
B86: Total dépenses personnelles | D86: =SUM(D82:D85) -> 12928
C87: Impôts sur le revenu | D87: ='Impôts revenus'!E10 -> 4366.900655
C88: Impôts sur le foncier | D88: ='Impôts revenus'!F10 -> 3754.31824
C89: Taxe d'habitation | D89: =Profil_Investisseur!J109+Profil_Investisseur!B135*12 -> 881
C90: Fiscalité sur la plus-value du PEA | D90: =D53*('Hypothèses exogènes'!D43/100+((1+'Hypothèses exogènes'!E43/100)^$L$2-1)) -> 23.86748202
C91: Fiscalité sur la plus-value des comptes-titres | D91: =D54*('Hypothèses exogènes'!D44/100+((1+'Hypothèses exogènes'!E44/100)^$L$2-1)) -> 111.2238318
C92: Fiscalité sur la plus-value des autres propiétés | D92: =D55*('Hypothèses exogènes'!D45/100+((1+'Hypothèses exogènes'!E45/100)^$L$2-1)) -> 17.21695824
C93: Fiscalité sur la plus-value du PEE | D93: =D56*('Hypothèses exogènes'!D46/100+((1+'Hypothèses exogènes'!E46/100)^$L$2-1)) -> 12.40429816
C94: Fiscalité sur la plus-value du PERCO | D94: =D57*('Hypothèses exogènes'!D47/100+((1+'Hypothèses exogènes'!E47/100)^$L$2-1)) -> 2.784656519
C95: Fiscalité sur la plus-value de Livret A | D95: =D58*('Hypothèses exogènes'!D48/100+((1+'Hypothèses exogènes'!E48/100)^$L$2-1)) -> 0
C96: Fiscalité sur la plus-value du PEL | D96: =D59*('Hypothèses exogènes'!D49/100+((1+'Hypothèses exogènes'!E49/100)^$L$2-1)) -> 1.847618368
C97: Fiscalité sur la plus-value du CEL | D97: =D60*('Hypothèses exogènes'!D50/100+((1+'Hypothèses exogènes'!E50/100)^$L$2-1)) -> 1.30530325
C98: Fiscalité sur la plus-value du LDD | D98: =D61*('Hypothèses exogènes'!D51/100+((1+'Hypothèses exogènes'!E51/100)^$L$2-1)) -> 0.06192731145
C99: Fiscalité sur la plus-value de l'assurance-vie Fonds€ | D99: =D62*('Hypothèses exogènes'!D52/100+((1+'Hypothèses exogènes'!E52/100)^$L$2-1)) -> 79.52304578
C100: Fiscalité sur la plus-value de l'assurance-vie UC | D100: =D63*('Hypothèses exogènes'!D53/100+((1+'Hypothèses exogènes'!E53/100)^$L$2-1)) -> 136.7504264
C101: Fiscalité sur la plus-value du plan retraites PERP | D101: =D64*('Hypothèses exogènes'!D54/100+((1+'Hypothèses exogènes'!E54/100)^$L$2-1)) -> 0.9704334202
C102: Fiscalité sur la plus-value de la résidence principale | D102: =D65*('Hypothèses exogènes'!D55/100+((1+'Hypothèses exogènes'!E55/100)^$L$2-1)) -> 0
C103: Fiscalité sur la plus-value du bien investissement locatif | D103: =D66*('Hypothèses exogènes'!D56/100+((1+'Hypothèses exogènes'!E56/100)^$L$2-1)) -> 0
B104: Total fiscalité | D104: =SUM(D87:D103) -> 9390.174876
C105: Dépenses exceptionnelles | D105: =D49*'Hypothèses exogènes'!D57/100 -> 1000 | G105: Pour vérifier
B106: Total des charges | D106: =SUM(D74,D81,D86,D104,D105) -> 46151.95249 | G106: Somme ammortissements + résultat net | I106: =D76+D78+D80+D108 -> 9073.19469
B108: Résultat Net Comptable | D108: =D68-D106 -> -9178.958833 | G108: Différence fonds propres | I108: =I123-I10 -> 9073.19469
G110: Différence Actifs | I110: =D154-D41 -> -9178.958833
C115: Bilan Actif Passif | E115: Date: | F115: =H115 -> 2024-01-01 | H115: =EDATE(F2,12) -> 2024-01-01
A117: Actif | F117: Passif
A118: Actif liquide
A119: Compte(s) courant(s) | F119: Fonds propres
B120: Compte(s) courant(s) | D120: =F162 -> -17652.85342 | F120: Fonds propres liquide | I120: =D138-SUM(I126:I134) -> -173615.4478
C121: Total compte(s) courant(s) | D121: =D120 -> -17652.85342 | F121: Fonds propres semi-liquide | I121: =D144 -> 381563.7036
A122: Epargnes classiques | F122: Fonds propres non-liquide | I122: =D148 -> 875.1585366
B123: Livret A | D123: =D10+D58 -> 1036.224827 | F123: Total Fonds propres | I123: =SUM(I120:I122) -> 208823.4144
B124: PEL | D124: =D11+D59 -> 320.2068185
B125: CEL | D125: =D12+D60 -> 521.256997
B126: LDD | D126: =D13+D61 -> 421.9506669 | F126: Capital restant dû crédit résidence principale | I126: =I16-D76 -> 122935.4638
B127: Assurance vie Fonds euros | D127: =D14+D62+F163 -> 15573.05477
B128: Assurance vie Unités de compte | D128: =D15+D63+F164 -> 10959.99037
C129: Total épargnes classiques | D129: =SUM(D123:D128) -> 28832.68444
A130: Actifs financiers | F130: Capital restant dû crédit investissement immo locatif | I130: =I19-D78 -> 74301.01426
B131: PEA | D131: =D18+D53 -> 4006.554638
B132: Compte-titres | D132: =D19+D54 -> 4914.259296 | F132: Capital restant dû autres prêts / dettes… | I132: =0 -> 0
C133: Total actifs financiers | D133: =SUM(D131,D132) -> 8920.813935
A134: Epargnes salariales | F134: Dettes fiscales | I134: =Profil_Investisseur!F173 -> 0
B135: PEE | D135: =D22+D56+D51 -> 3520.385346 | F135: Résultat net comptable | I135: =D108 -> -9178.958833
C136: Total épargnes salariales | D136: =D135 -> 3520.385346
C138: Total Actif liquide | D138: =SUM(D121,D129,D133,D136) -> 23621.03031
A139: Actif non-liquide
A140: Biens
B141: Résidence principale (valeur marchande) | D141: =D28+D65 -> 192124.0911
B142: Investissement immobilier (valeur marchande) | D142: =D29+D66 -> 181450.5305
B143: Autres propriétés (valeur) | D143: =D30+D55 -> 7989.082014
C144: Total biens | D144: =SUM(D141,D142,D143) -> 381563.7036
A145: Retraites
B146: Plan Retraites (PERP) | D146: =D33+D64 -> 219.557552 | F146: Total Passif | I146: =SUM(I123:I134) -> 406059.8924
B147: PERCO | D147: =D34+D57 -> 655.6009846
C148: Total Retraites | D148: =SUM(D146,D147) -> 875.1585366
C150: Total Actif non-liquide | D150: =SUM(D144,D148) -> 382438.8621
A154: Total Actifs | D154: =SUM(D150+D138) -> 406059.8924
E161: "compte courant intermédiaire" | F161: =D7+D49+D50+D52+D67-D106 -> -17652.85342
E162: compte-courant final | F162: =MIN(1000,F161) -> -17652.85342
E163: Va dans Assurance-Vie Fonds euros | F163: =(F161-F162)*(1-'Hypothèses exogènes'!C3) -> 0
E164: Va dans Assurance-Vie Unités de compte | F164: =(F161-F162)*'Hypothèses exogènes'!C3 -> 0

Sheet Bilan 2024
C2: Bilan Actif Passif | E2: Date: | F2: =H2 -> 2024-01-01 | H2: =DATE(2024,1,1) -> 2024-01-01 | K2: =YEAR(H2) -> 2024 | L2: =K2-2020 -> 4
A4: Actif | F4: Passif
A5: Actif liquide
A6: Compte(s) courant(s) | F6: Fonds propres
B7: Compte(s) courant(s) | D7: ='Bilan 2023'!D120 -> 1000 | F7: Fonds propres liquide | I7: =D25-SUM(I16:I26) -> -148195.5792
C8: Total compte(s) courant(s) | D8: =D7 -> 1000 | F8: Fonds propres semi-liquide | I8: =D31 -> 381563.7036 | T8: Titres financiers augmentent de 10%
A9: Epargnes classiques | F9: Fonds propres non-liquide | I9: =D35 -> 875.1585366
B10: Livret A | D10: ='Bilan 2023'!D123 -> 1036.224827 | F10: Total Fonds propres | I10: =SUM(I7:I9) -> 234243.2829
B11: PEL | D11: ='Bilan 2023'!D124 -> 320.2068185 | T11: Assurance vie de 1,5
B12: CEL | D12: ='Bilan 2023'!D125 -> 521.256997
B13: LDD | D13: ='Bilan 2023'!D126 -> 421.9506669 | T13: Plan retraite de 1%
B14: Assurance vie Fonds euros | D14: ='Bilan 2023'!D127 -> 18956.56233
B15: Assurance vie Unités de compte | D15: ='Bilan 2023'!D128 -> 14343.49792
C16: Total épargnes classiques | D16: =SUM(D10:D15) -> 35599.69956 | F16: Capital restant dû crédit résidence principale | I16: =VLOOKUP(F2,Tableau1[#All],2,1) -> 122935.4638
A17: Actifs financiers
B18: PEA | D18: ='Bilan 2023'!D131 -> 4006.554638
B19: Compte-titres | D19: ='Bilan 2023'!D132 -> 4914.259296 | F19: Capital restant dû crédit investissement immo locatif | I19: =VLOOKUP(F2,Tableau17[#All],2,1) -> 74301.01426
C20: Total actifs financiers | D20: =SUM(D18,D19) -> 8920.813935
A21: Epargnes salariales | F21: Capital restant dû autres prêts / dettes… | I21: =Profil_Investisseur!F100 -> 0
B22: PEE | D22: ='Bilan 2023'!D135 -> 3520.385346
C23: Total épargnes salariales | D23: =D22 -> 3520.385346
C25: Total Actif liquide | D25: =SUM(D8,D16,D20,D23) -> 49040.89884 | F25: Dettes fiscales | I25: =Profil_Investisseur!F96 -> 0
A26: Actif non-liquide
A27: Biens
B28: Résidence principale (valeur marchande) | D28: ='Bilan 2023'!D141 -> 192124.0911
B29: Investissement immobilier (valeur marchande) | D29: ='Bilan 2023'!D142 -> 181450.5305
B30: Autres propriétés (valeur) | D30: ='Bilan 2023'!D143 -> 7989.082014
C31: Total biens | D31: =SUM(D28,D29,D30) -> 381563.7036
A32: Retraites
B33: Plan Retraites (PERP) | D33: ='Bilan 2023'!D146 -> 219.557552
B34: PERCO | D34: ='Bilan 2023'!D147 -> 655.6009846
C35: Total Retraites | D35: =SUM(D33,D34) -> 875.1585366
C37: Total Actif non-liquide | D37: =SUM(D31,D35) -> 382438.8621
F39: Total Passif | I39: =SUM(I10:I25) -> 431479.761
A41: Total Actifs | D41: =SUM(D37+D25) -> 431479.761
B46: Compte de Résultat
B48: RESSOURCES | D48: =F2 -> 2024-01-01 | E48: =F115 -> 2025-01-01
C49: Salaire | D49: ='Bilan 2020'!D49*((1+'Hypothèses exogènes'!E10/100)^$L$2) -> 45020.3524
C50: Rentes immobilières | D50: ='Bilan 2020'!D50*((1+'Hypothèses exogènes'!E11/100)^$L$2) -> 10843.26484
C51: Prime d'intéressement et de participation | D51: ='Bilan 2020'!D51*((1+'Hypothèses exogènes'!E12/100)^$L$2) -> 600
C52: Don(s) / Bourse(s) / Aide(s) / Allocation(s) / Pension(s) | D52: ='Bilan 2020'!D52*((1+'Hypothèses exogènes'!E13/100)^$L$2) -> 0
C53: Plus-value PEA | D53: =D18*('Hypothèses exogènes'!D14/100+((1+'Hypothèses exogènes'!E14/100)^$L$2-1)) -> 148.4593086
C54: Plus-value des comptes-titres | D54: =D19*('Hypothèses exogènes'!D15/100+((1+'Hypothèses exogènes'!E15/100)^$L$2-1)) -> 403.2351634
C55: Plus-value des autres propiétés | D55: =D30*('Hypothèses exogènes'!D16/100+((1+'Hypothèses exogènes'!E16/100)^$L$2-1)) -> 128.5943113
C56: Plus-value du PEE | D56: =D22*('Hypothèses exogènes'!D17/100+((1+'Hypothèses exogènes'!E17/100)^$L$2-1)) -> 95.24088563
C57: Plus-value du PERCO | D57: =D34*('Hypothèses exogènes'!D18/100+((1+'Hypothèses exogènes'!E18/100)^$L$2-1)) -> 17.73669989
C58: Plus-value de Livret A | D58: =D10*('Hypothèses exogènes'!D19/100+((1+'Hypothèses exogènes'!E19/100)^$L$2-1)) -> 7.771686201
C59: Plus-value du PEL | D59: =D11*('Hypothèses exogènes'!D20/100+((1+'Hypothèses exogènes'!E20/100)^$L$2-1)) -> 7.061875783
C60: Plus-value du CEL | D60: =D12*('Hypothèses exogènes'!D21/100+((1+'Hypothèses exogènes'!E21/100)^$L$2-1)) -> 8.889573165
C61: Plus-value du LDD | D61: =D13*('Hypothèses exogènes'!D22/100+((1+'Hypothèses exogènes'!E22/100)^$L$2-1)) -> 8.250868945
C62: Plus-value de l'assurance-vie Fonds€ | D62: =D14*('Hypothèses exogènes'!D23/100+((1+'Hypothèses exogènes'!E23/100)^$L$2-1)) -> 607.6356977
C63: Plus-value de l'assurance-vie UC | D63: =D15*('Hypothèses exogènes'!D24/100+((1+'Hypothèses exogènes'!E24/100)^$L$2-1)) -> 1105.225439
C64: Plus-value du plan retraites PERP | D64: =D33*('Hypothèses exogènes'!D25/100+((1+'Hypothèses exogènes'!E25/100)^$L$2-1)) -> 6.159491295
C65: Plus-value résidence principale | D65: =D28*('Hypothèses exogènes'!D26/100+((1+'Hypothèses exogènes'!E26/100)^$L$2-1)) -> 4237.12547
C66: Plus-value du bien investissement locatif | D66: =D29*('Hypothèses exogènes'!D27/100+((1+'Hypothèses exogènes'!E27/100)^$L$2-1)) -> 4001.729611
C67: Autres revenus | D67: =Profil_Investisseur!B59*12 -> 0
B68: Total des ressources | D68: =SUM(D49:D67) -> 67246.73333
D70: [42]
B71: CHARGES
C72: Assurance habitation | D72: =(Profil_Investisseur!I109+Profil_Investisseur!E123) -> 620
C73: Autre(s) assurance(s) | D73: =Profil_Investisseur!B127 -> 600
B74: Total assurances | D74: =D72+D73 -> 1220
C75: Intérêts crédit A (résidence principale) | D75: =VLOOKUP(F115,Tableau18[[#All],[Date du versement]:[Intérêts crédit A cumulés]],2,1)-VLOOKUP(F2,Tableau18[[#All],[Date du versement]:[Intérêts crédit A cumulés]],2,1) -> 2027.722172
C76: Ammortissement crédit A (résidence principale) | D76: =VLOOKUP(F115,Tableau18[#All],3,1)-VLOOKUP(F2,Tableau18[#All],3,1) -> 8004.965632
C77: Intérêts crédit B (Investissement locatif) | D77: =VLOOKUP(F115,Tableau19[[#All],[Date du versement]:[Intérêts crédit B cumulés]],2,1)-VLOOKUP(F2,Tableau19[[#All],[Date du versement]:[Intérêts crédit B cumulés]],2,1) -> 1042.256845
C78: Amortissement crédit B (investissement locatif) | D78: =VLOOKUP(F115,Tableau19[#All],3,1)-VLOOKUP(F2,Tableau19[#All],3,1) -> 10538.83297
C79: Intérêts autres dettes | D79: =0 -> 0
C80: Ammortissement autres dettes | D80: =0 -> 0
B81: Total des remboursements | D81: =SUM(D75:D80) -> 21613.77762
C82: Loyer + charges | D82: =Profil_Investisseur!B134*12 -> 0
C83: Transport, Alimentation, Pension Alimentaire,Loisirs | D83: =Profil_Investisseur!F63*12 -> 11728
C84: Charges totales (propriétaire investissement locatif) | D84: =Profil_Investisseur!D123*12 -> 600
C85: Charges totales (propriétaire principal) | D85: =Profil_Investisseur!D114*12 -> 600
B86: Total dépenses personnelles | D86: =SUM(D82:D85) -> 12928
C87: Impôts sur le revenu | D87: ='Impôts revenus'!E11 -> 3977.018429
C88: Impôts sur le foncier | D88: ='Impôts revenus'!F11 -> 3319.447376
C89: Taxe d'habitation | D89: =Profil_Investisseur!J109+Profil_Investisseur!B135*12 -> 881
C90: Fiscalité sur la plus-value du PEA | D90: =D53*('Hypothèses exogènes'!D43/100+((1+'Hypothèses exogènes'!E43/100)^$L$2-1)) -> 27.32454563
C91: Fiscalité sur la plus-value des comptes-titres | D91: =D54*('Hypothèses exogènes'!D44/100+((1+'Hypothèses exogènes'!E44/100)^$L$2-1)) -> 125.8311893
C92: Fiscalité sur la plus-value des autres propiétés | D92: =D55*('Hypothèses exogènes'!D45/100+((1+'Hypothèses exogènes'!E45/100)^$L$2-1)) -> 23.66831128
C93: Fiscalité sur la plus-value du PEE | D93: =D56*('Hypothèses exogènes'!D46/100+((1+'Hypothèses exogènes'!E46/100)^$L$2-1)) -> 17.52947626
C94: Fiscalité sur la plus-value du PERCO | D94: =D57*('Hypothèses exogènes'!D47/100+((1+'Hypothèses exogènes'!E47/100)^$L$2-1)) -> 3.264512479
C95: Fiscalité sur la plus-value de Livret A | D95: =D58*('Hypothèses exogènes'!D48/100+((1+'Hypothèses exogènes'!E48/100)^$L$2-1)) -> 0
C96: Fiscalité sur la plus-value du PEL | D96: =D59*('Hypothèses exogènes'!D49/100+((1+'Hypothèses exogènes'!E49/100)^$L$2-1)) -> 2.203687349
C97: Fiscalité sur la plus-value du CEL | D97: =D60*('Hypothèses exogènes'!D50/100+((1+'Hypothèses exogènes'!E50/100)^$L$2-1)) -> 1.63616246
C98: Fiscalité sur la plus-value du LDD | D98: =D61*('Hypothèses exogènes'!D51/100+((1+'Hypothèses exogènes'!E51/100)^$L$2-1)) -> 0.09945686603
C99: Fiscalité sur la plus-value de l'assurance-vie Fonds€ | D99: =D62*('Hypothèses exogènes'!D52/100+((1+'Hypothèses exogènes'!E52/100)^$L$2-1)) -> 111.8378464
C100: Fiscalité sur la plus-value de l'assurance-vie UC | D100: =D63*('Hypothèses exogènes'!D53/100+((1+'Hypothèses exogènes'!E53/100)^$L$2-1)) -> 203.4212825
C101: Fiscalité sur la plus-value du plan retraites PERP | D101: =D64*('Hypothèses exogènes'!D54/100+((1+'Hypothèses exogènes'!E54/100)^$L$2-1)) -> 1.133679676
C102: Fiscalité sur la plus-value de la résidence principale | D102: =D65*('Hypothèses exogènes'!D55/100+((1+'Hypothèses exogènes'!E55/100)^$L$2-1)) -> 0
C103: Fiscalité sur la plus-value du bien investissement locatif | D103: =D66*('Hypothèses exogènes'!D56/100+((1+'Hypothèses exogènes'!E56/100)^$L$2-1)) -> 0
B104: Total fiscalité | D104: =SUM(D87:D103) -> 8695.415955
C105: Dépenses exceptionnelles | D105: =D49*'Hypothèses exogènes'!D57/100 -> 2701.221144 | G105: Pour vérifier
B106: Total des charges | D106: =SUM(D74,D81,D86,D104,D105) -> 47158.41472 | G106: Somme ammortissements + résultat net | I106: =D76+D78+D80+D108 -> 38632.11721
B108: Résultat Net Comptable | D108: =D68-D106 -> 20088.31861 | G108: Différence fonds propres | I108: =I123-I10 -> 38632.11721
G110: Différence Actifs | I110: =D154-D41 -> 20088.31861
C115: Bilan Actif Passif | E115: Date: | F115: =H115 -> 2025-01-01 | H115: =EDATE(F2,12) -> 2025-01-01
A117: Actif | F117: Passif
A118: Actif liquide
A119: Compte(s) courant(s) | F119: Fonds propres
B120: Compte(s) courant(s) | D120: =F162 -> 1000 | F120: Fonds propres liquide | I120: =D138-SUM(I126:I134) -> -117954.8076
C121: Total compte(s) courant(s) | D121: =D120 -> 1000 | F121: Fonds propres semi-liquide | I121: =D144 -> 389931.153
A122: Epargnes classiques | F122: Fonds propres non-liquide | I122: =D148 -> 899.0547278
B123: Livret A | D123: =D10+D58 -> 1043.996513 | F123: Total Fonds propres | I123: =SUM(I120:I122) -> 272875.4001
B124: PEL | D124: =D11+D59 -> 327.2686943
B125: CEL | D125: =D12+D60 -> 530.1465702
B126: LDD | D126: =D13+D61 -> 430.2015358 | F126: Capital restant dû crédit résidence principale | I126: =I16-D76 -> 114930.4982
B127: Assurance vie Fonds euros | D127: =D14+D62+F163 -> 23916.79929
B128: Assurance vie Unités de compte | D128: =D15+D63+F164 -> 19801.32463
C129: Total épargnes classiques | D129: =SUM(D123:D128) -> 46049.73723
A130: Actifs financiers | F130: Capital restant dû crédit investissement immo locatif | I130: =I19-D78 -> 63762.1813
B131: PEA | D131: =D18+D53 -> 4155.013947
B132: Compte-titres | D132: =D19+D54 -> 5317.49446 | F132: Capital restant dû autres prêts / dettes… | I132: =0 -> 0
C133: Total actifs financiers | D133: =SUM(D131,D132) -> 9472.508407
A134: Epargnes salariales | F134: Dettes fiscales | I134: =Profil_Investisseur!F173 -> 0
B135: PEE | D135: =D22+D56+D51 -> 4215.626231 | F135: Résultat net comptable | I135: =D108 -> 20088.31861
C136: Total épargnes salariales | D136: =D135 -> 4215.626231
C138: Total Actif liquide | D138: =SUM(D121,D129,D133,D136) -> 60737.87187
A139: Actif non-liquide
A140: Biens
B141: Résidence principale (valeur marchande) | D141: =D28+D65 -> 196361.2166
B142: Investissement immobilier (valeur marchande) | D142: =D29+D66 -> 185452.2601
B143: Autres propriétés (valeur) | D143: =D30+D55 -> 8117.676325
C144: Total biens | D144: =SUM(D141,D142,D143) -> 389931.153
A145: Retraites
B146: Plan Retraites (PERP) | D146: =D33+D64 -> 225.7170433 | F146: Total Passif | I146: =SUM(I123:I134) -> 451568.0796
B147: PERCO | D147: =D34+D57 -> 673.3376845
C148: Total Retraites | D148: =SUM(D146,D147) -> 899.0547278
C150: Total Actif non-liquide | D150: =SUM(D144,D148) -> 390830.2077
A154: Total Actifs | D154: =SUM(D150+D138) -> 451568.0796
E161: "compte courant intermédiaire" | F161: =D7+D49+D50+D52+D67-D106 -> 9705.202527
E162: compte-courant final | F162: =MIN(1000,F161) -> 1000
E163: Va dans Assurance-Vie Fonds euros | F163: =(F161-F162)*(1-'Hypothèses exogènes'!C3) -> 4352.601264
E164: Va dans Assurance-Vie Unités de compte | F164: =(F161-F162)*'Hypothèses exogènes'!C3 -> 4352.601264

Sheet Bilan 2025
C2: Bilan Actif Passif | E2: Date: | F2: =H2 -> 2025-01-01 | H2: =DATE(2025,1,1) -> 2025-01-01 | K2: =YEAR(H2) -> 2025 | L2: =K2-2020 -> 5
A4: Actif | F4: Passif
A5: Actif liquide
A6: Compte(s) courant(s) | F6: Fonds propres
B7: Compte(s) courant(s) | D7: ='Bilan 2024'!D120 -> 1000 | F7: Fonds propres liquide | I7: =D25-SUM(I16:I26) -> -117954.8076
C8: Total compte(s) courant(s) | D8: =D7 -> 1000 | F8: Fonds propres semi-liquide | I8: =D31 -> 389931.153 | T8: Titres financiers augmentent de 10%
A9: Epargnes classiques | F9: Fonds propres non-liquide | I9: =D35 -> 899.0547278
B10: Livret A | D10: ='Bilan 2024'!D123 -> 1043.996513 | F10: Total Fonds propres | I10: =SUM(I7:I9) -> 272875.4001
B11: PEL | D11: ='Bilan 2024'!D124 -> 327.2686943 | T11: Assurance vie de 1,5
B12: CEL | D12: ='Bilan 2024'!D125 -> 530.1465702
B13: LDD | D13: ='Bilan 2024'!D126 -> 430.2015358 | T13: Plan retraite de 1%
B14: Assurance vie Fonds euros | D14: ='Bilan 2024'!D127 -> 23916.79929
B15: Assurance vie Unités de compte | D15: ='Bilan 2024'!D128 -> 19801.32463
C16: Total épargnes classiques | D16: =SUM(D10:D15) -> 46049.73723 | F16: Capital restant dû crédit résidence principale | I16: =VLOOKUP(F2,Tableau1[#All],2,1) -> 114930.4982
A17: Actifs financiers
B18: PEA | D18: ='Bilan 2024'!D131 -> 4155.013947
B19: Compte-titres | D19: ='Bilan 2024'!D132 -> 5317.49446 | F19: Capital restant dû crédit investissement immo locatif | I19: =VLOOKUP(F2,Tableau17[#All],2,1) -> 63762.1813
C20: Total actifs financiers | D20: =SUM(D18,D19) -> 9472.508407
A21: Epargnes salariales | F21: Capital restant dû autres prêts / dettes… | I21: =Profil_Investisseur!F100 -> 0
B22: PEE | D22: ='Bilan 2024'!D135 -> 4215.626231
C23: Total épargnes salariales | D23: =D22 -> 4215.626231
C25: Total Actif liquide | D25: =SUM(D8,D16,D20,D23) -> 60737.87187 | F25: Dettes fiscales | I25: =Profil_Investisseur!F96 -> 0
A26: Actif non-liquide
A27: Biens
B28: Résidence principale (valeur marchande) | D28: ='Bilan 2024'!D141 -> 196361.2166
B29: Investissement immobilier (valeur marchande) | D29: ='Bilan 2024'!D142 -> 185452.2601
B30: Autres propriétés (valeur) | D30: ='Bilan 2024'!D143 -> 8117.676325
C31: Total biens | D31: =SUM(D28,D29,D30) -> 389931.153
A32: Retraites
B33: Plan Retraites (PERP) | D33: ='Bilan 2024'!D146 -> 225.7170433
B34: PERCO | D34: ='Bilan 2024'!D147 -> 673.3376845
C35: Total Retraites | D35: =SUM(D33,D34) -> 899.0547278
C37: Total Actif non-liquide | D37: =SUM(D31,D35) -> 390830.2077
F39: Total Passif | I39: =SUM(I10:I26) -> 451568.0796
A41: Total Actifs | D41: =SUM(D37+D25) -> 451568.0796
B46: Compte de Résultat
B48: RESSOURCES | D48: =F2 -> 2025-01-01 | E48: =F115 -> 2026-01-01
C49: Salaire | D49: ='Bilan 2020'!D49*((1+'Hypothèses exogènes'!E10/100)^$L$2) -> 46370.96297
C50: Rentes immobilières | D50: ='Bilan 2020'!D50*((1+'Hypothèses exogènes'!E11/100)^$L$2) -> 10854.10811
C51: Prime d'intéressement et de participation | D51: ='Bilan 2020'!D51*((1+'Hypothèses exogènes'!E12/100)^$L$2) -> 600
C52: Don(s) / Bourse(s) / Aide(s) / Allocation(s) / Pension(s) | D52: ='Bilan 2020'!D52*((1+'Hypothèses exogènes'!E13/100)^$L$2) -> 0
C53: Plus-value PEA | D53: =D18*('Hypothèses exogènes'!D14/100+((1+'Hypothèses exogènes'!E14/100)^$L$2-1)) -> 166.5756327
C54: Plus-value des comptes-titres | D54: =D19*('Hypothèses exogènes'!D15/100+((1+'Hypothèses exogènes'!E15/100)^$L$2-1)) -> 452.4670414
C55: Plus-value des autres propiétés | D55: =D30*('Hypothèses exogènes'!D16/100+((1+'Hypothèses exogènes'!E16/100)^$L$2-1)) -> 163.6575604
C56: Plus-value du PEE | D56: =D22*('Hypothèses exogènes'!D17/100+((1+'Hypothèses exogènes'!E17/100)^$L$2-1)) -> 126.8493332
C57: Plus-value du PERCO | D57: =D34*('Hypothèses exogènes'!D18/100+((1+'Hypothèses exogènes'!E18/100)^$L$2-1)) -> 20.260913
C58: Plus-value de Livret A | D58: =D10*('Hypothèses exogènes'!D19/100+((1+'Hypothèses exogènes'!E19/100)^$L$2-1)) -> 7.829973848
C59: Plus-value du PEL | D59: =D11*('Hypothèses exogènes'!D20/100+((1+'Hypothèses exogènes'!E20/100)^$L$2-1)) -> 8.211260035
C60: Plus-value du CEL | D60: =D12*('Hypothèses exogènes'!D21/100+((1+'Hypothèses exogènes'!E21/100)^$L$2-1)) -> 10.65078795
C61: Plus-value du LDD | D61: =D13*('Hypothèses exogènes'!D22/100+((1+'Hypothèses exogènes'!E22/100)^$L$2-1)) -> 9.718369023
C62: Plus-value de l'assurance-vie Fonds€ | D62: =D14*('Hypothèses exogènes'!D23/100+((1+'Hypothèses exogènes'!E23/100)^$L$2-1)) -> 839.2469543
C63: Plus-value de l'assurance-vie UC | D63: =D15*('Hypothèses exogènes'!D24/100+((1+'Hypothèses exogènes'!E24/100)^$L$2-1)) -> 1585.893444
C64: Plus-value du plan retraites PERP | D64: =D33*('Hypothèses exogènes'!D25/100+((1+'Hypothèses exogènes'!E25/100)^$L$2-1)) -> 7.017603912
C65: Plus-value résidence principale | D65: =D28*('Hypothèses exogènes'!D26/100+((1+'Hypothèses exogènes'!E26/100)^$L$2-1)) -> 4926.756021
C66: Plus-value du bien investissement locatif | D66: =D29*('Hypothèses exogènes'!D27/100+((1+'Hypothèses exogènes'!E27/100)^$L$2-1)) -> 4653.047353
C67: Autres revenus | D67: =Profil_Investisseur!B59*12 -> 0
B68: Total des ressources | D68: =SUM(D49:D67) -> 70803.25333
D70: [42]
B71: CHARGES
C72: Assurance habitation | D72: =(Profil_Investisseur!I109+Profil_Investisseur!E123) -> 620
C73: Autre(s) assurance(s) | D73: =Profil_Investisseur!B127 -> 600
B74: Total assurances | D74: =D72+D73 -> 1220
C75: Intérêts crédit A (résidence principale) | D75: =VLOOKUP(F115,Tableau18[[#All],[Date du versement]:[Intérêts crédit A cumulés]],2,1)-VLOOKUP(F2,Tableau18[[#All],[Date du versement]:[Intérêts crédit A cumulés]],2,1) -> 1890.572409
C76: Ammortissement crédit A (résidence principale) | D76: =VLOOKUP(F115,Tableau18[#All],3,1)-VLOOKUP(F2,Tableau18[#All],3,1) -> 8142.115396
C77: Intérêts crédit B (Investissement locatif) | D77: =VLOOKUP(F115,Tableau19[[#All],[Date du versement]:[Intérêts crédit B cumulés]],2,1)-VLOOKUP(F2,Tableau19[[#All],[Date du versement]:[Intérêts crédit B cumulés]],2,1) -> 883.082992
C78: Amortissement crédit B (investissement locatif) | D78: =VLOOKUP(F115,Tableau19[#All],3,1)-VLOOKUP(F2,Tableau19[#All],3,1) -> 10698.00682
C79: Intérêts autres dettes | D79: =0 -> 0
C80: Ammortissement autres dettes | D80: =0 -> 0
B81: Total des remboursements | D81: =SUM(D75:D80) -> 21613.77762
C82: Loyer + charges | D82: =Profil_Investisseur!B134*12 -> 0
C83: Transport, Alimentation, Pension Alimentaire,Loisirs | D83: =Profil_Investisseur!F63*12 -> 11728
C84: Charges totales (propriétaire investissement locatif) | D84: =Profil_Investisseur!D123*12 -> 600
C85: Charges totales (propriétaire principal) | D85: =Profil_Investisseur!D114*12 -> 600
B86: Total dépenses personnelles | D86: =SUM(D82:D85) -> 12928
C87: Impôts sur le revenu | D87: ='Impôts revenus'!E12 -> 3880.365034
C88: Impôts sur le foncier | D88: ='Impôts revenus'!F12 -> 3177.580401
C89: Taxe d'habitation | D89: =Profil_Investisseur!J109+Profil_Investisseur!B135*12 -> 881
C90: Fiscalité sur la plus-value du PEA | D90: =D53*('Hypothèses exogènes'!D43/100+((1+'Hypothèses exogènes'!E43/100)^$L$2-1)) -> 31.16468016
C91: Fiscalité sur la plus-value des comptes-titres | D91: =D54*('Hypothèses exogènes'!D44/100+((1+'Hypothèses exogènes'!E44/100)^$L$2-1)) -> 142.5679624
C92: Fiscalité sur la plus-value des autres propiétés | D92: =D55*('Hypothèses exogènes'!D45/100+((1+'Hypothèses exogènes'!E45/100)^$L$2-1)) -> 30.61873723
C93: Fiscalité sur la plus-value du PEE | D93: =D56*('Hypothèses exogènes'!D46/100+((1+'Hypothèses exogènes'!E46/100)^$L$2-1)) -> 23.73227605
C94: Fiscalité sur la plus-value du PERCO | D94: =D57*('Hypothèses exogènes'!D47/100+((1+'Hypothèses exogènes'!E47/100)^$L$2-1)) -> 3.790619692
C95: Fiscalité sur la plus-value de Livret A | D95: =D58*('Hypothèses exogènes'!D48/100+((1+'Hypothèses exogènes'!E48/100)^$L$2-1)) -> 0
C96: Fiscalité sur la plus-value du PEL | D96: =D59*('Hypothèses exogènes'!D49/100+((1+'Hypothèses exogènes'!E49/100)^$L$2-1)) -> 2.587288145
C97: Fiscalité sur la plus-value du CEL | D97: =D60*('Hypothèses exogènes'!D50/100+((1+'Hypothèses exogènes'!E50/100)^$L$2-1)) -> 1.992658798
C98: Fiscalité sur la plus-value du LDD | D98: =D61*('Hypothèses exogènes'!D51/100+((1+'Hypothèses exogènes'!E51/100)^$L$2-1)) -> 0.1466528165
C99: Fiscalité sur la plus-value de l'assurance-vie Fonds€ | D99: =D62*('Hypothèses exogènes'!D52/100+((1+'Hypothèses exogènes'!E52/100)^$L$2-1)) -> 157.0149396
C100: Fiscalité sur la plus-value de l'assurance-vie UC | D100: =D63*('Hypothèses exogènes'!D53/100+((1+'Hypothèses exogènes'!E53/100)^$L$2-1)) -> 296.7052332
C101: Fiscalité sur la plus-value du plan retraites PERP | D101: =D64*('Hypothèses exogènes'!D54/100+((1+'Hypothèses exogènes'!E54/100)^$L$2-1)) -> 1.312925413
C102: Fiscalité sur la plus-value de la résidence principale | D102: =D65*('Hypothèses exogènes'!D55/100+((1+'Hypothèses exogènes'!E55/100)^$L$2-1)) -> 0
C103: Fiscalité sur la plus-value du bien investissement locatif | D103: =D66*('Hypothèses exogènes'!D56/100+((1+'Hypothèses exogènes'!E56/100)^$L$2-1)) -> 0
B104: Total fiscalité | D104: =SUM(D87:D103) -> 8630.579409
C105: Dépenses exceptionnelles | D105: =D49*'Hypothèses exogènes'!D57/100 -> 2782.257778 | G105: Pour vérifier
B106: Total des charges | D106: =SUM(D74,D81,D86,D104,D105) -> 47174.61481 | G106: Somme ammortissements + résultat net | I106: =D76+D78+D80+D108 -> 42468.76074
B108: Résultat Net Comptable | D108: =D68-D106 -> 23628.63852 | G108: Différence fonds propres | I108: =I123-I10 -> 42468.76074
G110: Différence Actifs | I110: =D154-D41 -> 23628.63852
C115: Bilan Actif Passif | E115: Date: | F115: =H115 -> 2026-01-01 | H115: =EDATE(F2,12) -> 2026-01-01
A117: Actif | F117: Passif
A118: Actif liquide
A119: Compte(s) courant(s) | F119: Fonds propres
B120: Compte(s) courant(s) | D120: =F162 -> 1000 | F120: Fonds propres liquide | I120: =D138-SUM(I126:I134) -> -85256.78632
C121: Total compte(s) courant(s) | D121: =D120 -> 1000 | F121: Fonds propres semi-liquide | I121: =D144 -> 399674.6139
A122: Epargnes classiques | F122: Fonds propres non-liquide | I122: =D148 -> 926.3332447
B123: Livret A | D123: =D10+D58 -> 1051.826487 | F123: Total Fonds propres | I123: =SUM(I120:I122) -> 315344.1608
B124: PEL | D124: =D11+D59 -> 335.4799543
B125: CEL | D125: =D12+D60 -> 540.7973581
B126: LDD | D126: =D13+D61 -> 439.9199049 | F126: Capital restant dû crédit résidence principale | I126: =I16-D76 -> 106788.3828
B127: Assurance vie Fonds euros | D127: =D14+D62+F163 -> 29781.27438
B128: Assurance vie Unités de compte | D128: =D15+D63+F164 -> 26412.44621
C129: Total épargnes classiques | D129: =SUM(D123:D128) -> 58561.74429
A130: Actifs financiers | F130: Capital restant dû crédit investissement immo locatif | I130: =I19-D78 -> 53064.17447
B131: PEA | D131: =D18+D53 -> 4321.58958
B132: Compte-titres | D132: =D19+D54 -> 5769.961501 | F132: Capital restant dû autres prêts / dettes… | I132: =0 -> 0
C133: Total actifs financiers | D133: =SUM(D131,D132) -> 10091.55108
A134: Epargnes salariales | F134: Dettes fiscales | I134: =Profil_Investisseur!F173 -> 0
B135: PEE | D135: =D22+D56+D51 -> 4942.475564 | F135: Résultat net comptable | I135: =D108 -> 23628.63852
C136: Total épargnes salariales | D136: =D135 -> 4942.475564
C138: Total Actif liquide | D138: =SUM(D121,D129,D133,D136) -> 74595.77094
A139: Actif non-liquide
A140: Biens
B141: Résidence principale (valeur marchande) | D141: =D28+D65 -> 201287.9726
B142: Investissement immobilier (valeur marchande) | D142: =D29+D66 -> 190105.3074
B143: Autres propriétés (valeur) | D143: =D30+D55 -> 8281.333886
C144: Total biens | D144: =SUM(D141,D142,D143) -> 399674.6139
A145: Retraites
B146: Plan Retraites (PERP) | D146: =D33+D64 -> 232.7346472 | F146: Total Passif | I146: =SUM(I123:I134) -> 475196.7181
B147: PERCO | D147: =D34+D57 -> 693.5985975
C148: Total Retraites | D148: =SUM(D146,D147) -> 926.3332447
C150: Total Actif non-liquide | D150: =SUM(D144,D148) -> 400600.9472
A154: Total Actifs | D154: =SUM(D150+D138) -> 475196.7181
E161: "compte courant intermédiaire" | F161: =D7+D49+D50+D52+D67-D106 -> 11050.45628
E162: compte-courant final | F162: =MIN(1000,F161) -> 1000
E163: Va dans Assurance-Vie Fonds euros | F163: =(F161-F162)*(1-'Hypothèses exogènes'!C3) -> 5025.228138
E164: Va dans Assurance-Vie Unités de compte | F164: =(F161-F162)*'Hypothèses exogènes'!C3 -> 5025.228138

Sheet Bilan 2026
C2: Bilan Actif Passif | E2: Date: | F2: =H2 -> 2026-01-01 | H2: =DATE(2026,1,1) -> 2026-01-01 | K2: =YEAR(H2) -> 2026 | L2: =K2-2020 -> 6
A4: Actif | F4: Passif
A5: Actif liquide
A6: Compte(s) courant(s) | F6: Fonds propres
B7: Compte(s) courant(s) | D7: ='Bilan 2025'!D120 -> 1000 | F7: Fonds propres liquide | I7: =D25-SUM(I16:I26) -> -85256.78632
C8: Total compte(s) courant(s) | D8: =D7 -> 1000 | F8: Fonds propres semi-liquide | I8: =D31 -> 399674.6139 | T8: Titres financiers augmentent de 10%
A9: Epargnes classiques | F9: Fonds propres non-liquide | I9: =D35 -> 926.3332447
B10: Livret A | D10: ='Bilan 2025'!D123 -> 1051.826487 | F10: Total Fonds propres | I10: =SUM(I7:I9) -> 315344.1608
B11: PEL | D11: ='Bilan 2025'!D124 -> 335.4799543 | T11: Assurance vie de 1,5
B12: CEL | D12: ='Bilan 2025'!D125 -> 540.7973581
B13: LDD | D13: ='Bilan 2025'!D126 -> 439.9199049 | T13: Plan retraite de 1%
B14: Assurance vie Fonds euros | D14: ='Bilan 2025'!D127 -> 29781.27438
B15: Assurance vie Unités de compte | D15: ='Bilan 2025'!D128 -> 26412.44621
C16: Total épargnes classiques | D16: =SUM(D10:D15) -> 58561.74429 | F16: Capital restant dû crédit résidence principale | I16: =VLOOKUP(F2,Tableau1[#All],2,1) -> 106788.3828
A17: Actifs financiers
B18: PEA | D18: ='Bilan 2025'!D131 -> 4321.58958
B19: Compte-titres | D19: ='Bilan 2025'!D132 -> 5769.961501 | F19: Capital restant dû crédit investissement immo locatif | I19: =VLOOKUP(F2,Tableau17[#All],2,1) -> 53064.17447
C20: Total actifs financiers | D20: =SUM(D18,D19) -> 10091.55108
A21: Epargnes salariales | F21: Capital restant dû autres prêts / dettes… | I21: =Profil_Investisseur!F100 -> 0
B22: PEE | D22: ='Bilan 2025'!D135 -> 4942.475564
C23: Total épargnes salariales | D23: =D22 -> 4942.475564
C25: Total Actif liquide | D25: =SUM(D8,D16,D20,D23) -> 74595.77094 | F25: Dettes fiscales | I25: =Profil_Investisseur!F96 -> 0
A26: Actif non-liquide
A27: Biens
B28: Résidence principale (valeur marchande) | D28: ='Bilan 2025'!D141 -> 201287.9726
B29: Investissement immobilier (valeur marchande) | D29: ='Bilan 2025'!D142 -> 190105.3074
B30: Autres propriétés (valeur) | D30: ='Bilan 2025'!D143 -> 8281.333886
C31: Total biens | D31: =SUM(D28,D29,D30) -> 399674.6139
A32: Retraites
B33: Plan Retraites (PERP) | D33: ='Bilan 2025'!D146 -> 232.7346472
B34: PERCO | D34: ='Bilan 2025'!D147 -> 693.5985975
C35: Total Retraites | D35: =SUM(D33,D34) -> 926.3332447
C37: Total Actif non-liquide | D37: =SUM(D31,D35) -> 400600.9472
F39: Total Passif | I39: =SUM(I10:I25) -> 475196.7181
A41: Total Actifs | D41: =SUM(D37+D25) -> 475196.7181
B46: Compte de Résultat
B48: RESSOURCES | D48: =F2 -> 2026-01-01 | E48: =F115 -> 2027-01-01
C49: Salaire | D49: ='Bilan 2020'!D49*((1+'Hypothèses exogènes'!E10/100)^$L$2) -> 47762.09186
C50: Rentes immobilières | D50: ='Bilan 2020'!D50*((1+'Hypothèses exogènes'!E11/100)^$L$2) -> 10864.96222
C51: Prime d'intéressement et de participation | D51: ='Bilan 2020'!D51*((1+'Hypothèses exogènes'!E12/100)^$L$2) -> 600
C52: Don(s) / Bourse(s) / Aide(s) / Allocation(s) / Pension(s) | D52: ='Bilan 2020'!D52*((1+'Hypothèses exogènes'!E13/100)^$L$2) -> 0
C53: Plus-value PEA | D53: =D18*('Hypothèses exogènes'!D14/100+((1+'Hypothèses exogènes'!E14/100)^$L$2-1)) -> 186.4141054
C54: Plus-value des comptes-titres | D54: =D19*('Hypothèses exogènes'!D15/100+((1+'Hypothèses exogènes'!E15/100)^$L$2-1)) -> 508.5386797
C55: Plus-value des autres propiétés | D55: =D30*('Hypothèses exogènes'!D16/100+((1+'Hypothèses exogènes'!E16/100)^$L$2-1)) -> 200.7501653
C56: Plus-value du PEE | D56: =D22*('Hypothèses exogènes'!D17/100+((1+'Hypothèses exogènes'!E17/100)^$L$2-1)) -> 163.7716028
C57: Plus-value du PERCO | D57: =D34*('Hypothèses exogènes'!D18/100+((1+'Hypothèses exogènes'!E18/100)^$L$2-1)) -> 22.98276491
C58: Plus-value de Livret A | D58: =D10*('Hypothèses exogènes'!D19/100+((1+'Hypothèses exogènes'!E19/100)^$L$2-1)) -> 7.888698652
C59: Plus-value du PEL | D59: =D11*('Hypothèses exogènes'!D20/100+((1+'Hypothèses exogènes'!E20/100)^$L$2-1)) -> 9.438910082
C60: Plus-value du CEL | D60: =D12*('Hypothèses exogènes'!D21/100+((1+'Hypothèses exogènes'!E21/100)^$L$2-1)) -> 12.51163957
C61: Plus-value du LDD | D61: =D13*('Hypothèses exogènes'!D22/100+((1+'Hypothèses exogènes'!E22/100)^$L$2-1)) -> 11.27758485
C62: Plus-value de l'assurance-vie Fonds€ | D62: =D14*('Hypothèses exogènes'!D23/100+((1+'Hypothèses exogènes'!E23/100)^$L$2-1)) -> 1135.725017
C63: Plus-value de l'assurance-vie UC | D63: =D15*('Hypothèses exogènes'!D24/100+((1+'Hypothèses exogènes'!E24/100)^$L$2-1)) -> 2195.81301
C64: Plus-value du plan retraites PERP | D64: =D33*('Hypothèses exogènes'!D25/100+((1+'Hypothèses exogènes'!E25/100)^$L$2-1)) -> 7.944523143
C65: Plus-value résidence principale | D65: =D28*('Hypothèses exogènes'!D26/100+((1+'Hypothèses exogènes'!E26/100)^$L$2-1)) -> 5663.346049
C66: Plus-value du bien investissement locatif | D66: =D29*('Hypothèses exogènes'!D27/100+((1+'Hypothèses exogènes'!E27/100)^$L$2-1)) -> 5348.715713
C67: Autres revenus | D67: =Profil_Investisseur!B59*12 -> 0
B68: Total des ressources | D68: =SUM(D49:D67) -> 74702.17254
D70: [42]
B71: CHARGES
C72: Assurance habitation | D72: =(Profil_Investisseur!I109+Profil_Investisseur!E123) -> 620
C73: Autre(s) assurance(s) | D73: =Profil_Investisseur!B127 -> 600
B74: Total assurances | D74: =D72+D73 -> 1220
C75: Intérêts crédit A (résidence principale) | D75: =VLOOKUP(F115,Tableau18[[#All],[Date du versement]:[Intérêts crédit A cumulés]],2,1)-VLOOKUP(F2,Tableau18[[#All],[Date du versement]:[Intérêts crédit A cumulés]],2,1) -> 1751.072847
C76: Ammortissement crédit A (résidence principale) | D76: =VLOOKUP(F115,Tableau18[#All],3,1)-VLOOKUP(F2,Tableau18[#All],3,1) -> 8281.614957
C77: Intérêts crédit B (Investissement locatif) | D77: =VLOOKUP(F115,Tableau19[[#All],[Date du versement]:[Intérêts crédit B cumulés]],2,1)-VLOOKUP(F2,Tableau19[[#All],[Date du versement]:[Intérêts crédit B cumulés]],2,1) -> 721.505048
C78: Amortissement crédit B (investissement locatif) | D78: =VLOOKUP(F115,Tableau19[#All],3,1)-VLOOKUP(F2,Tableau19[#All],3,1) -> 10859.58477
C79: Intérêts autres dettes | D79: =0 -> 0
C80: Ammortissement autres dettes | D80: =0 -> 0
B81: Total des remboursements | D81: =SUM(D75:D80) -> 21613.77762
C82: Loyer + charges | D82: =Profil_Investisseur!B134*12 -> 0
C83: Transport, Alimentation, Pension Alimentaire,Loisirs | D83: =Profil_Investisseur!F63*12 -> 11728
C84: Charges totales (propriétaire investissement locatif) | D84: =Profil_Investisseur!D123*12 -> 600
C85: Charges totales (propriétaire principal) | D85: =Profil_Investisseur!D114*12 -> 600
B86: Total dépenses personnelles | D86: =SUM(D82:D85) -> 12928
C87: Impôts sur le revenu | D87: ='Impôts revenus'!E13 -> 3906.445746
C88: Impôts sur le foncier | D88: ='Impôts revenus'!F13 -> 3158.221465
C89: Taxe d'habitation | D89: =Profil_Investisseur!J109+Profil_Investisseur!B135*12 -> 881
C90: Fiscalité sur la plus-value du PEA | D90: =D53*('Hypothèses exogènes'!D43/100+((1+'Hypothèses exogènes'!E43/100)^$L$2-1)) -> 35.44394683
C91: Fiscalité sur la plus-value des comptes-titres | D91: =D54*('Hypothèses exogènes'!D44/100+((1+'Hypothèses exogènes'!E44/100)^$L$2-1)) -> 161.7842281
C92: Fiscalité sur la plus-value des autres propiétés | D92: =D55*('Hypothèses exogènes'!D45/100+((1+'Hypothèses exogènes'!E45/100)^$L$2-1)) -> 38.16974134
C93: Fiscalité sur la plus-value du PEE | D93: =D56*('Hypothèses exogènes'!D46/100+((1+'Hypothèses exogènes'!E46/100)^$L$2-1)) -> 31.13880233
C94: Fiscalité sur la plus-value du PERCO | D94: =D57*('Hypothèses exogènes'!D47/100+((1+'Hypothèses exogènes'!E47/100)^$L$2-1)) -> 4.369840446
C95: Fiscalité sur la plus-value de Livret A | D95: =D58*('Hypothèses exogènes'!D48/100+((1+'Hypothèses exogènes'!E48/100)^$L$2-1)) -> 0
C96: Fiscalité sur la plus-value du PEL | D96: =D59*('Hypothèses exogènes'!D49/100+((1+'Hypothèses exogènes'!E49/100)^$L$2-1)) -> 3.002852767
C97: Fiscalité sur la plus-value du CEL | D97: =D60*('Hypothèses exogènes'!D50/100+((1+'Hypothèses exogènes'!E50/100)^$L$2-1)) -> 2.378907361
C98: Fiscalité sur la plus-value du LDD | D98: =D61*('Hypothèses exogènes'!D51/100+((1+'Hypothèses exogènes'!E51/100)^$L$2-1)) -> 0.2045251049
C99: Fiscalité sur la plus-value de l'assurance-vie Fonds€ | D99: =D62*('Hypothèses exogènes'!D52/100+((1+'Hypothèses exogènes'!E52/100)^$L$2-1)) -> 215.9416907
C100: Fiscalité sur la plus-value de l'assurance-vie UC | D100: =D63*('Hypothèses exogènes'!D53/100+((1+'Hypothèses exogènes'!E53/100)^$L$2-1)) -> 417.5020951
C101: Fiscalité sur la plus-value du plan retraites PERP | D101: =D64*('Hypothèses exogènes'!D54/100+((1+'Hypothèses exogènes'!E54/100)^$L$2-1)) -> 1.510536208
C102: Fiscalité sur la plus-value de la résidence principale | D102: =D65*('Hypothèses exogènes'!D55/100+((1+'Hypothèses exogènes'!E55/100)^$L$2-1)) -> 0
C103: Fiscalité sur la plus-value du bien investissement locatif | D103: =D66*('Hypothèses exogènes'!D56/100+((1+'Hypothèses exogènes'!E56/100)^$L$2-1)) -> 0
B104: Total fiscalité | D104: =SUM(D87:D103) -> 8857.114378
C105: Dépenses exceptionnelles | D105: =D49*'Hypothèses exogènes'!D57/100 -> 2865.725512 | G105: Pour vérifier
B106: Total des charges | D106: =SUM(D74,D81,D86,D104,D105) -> 47484.61751 | G106: Somme ammortissements + résultat net | I106: =D76+D78+D80+D108 -> 46358.75476
B108: Résultat Net Comptable | D108: =D68-D106 -> 27217.55503 | G108: Différence fonds propres | I108: =I123-I10 -> 46358.75476
G110: Différence Actifs | I110: =D154-D41 -> 27217.55503
C115: Bilan Actif Passif | E115: Date: | F115: =H115 -> 2027-01-01 | H115: =EDATE(F2,12) -> 2027-01-01
A117: Actif | F117: Passif
A118: Actif liquide
A119: Compte(s) courant(s) | F119: Fonds propres
B120: Compte(s) courant(s) | D120: =F162 -> 1000 | F120: Fonds propres liquide | I120: =D138-SUM(I126:I134) -> -50141.77078
C121: Total compte(s) courant(s) | D121: =D120 -> 1000 | F121: Fonds propres semi-liquide | I121: =D144 -> 410887.4259
A122: Epargnes classiques | F122: Fonds propres non-liquide | I122: =D148 -> 957.2605328
B123: Livret A | D123: =D10+D58 -> 1059.715186 | F123: Total Fonds propres | I123: =SUM(I120:I122) -> 361702.9156
B124: PEL | D124: =D11+D59 -> 344.9188644
B125: CEL | D125: =D12+D60 -> 553.3089977
B126: LDD | D126: =D13+D61 -> 451.1974897 | F126: Capital restant dû crédit résidence principale | I126: =I16-D76 -> 98506.76783
B127: Assurance vie Fonds euros | D127: =D14+D62+F163 -> 36488.21768
B128: Assurance vie Unités de compte | D128: =D15+D63+F164 -> 34179.4775
C129: Total épargnes classiques | D129: =SUM(D123:D128) -> 73076.83572
A130: Actifs financiers | F130: Capital restant dû crédit investissement immo locatif | I130: =I19-D78 -> 42204.58971
B131: PEA | D131: =D18+D53 -> 4508.003685
B132: Compte-titres | D132: =D19+D54 -> 6278.500181 | F132: Capital restant dû autres prêts / dettes… | I132: =0 -> 0
C133: Total actifs financiers | D133: =SUM(D131,D132) -> 10786.50387
A134: Epargnes salariales | F134: Dettes fiscales | I134: =Profil_Investisseur!F173 -> 0
B135: PEE | D135: =D22+D56+D51 -> 5706.247167 | F135: Résultat net comptable | I135: =D108 -> 27217.55503
C136: Total épargnes salariales | D136: =D135 -> 5706.247167
C138: Total Actif liquide | D138: =SUM(D121,D129,D133,D136) -> 90569.58676
A139: Actif non-liquide
A140: Biens
B141: Résidence principale (valeur marchande) | D141: =D28+D65 -> 206951.3186
B142: Investissement immobilier (valeur marchande) | D142: =D29+D66 -> 195454.0232
B143: Autres propriétés (valeur) | D143: =D30+D55 -> 8482.084051
C144: Total biens | D144: =SUM(D141,D142,D143) -> 410887.4259
A145: Retraites
B146: Plan Retraites (PERP) | D146: =D33+D64 -> 240.6791704 | F146: Total Passif | I146: =SUM(I123:I134) -> 502414.2731
B147: PERCO | D147: =D34+D57 -> 716.5813624
C148: Total Retraites | D148: =SUM(D146,D147) -> 957.2605328
C150: Total Actif non-liquide | D150: =SUM(D144,D148) -> 411844.6864
A154: Total Actifs | D154: =SUM(D150+D138) -> 502414.2731
E161: "compte courant intermédiaire" | F161: =D7+D49+D50+D52+D67-D106 -> 12142.43657
E162: compte-courant final | F162: =MIN(1000,F161) -> 1000
E163: Va dans Assurance-Vie Fonds euros | F163: =(F161-F162)*(1-'Hypothèses exogènes'!C3) -> 5571.218285
E164: Va dans Assurance-Vie Unités de compte | F164: =(F161-F162)*'Hypothèses exogènes'!C3 -> 5571.218285

Sheet Bilan 2027
C2: Bilan Actif Passif | E2: Date: | F2: =H2 -> 2027-01-01 | H2: =DATE(2027,1,1) -> 2027-01-01 | K2: =YEAR(H2) -> 2027 | L2: =K2-2020 -> 7
A4: Actif | F4: Passif
A5: Actif liquide
A6: Compte(s) courant(s) | F6: Fonds propres
B7: Compte(s) courant(s) | D7: ='Bilan 2026'!D120 -> 1000 | F7: Fonds propres liquide | I7: =D25-SUM(I16:I26) -> -50141.77078
C8: Total compte(s) courant(s) | D8: =D7 -> 1000 | F8: Fonds propres semi-liquide | I8: =D31 -> 410887.4259 | T8: Titres financiers augmentent de 10%
A9: Epargnes classiques | F9: Fonds propres non-liquide | I9: =D35 -> 957.2605328
B10: Livret A | D10: ='Bilan 2026'!D123 -> 1059.715186 | F10: Total Fonds propres | I10: =SUM(I7:I9) -> 361702.9156
B11: PEL | D11: ='Bilan 2026'!D124 -> 344.9188644 | T11: Assurance vie de 1,5
B12: CEL | D12: ='Bilan 2026'!D125 -> 553.3089977
B13: LDD | D13: ='Bilan 2026'!D126 -> 451.1974897 | T13: Plan retraite de 1%
B14: Assurance vie Fonds euros | D14: ='Bilan 2026'!D127 -> 36488.21768
B15: Assurance vie Unités de compte | D15: ='Bilan 2026'!D128 -> 34179.4775
C16: Total épargnes classiques | D16: =SUM(D10:D15) -> 73076.83572 | F16: Capital restant dû crédit résidence principale | I16: =VLOOKUP(F2,Tableau1[#All],2,1) -> 98506.76783
A17: Actifs financiers
B18: PEA | D18: ='Bilan 2026'!D131 -> 4508.003685
B19: Compte-titres | D19: ='Bilan 2026'!D132 -> 6278.500181 | F19: Capital restant dû crédit investissement immo locatif | I19: =VLOOKUP(F2,Tableau17[#All],2,1) -> 42204.58971
C20: Total actifs financiers | D20: =SUM(D18,D19) -> 10786.50387
A21: Epargnes salariales | F21: Capital restant dû autres prêts / dettes… | I21: =Profil_Investisseur!F100 -> 0
B22: PEE | D22: ='Bilan 2026'!D135 -> 5706.247167
C23: Total épargnes salariales | D23: =D22 -> 5706.247167
C25: Total Actif liquide | D25: =SUM(D8,D16,D20,D23) -> 90569.58676 | F25: Dettes fiscales | I25: =Profil_Investisseur!F96 -> 0
A26: Actif non-liquide
A27: Biens
B28: Résidence principale (valeur marchande) | D28: ='Bilan 2026'!D141 -> 206951.3186
B29: Investissement immobilier (valeur marchande) | D29: ='Bilan 2026'!D142 -> 195454.0232
B30: Autres propriétés (valeur) | D30: ='Bilan 2026'!D143 -> 8482.084051
C31: Total biens | D31: =SUM(D28,D29,D30) -> 410887.4259
A32: Retraites
B33: Plan Retraites (PERP) | D33: ='Bilan 2026'!D146 -> 240.6791704
B34: PERCO | D34: ='Bilan 2026'!D147 -> 716.5813624
C35: Total Retraites | D35: =SUM(D33,D34) -> 957.2605328
C37: Total Actif non-liquide | D37: =SUM(D31,D35) -> 411844.6864
F39: Total Passif | I39: =SUM(I10:I25) -> 502414.2731
A41: Total Actifs | D41: =SUM(D37+D25) -> 502414.2731
B46: Compte de Résultat
B48: RESSOURCES | D48: =F2 -> 2027-01-01 | E48: =F115 -> 2028-01-01
C49: Salaire | D49: ='Bilan 2020'!D49*((1+'Hypothèses exogènes'!E10/100)^$L$2) -> 49194.95462
C50: Rentes immobilières | D50: ='Bilan 2020'!D50*((1+'Hypothèses exogènes'!E11/100)^$L$2) -> 10875.82718
C51: Prime d'intéressement et de participation | D51: ='Bilan 2020'!D51*((1+'Hypothèses exogènes'!E12/100)^$L$2) -> 600
C52: Don(s) / Bourse(s) / Aide(s) / Allocation(s) / Pension(s) | D52: ='Bilan 2020'!D52*((1+'Hypothèses exogènes'!E13/100)^$L$2) -> 0
C53: Plus-value PEA | D53: =D18*('Hypothèses exogènes'!D14/100+((1+'Hypothèses exogènes'!E14/100)^$L$2-1)) -> 208.2244551
C54: Plus-value des comptes-titres | D54: =D19*('Hypothèses exogènes'!D15/100+((1+'Hypothèses exogènes'!E15/100)^$L$2-1)) -> 572.536104
C55: Plus-value des autres propiétés | D55: =D30*('Hypothèses exogènes'!D16/100+((1+'Hypothèses exogènes'!E16/100)^$L$2-1)) -> 240.3674097
C56: Plus-value du PEE | D56: =D22*('Hypothèses exogènes'!D17/100+((1+'Hypothèses exogènes'!E17/100)^$L$2-1)) -> 206.5087873
C57: Plus-value du PERCO | D57: =D34*('Hypothèses exogènes'!D18/100+((1+'Hypothèses exogènes'!E18/100)^$L$2-1)) -> 25.93304213
C58: Plus-value de Livret A | D58: =D10*('Hypothèses exogènes'!D19/100+((1+'Hypothèses exogènes'!E19/100)^$L$2-1)) -> 7.947863892
C59: Plus-value du PEL | D59: =D11*('Hypothèses exogènes'!D20/100+((1+'Hypothèses exogènes'!E20/100)^$L$2-1)) -> 10.75800139
C60: Plus-value du CEL | D60: =D12*('Hypothèses exogènes'!D21/100+((1+'Hypothèses exogènes'!E21/100)^$L$2-1)) -> 14.49113379
C61: Plus-value du LDD | D61: =D13*('Hypothèses exogènes'!D22/100+((1+'Hypothèses exogènes'!E22/100)^$L$2-1)) -> 12.94483245
C62: Plus-value de l'assurance-vie Fonds€ | D62: =D14*('Hypothèses exogènes'!D23/100+((1+'Hypothèses exogènes'!E23/100)^$L$2-1)) -> 1502.947783
C63: Plus-value de l'assurance-vie UC | D63: =D15*('Hypothèses exogènes'!D24/100+((1+'Hypothèses exogènes'!E24/100)^$L$2-1)) -> 2945.927383
C64: Plus-value du plan retraites PERP | D64: =D33*('Hypothèses exogènes'!D25/100+((1+'Hypothèses exogènes'!E25/100)^$L$2-1)) -> 8.950845793
C65: Plus-value résidence principale | D65: =D28*('Hypothèses exogènes'!D26/100+((1+'Hypothèses exogènes'!E26/100)^$L$2-1)) -> 6454.800834
C66: Plus-value du bien investissement locatif | D66: =D29*('Hypothèses exogènes'!D27/100+((1+'Hypothèses exogènes'!E27/100)^$L$2-1)) -> 6096.200788
C67: Autres revenus | D67: =Profil_Investisseur!B59*12 -> 0
B68: Total des ressources | D68: =SUM(D49:D67) -> 78979.32106
D70: [42]
B71: CHARGES
C72: Assurance habitation | D72: =(Profil_Investisseur!I109+Profil_Investisseur!E123) -> 620
C73: Autre(s) assurance(s) | D73: =Profil_Investisseur!B127 -> 600
B74: Total assurances | D74: =D72+D73 -> 1220
C75: Intérêts crédit A (résidence principale) | D75: =VLOOKUP(F115,Tableau18[[#All],[Date du versement]:[Intérêts crédit A cumulés]],2,1)-VLOOKUP(F2,Tableau18[[#All],[Date du versement]:[Intérêts crédit A cumulés]],2,1) -> 1609.183227
C76: Ammortissement crédit A (résidence principale) | D76: =VLOOKUP(F115,Tableau18[#All],3,1)-VLOOKUP(F2,Tableau18[#All],3,1) -> 8423.504577
C77: Intérêts crédit B (Investissement locatif) | D77: =VLOOKUP(F115,Tableau19[[#All],[Date du versement]:[Intérêts crédit B cumulés]],2,1)-VLOOKUP(F2,Tableau19[[#All],[Date du versement]:[Intérêts crédit B cumulés]],2,1) -> 557.4867025
C78: Amortissement crédit B (investissement locatif) | D78: =VLOOKUP(F115,Tableau19[#All],3,1)-VLOOKUP(F2,Tableau19[#All],3,1) -> 11023.60311
C79: Intérêts autres dettes | D79: =0 -> 0
C80: Ammortissement autres dettes | D80: =0 -> 0
B81: Total des remboursements | D81: =SUM(D75:D80) -> 21613.77762
C82: Loyer + charges | D82: =Profil_Investisseur!B134*12 -> 0
C83: Transport, Alimentation, Pension Alimentaire,Loisirs | D83: =Profil_Investisseur!F63*12 -> 11728
C84: Charges totales (propriétaire investissement locatif) | D84: =Profil_Investisseur!D123*12 -> 600
C85: Charges totales (propriétaire principal) | D85: =Profil_Investisseur!D114*12 -> 600
B86: Total dépenses personnelles | D86: =SUM(D82:D85) -> 12928
C87: Impôts sur le revenu | D87: ='Impôts revenus'!E14 -> 3932.368836
C88: Impôts sur le foncier | D88: ='Impôts revenus'!F14 -> 3138.477708
C89: Taxe d'habitation | D89: =Profil_Investisseur!J109+Profil_Investisseur!B135*12 -> 881
C90: Fiscalité sur la plus-value du PEA | D90: =D53*('Hypothèses exogènes'!D43/100+((1+'Hypothèses exogènes'!E43/100)^$L$2-1)) -> 40.22687162
C91: Fiscalité sur la plus-value des comptes-titres | D91: =D54*('Hypothèses exogènes'!D44/100+((1+'Hypothèses exogènes'!E44/100)^$L$2-1)) -> 183.8928414
C92: Fiscalité sur la plus-value des autres propiétés | D92: =D55*('Hypothèses exogènes'!D45/100+((1+'Hypothèses exogènes'!E45/100)^$L$2-1)) -> 46.43656735
C93: Fiscalité sur la plus-value du PEE | D93: =D56*('Hypothèses exogènes'!D46/100+((1+'Hypothèses exogènes'!E46/100)^$L$2-1)) -> 39.89542186
C94: Fiscalité sur la plus-value du PERCO | D94: =D57*('Hypothèses exogènes'!D47/100+((1+'Hypothèses exogènes'!E47/100)^$L$2-1)) -> 5.010003056
C95: Fiscalité sur la plus-value de Livret A | D95: =D58*('Hypothèses exogènes'!D48/100+((1+'Hypothèses exogènes'!E48/100)^$L$2-1)) -> 0
C96: Fiscalité sur la plus-value du PEL | D96: =D59*('Hypothèses exogènes'!D49/100+((1+'Hypothèses exogènes'!E49/100)^$L$2-1)) -> 3.455361905
C97: Fiscalité sur la plus-value du CEL | D97: =D60*('Hypothèses exogènes'!D50/100+((1+'Hypothèses exogènes'!E50/100)^$L$2-1)) -> 2.799541381
C98: Fiscalité sur la plus-value du LDD | D98: =D61*('Hypothèses exogènes'!D51/100+((1+'Hypothèses exogènes'!E51/100)^$L$2-1)) -> 0.2743003243
C99: Fiscalité sur la plus-value de l'assurance-vie Fonds€ | D99: =D62*('Hypothèses exogènes'!D52/100+((1+'Hypothèses exogènes'!E52/100)^$L$2-1)) -> 290.3544038
C100: Fiscalité sur la plus-value de l'assurance-vie UC | D100: =D63*('Hypothèses exogènes'!D53/100+((1+'Hypothèses exogènes'!E53/100)^$L$2-1)) -> 569.1235575
C101: Fiscalité sur la plus-value du plan retraites PERP | D101: =D64*('Hypothèses exogènes'!D54/100+((1+'Hypothèses exogènes'!E54/100)^$L$2-1)) -> 1.729213432
C102: Fiscalité sur la plus-value de la résidence principale | D102: =D65*('Hypothèses exogènes'!D55/100+((1+'Hypothèses exogènes'!E55/100)^$L$2-1)) -> 0
C103: Fiscalité sur la plus-value du bien investissement locatif | D103: =D66*('Hypothèses exogènes'!D56/100+((1+'Hypothèses exogènes'!E56/100)^$L$2-1)) -> 0
B104: Total fiscalité | D104: =SUM(D87:D103) -> 9135.044627
C105: Dépenses exceptionnelles | D105: =D49*'Hypothèses exogènes'!D57/100 -> 2951.697277 | G105: Pour vérifier
B106: Total des charges | D106: =SUM(D74,D81,D86,D104,D105) -> 47848.51952 | G106: Somme ammortissements + résultat net | I106: =D76+D78+D80+D108 -> 50577.90922
B108: Résultat Net Comptable | D108: =D68-D106 -> 31130.80154 | G108: Différence fonds propres | I108: =I123-I10 -> 50577.90922
G110: Différence Actifs | I110: =D154-D41 -> 31130.80154
C115: Bilan Actif Passif | E115: Date: | F115: =H115 -> 2028-01-01 | H115: =EDATE(F2,12) -> 2028-01-01
A117: Actif | F117: Passif
A118: Actif liquide
A119: Compte(s) courant(s) | F119: Fonds propres
B120: Compte(s) courant(s) | D120: =F162 -> 1000 | F120: Fonds propres liquide | I120: =D138-SUM(I126:I134) -> -12390.11448
C121: Total compte(s) courant(s) | D121: =D120 -> 1000 | F121: Fonds propres semi-liquide | I121: =D144 -> 423678.7949
A122: Epargnes classiques | F122: Fonds propres non-liquide | I122: =D148 -> 992.1444207
B123: Livret A | D123: =D10+D58 -> 1067.663049 | F123: Total Fonds propres | I123: =SUM(I120:I122) -> 412280.8248
B124: PEL | D124: =D11+D59 -> 355.6768658
B125: CEL | D125: =D12+D60 -> 567.8001315
B126: LDD | D126: =D13+D61 -> 464.1423222 | F126: Capital restant dû crédit résidence principale | I126: =I16-D76 -> 90083.26325
B127: Assurance vie Fonds euros | D127: =D14+D62+F163 -> 44102.2966
B128: Assurance vie Unités de compte | D128: =D15+D63+F164 -> 43236.53602
C129: Total épargnes classiques | D129: =SUM(D123:D128) -> 89794.11499
A130: Actifs financiers | F130: Capital restant dû crédit investissement immo locatif | I130: =I19-D78 -> 31180.9866
B131: PEA | D131: =D18+D53 -> 4716.22814
B132: Compte-titres | D132: =D19+D54 -> 6851.036285 | F132: Capital restant dû autres prêts / dettes… | I132: =0 -> 0
C133: Total actifs financiers | D133: =SUM(D131,D132) -> 11567.26443
A134: Epargnes salariales | F134: Dettes fiscales | I134: =Profil_Investisseur!F173 -> 0
B135: PEE | D135: =D22+D56+D51 -> 6512.755955 | F135: Résultat net comptable | I135: =D108 -> 31130.80154
C136: Total épargnes salariales | D136: =D135 -> 6512.755955
C138: Total Actif liquide | D138: =SUM(D121,D129,D133,D136) -> 108874.1354
A139: Actif non-liquide
A140: Biens
B141: Résidence principale (valeur marchande) | D141: =D28+D65 -> 213406.1195
B142: Investissement immobilier (valeur marchande) | D142: =D29+D66 -> 201550.2239
B143: Autres propriétés (valeur) | D143: =D30+D55 -> 8722.451461
C144: Total biens | D144: =SUM(D141,D142,D143) -> 423678.7949
A145: Retraites
B146: Plan Retraites (PERP) | D146: =D33+D64 -> 249.6300162 | F146: Total Passif | I146: =SUM(I123:I134) -> 533545.0747
B147: PERCO | D147: =D34+D57 -> 742.5144045
C148: Total Retraites | D148: =SUM(D146,D147) -> 992.1444207
C150: Total Actif non-liquide | D150: =SUM(D144,D148) -> 424670.9393
A154: Total Actifs | D154: =SUM(D150+D138) -> 533545.0747
E161: "compte courant intermédiaire" | F161: =D7+D49+D50+D52+D67-D106 -> 13222.26227
E162: compte-courant final | F162: =MIN(1000,F161) -> 1000
E163: Va dans Assurance-Vie Fonds euros | F163: =(F161-F162)*(1-'Hypothèses exogènes'!C3) -> 6111.131137
E164: Va dans Assurance-Vie Unités de compte | F164: =(F161-F162)*'Hypothèses exogènes'!C3 -> 6111.131137

Sheet Bilan 2028
C2: Bilan Actif Passif | E2: Date: | F2: =H2 -> 2028-01-01 | H2: =DATE(2028,1,1) -> 2028-01-01 | K2: =YEAR(H2) -> 2028 | L2: =K2-2020 -> 8
A4: Actif | F4: Passif
A5: Actif liquide
A6: Compte(s) courant(s) | F6: Fonds propres
B7: Compte(s) courant(s) | D7: ='Bilan 2027'!D120 -> 1000 | F7: Fonds propres liquide | I7: =D25-SUM(I16:I26) -> -12390.11448
C8: Total compte(s) courant(s) | D8: =D7 -> 1000 | F8: Fonds propres semi-liquide | I8: =D31 -> 423678.7949 | T8: Titres financiers augmentent de 10%
A9: Epargnes classiques | F9: Fonds propres non-liquide | I9: =D35 -> 992.1444207
B10: Livret A | D10: ='Bilan 2027'!D123 -> 1067.663049 | F10: Total Fonds propres | I10: =SUM(I7:I9) -> 412280.8248
B11: PEL | D11: ='Bilan 2027'!D124 -> 355.6768658 | T11: Assurance vie de 1,5
B12: CEL | D12: ='Bilan 2027'!D125 -> 567.8001315
B13: LDD | D13: ='Bilan 2027'!D126 -> 464.1423222 | T13: Plan retraite de 1%
B14: Assurance vie Fonds euros | D14: ='Bilan 2027'!D127 -> 44102.2966
B15: Assurance vie Unités de compte | D15: ='Bilan 2027'!D128 -> 43236.53602
C16: Total épargnes classiques | D16: =SUM(D10:D15) -> 89794.11499 | F16: Capital restant dû crédit résidence principale | I16: =VLOOKUP(F2,Tableau1[#All],2,1) -> 90083.26325
A17: Actifs financiers
B18: PEA | D18: ='Bilan 2027'!D131 -> 4716.22814
B19: Compte-titres | D19: ='Bilan 2027'!D132 -> 6851.036285 | F19: Capital restant dû crédit investissement immo locatif | I19: =VLOOKUP(F2,Tableau17[#All],2,1) -> 31180.9866
C20: Total actifs financiers | D20: =SUM(D18,D19) -> 11567.26443
A21: Epargnes salariales | F21: Capital restant dû autres prêts / dettes… | I21: =Profil_Investisseur!F100 -> 0
B22: PEE | D22: ='Bilan 2027'!D135 -> 6512.755955
C23: Total épargnes salariales | D23: =D22 -> 6512.755955
C25: Total Actif liquide | D25: =SUM(D8,D16,D20,D23) -> 108874.1354 | F25: Dettes fiscales | I25: =Profil_Investisseur!F96 -> 0
A26: Actif non-liquide
A27: Biens
B28: Résidence principale (valeur marchande) | D28: ='Bilan 2027'!D141 -> 213406.1195
B29: Investissement immobilier (valeur marchande) | D29: ='Bilan 2027'!D142 -> 201550.2239
B30: Autres propriétés (valeur) | D30: ='Bilan 2027'!D143 -> 8722.451461
C31: Total biens | D31: =SUM(D28,D29,D30) -> 423678.7949
A32: Retraites
B33: Plan Retraites (PERP) | D33: ='Bilan 2027'!D146 -> 249.6300162
B34: PERCO | D34: ='Bilan 2027'!D147 -> 742.5144045
C35: Total Retraites | D35: =SUM(D33,D34) -> 992.1444207
C37: Total Actif non-liquide | D37: =SUM(D31,D35) -> 424670.9393
F39: Total Passif | I39: =SUM(I10:I25) -> 533545.0747
A41: Total Actifs | D41: =SUM(D37+D25) -> 533545.0747
B46: Compte de Résultat
B48: RESSOURCES | D48: =F2 -> 2028-01-01 | E48: =F115 -> 2029-01-01
C49: Salaire | D49: ='Bilan 2020'!D49*((1+'Hypothèses exogènes'!E10/100)^$L$2) -> 50670.80326
C50: Rentes immobilières | D50: ='Bilan 2020'!D50*((1+'Hypothèses exogènes'!E11/100)^$L$2) -> 10886.70301
C51: Prime d'intéressement et de participation | D51: ='Bilan 2020'!D51*((1+'Hypothèses exogènes'!E12/100)^$L$2) -> 600
C52: Don(s) / Bourse(s) / Aide(s) / Allocation(s) / Pension(s) | D52: ='Bilan 2020'!D52*((1+'Hypothèses exogènes'!E13/100)^$L$2) -> 0
C53: Plus-value PEA | D53: =D18*('Hypothèses exogènes'!D14/100+((1+'Hypothèses exogènes'!E14/100)^$L$2-1)) -> 232.2908261
C54: Plus-value des comptes-titres | D54: =D19*('Hypothèses exogènes'!D15/100+((1+'Hypothèses exogènes'!E15/100)^$L$2-1)) -> 645.7342696
C55: Plus-value des autres propiétés | D55: =D30*('Hypothèses exogènes'!D16/100+((1+'Hypothèses exogènes'!E16/100)^$L$2-1)) -> 283.0575231
C56: Plus-value du PEE | D56: =D22*('Hypothèses exogènes'!D17/100+((1+'Hypothèses exogènes'!E17/100)^$L$2-1)) -> 255.648581
C57: Plus-value du PERCO | D57: =D34*('Hypothèses exogènes'!D18/100+((1+'Hypothèses exogènes'!E18/100)^$L$2-1)) -> 29.14630231
C58: Plus-value de Livret A | D58: =D10*('Hypothèses exogènes'!D19/100+((1+'Hypothèses exogènes'!E19/100)^$L$2-1)) -> 8.007472871
C59: Plus-value du PEL | D59: =D11*('Hypothèses exogènes'!D20/100+((1+'Hypothèses exogènes'!E20/100)^$L$2-1)) -> 12.18318381
C60: Plus-value du CEL | D60: =D12*('Hypothèses exogènes'!D21/100+((1+'Hypothèses exogènes'!E21/100)^$L$2-1)) -> 16.61015119
C61: Plus-value du LDD | D61: =D13*('Hypothèses exogènes'!D22/100+((1+'Hypothèses exogènes'!E22/100)^$L$2-1)) -> 14.73815143
C62: Plus-value de l'assurance-vie Fonds€ | D62: =D14*('Hypothèses exogènes'!D23/100+((1+'Hypothèses exogènes'!E23/100)^$L$2-1)) -> 1951.681763
C63: Plus-value de l'assurance-vie UC | D63: =D15*('Hypothèses exogènes'!D24/100+((1+'Hypothèses exogènes'!E24/100)^$L$2-1)) -> 3859.012933
C64: Plus-value du plan retraites PERP | D64: =D33*('Hypothèses exogènes'!D25/100+((1+'Hypothèses exogènes'!E25/100)^$L$2-1)) -> 10.04848627
C65: Plus-value résidence principale | D65: =D28*('Hypothèses exogènes'!D26/100+((1+'Hypothèses exogènes'!E26/100)^$L$2-1)) -> 7309.910287
C66: Plus-value du bien investissement locatif | D66: =D29*('Hypothèses exogènes'!D27/100+((1+'Hypothèses exogènes'!E27/100)^$L$2-1)) -> 6903.80416
C67: Autres revenus | D67: =Profil_Investisseur!B59*12 -> 0
B68: Total des ressources | D68: =SUM(D49:D67) -> 83689.38035
D70: [42]
B71: CHARGES
C72: Assurance habitation | D72: =(Profil_Investisseur!I109+Profil_Investisseur!E123) -> 620
C73: Autre(s) assurance(s) | D73: =Profil_Investisseur!B127 -> 600
B74: Total assurances | D74: =D72+D73 -> 1220
C75: Intérêts crédit A (résidence principale) | D75: =VLOOKUP(F115,Tableau18[[#All],[Date du versement]:[Intérêts crédit A cumulés]],2,1)-VLOOKUP(F2,Tableau18[[#All],[Date du versement]:[Intérêts crédit A cumulés]],2,1) -> 1464.8626
C76: Ammortissement crédit A (résidence principale) | D76: =VLOOKUP(F115,Tableau18[#All],3,1)-VLOOKUP(F2,Tableau18[#All],3,1) -> 8567.825204
C77: Intérêts crédit B (Investissement locatif) | D77: =VLOOKUP(F115,Tableau19[[#All],[Date du versement]:[Intérêts crédit B cumulés]],2,1)-VLOOKUP(F2,Tableau19[[#All],[Date du versement]:[Intérêts crédit B cumulés]],2,1) -> 390.9910967
C78: Amortissement crédit B (investissement locatif) | D78: =VLOOKUP(F115,Tableau19[#All],3,1)-VLOOKUP(F2,Tableau19[#All],3,1) -> 11190.09872
C79: Intérêts autres dettes | D79: =0 -> 0
C80: Ammortissement autres dettes | D80: =0 -> 0
B81: Total des remboursements | D81: =SUM(D75:D80) -> 21613.77762
C82: Loyer + charges | D82: =Profil_Investisseur!B134*12 -> 0
C83: Transport, Alimentation, Pension Alimentaire,Loisirs | D83: =Profil_Investisseur!F63*12 -> 11728
C84: Charges totales (propriétaire investissement locatif) | D84: =Profil_Investisseur!D123*12 -> 600
C85: Charges totales (propriétaire principal) | D85: =Profil_Investisseur!D114*12 -> 600
B86: Total dépenses personnelles | D86: =SUM(D82:D85) -> 12928
C87: Impôts sur le revenu | D87: ='Impôts revenus'!E15 -> 3958.127744
C88: Impôts sur le foncier | D88: ='Impôts revenus'!F15 -> 3118.341436
C89: Taxe d'habitation | D89: =Profil_Investisseur!J109+Profil_Investisseur!B135*12 -> 881
C90: Fiscalité sur la plus-value du PEA | D90: =D53*('Hypothèses exogènes'!D43/100+((1+'Hypothèses exogènes'!E43/100)^$L$2-1)) -> 45.58789175
C91: Fiscalité sur la plus-value des comptes-titres | D91: =D54*('Hypothèses exogènes'!D44/100+((1+'Hypothèses exogènes'!E44/100)^$L$2-1)) -> 209.3816084
C92: Fiscalité sur la plus-value des autres propiétés | D92: =D55*('Hypothèses exogènes'!D45/100+((1+'Hypothèses exogènes'!E45/100)^$L$2-1)) -> 55.55103461
C93: Fiscalité sur la plus-value du PEE | D93: =D56*('Hypothèses exogènes'!D46/100+((1+'Hypothèses exogènes'!E46/100)^$L$2-1)) -> 50.17193332
C94: Fiscalité sur la plus-value du PERCO | D94: =D57*('Hypothèses exogènes'!D47/100+((1+'Hypothèses exogènes'!E47/100)^$L$2-1)) -> 5.720064355
C95: Fiscalité sur la plus-value de Livret A | D95: =D58*('Hypothèses exogènes'!D48/100+((1+'Hypothèses exogènes'!E48/100)^$L$2-1)) -> 0
C96: Fiscalité sur la plus-value du PEL | D96: =D59*('Hypothèses exogènes'!D49/100+((1+'Hypothèses exogènes'!E49/100)^$L$2-1)) -> 3.950440208
C97: Fiscalité sur la plus-value du CEL | D97: =D60*('Hypothèses exogènes'!D50/100+((1+'Hypothèses exogènes'!E50/100)^$L$2-1)) -> 3.2598006
C98: Fiscalité sur la plus-value du LDD | D98: =D61*('Hypothèses exogènes'!D51/100+((1+'Hypothèses exogènes'!E51/100)^$L$2-1)) -> 0.3574520164
C99: Fiscalité sur la plus-value de l'assurance-vie Fonds€ | D99: =D62*('Hypothèses exogènes'!D52/100+((1+'Hypothèses exogènes'!E52/100)^$L$2-1)) -> 383.0244113
C100: Fiscalité sur la plus-value de l'assurance-vie UC | D100: =D63*('Hypothèses exogènes'!D53/100+((1+'Hypothèses exogènes'!E53/100)^$L$2-1)) -> 757.3448628
C101: Fiscalité sur la plus-value du plan retraites PERP | D101: =D64*('Hypothèses exogènes'!D54/100+((1+'Hypothèses exogènes'!E54/100)^$L$2-1)) -> 1.972050778
C102: Fiscalité sur la plus-value de la résidence principale | D102: =D65*('Hypothèses exogènes'!D55/100+((1+'Hypothèses exogènes'!E55/100)^$L$2-1)) -> 0
C103: Fiscalité sur la plus-value du bien investissement locatif | D103: =D66*('Hypothèses exogènes'!D56/100+((1+'Hypothèses exogènes'!E56/100)^$L$2-1)) -> 0
B104: Total fiscalité | D104: =SUM(D87:D103) -> 9473.79073
C105: Dépenses exceptionnelles | D105: =D49*'Hypothèses exogènes'!D57/100 -> 3040.248195 | G105: Pour vérifier
B106: Total des charges | D106: =SUM(D74,D81,D86,D104,D105) -> 48275.81654 | G106: Somme ammortissements + résultat net | I106: =D76+D78+D80+D108 -> 55171.48773
B108: Résultat Net Comptable | D108: =D68-D106 -> 35413.56381 | G108: Différence fonds propres | I108: =I123-I10 -> 55171.48773
G110: Différence Actifs | I110: =D154-D41 -> 35413.56381
C115: Bilan Actif Passif | E115: Date: | F115: =H115 -> 2029-01-01 | H115: =EDATE(F2,12) -> 2029-01-01
A117: Actif | F117: Passif
A118: Actif liquide
A119: Compte(s) courant(s) | F119: Fonds propres
B120: Compte(s) courant(s) | D120: =F162 -> 1000 | F120: Fonds propres liquide | I120: =D138-SUM(I126:I134) -> 28245.40649
C121: Total compte(s) courant(s) | D121: =D120 -> 1000 | F121: Fonds propres semi-liquide | I121: =D144 -> 438175.5669
A122: Epargnes classiques | F122: Fonds propres non-liquide | I122: =D148 -> 1031.339209
B123: Livret A | D123: =D10+D58 -> 1075.670522 | F123: Total Fonds propres | I123: =SUM(I120:I122) -> 467452.3126
B124: PEL | D124: =D11+D59 -> 367.8600496
B125: CEL | D125: =D12+D60 -> 584.4102827
B126: LDD | D126: =D13+D61 -> 478.8804736 | F126: Capital restant dû crédit résidence principale | I126: =I16-D76 -> 81515.43805
B127: Assurance vie Fonds euros | D127: =D14+D62+F163 -> 52694.82322
B128: Assurance vie Unités de compte | D128: =D15+D63+F164 -> 53736.39382
C129: Total épargnes classiques | D129: =SUM(D123:D128) -> 108938.0384
A130: Actifs financiers | F130: Capital restant dû crédit investissement immo locatif | I130: =I19-D78 -> 19990.88788
B131: PEA | D131: =D18+D53 -> 4948.518966
B132: Compte-titres | D132: =D19+D54 -> 7496.770554 | F132: Capital restant dû autres prêts / dettes… | I132: =0 -> 0
C133: Total actifs financiers | D133: =SUM(D131,D132) -> 12445.28952
A134: Epargnes salariales | F134: Dettes fiscales | I134: =Profil_Investisseur!F173 -> 0
B135: PEE | D135: =D22+D56+D51 -> 7368.404536 | F135: Résultat net comptable | I135: =D108 -> 35413.56381
C136: Total épargnes salariales | D136: =D135 -> 7368.404536
C138: Total Actif liquide | D138: =SUM(D121,D129,D133,D136) -> 129751.7324
A139: Actif non-liquide
A140: Biens
B141: Résidence principale (valeur marchande) | D141: =D28+D65 -> 220716.0298
B142: Investissement immobilier (valeur marchande) | D142: =D29+D66 -> 208454.0281
B143: Autres propriétés (valeur) | D143: =D30+D55 -> 9005.508984
C144: Total biens | D144: =SUM(D141,D142,D143) -> 438175.5669
A145: Retraites
B146: Plan Retraites (PERP) | D146: =D33+D64 -> 259.6785024 | F146: Total Passif | I146: =SUM(I123:I134) -> 568958.6385
B147: PERCO | D147: =D34+D57 -> 771.6607068
C148: Total Retraites | D148: =SUM(D146,D147) -> 1031.339209
C150: Total Actif non-liquide | D150: =SUM(D144,D148) -> 439206.9061
A154: Total Actifs | D154: =SUM(D150+D138) -> 568958.6385
E161: "compte courant intermédiaire" | F161: =D7+D49+D50+D52+D67-D106 -> 14281.68972
E162: compte-courant final | F162: =MIN(1000,F161) -> 1000
E163: Va dans Assurance-Vie Fonds euros | F163: =(F161-F162)*(1-'Hypothèses exogènes'!C3) -> 6640.844859
E164: Va dans Assurance-Vie Unités de compte | F164: =(F161-F162)*'Hypothèses exogènes'!C3 -> 6640.844859

Sheet Bilan 2029
C2: Bilan Actif Passif | E2: Date: | F2: =H2 -> 2029-01-01 | H2: =DATE(2029,1,1) -> 2029-01-01 | K2: =YEAR(H2) -> 2029 | L2: =K2-2020 -> 9
A4: Actif | F4: Passif
A5: Actif liquide
A6: Compte(s) courant(s) | F6: Fonds propres
B7: Compte(s) courant(s) | D7: ='Bilan 2028'!D120 -> 1000 | F7: Fonds propres liquide | I7: =D25-SUM(I16:I26) -> 28245.40649
C8: Total compte(s) courant(s) | D8: =D7 -> 1000 | F8: Fonds propres semi-liquide | I8: =D31 -> 438175.5669 | T8: Titres financiers augmentent de 10%
A9: Epargnes classiques | F9: Fonds propres non-liquide | I9: =D35 -> 1031.339209
B10: Livret A | D10: ='Bilan 2028'!D123 -> 1075.670522 | F10: Total Fonds propres | I10: =SUM(I7:I9) -> 467452.3126
B11: PEL | D11: ='Bilan 2028'!D124 -> 367.8600496 | T11: Assurance vie de 1,5
B12: CEL | D12: ='Bilan 2028'!D125 -> 584.4102827
B13: LDD | D13: ='Bilan 2028'!D126 -> 478.8804736 | T13: Plan retraite de 1%
B14: Assurance vie Fonds euros | D14: ='Bilan 2028'!D127 -> 52694.82322
B15: Assurance vie Unités de compte | D15: ='Bilan 2028'!D128 -> 53736.39382
C16: Total épargnes classiques | D16: =SUM(D10:D15) -> 108938.0384 | F16: Capital restant dû crédit résidence principale | I16: =VLOOKUP(F2,Tableau1[#All],2,1) -> 81515.43805
A17: Actifs financiers
B18: PEA | D18: ='Bilan 2028'!D131 -> 4948.518966
B19: Compte-titres | D19: ='Bilan 2028'!D132 -> 7496.770554 | F19: Capital restant dû crédit investissement immo locatif | I19: =VLOOKUP(F2,Tableau17[#All],2,1) -> 19990.88788
C20: Total actifs financiers | D20: =SUM(D18,D19) -> 12445.28952
A21: Epargnes salariales | F21: Capital restant dû autres prêts / dettes… | I21: =Profil_Investisseur!F100 -> 0
B22: PEE | D22: ='Bilan 2028'!D135 -> 7368.404536
C23: Total épargnes salariales | D23: =D22 -> 7368.404536
C25: Total Actif liquide | D25: =SUM(D8,D16,D20,D23) -> 129751.7324 | F25: Dettes fiscales | I25: =Profil_Investisseur!F96 -> 0
A26: Actif non-liquide
A27: Biens
B28: Résidence principale (valeur marchande) | D28: ='Bilan 2028'!D141 -> 220716.0298
B29: Investissement immobilier (valeur marchande) | D29: ='Bilan 2028'!D142 -> 208454.0281
B30: Autres propriétés (valeur) | D30: ='Bilan 2028'!D143 -> 9005.508984
C31: Total biens | D31: =SUM(D28,D29,D30) -> 438175.5669
A32: Retraites
B33: Plan Retraites (PERP) | D33: ='Bilan 2028'!D146 -> 259.6785024
B34: PERCO | D34: ='Bilan 2028'!D147 -> 771.6607068
C35: Total Retraites | D35: =SUM(D33,D34) -> 1031.339209
C37: Total Actif non-liquide | D37: =SUM(D31,D35) -> 439206.9061
F39: Total Passif | I39: =SUM(I10:I25) -> 568958.6385
A41: Total Actifs | D41: =SUM(D37+D25) -> 568958.6385
B46: Compte de Résultat
B48: RESSOURCES | D48: =F2 -> 2029-01-01 | E48: =F115 -> 2030-01-01
C49: Salaire | D49: ='Bilan 2020'!D49*((1+'Hypothèses exogènes'!E10/100)^$L$2) -> 52190.92735
C50: Rentes immobilières | D50: ='Bilan 2020'!D50*((1+'Hypothèses exogènes'!E11/100)^$L$2) -> 10897.58971
C51: Prime d'intéressement et de participation | D51: ='Bilan 2020'!D51*((1+'Hypothèses exogènes'!E12/100)^$L$2) -> 600
C52: Don(s) / Bourse(s) / Aide(s) / Allocation(s) / Pension(s) | D52: ='Bilan 2020'!D52*((1+'Hypothèses exogènes'!E13/100)^$L$2) -> 0
C53: Plus-value PEA | D53: =D18*('Hypothèses exogènes'!D14/100+((1+'Hypothèses exogènes'!E14/100)^$L$2-1)) -> 258.9375803
C54: Plus-value des comptes-titres | D54: =D19*('Hypothèses exogènes'!D15/100+((1+'Hypothèses exogènes'!E15/100)^$L$2-1)) -> 729.6327768
C55: Plus-value des autres propiétés | D55: =D30*('Hypothèses exogènes'!D16/100+((1+'Hypothèses exogènes'!E16/100)^$L$2-1)) -> 329.4342019
C56: Plus-value du PEE | D56: =D22*('Hypothèses exogènes'!D17/100+((1+'Hypothèses exogènes'!E17/100)^$L$2-1)) -> 311.8771405
C57: Plus-value du PERCO | D57: =D34*('Hypothèses exogènes'!D18/100+((1+'Hypothèses exogènes'!E18/100)^$L$2-1)) -> 32.66152578
C58: Plus-value de Livret A | D58: =D10*('Hypothèses exogènes'!D19/100+((1+'Hypothèses exogènes'!E19/100)^$L$2-1)) -> 8.067528917
C59: Plus-value du PEL | D59: =D11*('Hypothèses exogènes'!D20/100+((1+'Hypothèses exogènes'!E20/100)^$L$2-1)) -> 13.73084656
C60: Plus-value du CEL | D60: =D12*('Hypothèses exogènes'!D21/100+((1+'Hypothèses exogènes'!E21/100)^$L$2-1)) -> 18.8918094
C61: Plus-value du LDD | D61: =D13*('Hypothèses exogènes'!D22/100+((1+'Hypothèses exogènes'!E22/100)^$L$2-1)) -> 16.67762462
C62: Plus-value de l'assurance-vie Fonds€ | D62: =D14*('Hypothèses exogènes'!D23/100+((1+'Hypothèses exogènes'!E23/100)^$L$2-1)) -> 2493.849865
C63: Plus-value de l'assurance-vie UC | D63: =D15*('Hypothèses exogènes'!D24/100+((1+'Hypothèses exogènes'!E24/100)^$L$2-1)) -> 4961.281247
C64: Plus-value du plan retraites PERP | D64: =D33*('Hypothèses exogènes'!D25/100+((1+'Hypothèses exogènes'!E25/100)^$L$2-1)) -> 11.25090305
C65: Plus-value résidence principale | D65: =D28*('Hypothèses exogènes'!D26/100+((1+'Hypothèses exogènes'!E26/100)^$L$2-1)) -> 8238.507938
C66: Plus-value du bien investissement locatif | D66: =D29*('Hypothèses exogènes'!D27/100+((1+'Hypothèses exogènes'!E27/100)^$L$2-1)) -> 7780.813053
C67: Autres revenus | D67: =Profil_Investisseur!B59*12 -> 0
B68: Total des ressources | D68: =SUM(D49:D67) -> 88894.1311
D70: [42]
B71: CHARGES
C72: Assurance habitation | D72: =(Profil_Investisseur!I109+Profil_Investisseur!E123) -> 620
C73: Autre(s) assurance(s) | D73: =Profil_Investisseur!B127 -> 600
B74: Total assurances | D74: =D72+D73 -> 1220
C75: Intérêts crédit A (résidence principale) | D75: =VLOOKUP(F115,Tableau18[[#All],[Date du versement]:[Intérêts crédit A cumulés]],2,1)-VLOOKUP(F2,Tableau18[[#All],[Date du versement]:[Intérêts crédit A cumulés]],2,1) -> 1318.069316
C76: Ammortissement crédit A (résidence principale) | D76: =VLOOKUP(F115,Tableau18[#All],3,1)-VLOOKUP(F2,Tableau18[#All],3,1) -> 8714.618489
C77: Intérêts crédit B (Investissement locatif) | D77: =VLOOKUP(F115,Tableau19[[#All],[Date du versement]:[Intérêts crédit B cumulés]],2,1)-VLOOKUP(F2,Tableau19[[#All],[Date du versement]:[Intérêts crédit B cumulés]],2,1) -> 221.9808152
C78: Amortissement crédit B (investissement locatif) | D78: =VLOOKUP(F115,Tableau19[#All],3,1)-VLOOKUP(F2,Tableau19[#All],3,1) -> 11359.109
C79: Intérêts autres dettes | D79: =0 -> 0
C80: Ammortissement autres dettes | D80: =0 -> 0
B81: Total des remboursements | D81: =SUM(D75:D80) -> 21613.77762
C82: Loyer + charges | D82: =Profil_Investisseur!B134*12 -> 0
C83: Transport, Alimentation, Pension Alimentaire,Loisirs | D83: =Profil_Investisseur!F63*12 -> 11728
C84: Charges totales (propriétaire investissement locatif) | D84: =Profil_Investisseur!D123*12 -> 600
C85: Charges totales (propriétaire principal) | D85: =Profil_Investisseur!D114*12 -> 600
B86: Total dépenses personnelles | D86: =SUM(D82:D85) -> 12928
C87: Impôts sur le revenu | D87: ='Impôts revenus'!E16 -> 3983.715765
C88: Impôts sur le foncier | D88: ='Impôts revenus'!F16 -> 3097.8048
C89: Taxe d'habitation | D89: =Profil_Investisseur!J109+Profil_Investisseur!B135*12 -> 881
C90: Fiscalité sur la plus-value du PEA | D90: =D53*('Hypothèses exogènes'!D43/100+((1+'Hypothèses exogènes'!E43/100)^$L$2-1)) -> 51.61306418
C91: Fiscalité sur la plus-value des comptes-titres | D91: =D54*('Hypothèses exogènes'!D44/100+((1+'Hypothèses exogènes'!E44/100)^$L$2-1)) -> 238.8279813
C92: Fiscalité sur la plus-value des autres propiétés | D92: =D55*('Hypothèses exogènes'!D45/100+((1+'Hypothèses exogènes'!E45/100)^$L$2-1)) -> 65.66489338
C93: Fiscalité sur la plus-value du PEE | D93: =D56*('Hypothèses exogènes'!D46/100+((1+'Hypothèses exogènes'!E46/100)^$L$2-1)) -> 62.16530969
C94: Fiscalité sur la plus-value du PERCO | D94: =D57*('Hypothèses exogènes'!D47/100+((1+'Hypothèses exogènes'!E47/100)^$L$2-1)) -> 6.510300376
C95: Fiscalité sur la plus-value de Livret A | D95: =D58*('Hypothèses exogènes'!D48/100+((1+'Hypothèses exogènes'!E48/100)^$L$2-1)) -> 0
C96: Fiscalité sur la plus-value du PEL | D96: =D59*('Hypothèses exogènes'!D49/100+((1+'Hypothèses exogènes'!E49/100)^$L$2-1)) -> 4.494466903
C97: Fiscalité sur la plus-value du CEL | D97: =D60*('Hypothèses exogènes'!D50/100+((1+'Hypothèses exogènes'!E50/100)^$L$2-1)) -> 3.765634057
C98: Fiscalité sur la plus-value du LDD | D98: =D61*('Hypothèses exogènes'!D51/100+((1+'Hypothèses exogènes'!E51/100)^$L$2-1)) -> 0.4557374106
C99: Fiscalité sur la plus-value de l'assurance-vie Fonds€ | D99: =D62*('Hypothèses exogènes'!D52/100+((1+'Hypothèses exogènes'!E52/100)^$L$2-1)) -> 497.0898122
C100: Fiscalité sur la plus-value de l'assurance-vie UC | D100: =D63*('Hypothèses exogènes'!D53/100+((1+'Hypothèses exogènes'!E53/100)^$L$2-1)) -> 988.9137262
C101: Fiscalité sur la plus-value du plan retraites PERP | D101: =D64*('Hypothèses exogènes'!D54/100+((1+'Hypothèses exogènes'!E54/100)^$L$2-1)) -> 2.242600632
C102: Fiscalité sur la plus-value de la résidence principale | D102: =D65*('Hypothèses exogènes'!D55/100+((1+'Hypothèses exogènes'!E55/100)^$L$2-1)) -> 0
C103: Fiscalité sur la plus-value du bien investissement locatif | D103: =D66*('Hypothèses exogènes'!D56/100+((1+'Hypothèses exogènes'!E56/100)^$L$2-1)) -> 0
B104: Total fiscalité | D104: =SUM(D87:D103) -> 9884.264091
C105: Dépenses exceptionnelles | D105: =D49*'Hypothèses exogènes'!D57/100 -> 3131.455641 | G105: Pour vérifier
B106: Total des charges | D106: =SUM(D74,D81,D86,D104,D105) -> 48777.49735 | G106: Somme ammortissements + résultat net | I106: =D76+D78+D80+D108 -> 60190.36124
B108: Résultat Net Comptable | D108: =D68-D106 -> 40116.63375 | G108: Différence fonds propres | I108: =I123-I10 -> 60190.36124
G110: Différence Actifs | I110: =D154-D41 -> 40116.63375
C115: Bilan Actif Passif | E115: Date: | F115: =H115 -> 2030-01-01 | H115: =EDATE(F2,12) -> 2030-01-01
A117: Actif | F117: Passif
A118: Actif liquide
A119: Compte(s) courant(s) | F119: Fonds propres
B120: Compte(s) courant(s) | D120: =F162 -> 1000 | F120: Fonds propres liquide | I120: =D138-SUM(I126:I134) -> 72043.10011
C121: Total compte(s) courant(s) | D121: =D120 -> 1000 | F121: Fonds propres semi-liquide | I121: =D144 -> 454524.322
A122: Epargnes classiques | F122: Fonds propres non-liquide | I122: =D148 -> 1075.251638
B123: Livret A | D123: =D10+D58 -> 1083.738051 | F123: Total Fonds propres | I123: =SUM(I120:I122) -> 527642.6738
B124: PEL | D124: =D11+D59 -> 381.5908962
B125: CEL | D125: =D12+D60 -> 603.3020921
B126: LDD | D126: =D13+D61 -> 495.5580982 | F126: Capital restant dû crédit résidence principale | I126: =I16-D76 -> 72800.81956
B127: Assurance vie Fonds euros | D127: =D14+D62+F163 -> 62344.18294
B128: Assurance vie Unités de compte | D128: =D15+D63+F164 -> 65853.18492
C129: Total épargnes classiques | D129: =SUM(D123:D128) -> 130761.557
A130: Actifs financiers | F130: Capital restant dû crédit investissement immo locatif | I130: =I19-D78 -> 8631.778884
B131: PEA | D131: =D18+D53 -> 5207.456547
B132: Compte-titres | D132: =D19+D54 -> 8226.403331 | F132: Capital restant dû autres prêts / dettes… | I132: =0 -> 0
C133: Total actifs financiers | D133: =SUM(D131,D132) -> 13433.85988
A134: Epargnes salariales | F134: Dettes fiscales | I134: =Profil_Investisseur!F173 -> 0
B135: PEE | D135: =D22+D56+D51 -> 8280.281676 | F135: Résultat net comptable | I135: =D108 -> 40116.63375
C136: Total épargnes salariales | D136: =D135 -> 8280.281676
C138: Total Actif liquide | D138: =SUM(D121,D129,D133,D136) -> 153475.6986
A139: Actif non-liquide
A140: Biens
B141: Résidence principale (valeur marchande) | D141: =D28+D65 -> 228954.5377
B142: Investissement immobilier (valeur marchande) | D142: =D29+D66 -> 216234.8412
B143: Autres propriétés (valeur) | D143: =D30+D55 -> 9334.943186
C144: Total biens | D144: =SUM(D141,D142,D143) -> 454524.322
A145: Retraites
B146: Plan Retraites (PERP) | D146: =D33+D64 -> 270.9294055 | F146: Total Passif | I146: =SUM(I123:I134) -> 609075.2722
B147: PERCO | D147: =D34+D57 -> 804.3222326
C148: Total Retraites | D148: =SUM(D146,D147) -> 1075.251638
C150: Total Actif non-liquide | D150: =SUM(D144,D148) -> 455599.5737
A154: Total Actifs | D154: =SUM(D150+D138) -> 609075.2722
E161: "compte courant intermédiaire" | F161: =D7+D49+D50+D52+D67-D106 -> 15311.01971
E162: compte-courant final | F162: =MIN(1000,F161) -> 1000
E163: Va dans Assurance-Vie Fonds euros | F163: =(F161-F162)*(1-'Hypothèses exogènes'!C3) -> 7155.509856
E164: Va dans Assurance-Vie Unités de compte | F164: =(F161-F162)*'Hypothèses exogènes'!C3 -> 7155.509856

Sheet Bilan 2030
C2: Bilan Actif Passif | E2: Date: | F2: =H2 -> 2030-01-01 | H2: =DATE(2030,1,1) -> 2030-01-01 | K2: =YEAR(H2) -> 2030 | L2: =K2-2020 -> 10
A4: Actif | F4: Passif
A5: Actif liquide
A6: Compte(s) courant(s) | F6: Fonds propres
B7: Compte(s) courant(s) | D7: ='Bilan 2029'!D120 -> 1000 | F7: Fonds propres liquide | I7: =D25-SUM(I16:I26) -> 72043.10011
C8: Total compte(s) courant(s) | D8: =D7 -> 1000 | F8: Fonds propres semi-liquide | I8: =D31 -> 454524.322 | T8: Titres financiers augmentent de 10%
A9: Epargnes classiques | F9: Fonds propres non-liquide | I9: =D35 -> 1075.251638
B10: Livret A | D10: ='Bilan 2029'!D123 -> 1083.738051 | F10: Total Fonds propres | I10: =SUM(I7:I9) -> 527642.6738
B11: PEL | D11: ='Bilan 2029'!D124 -> 381.5908962 | T11: Assurance vie de 1,5
B12: CEL | D12: ='Bilan 2029'!D125 -> 603.3020921
B13: LDD | D13: ='Bilan 2029'!D126 -> 495.5580982 | T13: Plan retraite de 1%
B14: Assurance vie Fonds euros | D14: ='Bilan 2029'!D127 -> 62344.18294
B15: Assurance vie Unités de compte | D15: ='Bilan 2029'!D128 -> 65853.18492
C16: Total épargnes classiques | D16: =SUM(D10:D15) -> 130761.557 | F16: Capital restant dû crédit résidence principale | I16: =VLOOKUP(F2,Tableau1[#All],2,1) -> 72800.81956
A17: Actifs financiers
B18: PEA | D18: ='Bilan 2029'!D131 -> 5207.456547
B19: Compte-titres | D19: ='Bilan 2029'!D132 -> 8226.403331 | F19: Capital restant dû crédit investissement immo locatif | I19: =VLOOKUP(F2,Tableau17[#All],2,1) -> 8631.778884
C20: Total actifs financiers | D20: =SUM(D18,D19) -> 13433.85988
A21: Epargnes salariales | F21: Capital restant dû autres prêts / dettes… | I21: =Profil_Investisseur!F100 -> 0
B22: PEE | D22: ='Bilan 2029'!D135 -> 8280.281676
C23: Total épargnes salariales | D23: =D22 -> 8280.281676
C25: Total Actif liquide | D25: =SUM(D8,D16,D20,D23) -> 153475.6986 | F25: Dettes fiscales | I25: =Profil_Investisseur!F96 -> 0
A26: Actif non-liquide
A27: Biens
B28: Résidence principale (valeur marchande) | D28: ='Bilan 2029'!D141 -> 228954.5377
B29: Investissement immobilier (valeur marchande) | D29: ='Bilan 2029'!D142 -> 216234.8412
B30: Autres propriétés (valeur) | D30: ='Bilan 2029'!D143 -> 9334.943186
C31: Total biens | D31: =SUM(D28,D29,D30) -> 454524.322
A32: Retraites
B33: Plan Retraites (PERP) | D33: ='Bilan 2029'!D146 -> 270.9294055
B34: PERCO | D34: ='Bilan 2029'!D147 -> 804.3222326
C35: Total Retraites | D35: =SUM(D33,D34) -> 1075.251638
C37: Total Actif non-liquide | D37: =SUM(D31,D35) -> 455599.5737
F39: Total Passif | I39: =SUM(I10:I25) -> 609075.2722
A41: Total Actifs | D41: =SUM(D37+D25) -> 609075.2722
B46: Compte de Résultat
B48: RESSOURCES | D48: =F2 -> 2030-01-01 | E48: =F115 -> 2031-01-01
C49: Salaire | D49: ='Bilan 2020'!D49*((1+'Hypothèses exogènes'!E10/100)^$L$2) -> 53756.65517
C50: Rentes immobilières | D50: ='Bilan 2020'!D50*((1+'Hypothèses exogènes'!E11/100)^$L$2) -> 10908.4873
C51: Prime d'intéressement et de participation | D51: ='Bilan 2020'!D51*((1+'Hypothèses exogènes'!E12/100)^$L$2) -> 600
C52: Don(s) / Bourse(s) / Aide(s) / Allocation(s) / Pension(s) | D52: ='Bilan 2020'!D52*((1+'Hypothèses exogènes'!E13/100)^$L$2) -> 0
C53: Plus-value PEA | D53: =D18*('Hypothèses exogènes'!D14/100+((1+'Hypothèses exogènes'!E14/100)^$L$2-1)) -> 288.536091
C54: Plus-value des comptes-titres | D54: =D19*('Hypothèses exogènes'!D15/100+((1+'Hypothèses exogènes'!E15/100)^$L$2-1)) -> 825.9988205
C55: Plus-value des autres propiétés | D55: =D30*('Hypothèses exogènes'!D16/100+((1+'Hypothèses exogènes'!E16/100)^$L$2-1)) -> 380.1910832
C56: Plus-value du PEE | D56: =D22*('Hypothèses exogènes'!D17/100+((1+'Hypothèses exogènes'!E17/100)^$L$2-1)) -> 375.993159
C57: Plus-value du PERCO | D57: =D34*('Hypothèses exogènes'!D18/100+((1+'Hypothèses exogènes'!E18/100)^$L$2-1)) -> 36.52287071
C58: Plus-value de Livret A | D58: =D10*('Hypothèses exogènes'!D19/100+((1+'Hypothèses exogènes'!E19/100)^$L$2-1)) -> 8.128035384
C59: Plus-value du PEL | D59: =D11*('Hypothèses exogènes'!D20/100+((1+'Hypothèses exogènes'!E20/100)^$L$2-1)) -> 15.41942303
C60: Plus-value du CEL | D60: =D12*('Hypothèses exogènes'!D21/100+((1+'Hypothèses exogènes'!E21/100)^$L$2-1)) -> 21.36187557
C61: Plus-value du LDD | D61: =D13*('Hypothèses exogènes'!D22/100+((1+'Hypothèses exogènes'!E22/100)^$L$2-1)) -> 18.78574378
C62: Plus-value de l'assurance-vie Fonds€ | D62: =D14*('Hypothèses exogènes'!D23/100+((1+'Hypothèses exogènes'!E23/100)^$L$2-1)) -> 3142.661601
C63: Plus-value de l'assurance-vie UC | D63: =D15*('Hypothèses exogènes'!D24/100+((1+'Hypothèses exogènes'!E24/100)^$L$2-1)) -> 6282.937596
C64: Plus-value du plan retraites PERP | D64: =D33*('Hypothèses exogènes'!D25/100+((1+'Hypothèses exogènes'!E25/100)^$L$2-1)) -> 12.5733615
C65: Plus-value résidence principale | D65: =D28*('Hypothèses exogènes'!D26/100+((1+'Hypothèses exogènes'!E26/100)^$L$2-1)) -> 9251.653817
C66: Plus-value du bien investissement locatif | D66: =D29*('Hypothèses exogènes'!D27/100+((1+'Hypothèses exogènes'!E27/100)^$L$2-1)) -> 8737.673049
C67: Autres revenus | D67: =Profil_Investisseur!B59*12 -> 0
B68: Total des ressources | D68: =SUM(D49:D67) -> 94663.579
D70: [42]
B71: CHARGES
C72: Assurance habitation | D72: =(Profil_Investisseur!I109+Profil_Investisseur!E123) -> 620
C73: Autre(s) assurance(s) | D73: =Profil_Investisseur!B127 -> 600
B74: Total assurances | D74: =D72+D73 -> 1220
C75: Intérêts crédit A (résidence principale) | D75: =VLOOKUP(F115,Tableau18[[#All],[Date du versement]:[Intérêts crédit A cumulés]],2,1)-VLOOKUP(F2,Tableau18[[#All],[Date du versement]:[Intérêts crédit A cumulés]],2,1) -> 1168.761009
C76: Ammortissement crédit A (résidence principale) | D76: =VLOOKUP(F115,Tableau18[#All],3,1)-VLOOKUP(F2,Tableau18[#All],3,1) -> 8863.926795
C77: Intérêts crédit B (Investissement locatif) | D77: =VLOOKUP(F115,Tableau19[[#All],[Date du versement]:[Intérêts crédit B cumulés]],2,1)-VLOOKUP(F2,Tableau19[[#All],[Date du versement]:[Intérêts crédit B cumulés]],2,1) -> 54.03847605
C78: Amortissement crédit B (investissement locatif) | D78: =VLOOKUP(F115,Tableau19[#All],3,1)-VLOOKUP(F2,Tableau19[#All],3,1) -> 8631.778884
C79: Intérêts autres dettes | D79: =0 -> 0
C80: Ammortissement autres dettes | D80: =0 -> 0
B81: Total des remboursements | D81: =SUM(D75:D80) -> 18718.50516
C82: Loyer + charges | D82: =Profil_Investisseur!B134*12 -> 0
C83: Transport, Alimentation, Pension Alimentaire,Loisirs | D83: =Profil_Investisseur!F63*12 -> 11728
C84: Charges totales (propriétaire investissement locatif) | D84: =Profil_Investisseur!D123*12 -> 600
C85: Charges totales (propriétaire principal) | D85: =Profil_Investisseur!D114*12 -> 600
B86: Total dépenses personnelles | D86: =SUM(D82:D85) -> 12928
C87: Impôts sur le revenu | D87: ='Impôts revenus'!E17 -> 4009.126041
C88: Impôts sur le foncier | D88: ='Impôts revenus'!F17 -> 3076.859797
C89: Taxe d'habitation | D89: =Profil_Investisseur!J109+Profil_Investisseur!B135*12 -> 881
C90: Fiscalité sur la plus-value du PEA | D90: =D53*('Hypothèses exogènes'!D43/100+((1+'Hypothèses exogènes'!E43/100)^$L$2-1)) -> 58.40208729
C91: Fiscalité sur la plus-value des comptes-titres | D91: =D54*('Hypothèses exogènes'!D44/100+((1+'Hypothèses exogènes'!E44/100)^$L$2-1)) -> 272.9168306
C92: Fiscalité sur la plus-value des autres propiétés | D92: =D55*('Hypothèses exogènes'!D45/100+((1+'Hypothèses exogènes'!E45/100)^$L$2-1)) -> 76.95381449
C93: Fiscalité sur la plus-value du PEE | D93: =D56*('Hypothèses exogènes'!D46/100+((1+'Hypothèses exogènes'!E46/100)^$L$2-1)) -> 76.10411998
C94: Fiscalité sur la plus-value du PERCO | D94: =D57*('Hypothèses exogènes'!D47/100+((1+'Hypothèses exogènes'!E47/100)^$L$2-1)) -> 7.392530603
C95: Fiscalité sur la plus-value de Livret A | D95: =D58*('Hypothèses exogènes'!D48/100+((1+'Hypothèses exogènes'!E48/100)^$L$2-1)) -> 0
C96: Fiscalité sur la plus-value du PEL | D96: =D59*('Hypothèses exogènes'!D49/100+((1+'Hypothèses exogènes'!E49/100)^$L$2-1)) -> 5.094704688
C97: Fiscalité sur la plus-value du CEL | D97: =D60*('Hypothèses exogènes'!D50/100+((1+'Hypothèses exogènes'!E50/100)^$L$2-1)) -> 4.323820002
C98: Fiscalité sur la plus-value du LDD | D98: =D61*('Hypothèses exogènes'!D51/100+((1+'Hypothèses exogènes'!E51/100)^$L$2-1)) -> 0.5712417262
C99: Fiscalité sur la plus-value de l'assurance-vie Fonds€ | D99: =D62*('Hypothèses exogènes'!D52/100+((1+'Hypothèses exogènes'!E52/100)^$L$2-1)) -> 636.1006572
C100: Fiscalité sur la plus-value de l'assurance-vie UC | D100: =D63*('Hypothèses exogènes'!D53/100+((1+'Hypothèses exogènes'!E53/100)^$L$2-1)) -> 1271.718448
C101: Fiscalité sur la plus-value du plan retraites PERP | D101: =D64*('Hypothèses exogènes'!D54/100+((1+'Hypothèses exogènes'!E54/100)^$L$2-1)) -> 2.544952186
C102: Fiscalité sur la plus-value de la résidence principale | D102: =D65*('Hypothèses exogènes'!D55/100+((1+'Hypothèses exogènes'!E55/100)^$L$2-1)) -> 0
C103: Fiscalité sur la plus-value du bien investissement locatif | D103: =D66*('Hypothèses exogènes'!D56/100+((1+'Hypothèses exogènes'!E56/100)^$L$2-1)) -> 0
B104: Total fiscalité | D104: =SUM(D87:D103) -> 10379.10904
C105: Dépenses exceptionnelles | D105: =D49*'Hypothèses exogènes'!D57/100 -> 3225.39931 | G105: Pour vérifier
B106: Total des charges | D106: =SUM(D74,D81,D86,D104,D105) -> 46471.01352 | G106: Somme ammortissements + résultat net | I106: =D76+D78+D80+D108 -> 65688.27116
B108: Résultat Net Comptable | D108: =D68-D106 -> 48192.56548 | G108: Différence fonds propres | I108: =I123-I10 -> 65688.27116
G110: Différence Actifs | I110: =D154-D41 -> 48192.56548
C115: Bilan Actif Passif | E115: Date: | F115: =H115 -> 2031-01-01 | H115: =EDATE(F2,12) -> 2031-01-01
A117: Actif | F117: Passif
A118: Actif liquide
A119: Compte(s) courant(s) | F119: Fonds propres
B120: Compte(s) courant(s) | D120: =F162 -> 1000 | F120: Fonds propres liquide | I120: =D138-SUM(I126:I134) -> 119312.7571
C121: Total compte(s) courant(s) | D121: =D120 -> 1000 | F121: Fonds propres semi-liquide | I121: =D144 -> 472893.84
A122: Epargnes classiques | F122: Fonds propres non-liquide | I122: =D148 -> 1124.34787
B123: Livret A | D123: =D10+D58 -> 1091.866087 | F123: Total Fonds propres | I123: =SUM(I120:I122) -> 593330.945
B124: PEL | D124: =D11+D59 -> 397.0103192
B125: CEL | D125: =D12+D60 -> 624.6639677
B126: LDD | D126: =D13+D61 -> 514.343842 | F126: Capital restant dû crédit résidence principale | I126: =I16-D76 -> 63936.89277
B127: Assurance vie Fonds euros | D127: =D14+D62+F163 -> 74583.90902
B128: Assurance vie Unités de compte | D128: =D15+D63+F164 -> 81233.18699
C129: Total épargnes classiques | D129: =SUM(D123:D128) -> 158444.9802
A130: Actifs financiers | F130: Capital restant dû crédit investissement immo locatif | I130: =I19-D78 -> 1.382431947e-10
B131: PEA | D131: =D18+D53 -> 5495.992638
B132: Compte-titres | D132: =D19+D54 -> 9052.402152 | F132: Capital restant dû autres prêts / dettes… | I132: =0 -> 0
C133: Total actifs financiers | D133: =SUM(D131,D132) -> 14548.39479
A134: Epargnes salariales | F134: Dettes fiscales | I134: =Profil_Investisseur!F173 -> 0
B135: PEE | D135: =D22+D56+D51 -> 9256.274835 | F135: Résultat net comptable | I135: =D108 -> 48192.56548
C136: Total épargnes salariales | D136: =D135 -> 9256.274835
C138: Total Actif liquide | D138: =SUM(D121,D129,D133,D136) -> 183249.6499
A139: Actif non-liquide
A140: Biens
B141: Résidence principale (valeur marchande) | D141: =D28+D65 -> 238206.1915
B142: Investissement immobilier (valeur marchande) | D142: =D29+D66 -> 224972.5142
B143: Autres propriétés (valeur) | D143: =D30+D55 -> 9715.134269
C144: Total biens | D144: =SUM(D141,D142,D143) -> 472893.84
A145: Retraites
B146: Plan Retraites (PERP) | D146: =D33+D64 -> 283.502767 | F146: Total Passif | I146: =SUM(I123:I134) -> 657267.8377
B147: PERCO | D147: =D34+D57 -> 840.8451033
C148: Total Retraites | D148: =SUM(D146,D147) -> 1124.34787
C150: Total Actif non-liquide | D150: =SUM(D144,D148) -> 474018.1879
A154: Total Actifs | D154: =SUM(D150+D138) -> 657267.8377
E161: "compte courant intermédiaire" | F161: =D7+D49+D50+D52+D67-D106 -> 19194.12895
E162: compte-courant final | F162: =MIN(1000,F161) -> 1000
E163: Va dans Assurance-Vie Fonds euros | F163: =(F161-F162)*(1-'Hypothèses exogènes'!C3) -> 9097.064477
E164: Va dans Assurance-Vie Unités de compte | F164: =(F161-F162)*'Hypothèses exogènes'!C3 -> 9097.064477

Sheet Graphiques
B2: Date | C2: Actifs | M2: Date | N2: Dettes | U2: Compte(s) courant(s) | V2: ='Bilan Fin 2019'!D7 -> 1000
B3: 2020 | C3: ='Bilan 2020'!D41 -> 379996.8781 | M3: 2020 | N3: =C3-C20 -> 268540.9019 | U3: Livret A | V3: ='Bilan Fin 2019'!D10 -> 1000
B4: 2021 | C4: ='Bilan 2021'!D41 -> 389535.6396 | M4: 2021 | N4: =C4-C21 -> 251136.348 | U4: PEL | V4: ='Bilan Fin 2019'!D11 -> 300
B5: 2022 | C5: ='Bilan 2022'!D41 -> 400776.7063 | M5: 2022 | N5: 233453.7444 | U5: CEL | V5: ='Bilan Fin 2019'!D12 -> 500
B6: 2023 | C6: ='Bilan 2023'!D41 -> 415238.8513 | M6: 2023 | N6: 215488.6316 | U6: LDD | V6: ='Bilan Fin 2019'!D13 -> 400
B7: 2024 | C7: ='Bilan 2024'!D41 -> 431479.761 | M7: 2024 | N7: 197236.4781 | U7: Assurance(s) vie(s) | V7: ='Bilan Fin 2019'!D14 -> 5000
B8: 2025 | C8: ='Bilan 2025'!D41 -> 451568.0796 | M8: 2025 | N8: 178692.6795 | U8: PEA | V8: ='Bilan Fin 2019'!D18 -> 3500
B9: 2026 | C9: ='Bilan 2026'!D41 -> 475196.7181 | M9: 2026 | N9: 159852.5573 | U9: Compte-titres | V9: ='Bilan Fin 2019'!D19 -> 3500
B10: 2027 | C10: ='Bilan 2027'!D41 -> 502414.2731 | M10: 2027 | N10: 140711.3575 | U10: PEE | V10: ='Bilan Fin 2019'!D22 -> 500
B11: 2028 | C11: ='Bilan 2028'!D41 -> 533545.0747 | M11: 2028 | N11: 121264.2499 | U11: Résidence principale (valeur marchande) | V11: ='Bilan Fin 2019'!D28 -> 180000
B12: 2029 | C12: ='Bilan 2029'!D41 -> 568958.6385 | M12: 2029 | N12: 101506.3259 | U12: Investissement immobilier (valeur marchande) | V12: ='Bilan Fin 2019'!D29 -> 170000
B13: 2030 | C13: ='Bilan 2030'!D41 -> 609075.2722 | M13: 2030 | N13: 81432.59844 | U13: Autres propriétés (valeur) | V13: ='Bilan Fin 2019'!D30 -> 7800
U14: Plan Retraites (PERP) | V14: ='Bilan Fin 2019'!D33 -> 200
U15: PERCO | V15: ='Bilan Fin 2019'!D34 -> 600
B19: Date | C19: Fonds Propres
B20: 2020 | C20: ='Bilan 2020'!I10 -> 111455.9763
B21: 2021 | C21: ='Bilan 2021'!I10 -> 138399.2916
B22: 2022 | C22: ='Bilan 2022'!I10 -> 167322.9618
B23: 2023 | C23: ='Bilan 2023'!I10 -> 199750.2197
B24: 2024 | C24: ='Bilan 2024'!I10 -> 234243.2829
B25: 2025 | C25: ='Bilan 2025'!I10 -> 272875.4001
B26: 2026 | C26: ='Bilan 2026'!I10 -> 315344.1608
B27: 2027 | C27: ='Bilan 2027'!I10 -> 361702.9156
B28: 2028 | C28: ='Bilan 2028'!I10 -> 412280.8248
B29: 2029 | C29: ='Bilan 2029'!I10 -> 467452.3126
B30: 2030 | C30: ='Bilan 2030'!I10 -> 527642.6738
U58: Compte(s) courant(s) | V58: ='Bilan 2030'!D7 -> 1000
U59: Livret A | V59: ='Bilan 2030'!D10 -> 1083.738051
U60: PEL | V60: ='Bilan 2030'!D11 -> 381.5908962
U61: CEL | V61: ='Bilan 2030'!D12 -> 603.3020921
U62: LDD | V62: ='Bilan 2030'!D13 -> 495.5580982
U63: Assurance(s) vie(s) | V63: ='Bilan 2030'!D14 -> 62344.18294
U64: PEA | V64: ='Bilan 2030'!D18 -> 5207.456547
U65: Compte-titres | V65: ='Bilan 2030'!D19 -> 8226.403331
U66: PEE | V66: ='Bilan 2030'!D22 -> 8280.281676
U67: Résidence principale (valeur marchande) | V67: ='Bilan 2030'!D28 -> 228954.5377
U68: Investissement immobilier (valeur marchande) | V68: ='Bilan 2030'!D29 -> 216234.8412
U69: Autres propriétés (valeur) | V69: ='Bilan 2030'!D30 -> 9334.943186
U70: Plan Retraites (PERP) | V70: ='Bilan 2030'!D33 -> 270.9294055
U71: PERCO | V71: ='Bilan 2030'!D34 -> 804.3222326

Sheet Graphiques Actifs
C5: Date | D5: Actifs liquides
C6: 2020 | D6: ='Bilan 2020'!D25 -> 18721.83265
C7: 2021 | D7: ='Bilan 2021'!D25 -> 24721.59473
C8: 2022 | D8: ='Bilan 2022'!D25 -> 31285.96502
C9: 2023 | D9: ='Bilan 2023'!D25 -> 39891.13479
C10: 2024 | D10: ='Bilan 2024'!D25 -> 49040.89884
C11: 2025 | D11: ='Bilan 2025'!D25 -> 60737.87187
C12: 2026 | D12: ='Bilan 2026'!D25 -> 74595.77094
C13: 2027 | D13: ='Bilan 2027'!D25 -> 90569.58676
C14: 2028 | D14: ='Bilan 2028'!D25 -> 108874.1354
C15: 2029 | D15: ='Bilan 2029'!D25 -> 129751.7324
C16: 2030 | D16: ='Bilan 2030'!D25 -> 153475.6986
C25: Date | D25: Actifs semi-liquides
C26: 2020 | D26: ='Bilan 2020'!D31 -> 360465.7534
C27: 2021 | D27: ='Bilan 2021'!D31 -> 363992.411
C28: 2022 | D28: ='Bilan 2022'!D31 -> 368654.1123
C29: 2023 | D29: ='Bilan 2023'!D31 -> 374493.3012
C30: 2024 | D30: ='Bilan 2024'!D31 -> 381563.7036
C31: 2025 | D31: ='Bilan 2025'!D31 -> 389931.153
C32: 2026 | D32: ='Bilan 2026'!D31 -> 399674.6139
C33: 2027 | D33: ='Bilan 2027'!D31 -> 410887.4259
C34: 2028 | D34: ='Bilan 2028'!D31 -> 423678.7949
C35: 2029 | D35: ='Bilan 2029'!D31 -> 438175.5669
C36: 2030 | D36: ='Bilan 2030'!D31 -> 454524.322
C47: Date | D47: Actifs non-liquides
C48: 2020 | D48: ='Bilan 2020'!$D$35 -> 809.2920548
C49: 2021 | D49: ='Bilan 2021'!$D$35 -> 821.6338729
C50: 2022 | D50: ='Bilan 2022'!$D$35 -> 836.6289588
C51: 2023 | D51: ='Bilan 2023'!$D$35 -> 854.4152807
C52: 2024 | D52: ='Bilan 2024'!$D$35 -> 875.1585366
C53: 2025 | D53: ='Bilan 2025'!$D$35 -> 899.0547278
C54: 2026 | D54: ='Bilan 2026'!$D$35 -> 926.3332447
C55: 2027 | D55: ='Bilan 2027'!$D$35 -> 957.2605328
C56: 2028 | D56: ='Bilan 2028'!$D$35 -> 992.1444207
C57: 2029 | D57: ='Bilan 2029'!$D$35 -> 1031.339209
C58: 2030 | D58: ='Bilan 2030'!$D$35 -> 1075.251638

Sheet Graphique Fonds propres
I3: Graphique des actifs, passifs et fonds propres sur le même graphe
I5: Date | J5: Actifs | K5: Dettes | L5: Fonds propres | M5: Fonds propres liquides | Q5: Si les fonds propres liquides sont inférieurs à l'objectif, on ajoute 1 au nombre d'années nécessaires pour atteindre l'objectif
I6: 2020-01-01 | J6: ='Bilan 2020'!D41 -> 379996.8781 | K6: ='Bilan 2020'!I39-'Bilan 2020'!I10 -> 268540.9019 | L6: ='Bilan 2020'!I10 -> 111455.9763 | M6: ='Bilan 2020'!$I$7 -> -249819.0692 | Q6: =IF(M6>Profil_Investisseur!$D$14,0,1) -> 1
I7: 2021-01-01 | J7: ='Bilan 2021'!D41 -> 389535.6396 | K7: ='Bilan 2021'!I39-'Bilan 2021'!I10 -> 251136.348 | L7: ='Bilan 2021'!I10 -> 138399.2916 | M7: ='Bilan 2021'!$I$7 -> -226414.7533 | Q7: =IF(M7>Profil_Investisseur!$D$14,0,1) -> 1
I8: 2022-01-01 | J8: ='Bilan 2022'!D41 -> 400776.7063 | K8: ='Bilan 2022'!I39-'Bilan 2022'!I10 -> 233453.7444 | L8: ='Bilan 2022'!I10 -> 167322.9618 | M8: ='Bilan 2022'!$I$7 -> -202167.7794 | Q8: =IF(M8>Profil_Investisseur!$D$14,0,1) -> 1
I9: 2023-01-01 | J9: ='Bilan 2023'!D41 -> 415238.8513 | K9: ='Bilan 2023'!I39-'Bilan 2023'!I10 -> 215488.6316 | L9: ='Bilan 2023'!I10 -> 199750.2197 | M9: ='Bilan 2023'!$I$7 -> -175597.4968 | Q9: =IF(M9>Profil_Investisseur!$D$14,0,1) -> 1
I10: 2024-01-01 | J10: ='Bilan 2024'!D41 -> 431479.761 | K10: ='Bilan 2024'!I39-'Bilan 2024'!I10 -> 197236.4781 | L10: ='Bilan 2024'!I10 -> 234243.2829 | M10: ='Bilan 2024'!$I$7 -> -148195.5792 | Q10: =IF(M10>Profil_Investisseur!$D$14,0,1) -> 1
I11: 2025-01-01 | J11: ='Bilan 2025'!D41 -> 451568.0796 | K11: ='Bilan 2025'!I39-'Bilan 2025'!I10 -> 178692.6795 | L11: ='Bilan 2025'!I10 -> 272875.4001 | M11: ='Bilan 2025'!$I$7 -> -117954.8076 | Q11: =IF(M11>Profil_Investisseur!$D$14,0,1) -> 1
I12: 2026-01-01 | J12: ='Bilan 2026'!D41 -> 475196.7181 | K12: ='Bilan 2026'!I39-'Bilan 2026'!I10 -> 159852.5573 | L12: ='Bilan 2026'!I10 -> 315344.1608 | M12: ='Bilan 2026'!$I$7 -> -85256.78632 | Q12: =IF(M12>Profil_Investisseur!$D$14,0,1) -> 1
I13: 2027-01-01 | J13: ='Bilan 2027'!D41 -> 502414.2731 | K13: ='Bilan 2027'!I39-'Bilan 2027'!I10 -> 140711.3575 | L13: ='Bilan 2027'!I10 -> 361702.9156 | M13: ='Bilan 2027'!$I$7 -> -50141.77078 | Q13: =IF(M13>Profil_Investisseur!$D$14,0,1) -> 1
I14: 2028-01-01 | J14: ='Bilan 2028'!D41 -> 533545.0747 | K14: ='Bilan 2028'!I39-'Bilan 2028'!I10 -> 121264.2499 | L14: ='Bilan 2028'!I10 -> 412280.8248 | M14: ='Bilan 2028'!$I$7 -> -12390.11448 | Q14: =IF(M14>Profil_Investisseur!$D$14,0,1) -> 1
I15: 2029-01-01 | J15: ='Bilan 2029'!D41 -> 568958.6385 | K15: ='Bilan 2029'!I39-'Bilan 2029'!I10 -> 101506.3259 | L15: ='Bilan 2029'!I10 -> 467452.3126 | M15: ='Bilan 2029'!$I$7 -> 28245.40649 | Q15: =IF(M15>Profil_Investisseur!$D$14,0,1) -> 0
I16: 2030-01-01 | J16: ='Bilan 2030'!D41 -> 609075.2722 | K16: ='Bilan 2030'!I39-'Bilan 2030'!I10 -> 81432.59844 | L16: ='Bilan 2030'!I10 -> 527642.6738 | M16: ='Bilan 2030'!$I$7 -> 72043.10011 | Q16: =IF(M16>Profil_Investisseur!$D$14,0,1) -> 0

Sheet Hypothèses exogènes
B3: Appetence au risque de 0 à 1 | C3: =E3 -> 0.5 | E3: =IF(Profil_Investisseur!B44="Risqué",1,IF(Profil_Investisseur!B44="Standard",0.5,0)) -> 0.5
B4: (à 1 toutes les rentrées d'argent vont dans les actifs financiers, à 0 dans l'Assurance-Vie)
B7: Points du CR | C7: Remarques | D7: Taux actuel | E7: Inflation moyenne annuel en pourcentage
B10: Revalorisation du salaire | D10: RAS | E10: 3
B11: Revalorisation des loyers perçus | E11: 0.1
B12: Prime d'intéressement et de participation | D12: RAS | E12: 0
B13: Don(s) / Bourse(s) / Aide(s) / Allocation(s) / Pension(s) | D13: RAS | E13: 0
B14: Plus-value PEA | C14: rapporte | D14: 2.5 | E14: =0.3 -> 0.3
B15: Plus-value des comptes-titres | C15: " | D15: 7 | E15: =0.3 -> 0.3
B16: Plus-value des autres propiétés | C16: " | D16: 0 | E16: 0.4
B17: Plus-value du PEE | C17: " | D17: 1.5 | E17: 0.3
B18: Plus-value du PERCO | C18: " | D18: 1.5 | E18: 0.3
B19: Plus-value de Livret A | C19: " | D19: 0.75 | E19: 0
B20: Plus-value du PEL | C20: " | D20: 1 | E20: 0.3
B21: Plus-value du CEL | C21: " | D21: 0.5 | E21: 0.3
B22: Plus-value du LDD | C22: " | D22: 0.75 | E22: 0.3
B23: Plus-value de l'assurance-vie Fonds€ | C23: " | D23: 2 | E23: 0.3
B24: Plus-value de l'assurance-vie UC | C24: " | D24: 6.5 | E24: 0.3
B25: Plus-value du plan retraites PERP | C25: " | D25: 1.6 | E25: 0.3
B26: Plus-value résidence principale | C26: " | D26: 1 | E26: 0.3
B27: Plus-value du bien investissement locatif | C27: " | D27: 1 | E27: 0.3
B31: CSG | D31: =17.2 -> 17.2 | E31: 0.3
B35: Loyer + charges | D35: 0 | E35: 0
B36: Transport, Alimentation, Pension Alimentaire,Loisirs | D36: 0 | E36: =2 -> 2
B37: Charges totales (propriétaire investissement locatif) | D37: 0 | E37: =1.5 -> 1.5
B38: Charges totales (propriétaire principal) | D38: 0 | E38: =1.2 -> 1.2
B40: Impôts sur le revenu
B41: Impôts sur le foncier
B42: Taxe d'habitation
B43: Fiscalité sur la plus-value du PEA | D43: =17.2 -> 17.2 | E43: =0.3 -> 0.3
B44: Fiscalité sur la plus-value des comptes-titres | D44: =30 -> 30 | E44: 0.3
B45: Fiscalité sur la plus-value des autres propiétés | D45: =17.2 -> 17.2 | E45: 0.3
B46: Fiscalité sur la plus-value du PEE | D46: 17.2 | E46: 0.3
B47: Fiscalité sur la plus-value du PERCO | D47: 17.2 | E47: 0.3
B48: Fiscalité sur la plus-value de Livret A | D48: 0 | E48: 0
B49: Fiscalité sur la plus-value du PEL | D49: 30 | E49: 0.3
B50: Fiscalité sur la plus-value du CEL | D50: 17.2 | E50: 0.3
B51: Fiscalité sur la plus-value du LDD | D51: 0 | E51: 0.3
B52: Fiscalité sur la plus-value de l'assurance-vie UC | D52: =17.2 -> 17.2 | E52: =0.3 -> 0.3
B53: Fiscalité sur la plus-value de l'assurance-vie Fonds€ | D53: 17.2 | E53: 0.3
B54: Fiscalité sur la plus-value du plan retraites PERP | D54: 17.2 | E54: 0.3
B55: Fiscalité sur la plus-value de la résidence principale | D55: 0 | E55: 0
B56: Fiscalité sur la plus-value du bien investissement locatif | D56: 0 | E56: 0
B57: Dépenses exceptionnelles | D57: =IF(Profil_Investisseur!B49="Dépensier",14,IF(Profil_Investisseur!B49="Standard",10,6)) -> 6

Sheet Parametres Tout Les Biens (hidden)
B1: Paramètres exogènes à tous les biens possédés
B3: Note: Les valeurs par défaut sont des indications proches de la réalité, mais vous restez libres de les modifier
D6: Valeurs par défaut | E6: Meilleur Scénario | F6: Pire Scénario
B7: Impôts
B9: Régime fiscal d'imposition | C9: Micro-foncier
B10: Vos revenus net (par an) | C10: =Profil_Investisseur!B11 -> 40000 | D10: =Profil_Investisseur!B12 -> 0
B11: Nombre d'enfant(s) | C11: 0 | J11: Nombre de parts | K11: 1
B14: Paramètres avancés pour tout les biens
B16: Augmentation annuelle du loyer (%) | C16: ='Hypothèses exogènes'!D35 -> 0
B17: Augmentation annuelle des charges (%) | C17: ='Hypothèses exogènes'!D35 -> 0 | D17: 0.001 | E17: 0.1 | F17: 0
B18: Augmentation annuelle des revenus (%) | C18: ='Hypothèses exogènes'!E10/100 -> 0.03 | D18: ='Hypothèses exogènes'!E10/100 -> 0.03 | E18: 0 | F18: 0.1
B19: Taux de prélèvements sociaux | C19: 0.172 | D19: 0.005 | E19: 0.05 | F19: 0
B20: Augmentation annuelle des tranches d'imposition (%) | C20: 0 | D20: ='Hypothèses exogènes'!D31/100 -> 0.172
B21: Taux utilisé pour la VAN | C21: 0.02 | D21: 0.01
B22: Pourcentage de décôte du bien | C22: 0.2 | D22: 2% (Assurance Vie)
D23: 0.2

Sheet Feuille de calcul_ammor
K1: ne pas changer les cellules de ces dates (L1 et M1) | L1: ='Bilan Fin 2019'!H2 -> 2019-03-29 | M1: 2020-01-01 | N1: 2020-01-01 | O1: 2021-01-01
C2: (tableauA)Tableau pour fonction RechercheV pour remplir le CRD dans le bilan | I2: TableauB
C3: Date du versement | D3: CRD | I3: Date du versement | J3: CRD | M3: Date du versement | N3: Intérêts crédit A cumulés | O3: Crédit A amortissement cumulé | R3: Date du versement | S3: Intérêts crédit B cumulés | T3: Crédit B amortissement cumulé | W3: Crédit A | X3: Crédit B
C4: ='Tableau d''amortissement A'!C18 -> 2017-11-01 | D4: ='Tableau d''amortissement A'!I18 -> 169404.776 | I4: ='Tableau d''amortissement B'!C18 -> 2010-11-01 | J4: ='Tableau d''amortissement B'!I18 -> 199284.9092 | M4: ='Tableau d''amortissement A'!C18 -> 2017-11-01 | N4: ='Tableau d''amortissement A'!K18 -> 240.8333333 | O4: ='Tableau d''amortissement A'!H18 -> 595.2239837 | R4: ='Tableau d''amortissement B'!C18 -> 2010-11-01 | S4: ='Tableau d''amortissement B'!K18 -> 250 | T4: ='Tableau d''amortissement B'!H18 -> 715.0908178 | V4: Intérêts cumulés à la date choisie en 2019 | W4: =VLOOKUP(L1,Tableau18[[#All],[Date du versement]:[Intérêts crédit A cumulés]],2,1) -> 3978.670488 | X4: =VLOOKUP(L1,Tableau19[[#All],[Date du versement]:[Intérêts crédit B cumulés]],2,1) -> 20543.9427
C5: ='Tableau d''amortissement A'!C19 -> 2017-12-01 | D5: ='Tableau d''amortissement A'!I19 -> 168808.7088 | I5: ='Tableau d''amortissement B'!C19 -> 2010-12-01 | J5: ='Tableau d''amortissement B'!I19 -> 198568.9245 | M5: ='Tableau d''amortissement A'!C19 -> 2017-12-01 | N5: ='Tableau d''amortissement A'!K19 -> 480.8234327 | O5: =O4+'Tableau d''amortissement A'!H19 -> 1191.291201 | R5: ='Tableau d''amortissement B'!C19 -> 2010-12-01 | S5: ='Tableau d''amortissement B'!K19 -> 499.1061365 | T5: =T4+'Tableau d''amortissement B'!H19 -> 1431.075499 | V5: Intérêts cumulés au 01/01/2020 | W5: =VLOOKUP(N1,Tableau18[[#All],[Date du versement]:[Intérêts crédit A cumulés]],2,1) -> 6203.000828 | X5: =VLOOKUP(N1,Tableau19[[#All],[Date du versement]:[Intérêts crédit B cumulés]],2,1) -> 22036.52937
C6: ='Tableau d''amortissement A'!C20 -> 2018-01-01 | D6: ='Tableau d''amortissement A'!I20 -> 168211.7972 | I6: ='Tableau d''amortissement B'!C20 -> 2011-01-01 | J6: ='Tableau d''amortissement B'!I20 -> 197852.0448 | M6: ='Tableau d''amortissement A'!C20 -> 2018-01-01 | N6: ='Tableau d''amortissement A'!K20 -> 719.9691035 | O6: =O5+'Tableau d''amortissement A'!H20 -> 1788.202848 | R6: ='Tableau d''amortissement B'!C20 -> 2011-01-01 | S6: ='Tableau d''amortissement B'!K20 -> 747.3172921 | T6: =T5+'Tableau d''amortissement B'!H20 -> 2147.955161 | V6: Intérêts cumulés sur la fin de l'année 2019 | W6: =W5-W4 -> 2224.330341 | X6: =X5-X4 -> 1492.586668
C7: ='Tableau d''amortissement A'!C21 -> 2018-02-01 | D7: ='Tableau d''amortissement A'!I21 -> 167614.0399 | F7: =VLOOKUP(L1,Tableau1[#All],2,1) -> 159765.6961 | I7: ='Tableau d''amortissement B'!C21 -> 2011-02-01 | J7: ='Tableau d''amortissement B'!I21 -> 197134.2691 | M7: ='Tableau d''amortissement A'!C21 -> 2018-02-01 | N7: ='Tableau d''amortissement A'!K21 -> 958.2691495 | O7: =O6+'Tableau d''amortissement A'!H21 -> 2385.960119 | R7: ='Tableau d''amortissement B'!C21 -> 2011-02-01 | S7: ='Tableau d''amortissement B'!K21 -> 994.6323482 | T7: =T6+'Tableau d''amortissement B'!H21 -> 2865.730923
C8: ='Tableau d''amortissement A'!C22 -> 2018-03-01 | D8: ='Tableau d''amortissement A'!I22 -> 167015.4358 | I8: ='Tableau d''amortissement B'!C22 -> 2011-03-01 | J8: ='Tableau d''amortissement B'!I22 -> 196415.5961 | M8: ='Tableau d''amortissement A'!C22 -> 2018-03-01 | N8: ='Tableau d''amortissement A'!K22 -> 1195.722373 | O8: =O7+'Tableau d''amortissement A'!H22 -> 2984.564213 | R8: ='Tableau d''amortissement B'!C22 -> 2011-03-01 | S8: ='Tableau d''amortissement B'!K22 -> 1241.050184 | T8: =T7+'Tableau d''amortissement B'!H22 -> 3584.403904 | V8: Amortissement cumulé à la date choisie en 2019 | W8: =VLOOKUP(L1,Tableau18[#All],3,1) -> 10234.3039 | X8: =VLOOKUP(L1,Tableau19[#All],3,1) -> 76930.22989
C9: ='Tableau d''amortissement A'!C23 -> 2018-04-01 | D9: ='Tableau d''amortissement A'!I23 -> 166415.9837 | I9: ='Tableau d''amortissement B'!C23 -> 2011-04-01 | J9: ='Tableau d''amortissement B'!I23 -> 195696.0248 | M9: ='Tableau d''amortissement A'!C23 -> 2018-04-01 | N9: ='Tableau d''amortissement A'!K23 -> 1432.327573 | O9: =O8+'Tableau d''amortissement A'!H23 -> 3584.016329 | R9: ='Tableau d''amortissement B'!C23 -> 2011-04-01 | S9: ='Tableau d''amortissement B'!K23 -> 1486.56968 | T9: =T8+'Tableau d''amortissement B'!H23 -> 4303.975227 | V9: Amortissement cumulé au 01/01/2020 | W9: =VLOOKUP(M1,Tableau18[#All],3,1) -> 16370.54673 | X9: =VLOOKUP(M1,Tableau19[#All],3,1) -> 85088.5514
C10: ='Tableau d''amortissement A'!C24 -> 2018-05-01 | D10: ='Tableau d''amortissement A'!I24 -> 165815.6823 | I10: ='Tableau d''amortissement B'!C24 -> 2011-05-01 | J10: ='Tableau d''amortissement B'!I24 -> 194975.554 | M10: ='Tableau d''amortissement A'!C24 -> 2018-05-01 | N10: ='Tableau d''amortissement A'!K24 -> 1668.08355 | O10: =O9+'Tableau d''amortissement A'!H24 -> 4184.317669 | R10: ='Tableau d''amortissement B'!C24 -> 2011-05-01 | S10: ='Tableau d''amortissement B'!K24 -> 1731.189711 | T10: =T9+'Tableau d''amortissement B'!H24 -> 5024.446014 | V10: Amortissement cumulé sur la fin de l'année 2019 | W10: =W9-W8 -> 6136.24283 | X10: =X9-X8 -> 8158.32151
C11: ='Tableau d''amortissement A'!C25 -> 2018-06-01 | D11: ='Tableau d''amortissement A'!I25 -> 165214.5306 | I11: ='Tableau d''amortissement B'!C25 -> 2011-06-01 | J11: ='Tableau d''amortissement B'!I25 -> 194254.1826 | M11: ='Tableau d''amortissement A'!C25 -> 2018-06-01 | N11: ='Tableau d''amortissement A'!K25 -> 1902.9891 | O11: =O10+'Tableau d''amortissement A'!H25 -> 4785.469436 | R11: ='Tableau d''amortissement B'!C25 -> 2011-06-01 | S11: ='Tableau d''amortissement B'!K25 -> 1974.909153 | T11: =T10+'Tableau d''amortissement B'!H25 -> 5745.817389
C12: ='Tableau d''amortissement A'!C26 -> 2018-07-01 | D12: ='Tableau d''amortissement A'!I26 -> 164612.5272 | I12: ='Tableau d''amortissement B'!C26 -> 2011-07-01 | J12: ='Tableau d''amortissement B'!I26 -> 193531.9095 | M12: ='Tableau d''amortissement A'!C26 -> 2018-07-01 | N12: ='Tableau d''amortissement A'!K26 -> 2137.043018 | O12: =O11+'Tableau d''amortissement A'!H26 -> 5387.472835 | R12: ='Tableau d''amortissement B'!C26 -> 2011-07-01 | S12: ='Tableau d''amortissement B'!K26 -> 2217.726881 | T12: =T11+'Tableau d''amortissement B'!H26 -> 6468.090479 | V12: Intérêts cumulés au 01/01/2020 | W12: =VLOOKUP(N1,Tableau18[[#All],[Date du versement]:[Intérêts crédit A cumulés]],2,1) -> 6203.000828 | X12: =VLOOKUP(N1,Tableau19[[#All],[Date du versement]:[Intérêts crédit B cumulés]],2,1) -> 22036.52937
C13: ='Tableau d''amortissement A'!C27 -> 2018-08-01 | D13: ='Tableau d''amortissement A'!I27 -> 164009.6709 | I13: ='Tableau d''amortissement B'!C27 -> 2011-08-01 | J13: ='Tableau d''amortissement B'!I27 -> 192808.7336 | M13: ='Tableau d''amortissement A'!C27 -> 2018-08-01 | N13: ='Tableau d''amortissement A'!K27 -> 2370.244099 | O13: =O12+'Tableau d''amortissement A'!H27 -> 5990.329072 | R13: ='Tableau d''amortissement B'!C27 -> 2011-08-01 | S13: ='Tableau d''amortissement B'!K27 -> 2459.641768 | T13: =T12+'Tableau d''amortissement B'!H27 -> 7191.266409 | V13: Intérêts cumulés au 01/01/2021 | W13: =VLOOKUP(O1,Tableau18[[#All],[Date du versement]:[Intérêts crédit A cumulés]],2,1) -> 8756.605756 | X13: =VLOOKUP(O1,Tableau19[[#All],[Date du versement]:[Intérêts crédit B cumulés]],2,1) -> 23692.14818
C14: ='Tableau d''amortissement A'!C28 -> 2018-09-01 | D14: ='Tableau d''amortissement A'!I28 -> 163405.9606 | I14: ='Tableau d''amortissement B'!C28 -> 2011-09-01 | J14: ='Tableau d''amortissement B'!I28 -> 192084.6537 | M14: ='Tableau d''amortissement A'!C28 -> 2018-09-01 | N14: ='Tableau d''amortissement A'!K28 -> 2602.591132 | O14: =O13+'Tableau d''amortissement A'!H28 -> 6594.039355 | R14: ='Tableau d''amortissement B'!C28 -> 2011-09-01 | S14: ='Tableau d''amortissement B'!K28 -> 2700.652685 | T14: =T13+'Tableau d''amortissement B'!H28 -> 7915.34631 | V14: Intérêts cumulés sur l'année 2020 | W14: =W13-W12 -> 2553.604928 | X14: =X13-X12 -> 1655.61881
C15: ='Tableau d''amortissement A'!C29 -> 2018-10-01 | D15: ='Tableau d''amortissement A'!I29 -> 162801.3951 | I15: ='Tableau d''amortissement B'!C29 -> 2011-10-01 | J15: ='Tableau d''amortissement B'!I29 -> 191359.6687 | M15: ='Tableau d''amortissement A'!C29 -> 2018-10-01 | N15: ='Tableau d''amortissement A'!K29 -> 2834.08291 | O15: =O14+'Tableau d''amortissement A'!H29 -> 7198.604894 | R15: ='Tableau d''amortissement B'!C29 -> 2011-10-01 | S15: ='Tableau d''amortissement B'!K29 -> 2940.758502 | T15: =T14+'Tableau d''amortissement B'!H29 -> 8640.331311
C16: ='Tableau d''amortissement A'!C30 -> 2018-11-01 | D16: ='Tableau d''amortissement A'!I30 -> 162195.9731 | I16: ='Tableau d''amortissement B'!C30 -> 2011-11-01 | J16: ='Tableau d''amortissement B'!I30 -> 190633.7775 | M16: ='Tableau d''amortissement A'!C30 -> 2018-11-01 | N16: ='Tableau d''amortissement A'!K30 -> 3064.71822 | O16: =O15+'Tableau d''amortissement A'!H30 -> 7804.026902 | R16: ='Tableau d''amortissement B'!C30 -> 2011-11-01 | S16: ='Tableau d''amortissement B'!K30 -> 3179.958088 | T16: =T15+'Tableau d''amortissement B'!H30 -> 9366.222543 | V16: Amortissement cumulé au 01/01/2020 | W16: =VLOOKUP(N1,Tableau18[#All],3,1) -> 16370.54673 | X16: =VLOOKUP(N1,Tableau19[#All],3,1) -> 85088.5514
C17: ='Tableau d''amortissement A'!C31 -> 2018-12-01 | D17: ='Tableau d''amortissement A'!I31 -> 161589.6934 | I17: ='Tableau d''amortissement B'!C31 -> 2011-12-01 | J17: ='Tableau d''amortissement B'!I31 -> 189906.9789 | M17: ='Tableau d''amortissement A'!C31 -> 2018-12-01 | N17: ='Tableau d''amortissement A'!K31 -> 3294.495848 | O17: =O16+'Tableau d''amortissement A'!H31 -> 8410.30659 | R17: ='Tableau d''amortissement B'!C31 -> 2011-12-01 | S17: ='Tableau d''amortissement B'!K31 -> 3418.25031 | T17: =T16+'Tableau d''amortissement B'!H31 -> 10093.02114 | V17: Amortissement cumulé au 01/01/2021 | W17: =VLOOKUP(O1,Tableau18[#All],3,1) -> 23849.62961 | X17: =VLOOKUP(O1,Tableau19[#All],3,1) -> 95014.0224
C18: ='Tableau d''amortissement A'!C32 -> 2019-01-01 | D18: ='Tableau d''amortissement A'!I32 -> 160982.5548 | I18: ='Tableau d''amortissement B'!C32 -> 2012-01-01 | J18: ='Tableau d''amortissement B'!I32 -> 189179.2718 | M18: ='Tableau d''amortissement A'!C32 -> 2019-01-01 | N18: ='Tableau d''amortissement A'!K32 -> 3523.414581 | O18: =O17+'Tableau d''amortissement A'!H32 -> 9017.445175 | R18: ='Tableau d''amortissement B'!C32 -> 2012-01-01 | S18: ='Tableau d''amortissement B'!K32 -> 3655.634034 | T18: =T17+'Tableau d''amortissement B'!H32 -> 10820.72823 | V18: Amortissement cumulé sur l'année 2020 | W18: =W17-W16 -> 7479.082877 | X18: =X17-X16 -> 9925.471003
C19: ='Tableau d''amortissement A'!C33 -> 2019-02-01 | D19: ='Tableau d''amortissement A'!I33 -> 160374.5561 | I19: ='Tableau d''amortissement B'!C33 -> 2012-02-01 | J19: ='Tableau d''amortissement B'!I33 -> 188450.655 | M19: ='Tableau d''amortissement A'!C33 -> 2019-02-01 | N19: ='Tableau d''amortissement A'!K33 -> 3751.4732 | O19: =O18+'Tableau d''amortissement A'!H33 -> 9625.443873 | R19: ='Tableau d''amortissement B'!C33 -> 2012-02-01 | S19: ='Tableau d''amortissement B'!K33 -> 3892.108123 | T19: =T18+'Tableau d''amortissement B'!H33 -> 11549.34496
C20: ='Tableau d''amortissement A'!C34 -> 2019-03-01 | D20: ='Tableau d''amortissement A'!I34 -> 159765.6961 | I20: ='Tableau d''amortissement B'!C34 -> 2012-03-01 | J20: ='Tableau d''amortissement B'!I34 -> 187721.1275 | M20: ='Tableau d''amortissement A'!C34 -> 2019-03-01 | N20: ='Tableau d''amortissement A'!K34 -> 3978.670488 | O20: =O19+'Tableau d''amortissement A'!H34 -> 10234.3039 | R20: ='Tableau d''amortissement B'!C34 -> 2012-03-01 | S20: ='Tableau d''amortissement B'!K34 -> 4127.671442 | T20: =T19+'Tableau d''amortissement B'!H34 -> 12278.87246
C21: ='Tableau d''amortissement A'!C35 -> 2019-04-01 | D21: ='Tableau d''amortissement A'!I35 -> 159155.9735 | I21: ='Tableau d''amortissement B'!C35 -> 2012-04-01 | J21: ='Tableau d''amortissement B'!I35 -> 186990.6881 | M21: ='Tableau d''amortissement A'!C35 -> 2019-04-01 | N21: ='Tableau d''amortissement A'!K35 -> 4205.005224 | O21: =O20+'Tableau d''amortissement A'!H35 -> 10844.02648 | R21: ='Tableau d''amortissement B'!C35 -> 2012-04-01 | S21: ='Tableau d''amortissement B'!K35 -> 4362.322852 | T21: =T20+'Tableau d''amortissement B'!H35 -> 13009.31187
C22: ='Tableau d''amortissement A'!C36 -> 2019-05-01 | D22: ='Tableau d''amortissement A'!I36 -> 158545.3872 | I22: ='Tableau d''amortissement B'!C36 -> 2012-05-01 | J22: ='Tableau d''amortissement B'!I36 -> 186259.3357 | M22: ='Tableau d''amortissement A'!C36 -> 2019-05-01 | N22: ='Tableau d''amortissement A'!K36 -> 4430.476186 | O22: =O21+'Tableau d''amortissement A'!H36 -> 11454.61284 | R22: ='Tableau d''amortissement B'!C36 -> 2012-05-01 | S22: ='Tableau d''amortissement B'!K36 -> 4596.061212 | T22: =T21+'Tableau d''amortissement B'!H36 -> 13740.66433
C23: ='Tableau d''amortissement A'!C37 -> 2019-06-01 | D23: ='Tableau d''amortissement A'!I37 -> 157933.9358 | I23: ='Tableau d''amortissement B'!C37 -> 2012-06-01 | J23: ='Tableau d''amortissement B'!I37 -> 185527.069 | M23: ='Tableau d''amortissement A'!C37 -> 2019-06-01 | N23: ='Tableau d''amortissement A'!K37 -> 4655.082152 | O23: =O22+'Tableau d''amortissement A'!H37 -> 12066.06419 | R23: ='Tableau d''amortissement B'!C37 -> 2012-06-01 | S23: ='Tableau d''amortissement B'!K37 -> 4828.885381 | T23: =T22+'Tableau d''amortissement B'!H37 -> 14472.93097
C24: ='Tableau d''amortissement A'!C38 -> 2019-07-01 | D24: ='Tableau d''amortissement A'!I38 -> 157321.6182 | I24: ='Tableau d''amortissement B'!C38 -> 2012-07-01 | J24: ='Tableau d''amortissement B'!I38 -> 184793.887 | M24: ='Tableau d''amortissement A'!C38 -> 2019-07-01 | N24: ='Tableau d''amortissement A'!K38 -> 4878.821894 | O24: =O23+'Tableau d''amortissement A'!H38 -> 12678.38176 | R24: ='Tableau d''amortissement B'!C38 -> 2012-07-01 | S24: ='Tableau d''amortissement B'!K38 -> 5060.794218 | T24: =T23+'Tableau d''amortissement B'!H38 -> 15206.11296
C25: ='Tableau d''amortissement A'!C39 -> 2019-08-01 | D25: ='Tableau d''amortissement A'!I39 -> 156708.4332 | I25: ='Tableau d''amortissement B'!C39 -> 2012-08-01 | J25: ='Tableau d''amortissement B'!I39 -> 184059.7886 | M25: ='Tableau d''amortissement A'!C39 -> 2019-08-01 | N25: ='Tableau d''amortissement A'!K39 -> 5101.694186 | O25: =O24+'Tableau d''amortissement A'!H39 -> 13291.56679 | R25: ='Tableau d''amortissement B'!C39 -> 2012-08-01 | S25: ='Tableau d''amortissement B'!K39 -> 5291.786576 | T25: =T24+'Tableau d''amortissement B'!H39 -> 15940.21141
C26: ='Tableau d''amortissement A'!C40 -> 2019-09-01 | D26: ='Tableau d''amortissement A'!I40 -> 156094.3795 | I26: ='Tableau d''amortissement B'!C40 -> 2012-09-01 | J26: ='Tableau d''amortissement B'!I40 -> 183324.7725 | M26: ='Tableau d''amortissement A'!C40 -> 2019-09-01 | N26: ='Tableau d''amortissement A'!K40 -> 5323.6978 | O26: =O25+'Tableau d''amortissement A'!H40 -> 13905.62049 | R26: ='Tableau d''amortissement B'!C40 -> 2012-09-01 | S26: ='Tableau d''amortissement B'!K40 -> 5521.861312 | T26: =T25+'Tableau d''amortissement B'!H40 -> 16675.2275
C27: ='Tableau d''amortissement A'!C41 -> 2019-10-01 | D27: ='Tableau d''amortissement A'!I41 -> 155479.4559 | I27: ='Tableau d''amortissement B'!C41 -> 2012-10-01 | J27: ='Tableau d''amortissement B'!I41 -> 182588.8377 | M27: ='Tableau d''amortissement A'!C41 -> 2019-10-01 | N27: ='Tableau d''amortissement A'!K41 -> 5544.831504 | O27: =O26+'Tableau d''amortissement A'!H41 -> 14520.5441 | R27: ='Tableau d''amortissement B'!C41 -> 2012-10-01 | S27: ='Tableau d''amortissement B'!K41 -> 5751.017278 | T27: =T26+'Tableau d''amortissement B'!H41 -> 17411.16235
C28: ='Tableau d''amortissement A'!C42 -> 2019-11-01 | D28: ='Tableau d''amortissement A'!I42 -> 154863.6611 | I28: ='Tableau d''amortissement B'!C42 -> 2012-11-01 | J28: ='Tableau d''amortissement B'!I42 -> 181851.9829 | M28: ='Tableau d''amortissement A'!C42 -> 2019-11-01 | N28: ='Tableau d''amortissement A'!K42 -> 5765.094067 | O28: =O27+'Tableau d''amortissement A'!H42 -> 15136.33886 | R28: ='Tableau d''amortissement B'!C42 -> 2012-11-01 | S28: ='Tableau d''amortissement B'!K42 -> 5979.253325 | T28: =T27+'Tableau d''amortissement B'!H42 -> 18148.01712
C29: ='Tableau d''amortissement A'!C43 -> 2019-12-01 | D29: ='Tableau d''amortissement A'!I43 -> 154246.994 | I29: ='Tableau d''amortissement B'!C43 -> 2012-12-01 | J29: ='Tableau d''amortissement B'!I43 -> 181114.207 | M29: ='Tableau d''amortissement A'!C43 -> 2019-12-01 | N29: ='Tableau d''amortissement A'!K43 -> 5984.484254 | O29: =O28+'Tableau d''amortissement A'!H43 -> 15753.00599 | R29: ='Tableau d''amortissement B'!C43 -> 2012-12-01 | S29: ='Tableau d''amortissement B'!K43 -> 6206.568303 | T29: =T28+'Tableau d''amortissement B'!H43 -> 18885.79296
C30: ='Tableau d''amortissement A'!C44 -> 2020-01-01 | D30: ='Tableau d''amortissement A'!I44 -> 153629.4533 | I30: ='Tableau d''amortissement B'!C44 -> 2013-01-01 | J30: ='Tableau d''amortissement B'!I44 -> 180375.509 | M30: ='Tableau d''amortissement A'!C44 -> 2020-01-01 | N30: ='Tableau d''amortissement A'!K44 -> 6203.000828 | O30: =O29+'Tableau d''amortissement A'!H44 -> 16370.54673 | R30: ='Tableau d''amortissement B'!C44 -> 2013-01-01 | S30: ='Tableau d''amortissement B'!K44 -> 6432.961062 | T30: =T29+'Tableau d''amortissement B'!H44 -> 19624.49102
C31: ='Tableau d''amortissement A'!C45 -> 2020-02-01 | D31: ='Tableau d''amortissement A'!I45 -> 153011.0377 | I31: ='Tableau d''amortissement B'!C45 -> 2013-02-01 | J31: ='Tableau d''amortissement B'!I45 -> 179635.8876 | M31: ='Tableau d''amortissement A'!C45 -> 2020-02-01 | N31: ='Tableau d''amortissement A'!K45 -> 6420.642554 | O31: =O30+'Tableau d''amortissement A'!H45 -> 16988.96232 | R31: ='Tableau d''amortissement B'!C45 -> 2013-02-01 | S31: ='Tableau d''amortissement B'!K45 -> 6658.430448 | T31: =T30+'Tableau d''amortissement B'!H45 -> 20364.11245
C32: ='Tableau d''amortissement A'!C46 -> 2020-03-01 | D32: ='Tableau d''amortissement A'!I46 -> 152391.746 | I32: ='Tableau d''amortissement B'!C46 -> 2013-03-01 | J32: ='Tableau d''amortissement B'!I46 -> 178895.3416 | M32: ='Tableau d''amortissement A'!C46 -> 2020-03-01 | N32: ='Tableau d''amortissement A'!K46 -> 6637.408191 | O32: =O31+'Tableau d''amortissement A'!H46 -> 17608.254 | R32: ='Tableau d''amortissement B'!C46 -> 2013-03-01 | S32: ='Tableau d''amortissement B'!K46 -> 6882.975308 | T32: =T31+'Tableau d''amortissement B'!H46 -> 21104.65841
C33: ='Tableau d''amortissement A'!C47 -> 2020-04-01 | D33: ='Tableau d''amortissement A'!I47 -> 151771.577 | I33: ='Tableau d''amortissement B'!C47 -> 2013-04-01 | J33: ='Tableau d''amortissement B'!I47 -> 178153.87 | M33: ='Tableau d''amortissement A'!C47 -> 2020-04-01 | N33: ='Tableau d''amortissement A'!K47 -> 6853.296497 | O33: =O32+'Tableau d''amortissement A'!H47 -> 18228.42301 | R33: ='Tableau d''amortissement B'!C47 -> 2013-04-01 | S33: ='Tableau d''amortissement B'!K47 -> 7106.594485 | T33: =T32+'Tableau d''amortissement B'!H47 -> 21846.13005
C34: ='Tableau d''amortissement A'!C48 -> 2020-05-01 | D34: ='Tableau d''amortissement A'!I48 -> 151150.5294 | I34: ='Tableau d''amortissement B'!C48 -> 2013-05-01 | J34: ='Tableau d''amortissement B'!I48 -> 177411.4715 | M34: ='Tableau d''amortissement A'!C48 -> 2020-05-01 | N34: ='Tableau d''amortissement A'!K48 -> 7068.306232 | O34: =O33+'Tableau d''amortissement A'!H48 -> 18849.4706 | R34: ='Tableau d''amortissement B'!C48 -> 2013-05-01 | S34: ='Tableau d''amortissement B'!K48 -> 7329.286822 | T34: =T33+'Tableau d''amortissement B'!H48 -> 22588.52853
C35: ='Tableau d''amortissement A'!C49 -> 2020-06-01 | D35: ='Tableau d''amortissement A'!I49 -> 150528.602 | I35: ='Tableau d''amortissement B'!C49 -> 2013-06-01 | J35: ='Tableau d''amortissement B'!I49 -> 176668.145 | M35: ='Tableau d''amortissement A'!C49 -> 2020-06-01 | N35: ='Tableau d''amortissement A'!K49 -> 7282.436148 | O35: =O34+'Tableau d''amortissement A'!H49 -> 19471.398 | R35: ='Tableau d''amortissement B'!C49 -> 2013-06-01 | S35: ='Tableau d''amortissement B'!K49 -> 7551.051162 | T35: =T34+'Tableau d''amortissement B'!H49 -> 23331.85501
C36: ='Tableau d''amortissement A'!C50 -> 2020-07-01 | D36: ='Tableau d''amortissement A'!I50 -> 149905.7935 | I36: ='Tableau d''amortissement B'!C50 -> 2013-07-01 | J36: ='Tableau d''amortissement B'!I50 -> 175923.8894 | M36: ='Tableau d''amortissement A'!C50 -> 2020-07-01 | N36: ='Tableau d''amortissement A'!K50 -> 7495.685001 | O36: =O35+'Tableau d''amortissement A'!H50 -> 20094.20646 | R36: ='Tableau d''amortissement B'!C50 -> 2013-07-01 | S36: ='Tableau d''amortissement B'!K50 -> 7771.886343 | T36: =T35+'Tableau d''amortissement B'!H50 -> 24076.11064
C37: ='Tableau d''amortissement A'!C51 -> 2020-08-01 | D37: ='Tableau d''amortissement A'!I51 -> 149282.1028 | I37: ='Tableau d''amortissement B'!C51 -> 2013-08-01 | J37: ='Tableau d''amortissement B'!I51 -> 175178.7034 | M37: ='Tableau d''amortissement A'!C51 -> 2020-08-01 | N37: ='Tableau d''amortissement A'!K51 -> 7708.051542 | O37: =O36+'Tableau d''amortissement A'!H51 -> 20717.89724 | R37: ='Tableau d''amortissement B'!C51 -> 2013-08-01 | S37: ='Tableau d''amortissement B'!K51 -> 7991.791205 | T37: =T36+'Tableau d''amortissement B'!H51 -> 24821.2966
C38: ='Tableau d''amortissement A'!C52 -> 2020-09-01 | D38: ='Tableau d''amortissement A'!I52 -> 148657.5284 | I38: ='Tableau d''amortissement B'!C52 -> 2013-09-01 | J38: ='Tableau d''amortissement B'!I52 -> 174432.586 | M38: ='Tableau d''amortissement A'!C52 -> 2020-09-01 | N38: ='Tableau d''amortissement A'!K52 -> 7919.534521 | O38: =O37+'Tableau d''amortissement A'!H52 -> 21342.47158 | R38: ='Tableau d''amortissement B'!C52 -> 2013-09-01 | S38: ='Tableau d''amortissement B'!K52 -> 8210.764584 | T38: =T37+'Tableau d''amortissement B'!H52 -> 25567.41404
C39: ='Tableau d''amortissement A'!C53 -> 2020-10-01 | D39: ='Tableau d''amortissement A'!I53 -> 148032.0693 | I39: ='Tableau d''amortissement B'!C53 -> 2013-10-01 | J39: ='Tableau d''amortissement B'!I53 -> 173685.5359 | M39: ='Tableau d''amortissement A'!C53 -> 2020-10-01 | N39: ='Tableau d''amortissement A'!K53 -> 8130.132686 | O39: =O38+'Tableau d''amortissement A'!H53 -> 21967.93073 | R39: ='Tableau d''amortissement B'!C53 -> 2013-10-01 | S39: ='Tableau d''amortissement B'!K53 -> 8428.805316 | T39: =T38+'Tableau d''amortissement B'!H53 -> 26314.46412
C40: ='Tableau d''amortissement A'!C54 -> 2020-11-01 | D40: ='Tableau d''amortissement A'!I54 -> 147405.7241 | I40: ='Tableau d''amortissement B'!C54 -> 2013-11-01 | J40: ='Tableau d''amortissement B'!I54 -> 172937.552 | M40: ='Tableau d''amortissement A'!C54 -> 2020-11-01 | N40: ='Tableau d''amortissement A'!K54 -> 8339.844784 | O40: =O39+'Tableau d''amortissement A'!H54 -> 22594.27595 | R40: ='Tableau d''amortissement B'!C54 -> 2013-11-01 | S40: ='Tableau d''amortissement B'!K54 -> 8645.912236 | T40: =T39+'Tableau d''amortissement B'!H54 -> 27062.44802
C41: ='Tableau d''amortissement A'!C55 -> 2020-12-01 | D41: ='Tableau d''amortissement A'!I55 -> 146778.4915 | I41: ='Tableau d''amortissement B'!C55 -> 2013-12-01 | J41: ='Tableau d''amortissement B'!I55 -> 172188.6331 | M41: ='Tableau d''amortissement A'!C55 -> 2020-12-01 | N41: ='Tableau d''amortissement A'!K55 -> 8548.66956 | O41: =O40+'Tableau d''amortissement A'!H55 -> 23221.50849 | R41: ='Tableau d''amortissement B'!C55 -> 2013-12-01 | S41: ='Tableau d''amortissement B'!K55 -> 8862.084176 | T41: =T40+'Tableau d''amortissement B'!H55 -> 27811.3669
C42: ='Tableau d''amortissement A'!C56 -> 2021-01-01 | D42: ='Tableau d''amortissement A'!I56 -> 146150.3704 | I42: ='Tableau d''amortissement B'!C56 -> 2014-01-01 | J42: ='Tableau d''amortissement B'!I56 -> 171438.7781 | M42: ='Tableau d''amortissement A'!C56 -> 2021-01-01 | N42: ='Tableau d''amortissement A'!K56 -> 8756.605756 | O42: =O41+'Tableau d''amortissement A'!H56 -> 23849.62961 | R42: ='Tableau d''amortissement B'!C56 -> 2014-01-01 | S42: ='Tableau d''amortissement B'!K56 -> 9077.319967 | T42: =T41+'Tableau d''amortissement B'!H56 -> 28561.22193
C43: ='Tableau d''amortissement A'!C57 -> 2021-02-01 | D43: ='Tableau d''amortissement A'!I57 -> 145521.3594 | I43: ='Tableau d''amortissement B'!C57 -> 2014-02-01 | J43: ='Tableau d''amortissement B'!I57 -> 170687.9857 | M43: ='Tableau d''amortissement A'!C57 -> 2021-02-01 | N43: ='Tableau d''amortissement A'!K57 -> 8963.652114 | O43: =O42+'Tableau d''amortissement A'!H57 -> 24478.64057 | R43: ='Tableau d''amortissement B'!C57 -> 2014-02-01 | S43: ='Tableau d''amortissement B'!K57 -> 9291.61844 | T43: =T42+'Tableau d''amortissement B'!H57 -> 29312.01427
C44: ='Tableau d''amortissement A'!C58 -> 2021-03-01 | D44: ='Tableau d''amortissement A'!I58 -> 144891.4574 | I44: ='Tableau d''amortissement B'!C58 -> 2014-03-01 | J44: ='Tableau d''amortissement B'!I58 -> 169936.2549 | M44: ='Tableau d''amortissement A'!C58 -> 2021-03-01 | N44: ='Tableau d''amortissement A'!K58 -> 9169.807374 | O44: =O43+'Tableau d''amortissement A'!H58 -> 25108.54262 | R44: ='Tableau d''amortissement B'!C58 -> 2014-03-01 | S44: ='Tableau d''amortissement B'!K58 -> 9504.978422 | T44: =T43+'Tableau d''amortissement B'!H58 -> 30063.74511
C45: ='Tableau d''amortissement A'!C59 -> 2021-04-01 | D45: ='Tableau d''amortissement A'!I59 -> 144260.663 | I45: ='Tableau d''amortissement B'!C59 -> 2014-04-01 | J45: ='Tableau d''amortissement B'!I59 -> 169183.5844 | M45: ='Tableau d''amortissement A'!C59 -> 2021-04-01 | N45: ='Tableau d''amortissement A'!K59 -> 9375.070271 | O45: =O44+'Tableau d''amortissement A'!H59 -> 25739.33704 | R45: ='Tableau d''amortissement B'!C59 -> 2014-04-01 | S45: ='Tableau d''amortissement B'!K59 -> 9717.398741 | T45: =T44+'Tableau d''amortissement B'!H59 -> 30816.41561
C46: ='Tableau d''amortissement A'!C60 -> 2021-05-01 | D46: ='Tableau d''amortissement A'!I60 -> 143628.9749 | I46: ='Tableau d''amortissement B'!C60 -> 2014-05-01 | J46: ='Tableau d''amortissement B'!I60 -> 168429.9731 | M46: ='Tableau d''amortissement A'!C60 -> 2021-05-01 | N46: ='Tableau d''amortissement A'!K60 -> 9579.439544 | O46: =O45+'Tableau d''amortissement A'!H60 -> 26371.02509 | R46: ='Tableau d''amortissement B'!C60 -> 2014-05-01 | S46: ='Tableau d''amortissement B'!K60 -> 9928.878221 | T46: =T45+'Tableau d''amortissement B'!H60 -> 31570.02694
C47: ='Tableau d''amortissement A'!C61 -> 2021-06-01 | D47: ='Tableau d''amortissement A'!I61 -> 142996.392 | I47: ='Tableau d''amortissement B'!C61 -> 2014-06-01 | J47: ='Tableau d''amortissement B'!I61 -> 167675.4197 | M47: ='Tableau d''amortissement A'!C61 -> 2021-06-01 | N47: ='Tableau d''amortissement A'!K61 -> 9782.913925 | O47: =O46+'Tableau d''amortissement A'!H61 -> 27003.60802 | R47: ='Tableau d''amortissement B'!C61 -> 2014-06-01 | S47: ='Tableau d''amortissement B'!K61 -> 10139.41569 | T47: =T46+'Tableau d''amortissement B'!H61 -> 32324.58029
C48: ='Tableau d''amortissement A'!C62 -> 2021-07-01 | D48: ='Tableau d''amortissement A'!I62 -> 142362.9129 | I48: ='Tableau d''amortissement B'!C62 -> 2014-07-01 | J48: ='Tableau d''amortissement B'!I62 -> 166919.9232 | M48: ='Tableau d''amortissement A'!C62 -> 2021-07-01 | N48: ='Tableau d''amortissement A'!K62 -> 9985.492147 | O48: =O47+'Tableau d''amortissement A'!H62 -> 27637.08712 | R48: ='Tableau d''amortissement B'!C62 -> 2014-07-01 | S48: ='Tableau d''amortissement B'!K62 -> 10349.00996 | T48: =T47+'Tableau d''amortissement B'!H62 -> 33080.07684
C49: ='Tableau d''amortissement A'!C63 -> 2021-08-01 | D49: ='Tableau d''amortissement A'!I63 -> 141728.5364 | I49: ='Tableau d''amortissement B'!C63 -> 2014-08-01 | J49: ='Tableau d''amortissement B'!I63 -> 166163.4822 | M49: ='Tableau d''amortissement A'!C63 -> 2021-08-01 | N49: ='Tableau d''amortissement A'!K63 -> 10187.17294 | O49: =O48+'Tableau d''amortissement A'!H63 -> 28271.46364 | R49: ='Tableau d''amortissement B'!C63 -> 2014-08-01 | S49: ='Tableau d''amortissement B'!K63 -> 10557.65987 | T49: =T48+'Tableau d''amortissement B'!H63 -> 33836.51775
C50: ='Tableau d''amortissement A'!C64 -> 2021-09-01 | D50: ='Tableau d''amortissement A'!I64 -> 141093.2611 | I50: ='Tableau d''amortissement B'!C64 -> 2014-09-01 | J50: ='Tableau d''amortissement B'!I64 -> 165406.0958 | M50: ='Tableau d''amortissement A'!C64 -> 2021-09-01 | N50: ='Tableau d''amortissement A'!K64 -> 10387.95503 | O50: =O49+'Tableau d''amortissement A'!H64 -> 28906.73887 | R50: ='Tableau d''amortissement B'!C64 -> 2014-09-01 | S50: ='Tableau d''amortissement B'!K64 -> 10765.36422 | T50: =T49+'Tableau d''amortissement B'!H64 -> 34593.90422
C51: ='Tableau d''amortissement A'!C65 -> 2021-10-01 | D51: ='Tableau d''amortissement A'!I65 -> 140457.0859 | I51: ='Tableau d''amortissement B'!C65 -> 2014-10-01 | J51: ='Tableau d''amortissement B'!I65 -> 164647.7626 | M51: ='Tableau d''amortissement A'!C65 -> 2021-10-01 | N51: ='Tableau d''amortissement A'!K65 -> 10587.83715 | O51: =O50+'Tableau d''amortissement A'!H65 -> 29542.91406 | R51: ='Tableau d''amortissement B'!C65 -> 2014-10-01 | S51: ='Tableau d''amortissement B'!K65 -> 10972.12184 | T51: =T50+'Tableau d''amortissement B'!H65 -> 35352.23741
C52: ='Tableau d''amortissement A'!C66 -> 2021-11-01 | D52: ='Tableau d''amortissement A'!I66 -> 139820.0095 | I52: ='Tableau d''amortissement B'!C66 -> 2014-11-01 | J52: ='Tableau d''amortissement B'!I66 -> 163888.4815 | M52: ='Tableau d''amortissement A'!C66 -> 2021-11-01 | N52: ='Tableau d''amortissement A'!K66 -> 10786.81803 | O52: =O51+'Tableau d''amortissement A'!H66 -> 30179.99051 | R52: ='Tableau d''amortissement B'!C66 -> 2014-11-01 | S52: ='Tableau d''amortissement B'!K66 -> 11177.93154 | T52: =T51+'Tableau d''amortissement B'!H66 -> 36111.51853
C53: ='Tableau d''amortissement A'!C67 -> 2021-12-01 | D53: ='Tableau d''amortissement A'!I67 -> 139182.0305 | I53: ='Tableau d''amortissement B'!C67 -> 2014-12-01 | J53: ='Tableau d''amortissement B'!I67 -> 163128.2513 | M53: ='Tableau d''amortissement A'!C67 -> 2021-12-01 | N53: ='Tableau d''amortissement A'!K67 -> 10984.89637 | O53: =O52+'Tableau d''amortissement A'!H67 -> 30817.96948 | R53: ='Tableau d''amortissement B'!C67 -> 2014-12-01 | S53: ='Tableau d''amortissement B'!K67 -> 11382.79214 | T53: =T52+'Tableau d''amortissement B'!H67 -> 36871.74874
C54: ='Tableau d''amortissement A'!C68 -> 2022-01-01 | D54: ='Tableau d''amortissement A'!I68 -> 138543.1477 | I54: ='Tableau d''amortissement B'!C68 -> 2015-01-01 | J54: ='Tableau d''amortissement B'!I68 -> 162367.0708 | M54: ='Tableau d''amortissement A'!C68 -> 2022-01-01 | N54: ='Tableau d''amortissement A'!K68 -> 11182.07092 | O54: =O53+'Tableau d''amortissement A'!H68 -> 31456.85225 | R54: ='Tableau d''amortissement B'!C68 -> 2015-01-01 | S54: ='Tableau d''amortissement B'!K68 -> 11586.70246 | T54: =T53+'Tableau d''amortissement B'!H68 -> 37632.92925
C55: ='Tableau d''amortissement A'!C69 -> 2022-02-01 | D55: ='Tableau d''amortissement A'!I69 -> 137903.3599 | I55: ='Tableau d''amortissement B'!C69 -> 2015-02-01 | J55: ='Tableau d''amortissement B'!I69 -> 161604.9388 | M55: ='Tableau d''amortissement A'!C69 -> 2022-02-01 | N55: ='Tableau d''amortissement A'!K69 -> 11378.34037 | O55: =O54+'Tableau d''amortissement A'!H69 -> 32096.64011 | R55: ='Tableau d''amortissement B'!C69 -> 2015-02-01 | S55: ='Tableau d''amortissement B'!K69 -> 11789.6613 | T55: =T54+'Tableau d''amortissement B'!H69 -> 38395.06123
C56: ='Tableau d''amortissement A'!C70 -> 2022-03-01 | D56: ='Tableau d''amortissement A'!I70 -> 137262.6657 | I56: ='Tableau d''amortissement B'!C70 -> 2015-03-01 | J56: ='Tableau d''amortissement B'!I70 -> 160841.8541 | M56: ='Tableau d''amortissement A'!C70 -> 2022-03-01 | N56: ='Tableau d''amortissement A'!K70 -> 11573.70347 | O56: =O55+'Tableau d''amortissement A'!H70 -> 32737.33433 | R56: ='Tableau d''amortissement B'!C70 -> 2015-03-01 | S56: ='Tableau d''amortissement B'!K70 -> 11991.66747 | T56: =T55+'Tableau d''amortissement B'!H70 -> 39158.14587
C57: ='Tableau d''amortissement A'!C71 -> 2022-04-01 | D57: ='Tableau d''amortissement A'!I71 -> 136621.0638 | I57: ='Tableau d''amortissement B'!C71 -> 2015-04-01 | J57: ='Tableau d''amortissement B'!I71 -> 160077.8156 | M57: ='Tableau d''amortissement A'!C71 -> 2022-04-01 | N57: ='Tableau d''amortissement A'!K71 -> 11768.15891 | O57: =O56+'Tableau d''amortissement A'!H71 -> 33378.93621 | R57: ='Tableau d''amortissement B'!C71 -> 2015-04-01 | S57: ='Tableau d''amortissement B'!K71 -> 12192.71979 | T57: =T56+'Tableau d''amortissement B'!H71 -> 39922.18437
C58: ='Tableau d''amortissement A'!C72 -> 2022-05-01 | D58: ='Tableau d''amortissement A'!I72 -> 135978.553 | I58: ='Tableau d''amortissement B'!C72 -> 2015-05-01 | J58: ='Tableau d''amortissement B'!I72 -> 159312.8221 | M58: ='Tableau d''amortissement A'!C72 -> 2022-05-01 | N58: ='Tableau d''amortissement A'!K72 -> 11961.70542 | O58: =O57+'Tableau d''amortissement A'!H72 -> 34021.44702 | R58: ='Tableau d''amortissement B'!C72 -> 2015-05-01 | S58: ='Tableau d''amortissement B'!K72 -> 12392.81706 | T58: =T57+'Tableau d''amortissement B'!H72 -> 40687.17792
C59: ='Tableau d''amortissement A'!C73 -> 2022-06-01 | D59: ='Tableau d''amortissement A'!I73 -> 135335.1319 | I59: ='Tableau d''amortissement B'!C73 -> 2015-06-01 | J59: ='Tableau d''amortissement B'!I73 -> 158546.8723 | M59: ='Tableau d''amortissement A'!C73 -> 2022-06-01 | N59: ='Tableau d''amortissement A'!K73 -> 12154.3417 | O59: =O58+'Tableau d''amortissement A'!H73 -> 34664.86805 | R59: ='Tableau d''amortissement B'!C73 -> 2015-06-01 | S59: ='Tableau d''amortissement B'!K73 -> 12591.95808 | T59: =T58+'Tableau d''amortissement B'!H73 -> 41453.12771
C60: ='Tableau d''amortissement A'!C74 -> 2022-07-01 | D60: ='Tableau d''amortissement A'!I74 -> 134690.7994 | I60: ='Tableau d''amortissement B'!C74 -> 2015-07-01 | J60: ='Tableau d''amortissement B'!I74 -> 157779.9651 | M60: ='Tableau d''amortissement A'!C74 -> 2022-07-01 | N60: ='Tableau d''amortissement A'!K74 -> 12346.06647 | O60: =O59+'Tableau d''amortissement A'!H74 -> 35309.2006 | R60: ='Tableau d''amortissement B'!C74 -> 2015-07-01 | S60: ='Tableau d''amortissement B'!K74 -> 12790.14167 | T60: =T59+'Tableau d''amortissement B'!H74 -> 42220.03494
C61: ='Tableau d''amortissement A'!C75 -> 2022-08-01 | D61: ='Tableau d''amortissement A'!I75 -> 134045.554 | I61: ='Tableau d''amortissement B'!C75 -> 2015-08-01 | J61: ='Tableau d''amortissement B'!I75 -> 157012.0992 | M61: ='Tableau d''amortissement A'!C75 -> 2022-08-01 | N61: ='Tableau d''amortissement A'!K75 -> 12536.87844 | O61: =O60+'Tableau d''amortissement A'!H75 -> 35954.44595 | R61: ='Tableau d''amortissement B'!C75 -> 2015-08-01 | S61: ='Tableau d''amortissement B'!K75 -> 12987.36663 | T61: =T60+'Tableau d''amortissement B'!H75 -> 42987.9008
C62: ='Tableau d''amortissement A'!C76 -> 2022-09-01 | D62: ='Tableau d''amortissement A'!I76 -> 133399.3946 | I62: ='Tableau d''amortissement B'!C76 -> 2015-09-01 | J62: ='Tableau d''amortissement B'!I76 -> 156243.2735 | M62: ='Tableau d''amortissement A'!C76 -> 2022-09-01 | N62: ='Tableau d''amortissement A'!K76 -> 12726.77631 | O62: =O61+'Tableau d''amortissement A'!H76 -> 36600.6054 | R62: ='Tableau d''amortissement B'!C76 -> 2015-09-01 | S62: ='Tableau d''amortissement B'!K76 -> 13183.63176 | T62: =T61+'Tableau d''amortissement B'!H76 -> 43756.72649
C63: ='Tableau d''amortissement A'!C77 -> 2022-10-01 | D63: ='Tableau d''amortissement A'!I77 -> 132752.3198 | I63: ='Tableau d''amortissement B'!C77 -> 2015-10-01 | J63: ='Tableau d''amortissement B'!I77 -> 155473.4868 | M63: ='Tableau d''amortissement A'!C77 -> 2022-10-01 | N63: ='Tableau d''amortissement A'!K77 -> 12915.75878 | O63: =O62+'Tableau d''amortissement A'!H77 -> 37247.68024 | R63: ='Tableau d''amortissement B'!C77 -> 2015-10-01 | S63: ='Tableau d''amortissement B'!K77 -> 13378.93585 | T63: =T62+'Tableau d''amortissement B'!H77 -> 44526.51322
C64: ='Tableau d''amortissement A'!C78 -> 2022-11-01 | D64: ='Tableau d''amortissement A'!I78 -> 132104.3282 | I64: ='Tableau d''amortissement B'!C78 -> 2015-11-01 | J64: ='Tableau d''amortissement B'!I78 -> 154702.7378 | M64: ='Tableau d''amortissement A'!C78 -> 2022-11-01 | N64: ='Tableau d''amortissement A'!K78 -> 13103.82457 | O64: =O63+'Tableau d''amortissement A'!H78 -> 37895.67177 | R64: ='Tableau d''amortissement B'!C78 -> 2015-11-01 | S64: ='Tableau d''amortissement B'!K78 -> 13573.27771 | T64: =T63+'Tableau d''amortissement B'!H78 -> 45297.26218
C65: ='Tableau d''amortissement A'!C79 -> 2022-12-01 | D65: ='Tableau d''amortissement A'!I79 -> 131455.4187 | I65: ='Tableau d''amortissement B'!C79 -> 2015-12-01 | J65: ='Tableau d''amortissement B'!I79 -> 153931.0254 | M65: ='Tableau d''amortissement A'!C79 -> 2022-12-01 | N65: ='Tableau d''amortissement A'!K79 -> 13290.97237 | O65: =O64+'Tableau d''amortissement A'!H79 -> 38544.58129 | R65: ='Tableau d''amortissement B'!C79 -> 2015-12-01 | S65: ='Tableau d''amortissement B'!K79 -> 13766.65613 | T65: =T64+'Tableau d''amortissement B'!H79 -> 46068.97457
C66: ='Tableau d''amortissement A'!C80 -> 2023-01-01 | D66: ='Tableau d''amortissement A'!I80 -> 130805.5899 | I66: ='Tableau d''amortissement B'!C80 -> 2016-01-01 | J66: ='Tableau d''amortissement B'!I80 -> 153158.3484 | M66: ='Tableau d''amortissement A'!C80 -> 2023-01-01 | N66: ='Tableau d''amortissement A'!K80 -> 13477.20088 | O66: =O65+'Tableau d''amortissement A'!H80 -> 39194.4101 | R66: ='Tableau d''amortissement B'!C80 -> 2016-01-01 | S66: ='Tableau d''amortissement B'!K80 -> 13959.06991 | T66: =T65+'Tableau d''amortissement B'!H80 -> 46841.65161
C67: ='Tableau d''amortissement A'!C81 -> 2023-02-01 | D67: ='Tableau d''amortissement A'!I81 -> 130154.8405 | I67: ='Tableau d''amortissement B'!C81 -> 2016-02-01 | J67: ='Tableau d''amortissement B'!I81 -> 152384.7055 | M67: ='Tableau d''amortissement A'!C81 -> 2023-02-01 | N67: ='Tableau d''amortissement A'!K81 -> 13662.50879 | O67: =O66+'Tableau d''amortissement A'!H81 -> 39845.1595 | R67: ='Tableau d''amortissement B'!C81 -> 2016-02-01 | S67: ='Tableau d''amortissement B'!K81 -> 14150.51785 | T67: =T66+'Tableau d''amortissement B'!H81 -> 47615.29449
C68: ='Tableau d''amortissement A'!C82 -> 2023-03-01 | D68: ='Tableau d''amortissement A'!I82 -> 129503.1692 | I68: ='Tableau d''amortissement B'!C82 -> 2016-03-01 | J68: ='Tableau d''amortissement B'!I82 -> 151610.0956 | M68: ='Tableau d''amortissement A'!C82 -> 2023-03-01 | N68: ='Tableau d''amortissement A'!K82 -> 13846.89482 | O68: =O67+'Tableau d''amortissement A'!H82 -> 40496.83079 | R68: ='Tableau d''amortissement B'!C82 -> 2016-03-01 | S68: ='Tableau d''amortissement B'!K82 -> 14340.99873 | T68: =T67+'Tableau d''amortissement B'!H82 -> 48389.90443
C69: ='Tableau d''amortissement A'!C83 -> 2023-04-01 | D69: ='Tableau d''amortissement A'!I83 -> 128850.5747 | I69: ='Tableau d''amortissement B'!C83 -> 2016-04-01 | J69: ='Tableau d''amortissement B'!I83 -> 150834.5174 | M69: ='Tableau d''amortissement A'!C83 -> 2023-04-01 | N69: ='Tableau d''amortissement A'!K83 -> 14030.35764 | O69: =O68+'Tableau d''amortissement A'!H83 -> 41149.42528 | R69: ='Tableau d''amortissement B'!C83 -> 2016-04-01 | S69: ='Tableau d''amortissement B'!K83 -> 14530.51135 | T69: =T68+'Tableau d''amortissement B'!H83 -> 49165.48263
C70: ='Tableau d''amortissement A'!C84 -> 2023-05-01 | D70: ='Tableau d''amortissement A'!I84 -> 128197.0557 | I70: ='Tableau d''amortissement B'!C84 -> 2016-05-01 | J70: ='Tableau d''amortissement B'!I84 -> 150057.9697 | M70: ='Tableau d''amortissement A'!C84 -> 2023-05-01 | N70: ='Tableau d''amortissement A'!K84 -> 14212.89596 | O70: =O69+'Tableau d''amortissement A'!H84 -> 41802.94429 | R70: ='Tableau d''amortissement B'!C84 -> 2016-05-01 | S70: ='Tableau d''amortissement B'!K84 -> 14719.05449 | T70: =T69+'Tableau d''amortissement B'!H84 -> 49942.0303
C71: ='Tableau d''amortissement A'!C85 -> 2023-06-01 | D71: ='Tableau d''amortissement A'!I85 -> 127542.6109 | I71: ='Tableau d''amortissement B'!C85 -> 2016-06-01 | J71: ='Tableau d''amortissement B'!I85 -> 149280.4513 | M71: ='Tableau d''amortissement A'!C85 -> 2023-06-01 | N71: ='Tableau d''amortissement A'!K85 -> 14394.50845 | O71: =O70+'Tableau d''amortissement A'!H85 -> 42457.38911 | R71: ='Tableau d''amortissement B'!C85 -> 2016-06-01 | S71: ='Tableau d''amortissement B'!K85 -> 14906.62696 | T71: =T70+'Tableau d''amortissement B'!H85 -> 50719.54865
C72: ='Tableau d''amortissement A'!C86 -> 2023-07-01 | D72: ='Tableau d''amortissement A'!I86 -> 126887.2389 | I72: ='Tableau d''amortissement B'!C86 -> 2016-07-01 | J72: ='Tableau d''amortissement B'!I86 -> 148501.9611 | M72: ='Tableau d''amortissement A'!C86 -> 2023-07-01 | N72: ='Tableau d''amortissement A'!K86 -> 14575.19382 | O72: =O71+'Tableau d''amortissement A'!H86 -> 43112.76106 | R72: ='Tableau d''amortissement B'!C86 -> 2016-07-01 | S72: ='Tableau d''amortissement B'!K86 -> 15093.22752 | T72: =T71+'Tableau d''amortissement B'!H86 -> 51498.03891
C73: ='Tableau d''amortissement A'!C87 -> 2023-08-01 | D73: ='Tableau d''amortissement A'!I87 -> 126230.9385 | I73: ='Tableau d''amortissement B'!C87 -> 2016-08-01 | J73: ='Tableau d''amortissement B'!I87 -> 147722.4977 | M73: ='Tableau d''amortissement A'!C87 -> 2023-08-01 | N73: ='Tableau d''amortissement A'!K87 -> 14754.95074 | O73: =O72+'Tableau d''amortissement A'!H87 -> 43769.06145 | R73: ='Tableau d''amortissement B'!C87 -> 2016-08-01 | S73: ='Tableau d''amortissement B'!K87 -> 15278.85497 | T73: =T72+'Tableau d''amortissement B'!H87 -> 52277.50227
C74: ='Tableau d''amortissement A'!C88 -> 2023-09-01 | D74: ='Tableau d''amortissement A'!I88 -> 125573.7084 | I74: ='Tableau d''amortissement B'!C88 -> 2016-09-01 | J74: ='Tableau d''amortissement B'!I88 -> 146942.06 | M74: ='Tableau d''amortissement A'!C88 -> 2023-09-01 | N74: ='Tableau d''amortissement A'!K88 -> 14933.7779 | O74: =O73+'Tableau d''amortissement A'!H88 -> 44426.29161 | R74: ='Tableau d''amortissement B'!C88 -> 2016-09-01 | S74: ='Tableau d''amortissement B'!K88 -> 15463.50809 | T74: =T73+'Tableau d''amortissement B'!H88 -> 53057.93997
C75: ='Tableau d''amortissement A'!C89 -> 2023-10-01 | D75: ='Tableau d''amortissement A'!I89 -> 124915.5472 | I75: ='Tableau d''amortissement B'!C89 -> 2016-10-01 | J75: ='Tableau d''amortissement B'!I89 -> 146160.6468 | M75: ='Tableau d''amortissement A'!C89 -> 2023-10-01 | N75: ='Tableau d''amortissement A'!K89 -> 15111.67399 | O75: =O74+'Tableau d''amortissement A'!H89 -> 45084.45284 | R75: ='Tableau d''amortissement B'!C89 -> 2016-10-01 | S75: ='Tableau d''amortissement B'!K89 -> 15647.18567 | T75: =T74+'Tableau d''amortissement B'!H89 -> 53839.35321
C76: ='Tableau d''amortissement A'!C90 -> 2023-11-01 | D76: ='Tableau d''amortissement A'!I90 -> 124256.4535 | I76: ='Tableau d''amortissement B'!C90 -> 2016-11-01 | J76: ='Tableau d''amortissement B'!I90 -> 145378.2568 | M76: ='Tableau d''amortissement A'!C90 -> 2023-11-01 | N76: ='Tableau d''amortissement A'!K90 -> 15288.63768 | O76: =O75+'Tableau d''amortissement A'!H90 -> 45743.54646 | R76: ='Tableau d''amortissement B'!C90 -> 2016-11-01 | S76: ='Tableau d''amortissement B'!K90 -> 15829.88648 | T76: =T75+'Tableau d''amortissement B'!H90 -> 54621.74322
C77: ='Tableau d''amortissement A'!C91 -> 2023-12-01 | D77: ='Tableau d''amortissement A'!I91 -> 123596.4262 | I77: ='Tableau d''amortissement B'!C91 -> 2016-12-01 | J77: ='Tableau d''amortissement B'!I91 -> 144594.8888 | M77: ='Tableau d''amortissement A'!C91 -> 2023-12-01 | N77: ='Tableau d''amortissement A'!K91 -> 15464.66766 | O77: =O76+'Tableau d''amortissement A'!H91 -> 46403.5738 | R77: ='Tableau d''amortissement B'!C91 -> 2016-12-01 | S77: ='Tableau d''amortissement B'!K91 -> 16011.6093 | T77: =T76+'Tableau d''amortissement B'!H91 -> 55405.11122
C78: ='Tableau d''amortissement A'!C92 -> 2024-01-01 | D78: ='Tableau d''amortissement A'!I92 -> 122935.4638 | I78: ='Tableau d''amortissement B'!C92 -> 2017-01-01 | J78: ='Tableau d''amortissement B'!I92 -> 143810.5416 | M78: ='Tableau d''amortissement A'!C92 -> 2024-01-01 | N78: ='Tableau d''amortissement A'!K92 -> 15639.76259 | O78: =O77+'Tableau d''amortissement A'!H92 -> 47064.53618 | R78: ='Tableau d''amortissement B'!C92 -> 2017-01-01 | S78: ='Tableau d''amortissement B'!K92 -> 16192.35291 | T78: =T77+'Tableau d''amortissement B'!H92 -> 56189.45842
C79: ='Tableau d''amortissement A'!C93 -> 2024-02-01 | D79: ='Tableau d''amortissement A'!I93 -> 122273.5651 | I79: ='Tableau d''amortissement B'!C93 -> 2017-02-01 | J79: ='Tableau d''amortissement B'!I93 -> 143025.2139 | M79: ='Tableau d''amortissement A'!C93 -> 2024-02-01 | N79: ='Tableau d''amortissement A'!K93 -> 15813.92117 | O79: =O78+'Tableau d''amortissement A'!H93 -> 47726.43493 | R79: ='Tableau d''amortissement B'!C93 -> 2017-02-01 | S79: ='Tableau d''amortissement B'!K93 -> 16372.11609 | T79: =T78+'Tableau d''amortissement B'!H93 -> 56974.78606
C80: ='Tableau d''amortissement A'!C94 -> 2024-03-01 | D80: ='Tableau d''amortissement A'!I94 -> 121610.7286 | I80: ='Tableau d''amortissement B'!C94 -> 2017-03-01 | J80: ='Tableau d''amortissement B'!I94 -> 142238.9046 | M80: ='Tableau d''amortissement A'!C94 -> 2024-03-01 | N80: ='Tableau d''amortissement A'!K94 -> 15987.14205 | O80: =O79+'Tableau d''amortissement A'!H94 -> 48389.27136 | R80: ='Tableau d''amortissement B'!C94 -> 2017-03-01 | S80: ='Tableau d''amortissement B'!K94 -> 16550.8976 | T80: =T79+'Tableau d''amortissement B'!H94 -> 57761.09536
C81: ='Tableau d''amortissement A'!C95 -> 2024-04-01 | D81: ='Tableau d''amortissement A'!I95 -> 120946.9532 | I81: ='Tableau d''amortissement B'!C95 -> 2017-04-01 | J81: ='Tableau d''amortissement B'!I95 -> 141451.6124 | M81: ='Tableau d''amortissement A'!C95 -> 2024-04-01 | N81: ='Tableau d''amortissement A'!K95 -> 16159.42392 | O81: =O80+'Tableau d''amortissement A'!H95 -> 49053.04681 | R81: ='Tableau d''amortissement B'!C95 -> 2017-04-01 | S81: ='Tableau d''amortissement B'!K95 -> 16728.69623 | T81: =T80+'Tableau d''amortissement B'!H95 -> 58548.38755
C82: ='Tableau d''amortissement A'!C96 -> 2024-05-01 | D82: ='Tableau d''amortissement A'!I96 -> 120282.2374 | I82: ='Tableau d''amortissement B'!C96 -> 2017-05-01 | J82: ='Tableau d''amortissement B'!I96 -> 140663.3361 | M82: ='Tableau d''amortissement A'!C96 -> 2024-05-01 | N82: ='Tableau d''amortissement A'!K96 -> 16330.76543 | O82: =O81+'Tableau d''amortissement A'!H96 -> 49717.76261 | R82: ='Tableau d''amortissement B'!C96 -> 2017-05-01 | S82: ='Tableau d''amortissement B'!K96 -> 16905.51075 | T82: =T81+'Tableau d''amortissement B'!H96 -> 59336.66385
C83: ='Tableau d''amortissement A'!C97 -> 2024-06-01 | D83: ='Tableau d''amortissement A'!I97 -> 119616.5799 | I83: ='Tableau d''amortissement B'!C97 -> 2017-06-01 | J83: ='Tableau d''amortissement B'!I97 -> 139874.0745 | M83: ='Tableau d''amortissement A'!C97 -> 2024-06-01 | N83: ='Tableau d''amortissement A'!K97 -> 16501.16527 | O83: =O82+'Tableau d''amortissement A'!H97 -> 50383.42009 | R83: ='Tableau d''amortissement B'!C97 -> 2017-06-01 | S83: ='Tableau d''amortissement B'!K97 -> 17081.33992 | T83: =T82+'Tableau d''amortissement B'!H97 -> 60125.9255
C84: ='Tableau d''amortissement A'!C98 -> 2024-07-01 | D84: ='Tableau d''amortissement A'!I98 -> 118949.9794 | I84: ='Tableau d''amortissement B'!C98 -> 2017-07-01 | J84: ='Tableau d''amortissement B'!I98 -> 139083.8263 | M84: ='Tableau d''amortissement A'!C98 -> 2024-07-01 | N84: ='Tableau d''amortissement A'!K98 -> 16670.62209 | O84: =O83+'Tableau d''amortissement A'!H98 -> 51050.02059 | R84: ='Tableau d''amortissement B'!C98 -> 2017-07-01 | S84: ='Tableau d''amortissement B'!K98 -> 17256.18251 | T84: =T83+'Tableau d''amortissement B'!H98 -> 60916.17373
C85: ='Tableau d''amortissement A'!C99 -> 2024-08-01 | D85: ='Tableau d''amortissement A'!I99 -> 118282.4346 | I85: ='Tableau d''amortissement B'!C99 -> 2017-08-01 | J85: ='Tableau d''amortissement B'!I99 -> 138292.5902 | M85: ='Tableau d''amortissement A'!C99 -> 2024-08-01 | N85: ='Tableau d''amortissement A'!K99 -> 16839.13456 | O85: =O84+'Tableau d''amortissement A'!H99 -> 51717.56543 | R85: ='Tableau d''amortissement B'!C99 -> 2017-08-01 | S85: ='Tableau d''amortissement B'!K99 -> 17430.0373 | T85: =T84+'Tableau d''amortissement B'!H99 -> 61707.40976
C86: ='Tableau d''amortissement A'!C100 -> 2024-09-01 | D86: ='Tableau d''amortissement A'!I100 -> 117613.944 | I86: ='Tableau d''amortissement B'!C100 -> 2017-09-01 | J86: ='Tableau d''amortissement B'!I100 -> 137500.3652 | M86: ='Tableau d''amortissement A'!C100 -> 2024-09-01 | N86: ='Tableau d''amortissement A'!K100 -> 17006.70134 | O86: =O85+'Tableau d''amortissement A'!H100 -> 52386.05597 | R86: ='Tableau d''amortissement B'!C100 -> 2017-09-01 | S86: ='Tableau d''amortissement B'!K100 -> 17602.90303 | T86: =T85+'Tableau d''amortissement B'!H100 -> 62499.63484
C87: ='Tableau d''amortissement A'!C101 -> 2024-10-01 | D87: ='Tableau d''amortissement A'!I101 -> 116944.5065 | I87: ='Tableau d''amortissement B'!C101 -> 2017-10-01 | J87: ='Tableau d''amortissement B'!I101 -> 136707.1498 | M87: ='Tableau d''amortissement A'!C101 -> 2024-10-01 | N87: ='Tableau d''amortissement A'!K101 -> 17173.3211 | O87: =O86+'Tableau d''amortissement A'!H101 -> 53055.49353 | R87: ='Tableau d''amortissement B'!C101 -> 2017-10-01 | S87: ='Tableau d''amortissement B'!K101 -> 17774.77849 | T87: =T86+'Tableau d''amortissement B'!H101 -> 63292.8502
C88: ='Tableau d''amortissement A'!C102 -> 2024-11-01 | D88: ='Tableau d''amortissement A'!I102 -> 116274.1205 | I88: ='Tableau d''amortissement B'!C102 -> 2017-11-01 | J88: ='Tableau d''amortissement B'!I102 -> 135912.9429 | M88: ='Tableau d''amortissement A'!C102 -> 2024-11-01 | N88: ='Tableau d''amortissement A'!K102 -> 17338.99248 | O88: =O87+'Tableau d''amortissement A'!H102 -> 53725.87946 | R88: ='Tableau d''amortissement B'!C102 -> 2017-11-01 | S88: ='Tableau d''amortissement B'!K102 -> 17945.66243 | T88: =T87+'Tableau d''amortissement B'!H102 -> 64087.05708
C89: ='Tableau d''amortissement A'!C103 -> 2024-12-01 | D89: ='Tableau d''amortissement A'!I103 -> 115602.7849 | I89: ='Tableau d''amortissement B'!C103 -> 2017-12-01 | J89: ='Tableau d''amortissement B'!I103 -> 135117.7433 | M89: ='Tableau d''amortissement A'!C103 -> 2024-12-01 | N89: ='Tableau d''amortissement A'!K103 -> 17503.71415 | O89: =O88+'Tableau d''amortissement A'!H103 -> 54397.21511 | R89: ='Tableau d''amortissement B'!C103 -> 2017-12-01 | S89: ='Tableau d''amortissement B'!K103 -> 18115.55361 | T89: =T88+'Tableau d''amortissement B'!H103 -> 64882.25672
C90: ='Tableau d''amortissement A'!C104 -> 2025-01-01 | D90: ='Tableau d''amortissement A'!I104 -> 114930.4982 | I90: ='Tableau d''amortissement B'!C104 -> 2018-01-01 | J90: ='Tableau d''amortissement B'!I104 -> 134321.5496 | M90: ='Tableau d''amortissement A'!C104 -> 2025-01-01 | N90: ='Tableau d''amortissement A'!K104 -> 17667.48477 | O90: =O89+'Tableau d''amortissement A'!H104 -> 55069.50182 | R90: ='Tableau d''amortissement B'!C104 -> 2018-01-01 | S90: ='Tableau d''amortissement B'!K104 -> 18284.45078 | T90: =T89+'Tableau d''amortissement B'!H104 -> 65678.45036
C91: ='Tableau d''amortissement A'!C105 -> 2025-02-01 | D91: ='Tableau d''amortissement A'!I105 -> 114257.2591 | I91: ='Tableau d''amortissement B'!C105 -> 2018-02-01 | J91: ='Tableau d''amortissement B'!I105 -> 133524.3608 | M91: ='Tableau d''amortissement A'!C105 -> 2025-02-01 | N91: ='Tableau d''amortissement A'!K105 -> 17830.30297 | O91: =O90+'Tableau d''amortissement A'!H105 -> 55742.74093 | R91: ='Tableau d''amortissement B'!C105 -> 2018-02-01 | S91: ='Tableau d''amortissement B'!K105 -> 18452.35272 | T91: =T90+'Tableau d''amortissement B'!H105 -> 66475.63924
C92: ='Tableau d''amortissement A'!C106 -> 2025-03-01 | D92: ='Tableau d''amortissement A'!I106 -> 113583.0662 | I92: ='Tableau d''amortissement B'!C106 -> 2018-03-01 | J92: ='Tableau d''amortissement B'!I106 -> 132726.1754 | M92: ='Tableau d''amortissement A'!C106 -> 2025-03-01 | N92: ='Tableau d''amortissement A'!K106 -> 17992.16742 | O92: =O91+'Tableau d''amortissement A'!H106 -> 56416.93379 | R92: ='Tableau d''amortissement B'!C106 -> 2018-03-01 | S92: ='Tableau d''amortissement B'!K106 -> 18619.25817 | T92: =T91+'Tableau d''amortissement B'!H106 -> 67273.82461
C93: ='Tableau d''amortissement A'!C107 -> 2025-04-01 | D93: ='Tableau d''amortissement A'!I107 -> 112907.9182 | I93: ='Tableau d''amortissement B'!C107 -> 2018-04-01 | J93: ='Tableau d''amortissement B'!I107 -> 131926.9923 | M93: ='Tableau d''amortissement A'!C107 -> 2025-04-01 | N93: ='Tableau d''amortissement A'!K107 -> 18153.07677 | O93: =O92+'Tableau d''amortissement A'!H107 -> 57092.08177 | R93: ='Tableau d''amortissement B'!C107 -> 2018-04-01 | S93: ='Tableau d''amortissement B'!K107 -> 18785.16589 | T93: =T92+'Tableau d''amortissement B'!H107 -> 68073.00771
C94: ='Tableau d''amortissement A'!C108 -> 2025-05-01 | D94: ='Tableau d''amortissement A'!I108 -> 112231.8138 | I94: ='Tableau d''amortissement B'!C108 -> 2018-05-01 | J94: ='Tableau d''amortissement B'!I108 -> 131126.8102 | M94: ='Tableau d''amortissement A'!C108 -> 2025-05-01 | N94: ='Tableau d''amortissement A'!K108 -> 18313.02965 | O94: =O93+'Tableau d''amortissement A'!H108 -> 57768.1862 | R94: ='Tableau d''amortissement B'!C108 -> 2018-05-01 | S94: ='Tableau d''amortissement B'!K108 -> 18950.07463 | T94: =T93+'Tableau d''amortissement B'!H108 -> 68873.18978
C95: ='Tableau d''amortissement A'!C109 -> 2025-06-01 | D95: ='Tableau d''amortissement A'!I109 -> 111554.7516 | I95: ='Tableau d''amortissement B'!C109 -> 2018-06-01 | J95: ='Tableau d''amortissement B'!I109 -> 130325.6279 | M95: ='Tableau d''amortissement A'!C109 -> 2025-06-01 | N95: ='Tableau d''amortissement A'!K109 -> 18472.02472 | O95: =O94+'Tableau d''amortissement A'!H109 -> 58445.24845 | R95: ='Tableau d''amortissement B'!C109 -> 2018-06-01 | S95: ='Tableau d''amortissement B'!K109 -> 19113.98315 | T95: =T94+'Tableau d''amortissement B'!H109 -> 69674.37209
C96: ='Tableau d''amortissement A'!C110 -> 2025-07-01 | D96: ='Tableau d''amortissement A'!I110 -> 110876.7301 | I96: ='Tableau d''amortissement B'!C110 -> 2018-07-01 | J96: ='Tableau d''amortissement B'!I110 -> 129523.4441 | M96: ='Tableau d''amortissement A'!C110 -> 2025-07-01 | N96: ='Tableau d''amortissement A'!K110 -> 18630.06062 | O96: =O95+'Tableau d''amortissement A'!H110 -> 59123.26987 | R96: ='Tableau d''amortissement B'!C110 -> 2018-07-01 | S96: ='Tableau d''amortissement B'!K110 -> 19276.89018 | T96: =T95+'Tableau d''amortissement B'!H110 -> 70476.55587
C97: ='Tableau d''amortissement A'!C111 -> 2025-08-01 | D97: ='Tableau d''amortissement A'!I111 -> 110197.7482 | I97: ='Tableau d''amortissement B'!C111 -> 2018-08-01 | J97: ='Tableau d''amortissement B'!I111 -> 128720.2576 | M97: ='Tableau d''amortissement A'!C111 -> 2025-08-01 | N97: ='Tableau d''amortissement A'!K111 -> 18787.13598 | O97: =O96+'Tableau d''amortissement A'!H111 -> 59802.25182 | R97: ='Tableau d''amortissement B'!C111 -> 2018-08-01 | S97: ='Tableau d''amortissement B'!K111 -> 19438.79449 | T97: =T96+'Tableau d''amortissement B'!H111 -> 71279.74238
C98: ='Tableau d''amortissement A'!C112 -> 2025-09-01 | D98: ='Tableau d''amortissement A'!I112 -> 109517.8043 | I98: ='Tableau d''amortissement B'!C112 -> 2018-09-01 | J98: ='Tableau d''amortissement B'!I112 -> 127916.0671 | M98: ='Tableau d''amortissement A'!C112 -> 2025-09-01 | N98: ='Tableau d''amortissement A'!K112 -> 18943.24946 | O98: =O97+'Tableau d''amortissement A'!H112 -> 60482.19566 | R98: ='Tableau d''amortissement B'!C112 -> 2018-09-01 | S98: ='Tableau d''amortissement B'!K112 -> 19599.69481 | T98: =T97+'Tableau d''amortissement B'!H112 -> 72083.93288
C99: ='Tableau d''amortissement A'!C113 -> 2025-10-01 | D99: ='Tableau d''amortissement A'!I113 -> 108836.8972 | I99: ='Tableau d''amortissement B'!C113 -> 2018-10-01 | J99: ='Tableau d''amortissement B'!I113 -> 127110.8714 | M99: ='Tableau d''amortissement A'!C113 -> 2025-10-01 | N99: ='Tableau d''amortissement A'!K113 -> 19098.39968 | O99: =O98+'Tableau d''amortissement A'!H113 -> 61163.10275 | R99: ='Tableau d''amortissement B'!C113 -> 2018-10-01 | S99: ='Tableau d''amortissement B'!K113 -> 19759.58989 | T99: =T98+'Tableau d''amortissement B'!H113 -> 72889.12861
C100: ='Tableau d''amortissement A'!C114 -> 2025-11-01 | D100: ='Tableau d''amortissement A'!I114 -> 108155.0255 | I100: ='Tableau d''amortissement B'!C114 -> 2018-11-01 | J100: ='Tableau d''amortissement B'!I114 -> 126304.6692 | M100: ='Tableau d''amortissement A'!C114 -> 2025-11-01 | N100: ='Tableau d''amortissement A'!K114 -> 19252.58529 | O100: =O99+'Tableau d''amortissement A'!H114 -> 61844.97446 | R100: ='Tableau d''amortissement B'!C114 -> 2018-11-01 | S100: ='Tableau d''amortissement B'!K114 -> 19918.47848 | T100: =T99+'Tableau d''amortissement B'!H114 -> 73695.33084
C101: ='Tableau d''amortissement A'!C115 -> 2025-12-01 | D101: ='Tableau d''amortissement A'!I115 -> 107472.1878 | I101: ='Tableau d''amortissement B'!C115 -> 2018-12-01 | J101: ='Tableau d''amortissement B'!I115 -> 125497.4592 | M101: ='Tableau d''amortissement A'!C115 -> 2025-12-01 | N101: ='Tableau d''amortissement A'!K115 -> 19405.80491 | O101: =O100+'Tableau d''amortissement A'!H115 -> 62527.81216 | R101: ='Tableau d''amortissement B'!C115 -> 2018-12-01 | S101: ='Tableau d''amortissement B'!K115 -> 20076.35932 | T101: =T100+'Tableau d''amortissement B'!H115 -> 74502.54082
C102: ='Tableau d''amortissement A'!C116 -> 2026-01-01 | D102: ='Tableau d''amortissement A'!I116 -> 106788.3828 | I102: ='Tableau d''amortissement B'!C116 -> 2019-01-01 | J102: ='Tableau d''amortissement B'!I116 -> 124689.2402 | M102: ='Tableau d''amortissement A'!C116 -> 2026-01-01 | N102: ='Tableau d''amortissement A'!K116 -> 19558.05717 | O102: =O101+'Tableau d''amortissement A'!H116 -> 63211.61721 | R102: ='Tableau d''amortissement B'!C116 -> 2019-01-01 | S102: ='Tableau d''amortissement B'!K116 -> 20233.23114 | T102: =T101+'Tableau d''amortissement B'!H116 -> 75310.75982
C103: ='Tableau d''amortissement A'!C117 -> 2026-02-01 | D103: ='Tableau d''amortissement A'!I117 -> 106103.609 | I103: ='Tableau d''amortissement B'!C117 -> 2019-02-01 | J103: ='Tableau d''amortissement B'!I117 -> 123880.0109 | M103: ='Tableau d''amortissement A'!C117 -> 2026-02-01 | N103: ='Tableau d''amortissement A'!K117 -> 19709.34072 | O103: =O102+'Tableau d''amortissement A'!H117 -> 63896.39099 | R103: ='Tableau d''amortissement B'!C117 -> 2019-02-01 | S103: ='Tableau d''amortissement B'!K117 -> 20389.09269 | T103: =T102+'Tableau d''amortissement B'!H117 -> 76119.98909
C104: ='Tableau d''amortissement A'!C118 -> 2026-03-01 | D104: ='Tableau d''amortissement A'!I118 -> 105417.8651 | I104: ='Tableau d''amortissement B'!C118 -> 2019-03-01 | J104: ='Tableau d''amortissement B'!I118 -> 123069.7701 | M104: ='Tableau d''amortissement A'!C118 -> 2026-03-01 | N104: ='Tableau d''amortissement A'!K118 -> 19859.65416 | O104: =O103+'Tableau d''amortissement A'!H118 -> 64582.13486 | R104: ='Tableau d''amortissement B'!C118 -> 2019-03-01 | S104: ='Tableau d''amortissement B'!K118 -> 20543.9427 | T104: =T103+'Tableau d''amortissement B'!H118 -> 76930.22989
C105: ='Tableau d''amortissement A'!C119 -> 2026-04-01 | D105: ='Tableau d''amortissement A'!I119 -> 104731.1498 | I105: ='Tableau d''amortissement B'!C119 -> 2019-04-01 | J105: ='Tableau d''amortissement B'!I119 -> 122258.5165 | M105: ='Tableau d''amortissement A'!C119 -> 2026-04-01 | N105: ='Tableau d''amortissement A'!K119 -> 20008.99614 | O105: =O104+'Tableau d''amortissement A'!H119 -> 65268.8502 | R105: ='Tableau d''amortissement B'!C119 -> 2019-04-01 | S105: ='Tableau d''amortissement B'!K119 -> 20697.77992 | T105: =T104+'Tableau d''amortissement B'!H119 -> 77741.48349
C106: ='Tableau d''amortissement A'!C120 -> 2026-05-01 | D106: ='Tableau d''amortissement A'!I120 -> 104043.4616 | I106: ='Tableau d''amortissement B'!C120 -> 2019-05-01 | J106: ='Tableau d''amortissement B'!I120 -> 121446.2488 | M106: ='Tableau d''amortissement A'!C120 -> 2026-05-01 | N106: ='Tableau d''amortissement A'!K120 -> 20157.36527 | O106: =O105+'Tableau d''amortissement A'!H120 -> 65956.53839 | R106: ='Tableau d''amortissement B'!C120 -> 2019-05-01 | S106: ='Tableau d''amortissement B'!K120 -> 20850.60306 | T106: =T105+'Tableau d''amortissement B'!H120 -> 78553.75117
C107: ='Tableau d''amortissement A'!C121 -> 2026-06-01 | D107: ='Tableau d''amortissement A'!I121 -> 103354.7992 | I107: ='Tableau d''amortissement B'!C121 -> 2019-06-01 | J107: ='Tableau d''amortissement B'!I121 -> 120632.9658 | M107: ='Tableau d''amortissement A'!C121 -> 2026-06-01 | N107: ='Tableau d''amortissement A'!K121 -> 20304.76017 | O107: =O106+'Tableau d''amortissement A'!H121 -> 66645.2008 | R107: ='Tableau d''amortissement B'!C121 -> 2019-06-01 | S107: ='Tableau d''amortissement B'!K121 -> 21002.41087 | T107: =T106+'Tableau d''amortissement B'!H121 -> 79367.03417
C108: ='Tableau d''amortissement A'!C122 -> 2026-07-01 | D108: ='Tableau d''amortissement A'!I122 -> 102665.1612 | I108: ='Tableau d''amortissement B'!C122 -> 2019-07-01 | J108: ='Tableau d''amortissement B'!I122 -> 119818.6662 | M108: ='Tableau d''amortissement A'!C122 -> 2026-07-01 | N108: ='Tableau d''amortissement A'!K122 -> 20451.17947 | O108: =O107+'Tableau d''amortissement A'!H122 -> 67334.83882 | R108: ='Tableau d''amortissement B'!C122 -> 2019-07-01 | S108: ='Tableau d''amortissement B'!K122 -> 21153.20208 | T108: =T107+'Tableau d''amortissement B'!H122 -> 80181.33378
C109: ='Tableau d''amortissement A'!C123 -> 2026-08-01 | D109: ='Tableau d''amortissement A'!I123 -> 101974.5462 | I109: ='Tableau d''amortissement B'!C123 -> 2019-08-01 | J109: ='Tableau d''amortissement B'!I123 -> 119003.3487 | M109: ='Tableau d''amortissement A'!C123 -> 2026-08-01 | N109: ='Tableau d''amortissement A'!K123 -> 20596.62178 | O109: =O108+'Tableau d''amortissement A'!H123 -> 68025.45382 | R109: ='Tableau d''amortissement B'!C123 -> 2019-08-01 | S109: ='Tableau d''amortissement B'!K123 -> 21302.97541 | T109: =T108+'Tableau d''amortissement B'!H123 -> 80996.65127
C110: ='Tableau d''amortissement A'!C124 -> 2026-09-01 | D110: ='Tableau d''amortissement A'!I124 -> 101282.9528 | I110: ='Tableau d''amortissement B'!C124 -> 2019-09-01 | J110: ='Tableau d''amortissement B'!I124 -> 118187.0121 | M110: ='Tableau d''amortissement A'!C124 -> 2026-09-01 | N110: ='Tableau d''amortissement A'!K124 -> 20741.08572 | O110: =O109+'Tableau d''amortissement A'!H124 -> 68717.0472 | R110: ='Tableau d''amortissement B'!C124 -> 2019-09-01 | S110: ='Tableau d''amortissement B'!K124 -> 21451.7296 | T110: =T109+'Tableau d''amortissement B'!H124 -> 81812.9879
C111: ='Tableau d''amortissement A'!C125 -> 2026-10-01 | D111: ='Tableau d''amortissement A'!I125 -> 100590.3797 | I111: ='Tableau d''amortissement B'!C125 -> 2019-10-01 | J111: ='Tableau d''amortissement B'!I125 -> 117369.655 | M111: ='Tableau d''amortissement A'!C125 -> 2026-10-01 | N111: ='Tableau d''amortissement A'!K125 -> 20884.56991 | O111: =O110+'Tableau d''amortissement A'!H125 -> 69409.62033 | R111: ='Tableau d''amortissement B'!C125 -> 2019-10-01 | S111: ='Tableau d''amortissement B'!K125 -> 21599.46337 | T111: =T110+'Tableau d''amortissement B'!H125 -> 82630.34495
C112: ='Tableau d''amortissement A'!C126 -> 2026-11-01 | D112: ='Tableau d''amortissement A'!I126 -> 99896.82539 | I112: ='Tableau d''amortissement B'!C126 -> 2019-11-01 | J112: ='Tableau d''amortissement B'!I126 -> 116551.2763 | M112: ='Tableau d''amortissement A'!C126 -> 2026-11-01 | N112: ='Tableau d''amortissement A'!K126 -> 21027.07294 | O112: =O111+'Tableau d''amortissement A'!H126 -> 70103.17461 | R112: ='Tableau d''amortissement B'!C126 -> 2019-11-01 | S112: ='Tableau d''amortissement B'!K126 -> 21746.17543 | T112: =T111+'Tableau d''amortissement B'!H126 -> 83448.7237
C113: ='Tableau d''amortissement A'!C127 -> 2026-12-01 | D113: ='Tableau d''amortissement A'!I127 -> 99202.28857 | I113: ='Tableau d''amortissement B'!C127 -> 2019-12-01 | J113: ='Tableau d''amortissement B'!I127 -> 115731.8746 | M113: ='Tableau d''amortissement A'!C127 -> 2026-12-01 | N113: ='Tableau d''amortissement A'!K127 -> 21168.59345 | O113: =O112+'Tableau d''amortissement A'!H127 -> 70797.71143 | R113: ='Tableau d''amortissement B'!C127 -> 2019-12-01 | S113: ='Tableau d''amortissement B'!K127 -> 21891.86453 | T113: =T112+'Tableau d''amortissement B'!H127 -> 84268.12542
C114: ='Tableau d''amortissement A'!C128 -> 2027-01-01 | D114: ='Tableau d''amortissement A'!I128 -> 98506.76783 | I114: ='Tableau d''amortissement B'!C128 -> 2020-01-01 | J114: ='Tableau d''amortissement B'!I128 -> 114911.4486 | M114: ='Tableau d''amortissement A'!C128 -> 2027-01-01 | N114: ='Tableau d''amortissement A'!K128 -> 21309.13002 | O114: =O113+'Tableau d''amortissement A'!H128 -> 71493.23217 | R114: ='Tableau d''amortissement B'!C128 -> 2020-01-01 | S114: ='Tableau d''amortissement B'!K128 -> 22036.52937 | T114: =T113+'Tableau d''amortissement B'!H128 -> 85088.5514
C115: ='Tableau d''amortissement A'!C129 -> 2027-02-01 | D115: ='Tableau d''amortissement A'!I129 -> 97810.26177 | I115: ='Tableau d''amortissement B'!C129 -> 2020-02-01 | J115: ='Tableau d''amortissement B'!I129 -> 114089.9971 | M115: ='Tableau d''amortissement A'!C129 -> 2027-02-01 | N115: ='Tableau d''amortissement A'!K129 -> 21448.68128 | O115: =O114+'Tableau d''amortissement A'!H129 -> 72189.73823 | R115: ='Tableau d''amortissement B'!C129 -> 2020-02-01 | S115: ='Tableau d''amortissement B'!K129 -> 22180.16868 | T115: =T114+'Tableau d''amortissement B'!H129 -> 85910.00291
C116: ='Tableau d''amortissement A'!C130 -> 2027-03-01 | D116: ='Tableau d''amortissement A'!I130 -> 97112.76899 | I116: ='Tableau d''amortissement B'!C130 -> 2020-03-01 | J116: ='Tableau d''amortissement B'!I130 -> 113267.5188 | M116: ='Tableau d''amortissement A'!C130 -> 2027-03-01 | N116: ='Tableau d''amortissement A'!K130 -> 21587.24581 | O116: =O115+'Tableau d''amortissement A'!H130 -> 72887.23101 | R116: ='Tableau d''amortissement B'!C130 -> 2020-03-01 | S116: ='Tableau d''amortissement B'!K130 -> 22322.78118 | T116: =T115+'Tableau d''amortissement B'!H130 -> 86732.48123
C117: ='Tableau d''amortissement A'!C131 -> 2027-04-01 | D117: ='Tableau d''amortissement A'!I131 -> 96414.28809 | I117: ='Tableau d''amortissement B'!C131 -> 2020-04-01 | J117: ='Tableau d''amortissement B'!I131 -> 112444.0124 | M117: ='Tableau d''amortissement A'!C131 -> 2027-04-01 | N117: ='Tableau d''amortissement A'!K131 -> 21724.82224 | O117: =O116+'Tableau d''amortissement A'!H131 -> 73585.71191 | R117: ='Tableau d''amortissement B'!C131 -> 2020-04-01 | S117: ='Tableau d''amortissement B'!K131 -> 22464.36558 | T117: =T116+'Tableau d''amortissement B'!H131 -> 87555.98765
C118: ='Tableau d''amortissement A'!C132 -> 2027-05-01 | D118: ='Tableau d''amortissement A'!I132 -> 95714.81769 | I118: ='Tableau d''amortissement B'!C132 -> 2020-05-01 | J118: ='Tableau d''amortissement B'!I132 -> 111619.4766 | M118: ='Tableau d''amortissement A'!C132 -> 2027-05-01 | N118: ='Tableau d''amortissement A'!K132 -> 21861.40914 | O118: =O117+'Tableau d''amortissement A'!H132 -> 74285.18231 | R118: ='Tableau d''amortissement B'!C132 -> 2020-05-01 | S118: ='Tableau d''amortissement B'!K132 -> 22604.92059 | T118: =T117+'Tableau d''amortissement B'!H132 -> 88380.52345
C119: ='Tableau d''amortissement A'!C133 -> 2027-06-01 | D119: ='Tableau d''amortissement A'!I133 -> 95014.35636 | I119: ='Tableau d''amortissement B'!C133 -> 2020-06-01 | J119: ='Tableau d''amortissement B'!I133 -> 110793.9101 | M119: ='Tableau d''amortissement A'!C133 -> 2027-06-01 | N119: ='Tableau d''amortissement A'!K133 -> 21997.00514 | O119: =O118+'Tableau d''amortissement A'!H133 -> 74985.64364 | R119: ='Tableau d''amortissement B'!C133 -> 2020-06-01 | S119: ='Tableau d''amortissement B'!K133 -> 22744.44494 | T119: =T118+'Tableau d''amortissement B'!H133 -> 89206.08992
C120: ='Tableau d''amortissement A'!C134 -> 2027-07-01 | D120: ='Tableau d''amortissement A'!I134 -> 94312.90271 | I120: ='Tableau d''amortissement B'!C134 -> 2020-07-01 | J120: ='Tableau d''amortissement B'!I134 -> 109967.3116 | M120: ='Tableau d''amortissement A'!C134 -> 2027-07-01 | N120: ='Tableau d''amortissement A'!K134 -> 22131.60881 | O120: =O119+'Tableau d''amortissement A'!H134 -> 75687.09729 | R120: ='Tableau d''amortissement B'!C134 -> 2020-07-01 | S120: ='Tableau d''amortissement B'!K134 -> 22882.93733 | T120: =T119+'Tableau d''amortissement B'!H134 -> 90032.68835
C121: ='Tableau d''amortissement A'!C135 -> 2027-08-01 | D121: ='Tableau d''amortissement A'!I135 -> 93610.45534 | I121: ='Tableau d''amortissement B'!C135 -> 2020-08-01 | J121: ='Tableau d''amortissement B'!I135 -> 109139.68 | M121: ='Tableau d''amortissement A'!C135 -> 2027-08-01 | N121: ='Tableau d''amortissement A'!K135 -> 22265.21875 | O121: =O120+'Tableau d''amortissement A'!H135 -> 76389.54466 | R121: ='Tableau d''amortissement B'!C135 -> 2020-08-01 | S121: ='Tableau d''amortissement B'!K135 -> 23020.39647 | T121: =T120+'Tableau d''amortissement B'!H135 -> 90860.32003
C122: ='Tableau d''amortissement A'!C136 -> 2027-09-01 | D122: ='Tableau d''amortissement A'!I136 -> 92907.01284 | I122: ='Tableau d''amortissement B'!C136 -> 2020-09-01 | J122: ='Tableau d''amortissement B'!I136 -> 108311.0138 | M122: ='Tableau d''amortissement A'!C136 -> 2027-09-01 | N122: ='Tableau d''amortissement A'!K136 -> 22397.83356 | O122: =O121+'Tableau d''amortissement A'!H136 -> 77092.98716 | R122: ='Tableau d''amortissement B'!C136 -> 2020-09-01 | S122: ='Tableau d''amortissement B'!K136 -> 23156.82107 | T122: =T121+'Tableau d''amortissement B'!H136 -> 91688.98625
C123: ='Tableau d''amortissement A'!C137 -> 2027-10-01 | D123: ='Tableau d''amortissement A'!I137 -> 92202.57379 | I123: ='Tableau d''amortissement B'!C137 -> 2020-10-01 | J123: ='Tableau d''amortissement B'!I137 -> 107481.3117 | M123: ='Tableau d''amortissement A'!C137 -> 2027-10-01 | N123: ='Tableau d''amortissement A'!K137 -> 22529.45183 | O123: =O122+'Tableau d''amortissement A'!H137 -> 77797.42621 | R123: ='Tableau d''amortissement B'!C137 -> 2020-10-01 | S123: ='Tableau d''amortissement B'!K137 -> 23292.20983 | T123: =T122+'Tableau d''amortissement B'!H137 -> 92518.6883
C124: ='Tableau d''amortissement A'!C138 -> 2027-11-01 | D124: ='Tableau d''amortissement A'!I138 -> 91497.13678 | I124: ='Tableau d''amortissement B'!C138 -> 2020-11-01 | J124: ='Tableau d''amortissement B'!I138 -> 106650.5725 | M124: ='Tableau d''amortissement A'!C138 -> 2027-11-01 | N124: ='Tableau d''amortissement A'!K138 -> 22660.07215 | O124: =O123+'Tableau d''amortissement A'!H138 -> 78502.86322 | R124: ='Tableau d''amortissement B'!C138 -> 2020-11-01 | S124: ='Tableau d''amortissement B'!K138 -> 23426.56147 | T124: =T123+'Tableau d''amortissement B'!H138 -> 93349.42748
C125: ='Tableau d''amortissement A'!C139 -> 2027-12-01 | D125: ='Tableau d''amortissement A'!I139 -> 90790.70041 | I125: ='Tableau d''amortissement B'!C139 -> 2020-12-01 | J125: ='Tableau d''amortissement B'!I139 -> 105818.7949 | M125: ='Tableau d''amortissement A'!C139 -> 2027-12-01 | N125: ='Tableau d''amortissement A'!K139 -> 22789.69309 | O125: =O124+'Tableau d''amortissement A'!H139 -> 79209.29959 | R125: ='Tableau d''amortissement B'!C139 -> 2020-12-01 | S125: ='Tableau d''amortissement B'!K139 -> 23559.87469 | T125: =T124+'Tableau d''amortissement B'!H139 -> 94181.20508
C126: ='Tableau d''amortissement A'!C140 -> 2028-01-01 | D126: ='Tableau d''amortissement A'!I140 -> 90083.26325 | I126: ='Tableau d''amortissement B'!C140 -> 2021-01-01 | J126: ='Tableau d''amortissement B'!I140 -> 104985.9776 | M126: ='Tableau d''amortissement A'!C140 -> 2028-01-01 | N126: ='Tableau d''amortissement A'!K140 -> 22918.31325 | O126: =O125+'Tableau d''amortissement A'!H140 -> 79916.73675 | R126: ='Tableau d''amortissement B'!C140 -> 2021-01-01 | S126: ='Tableau d''amortissement B'!K140 -> 23692.14818 | T126: =T125+'Tableau d''amortissement B'!H140 -> 95014.0224
C127: ='Tableau d''amortissement A'!C141 -> 2028-02-01 | D127: ='Tableau d''amortissement A'!I141 -> 89374.82389 | I127: ='Tableau d''amortissement B'!C141 -> 2021-02-01 | J127: ='Tableau d''amortissement B'!I141 -> 104152.1193 | M127: ='Tableau d''amortissement A'!C141 -> 2028-02-01 | N127: ='Tableau d''amortissement A'!K141 -> 23045.9312 | O127: =O126+'Tableau d''amortissement A'!H141 -> 80625.17611 | R127: ='Tableau d''amortissement B'!C141 -> 2021-02-01 | S127: ='Tableau d''amortissement B'!K141 -> 23823.38065 | T127: =T126+'Tableau d''amortissement B'!H141 -> 95847.88075
C128: ='Tableau d''amortissement A'!C142 -> 2028-03-01 | D128: ='Tableau d''amortissement A'!I142 -> 88665.38091 | I128: ='Tableau d''amortissement B'!C142 -> 2021-03-01 | J128: ='Tableau d''amortissement B'!I142 -> 103317.2186 | M128: ='Tableau d''amortissement A'!C142 -> 2028-03-01 | N128: ='Tableau d''amortissement A'!K142 -> 23172.54554 | O128: =O127+'Tableau d''amortissement A'!H142 -> 81334.61909 | R128: ='Tableau d''amortissement B'!C142 -> 2021-03-01 | S128: ='Tableau d''amortissement B'!K142 -> 23953.5708 | T128: =T127+'Tableau d''amortissement B'!H142 -> 96682.78142
C129: ='Tableau d''amortissement A'!C143 -> 2028-04-01 | D129: ='Tableau d''amortissement A'!I143 -> 87954.93288 | I129: ='Tableau d''amortissement B'!C143 -> 2021-04-01 | J129: ='Tableau d''amortissement B'!I143 -> 102481.2743 | M129: ='Tableau d''amortissement A'!C143 -> 2028-04-01 | N129: ='Tableau d''amortissement A'!K143 -> 23298.15483 | O129: =O128+'Tableau d''amortissement A'!H143 -> 82045.06712 | R129: ='Tableau d''amortissement B'!C143 -> 2021-04-01 | S129: ='Tableau d''amortissement B'!K143 -> 24082.71733 | T129: =T128+'Tableau d''amortissement B'!H143 -> 97518.72571
C130: ='Tableau d''amortissement A'!C144 -> 2028-05-01 | D130: ='Tableau d''amortissement A'!I144 -> 87243.47839 | I130: ='Tableau d''amortissement B'!C144 -> 2021-05-01 | J130: ='Tableau d''amortissement B'!I144 -> 101644.2851 | M130: ='Tableau d''amortissement A'!C144 -> 2028-05-01 | N130: ='Tableau d''amortissement A'!K144 -> 23422.75765 | O130: =O129+'Tableau d''amortissement A'!H144 -> 82756.52161 | R130: ='Tableau d''amortissement B'!C144 -> 2021-05-01 | S130: ='Tableau d''amortissement B'!K144 -> 24210.81892 | T130: =T129+'Tableau d''amortissement B'!H144 -> 98355.71494
C131: ='Tableau d''amortissement A'!C145 -> 2028-06-01 | D131: ='Tableau d''amortissement A'!I145 -> 86531.016 | I131: ='Tableau d''amortissement B'!C145 -> 2021-06-01 | J131: ='Tableau d''amortissement B'!I145 -> 100806.2496 | M131: ='Tableau d''amortissement A'!C145 -> 2028-06-01 | N131: ='Tableau d''amortissement A'!K145 -> 23546.35258 | O131: =O130+'Tableau d''amortissement A'!H145 -> 83468.984 | R131: ='Tableau d''amortissement B'!C145 -> 2021-06-01 | S131: ='Tableau d''amortissement B'!K145 -> 24337.87428 | T131: =T130+'Tableau d''amortissement B'!H145 -> 99193.7504
C132: ='Tableau d''amortissement A'!C146 -> 2028-07-01 | D132: ='Tableau d''amortissement A'!I146 -> 85817.54429 | I132: ='Tableau d''amortissement B'!C146 -> 2021-07-01 | J132: ='Tableau d''amortissement B'!I146 -> 99967.1666 | M132: ='Tableau d''amortissement A'!C146 -> 2028-07-01 | N132: ='Tableau d''amortissement A'!K146 -> 23668.93818 | O132: =O131+'Tableau d''amortissement A'!H146 -> 84182.45571 | R132: ='Tableau d''amortissement B'!C146 -> 2021-07-01 | S132: ='Tableau d''amortissement B'!K146 -> 24463.88209 | T132: =T131+'Tableau d''amortissement B'!H146 -> 100032.8334
C133: ='Tableau d''amortissement A'!C147 -> 2028-08-01 | D133: ='Tableau d''amortissement A'!I147 -> 85103.06182 | I133: ='Tableau d''amortissement B'!C147 -> 2021-08-01 | J133: ='Tableau d''amortissement B'!I147 -> 99127.03474 | M133: ='Tableau d''amortissement A'!C147 -> 2028-08-01 | N133: ='Tableau d''amortissement A'!K147 -> 23790.51304 | O133: =O132+'Tableau d''amortissement A'!H147 -> 84896.93818 | R133: ='Tableau d''amortissement B'!C147 -> 2021-08-01 | S133: ='Tableau d''amortissement B'!K147 -> 24588.84105 | T133: =T132+'Tableau d''amortissement B'!H147 -> 100872.9653
C134: ='Tableau d''amortissement A'!C148 -> 2028-09-01 | D134: ='Tableau d''amortissement A'!I148 -> 84387.56718 | I134: ='Tableau d''amortissement B'!C148 -> 2021-09-01 | J134: ='Tableau d''amortissement B'!I148 -> 98285.85271 | M134: ='Tableau d''amortissement A'!C148 -> 2028-09-01 | N134: ='Tableau d''amortissement A'!K148 -> 23911.07571 | O134: =O133+'Tableau d''amortissement A'!H148 -> 85612.43282 | R134: ='Tableau d''amortissement B'!C148 -> 2021-09-01 | S134: ='Tableau d''amortissement B'!K148 -> 24712.74984 | T134: =T133+'Tableau d''amortissement B'!H148 -> 101714.1473
C135: ='Tableau d''amortissement A'!C149 -> 2028-10-01 | D135: ='Tableau d''amortissement A'!I149 -> 83671.05891 | I135: ='Tableau d''amortissement B'!C149 -> 2021-10-01 | J135: ='Tableau d''amortissement B'!I149 -> 97443.61921 | M135: ='Tableau d''amortissement A'!C149 -> 2028-10-01 | N135: ='Tableau d''amortissement A'!K149 -> 24030.62476 | O135: =O134+'Tableau d''amortissement A'!H149 -> 86328.94109 | R135: ='Tableau d''amortissement B'!C149 -> 2021-10-01 | S135: ='Tableau d''amortissement B'!K149 -> 24835.60716 | T135: =T134+'Tableau d''amortissement B'!H149 -> 102556.3808
C136: ='Tableau d''amortissement A'!C150 -> 2028-11-01 | D136: ='Tableau d''amortissement A'!I150 -> 82953.5356 | I136: ='Tableau d''amortissement B'!C150 -> 2021-11-01 | J136: ='Tableau d''amortissement B'!I150 -> 96600.33292 | M136: ='Tableau d''amortissement A'!C150 -> 2028-11-01 | N136: ='Tableau d''amortissement A'!K150 -> 24149.15876 | O136: =O135+'Tableau d''amortissement A'!H150 -> 87046.4644 | R136: ='Tableau d''amortissement B'!C150 -> 2021-11-01 | S136: ='Tableau d''amortissement B'!K150 -> 24957.41168 | T136: =T135+'Tableau d''amortissement B'!H150 -> 103399.6671
C137: ='Tableau d''amortissement A'!C151 -> 2028-12-01 | D137: ='Tableau d''amortissement A'!I151 -> 82234.99579 | I137: ='Tableau d''amortissement B'!C151 -> 2021-12-01 | J137: ='Tableau d''amortissement B'!I151 -> 95755.99252 | M137: ='Tableau d''amortissement A'!C151 -> 2028-12-01 | N137: ='Tableau d''amortissement A'!K151 -> 24266.67627 | O137: =O136+'Tableau d''amortissement A'!H151 -> 87765.00421 | R137: ='Tableau d''amortissement B'!C151 -> 2021-12-01 | S137: ='Tableau d''amortissement B'!K151 -> 25078.1621 | T137: =T136+'Tableau d''amortissement B'!H151 -> 104244.0075
C138: ='Tableau d''amortissement A'!C152 -> 2029-01-01 | D138: ='Tableau d''amortissement A'!I152 -> 81515.43805 | I138: ='Tableau d''amortissement B'!C152 -> 2022-01-01 | J138: ='Tableau d''amortissement B'!I152 -> 94910.59669 | M138: ='Tableau d''amortissement A'!C152 -> 2029-01-01 | N138: ='Tableau d''amortissement A'!K152 -> 24383.17585 | O138: =O137+'Tableau d''amortissement A'!H152 -> 88484.56195 | R138: ='Tableau d''amortissement B'!C152 -> 2022-01-01 | S138: ='Tableau d''amortissement B'!K152 -> 25197.85709 | T138: =T137+'Tableau d''amortissement B'!H152 -> 105089.4033
C139: ='Tableau d''amortissement A'!C153 -> 2029-02-01 | D139: ='Tableau d''amortissement A'!I153 -> 80794.86094 | I139: ='Tableau d''amortissement B'!C153 -> 2022-02-01 | J139: ='Tableau d''amortissement B'!I153 -> 94064.14412 | M139: ='Tableau d''amortissement A'!C153 -> 2029-02-01 | N139: ='Tableau d''amortissement A'!K153 -> 24498.65605 | O139: =O138+'Tableau d''amortissement A'!H153 -> 89205.13906 | R139: ='Tableau d''amortissement B'!C153 -> 2022-02-01 | S139: ='Tableau d''amortissement B'!K153 -> 25316.49533 | T139: =T138+'Tableau d''amortissement B'!H153 -> 105935.8559
C140: ='Tableau d''amortissement A'!C154 -> 2029-03-01 | D140: ='Tableau d''amortissement A'!I154 -> 80073.26301 | I140: ='Tableau d''amortissement B'!C154 -> 2022-03-01 | J140: ='Tableau d''amortissement B'!I154 -> 93216.63348 | M140: ='Tableau d''amortissement A'!C154 -> 2029-03-01 | N140: ='Tableau d''amortissement A'!K154 -> 24613.11544 | O140: =O139+'Tableau d''amortissement A'!H154 -> 89926.73699 | R140: ='Tableau d''amortissement B'!C154 -> 2022-03-01 | S140: ='Tableau d''amortissement B'!K154 -> 25434.07551 | T140: =T139+'Tableau d''amortissement B'!H154 -> 106783.3665
C141: ='Tableau d''amortissement A'!C155 -> 2029-04-01 | D141: ='Tableau d''amortissement A'!I155 -> 79350.64281 | I141: ='Tableau d''amortissement B'!C155 -> 2022-04-01 | J141: ='Tableau d''amortissement B'!I155 -> 92368.06345 | M141: ='Tableau d''amortissement A'!C155 -> 2029-04-01 | N141: ='Tableau d''amortissement A'!K155 -> 24726.55256 | O141: =O140+'Tableau d''amortissement A'!H155 -> 90649.35719 | R141: ='Tableau d''amortissement B'!C155 -> 2022-04-01 | S141: ='Tableau d''amortissement B'!K155 -> 25550.5963 | T141: =T140+'Tableau d''amortissement B'!H155 -> 107631.9365
C142: ='Tableau d''amortissement A'!C156 -> 2029-05-01 | D142: ='Tableau d''amortissement A'!I156 -> 78626.9989 | I142: ='Tableau d''amortissement B'!C156 -> 2022-05-01 | J142: ='Tableau d''amortissement B'!I156 -> 91518.43271 | M142: ='Tableau d''amortissement A'!C156 -> 2029-05-01 | N142: ='Tableau d''amortissement A'!K156 -> 24838.96597 | O142: =O141+'Tableau d''amortissement A'!H156 -> 91373.0011 | R142: ='Tableau d''amortissement B'!C156 -> 2022-05-01 | S142: ='Tableau d''amortissement B'!K156 -> 25666.05638 | T142: =T141+'Tableau d''amortissement B'!H156 -> 108481.5673
C143: ='Tableau d''amortissement A'!C157 -> 2029-06-01 | D143: ='Tableau d''amortissement A'!I157 -> 77902.32984 | I143: ='Tableau d''amortissement B'!C157 -> 2022-06-01 | J143: ='Tableau d''amortissement B'!I157 -> 90667.73994 | M143: ='Tableau d''amortissement A'!C157 -> 2029-06-01 | N143: ='Tableau d''amortissement A'!K157 -> 24950.35422 | O143: =O142+'Tableau d''amortissement A'!H157 -> 92097.67016 | R143: ='Tableau d''amortissement B'!C157 -> 2022-06-01 | S143: ='Tableau d''amortissement B'!K157 -> 25780.45442 | T143: =T142+'Tableau d''amortissement B'!H157 -> 109332.2601
C144: ='Tableau d''amortissement A'!C158 -> 2029-07-01 | D144: ='Tableau d''amortissement A'!I158 -> 77176.63415 | I144: ='Tableau d''amortissement B'!C158 -> 2022-07-01 | J144: ='Tableau d''amortissement B'!I158 -> 89815.98379 | M144: ='Tableau d''amortissement A'!C158 -> 2029-07-01 | N144: ='Tableau d''amortissement A'!K158 -> 25060.71585 | O144: =O143+'Tableau d''amortissement A'!H158 -> 92823.36585 | R144: ='Tableau d''amortissement B'!C158 -> 2022-07-01 | S144: ='Tableau d''amortissement B'!K158 -> 25893.7891 | T144: =T143+'Tableau d''amortissement B'!H158 -> 110184.0162
C145: ='Tableau d''amortissement A'!C159 -> 2029-08-01 | D145: ='Tableau d''amortissement A'!I159 -> 76449.9104 | I145: ='Tableau d''amortissement B'!C159 -> 2022-08-01 | J145: ='Tableau d''amortissement B'!I159 -> 88963.16296 | M145: ='Tableau d''amortissement A'!C159 -> 2029-08-01 | N145: ='Tableau d''amortissement A'!K159 -> 25170.04942 | O145: =O144+'Tableau d''amortissement A'!H159 -> 93550.0896 | R145: ='Tableau d''amortissement B'!C159 -> 2022-08-01 | S145: ='Tableau d''amortissement B'!K159 -> 26006.05908 | T145: =T144+'Tableau d''amortissement B'!H159 -> 111036.837
C146: ='Tableau d''amortissement A'!C160 -> 2029-09-01 | D146: ='Tableau d''amortissement A'!I160 -> 75722.15712 | I146: ='Tableau d''amortissement B'!C160 -> 2022-09-01 | J146: ='Tableau d''amortissement B'!I160 -> 88109.27609 | M146: ='Tableau d''amortissement A'!C160 -> 2029-09-01 | N146: ='Tableau d''amortissement A'!K160 -> 25278.35346 | O146: =O145+'Tableau d''amortissement A'!H160 -> 94277.84288 | R146: ='Tableau d''amortissement B'!C160 -> 2022-09-01 | S146: ='Tableau d''amortissement B'!K160 -> 26117.26303 | T146: =T145+'Tableau d''amortissement B'!H160 -> 111890.7239
C147: ='Tableau d''amortissement A'!C161 -> 2029-10-01 | D147: ='Tableau d''amortissement A'!I161 -> 74993.37286 | I147: ='Tableau d''amortissement B'!C161 -> 2022-10-01 | J147: ='Tableau d''amortissement B'!I161 -> 87254.32187 | M147: ='Tableau d''amortissement A'!C161 -> 2029-10-01 | N147: ='Tableau d''amortissement A'!K161 -> 25385.62651 | O147: =O146+'Tableau d''amortissement A'!H161 -> 95006.62714 | R147: ='Tableau d''amortissement B'!C161 -> 2022-10-01 | S147: ='Tableau d''amortissement B'!K161 -> 26227.39963 | T147: =T146+'Tableau d''amortissement B'!H161 -> 112745.6781
C148: ='Tableau d''amortissement A'!C162 -> 2029-11-01 | D148: ='Tableau d''amortissement A'!I162 -> 74263.55616 | I148: ='Tableau d''amortissement B'!C162 -> 2022-11-01 | J148: ='Tableau d''amortissement B'!I162 -> 86398.29895 | M148: ='Tableau d''amortissement A'!C162 -> 2029-11-01 | N148: ='Tableau d''amortissement A'!K162 -> 25491.86713 | O148: =O147+'Tableau d''amortissement A'!H162 -> 95736.44384 | R148: ='Tableau d''amortissement B'!C162 -> 2022-11-01 | S148: ='Tableau d''amortissement B'!K162 -> 26336.46753 | T148: =T147+'Tableau d''amortissement B'!H162 -> 113601.701
C149: ='Tableau d''amortissement A'!C163 -> 2029-12-01 | D149: ='Tableau d''amortissement A'!I163 -> 73532.70554 | I149: ='Tableau d''amortissement B'!C163 -> 2022-12-01 | J149: ='Tableau d''amortissement B'!I163 -> 85541.20601 | M149: ='Tableau d''amortissement A'!C163 -> 2029-12-01 | N149: ='Tableau d''amortissement A'!K163 -> 25597.07383 | O149: =O148+'Tableau d''amortissement A'!H163 -> 96467.29446 | R149: ='Tableau d''amortissement B'!C163 -> 2022-12-01 | S149: ='Tableau d''amortissement B'!K163 -> 26444.4654 | T149: =T148+'Tableau d''amortissement B'!H163 -> 114458.794
C150: ='Tableau d''amortissement A'!C164 -> 2030-01-01 | D150: ='Tableau d''amortissement A'!I164 -> 72800.81956 | I150: ='Tableau d''amortissement B'!C164 -> 2023-01-01 | J150: ='Tableau d''amortissement B'!I164 -> 84683.0417 | M150: ='Tableau d''amortissement A'!C164 -> 2030-01-01 | N150: ='Tableau d''amortissement A'!K164 -> 25701.24516 | O150: =O149+'Tableau d''amortissement A'!H164 -> 97199.18044 | R150: ='Tableau d''amortissement B'!C164 -> 2023-01-01 | S150: ='Tableau d''amortissement B'!K164 -> 26551.39191 | T150: =T149+'Tableau d''amortissement B'!H164 -> 115316.9583
C151: ='Tableau d''amortissement A'!C165 -> 2030-02-01 | D151: ='Tableau d''amortissement A'!I165 -> 72067.89674 | I151: ='Tableau d''amortissement B'!C165 -> 2023-02-01 | J151: ='Tableau d''amortissement B'!I165 -> 83823.80468 | M151: ='Tableau d''amortissement A'!C165 -> 2030-02-01 | N151: ='Tableau d''amortissement A'!K165 -> 25804.37966 | O151: =O150+'Tableau d''amortissement A'!H165 -> 97932.10326 | R151: ='Tableau d''amortissement B'!C165 -> 2023-02-01 | S151: ='Tableau d''amortissement B'!K165 -> 26657.24571 | T151: =T150+'Tableau d''amortissement B'!H165 -> 116176.1953
C152: ='Tableau d''amortissement A'!C166 -> 2030-03-01 | D152: ='Tableau d''amortissement A'!I166 -> 71333.93561 | I152: ='Tableau d''amortissement B'!C166 -> 2023-03-01 | J152: ='Tableau d''amortissement B'!I166 -> 82963.49362 | M152: ='Tableau d''amortissement A'!C166 -> 2030-03-01 | N152: ='Tableau d''amortissement A'!K166 -> 25906.47585 | O152: =O151+'Tableau d''amortissement A'!H166 -> 98666.06439 | R152: ='Tableau d''amortissement B'!C166 -> 2023-03-01 | S152: ='Tableau d''amortissement B'!K166 -> 26762.02547 | T152: =T151+'Tableau d''amortissement B'!H166 -> 117036.5064
C153: ='Tableau d''amortissement A'!C167 -> 2030-04-01 | D153: ='Tableau d''amortissement A'!I167 -> 70598.9347 | I153: ='Tableau d''amortissement B'!C167 -> 2023-04-01 | J153: ='Tableau d''amortissement B'!I167 -> 82102.10717 | M153: ='Tableau d''amortissement A'!C167 -> 2030-04-01 | N153: ='Tableau d''amortissement A'!K167 -> 26007.53225 | O153: =O152+'Tableau d''amortissement A'!H167 -> 99401.0653 | R153: ='Tableau d''amortissement B'!C167 -> 2023-04-01 | S153: ='Tableau d''amortissement B'!K167 -> 26865.72984 | T153: =T152+'Tableau d''amortissement B'!H167 -> 117897.8928
C154: ='Tableau d''amortissement A'!C168 -> 2030-05-01 | D154: ='Tableau d''amortissement A'!I168 -> 69862.89254 | I154: ='Tableau d''amortissement B'!C168 -> 2023-05-01 | J154: ='Tableau d''amortissement B'!I168 -> 81239.64399 | M154: ='Tableau d''amortissement A'!C168 -> 2030-05-01 | N154: ='Tableau d''amortissement A'!K168 -> 26107.54741 | O154: =O153+'Tableau d''amortissement A'!H168 -> 100137.1075 | R154: ='Tableau d''amortissement B'!C168 -> 2023-05-01 | S154: ='Tableau d''amortissement B'!K168 -> 26968.35747 | T154: =T153+'Tableau d''amortissement B'!H168 -> 118760.356
C155: ='Tableau d''amortissement A'!C169 -> 2030-06-01 | D155: ='Tableau d''amortissement A'!I169 -> 69125.80765 | I155: ='Tableau d''amortissement B'!C169 -> 2023-06-01 | J155: ='Tableau d''amortissement B'!I169 -> 80376.10273 | M155: ='Tableau d''amortissement A'!C169 -> 2030-06-01 | N155: ='Tableau d''amortissement A'!K169 -> 26206.51984 | O155: =O154+'Tableau d''amortissement A'!H169 -> 100874.1923 | R155: ='Tableau d''amortissement B'!C169 -> 2023-06-01 | S155: ='Tableau d''amortissement B'!K169 -> 27069.90703 | T155: =T154+'Tableau d''amortissement B'!H169 -> 119623.8973
C156: ='Tableau d''amortissement A'!C170 -> 2030-07-01 | D156: ='Tableau d''amortissement A'!I170 -> 68387.67856 | I156: ='Tableau d''amortissement B'!C170 -> 2023-07-01 | J156: ='Tableau d''amortissement B'!I170 -> 79511.48204 | M156: ='Tableau d''amortissement A'!C170 -> 2030-07-01 | N156: ='Tableau d''amortissement A'!K170 -> 26304.44807 | O156: =O155+'Tableau d''amortissement A'!H170 -> 101612.3214 | R156: ='Tableau d''amortissement B'!C170 -> 2023-07-01 | S156: ='Tableau d''amortissement B'!K170 -> 27170.37715 | T156: =T155+'Tableau d''amortissement B'!H170 -> 120488.518
C157: ='Tableau d''amortissement A'!C171 -> 2030-08-01 | D157: ='Tableau d''amortissement A'!I171 -> 67648.50379 | I157: ='Tableau d''amortissement B'!C171 -> 2023-08-01 | J157: ='Tableau d''amortissement B'!I171 -> 78645.78057 | M157: ='Tableau d''amortissement A'!C171 -> 2030-08-01 | N157: ='Tableau d''amortissement A'!K171 -> 26401.33061 | O157: =O156+'Tableau d''amortissement A'!H171 -> 102351.4962 | R157: ='Tableau d''amortissement B'!C171 -> 2023-08-01 | S157: ='Tableau d''amortissement B'!K171 -> 27269.76651 | T157: =T156+'Tableau d''amortissement B'!H171 -> 121354.2194
C158: ='Tableau d''amortissement A'!C172 -> 2030-09-01 | D158: ='Tableau d''amortissement A'!I172 -> 66908.28186 | I158: ='Tableau d''amortissement B'!C172 -> 2023-09-01 | J158: ='Tableau d''amortissement B'!I172 -> 77778.99698 | M158: ='Tableau d''amortissement A'!C172 -> 2030-09-01 | N158: ='Tableau d''amortissement A'!K172 -> 26497.166 | O158: =O157+'Tableau d''amortissement A'!H172 -> 103091.7181 | R158: ='Tableau d''amortissement B'!C172 -> 2023-09-01 | S158: ='Tableau d''amortissement B'!K172 -> 27368.07373 | T158: =T157+'Tableau d''amortissement B'!H172 -> 122221.003
C159: ='Tableau d''amortissement A'!C173 -> 2030-10-01 | D159: ='Tableau d''amortissement A'!I173 -> 66167.01127 | I159: ='Tableau d''amortissement B'!C173 -> 2023-10-01 | J159: ='Tableau d''amortissement B'!I173 -> 76911.12991 | M159: ='Tableau d''amortissement A'!C173 -> 2030-10-01 | N159: ='Tableau d''amortissement A'!K173 -> 26591.95273 | O159: =O158+'Tableau d''amortissement A'!H173 -> 103832.9887 | R159: ='Tableau d''amortissement B'!C173 -> 2023-10-01 | S159: ='Tableau d''amortissement B'!K173 -> 27465.29748 | T159: =T158+'Tableau d''amortissement B'!H173 -> 123088.8701
C160: ='Tableau d''amortissement A'!C174 -> 2030-11-01 | D160: ='Tableau d''amortissement A'!I174 -> 65424.69055 | I160: ='Tableau d''amortissement B'!C174 -> 2023-11-01 | J160: ='Tableau d''amortissement B'!I174 -> 76042.178 | M160: ='Tableau d''amortissement A'!C174 -> 2030-11-01 | N160: ='Tableau d''amortissement A'!K174 -> 26685.68933 | O160: =O159+'Tableau d''amortissement A'!H174 -> 104575.3094 | R160: ='Tableau d''amortissement B'!C174 -> 2023-11-01 | S160: ='Tableau d''amortissement B'!K174 -> 27561.43639 | T160: =T159+'Tableau d''amortissement B'!H174 -> 123957.822
C161: ='Tableau d''amortissement A'!C175 -> 2030-12-01 | D161: ='Tableau d''amortissement A'!I175 -> 64681.31821 | I161: ='Tableau d''amortissement B'!C175 -> 2023-12-01 | J161: ='Tableau d''amortissement B'!I175 -> 75172.13991 | M161: ='Tableau d''amortissement A'!C175 -> 2030-12-01 | N161: ='Tableau d''amortissement A'!K175 -> 26778.37431 | O161: =O160+'Tableau d''amortissement A'!H175 -> 105318.6818 | R161: ='Tableau d''amortissement B'!C175 -> 2023-12-01 | S161: ='Tableau d''amortissement B'!K175 -> 27656.48911 | T161: =T160+'Tableau d''amortissement B'!H175 -> 124827.8601
C162: ='Tableau d''amortissement A'!C176 -> 2031-01-01 | D162: ='Tableau d''amortissement A'!I176 -> 63936.89277 | I162: ='Tableau d''amortissement B'!C176 -> 2024-01-01 | J162: ='Tableau d''amortissement B'!I176 -> 74301.01426 | M162: ='Tableau d''amortissement A'!C176 -> 2031-01-01 | N162: ='Tableau d''amortissement A'!K176 -> 26870.00617 | O162: =O161+'Tableau d''amortissement A'!H176 -> 106063.1072 | R162: ='Tableau d''amortissement B'!C176 -> 2024-01-01 | S162: ='Tableau d''amortissement B'!K176 -> 27750.45429 | T162: =T161+'Tableau d''amortissement B'!H176 -> 125698.9857
C163: ='Tableau d''amortissement A'!C177 -> 2031-02-01 | D163: ='Tableau d''amortissement A'!I177 -> 63191.41271 | I163: ='Tableau d''amortissement B'!C177 -> 2024-02-01 | J163: ='Tableau d''amortissement B'!I177 -> 73428.79971 | M163: ='Tableau d''amortissement A'!C177 -> 2031-02-01 | N163: ='Tableau d''amortissement A'!K177 -> 26960.58344 | O163: =O162+'Tableau d''amortissement A'!H177 -> 106808.5873 | R163: ='Tableau d''amortissement B'!C177 -> 2024-02-01 | S163: ='Tableau d''amortissement B'!K177 -> 27843.33056 | T163: =T162+'Tableau d''amortissement B'!H177 -> 126571.2003
C164: ='Tableau d''amortissement A'!C178 -> 2031-03-01 | D164: ='Tableau d''amortissement A'!I178 -> 62444.87656 | I164: ='Tableau d''amortissement B'!C178 -> 2024-03-01 | J164: ='Tableau d''amortissement B'!I178 -> 72555.4949 | M164: ='Tableau d''amortissement A'!C178 -> 2031-03-01 | N164: ='Tableau d''amortissement A'!K178 -> 27050.10461 | O164: =O163+'Tableau d''amortissement A'!H178 -> 107555.1234 | R164: ='Tableau d''amortissement B'!C178 -> 2024-03-01 | S164: ='Tableau d''amortissement B'!K178 -> 27935.11656 | T164: =T163+'Tableau d''amortissement B'!H178 -> 127444.5051
C165: ='Tableau d''amortissement A'!C179 -> 2031-04-01 | D165: ='Tableau d''amortissement A'!I179 -> 61697.28282 | I165: ='Tableau d''amortissement B'!C179 -> 2024-04-01 | J165: ='Tableau d''amortissement B'!I179 -> 71681.09845 | M165: ='Tableau d''amortissement A'!C179 -> 2031-04-01 | N165: ='Tableau d''amortissement A'!K179 -> 27138.56818 | O165: =O164+'Tableau d''amortissement A'!H179 -> 108302.7172 | R165: ='Tableau d''amortissement B'!C179 -> 2024-04-01 | S165: ='Tableau d''amortissement B'!K179 -> 28025.81092 | T165: =T164+'Tableau d''amortissement B'!H179 -> 128318.9016
C166: ='Tableau d''amortissement A'!C180 -> 2031-05-01 | D166: ='Tableau d''amortissement A'!I180 -> 60948.62999 | I166: ='Tableau d''amortissement B'!C180 -> 2024-05-01 | J166: ='Tableau d''amortissement B'!I180 -> 70805.609 | M166: ='Tableau d''amortissement A'!C180 -> 2031-05-01 | N166: ='Tableau d''amortissement A'!K180 -> 27225.97266 | O166: =O165+'Tableau d''amortissement A'!H180 -> 109051.37 | R166: ='Tableau d''amortissement B'!C180 -> 2024-05-01 | S166: ='Tableau d''amortissement B'!K180 -> 28115.4123 | T166: =T165+'Tableau d''amortissement B'!H180 -> 129194.391
C167: ='Tableau d''amortissement A'!C181 -> 2031-06-01 | D167: ='Tableau d''amortissement A'!I181 -> 60198.91656 | I167: ='Tableau d''amortissement B'!C181 -> 2024-06-01 | J167: ='Tableau d''amortissement B'!I181 -> 69929.0252 | M167: ='Tableau d''amortissement A'!C181 -> 2031-06-01 | N167: ='Tableau d''amortissement A'!K181 -> 27312.31656 | O167: =O166+'Tableau d''amortissement A'!H181 -> 109801.0834 | R167: ='Tableau d''amortissement B'!C181 -> 2024-06-01 | S167: ='Tableau d''amortissement B'!K181 -> 28203.91931 | T167: =T166+'Tableau d''amortissement B'!H181 -> 130070.9748
C168: ='Tableau d''amortissement A'!C182 -> 2031-07-01 | D168: ='Tableau d''amortissement A'!I182 -> 59448.14105 | I168: ='Tableau d''amortissement B'!C182 -> 2024-07-01 | J168: ='Tableau d''amortissement B'!I182 -> 69051.34566 | M168: ='Tableau d''amortissement A'!C182 -> 2031-07-01 | N168: ='Tableau d''amortissement A'!K182 -> 27397.59836 | O168: =O167+'Tableau d''amortissement A'!H182 -> 110551.859 | R168: ='Tableau d''amortissement B'!C182 -> 2024-07-01 | S168: ='Tableau d''amortissement B'!K182 -> 28291.33059 | T168: =T167+'Tableau d''amortissement B'!H182 -> 130948.6543
C169: ='Tableau d''amortissement A'!C183 -> 2031-08-01 | D169: ='Tableau d''amortissement A'!I183 -> 58696.30193 | I169: ='Tableau d''amortissement B'!C183 -> 2024-08-01 | J169: ='Tableau d''amortissement B'!I183 -> 68172.56902 | M169: ='Tableau d''amortissement A'!C183 -> 2031-08-01 | N169: ='Tableau d''amortissement A'!K183 -> 27481.81656 | O169: =O168+'Tableau d''amortissement A'!H183 -> 111303.6981 | R169: ='Tableau d''amortissement B'!C183 -> 2024-08-01 | S169: ='Tableau d''amortissement B'!K183 -> 28377.64477 | T169: =T168+'Tableau d''amortissement B'!H183 -> 131827.431
C170: ='Tableau d''amortissement A'!C184 -> 2031-09-01 | D170: ='Tableau d''amortissement A'!I184 -> 57943.39771 | I170: ='Tableau d''amortissement B'!C184 -> 2024-09-01 | J170: ='Tableau d''amortissement B'!I184 -> 67292.69392 | M170: ='Tableau d''amortissement A'!C184 -> 2031-09-01 | N170: ='Tableau d''amortissement A'!K184 -> 27564.96965 | O170: =O169+'Tableau d''amortissement A'!H184 -> 112056.6023 | R170: ='Tableau d''amortissement B'!C184 -> 2024-09-01 | S170: ='Tableau d''amortissement B'!K184 -> 28462.86048 | T170: =T169+'Tableau d''amortissement B'!H184 -> 132707.3061
C171: ='Tableau d''amortissement A'!C185 -> 2031-10-01 | D171: ='Tableau d''amortissement A'!I185 -> 57189.42687 | I171: ='Tableau d''amortissement B'!C185 -> 2024-10-01 | J171: ='Tableau d''amortissement B'!I185 -> 66411.71897 | M171: ='Tableau d''amortissement A'!C185 -> 2031-10-01 | N171: ='Tableau d''amortissement A'!K185 -> 27647.05613 | O171: =O170+'Tableau d''amortissement A'!H185 -> 112810.5731 | R171: ='Tableau d''amortissement B'!C185 -> 2024-10-01 | S171: ='Tableau d''amortissement B'!K185 -> 28546.97635 | T171: =T170+'Tableau d''amortissement B'!H185 -> 133588.281
C172: ='Tableau d''amortissement A'!C186 -> 2031-11-01 | D172: ='Tableau d''amortissement A'!I186 -> 56434.38791 | I172: ='Tableau d''amortissement B'!C186 -> 2024-11-01 | J172: ='Tableau d''amortissement B'!I186 -> 65529.6428 | M172: ='Tableau d''amortissement A'!C186 -> 2031-11-01 | N172: ='Tableau d''amortissement A'!K186 -> 27728.07448 | O172: =O171+'Tableau d''amortissement A'!H186 -> 113565.6121 | R172: ='Tableau d''amortissement B'!C186 -> 2024-11-01 | S172: ='Tableau d''amortissement B'!K186 -> 28629.991 | T172: =T171+'Tableau d''amortissement B'!H186 -> 134470.3572
C173: ='Tableau d''amortissement A'!C187 -> 2031-12-01 | D173: ='Tableau d''amortissement A'!I187 -> 55678.27931 | I173: ='Tableau d''amortissement B'!C187 -> 2024-12-01 | J173: ='Tableau d''amortissement B'!I187 -> 64646.46403 | M173: ='Tableau d''amortissement A'!C187 -> 2031-12-01 | N173: ='Tableau d''amortissement A'!K187 -> 27808.0232 | O173: =O172+'Tableau d''amortissement A'!H187 -> 114321.7207 | R173: ='Tableau d''amortissement B'!C187 -> 2024-12-01 | S173: ='Tableau d''amortissement B'!K187 -> 28711.90305 | T173: =T172+'Tableau d''amortissement B'!H187 -> 135353.536
C174: ='Tableau d''amortissement A'!C188 -> 2032-01-01 | D174: ='Tableau d''amortissement A'!I188 -> 54921.09955 | I174: ='Tableau d''amortissement B'!C188 -> 2025-01-01 | J174: ='Tableau d''amortissement B'!I188 -> 63762.1813 | M174: ='Tableau d''amortissement A'!C188 -> 2032-01-01 | N174: ='Tableau d''amortissement A'!K188 -> 27886.90076 | O174: =O173+'Tableau d''amortissement A'!H188 -> 115078.9004 | R174: ='Tableau d''amortissement B'!C188 -> 2025-01-01 | S174: ='Tableau d''amortissement B'!K188 -> 28792.71113 | T174: =T173+'Tableau d''amortissement B'!H188 -> 136237.8187
C175: ='Tableau d''amortissement A'!C189 -> 2032-02-01 | D175: ='Tableau d''amortissement A'!I189 -> 54162.84713 | I175: ='Tableau d''amortissement B'!C189 -> 2025-02-01 | J175: ='Tableau d''amortissement B'!I189 -> 62876.7932 | M175: ='Tableau d''amortissement A'!C189 -> 2032-02-01 | N175: ='Tableau d''amortissement A'!K189 -> 27964.70565 | O175: =O174+'Tableau d''amortissement A'!H189 -> 115837.1529 | R175: ='Tableau d''amortissement B'!C189 -> 2025-02-01 | S175: ='Tableau d''amortissement B'!K189 -> 28872.41386 | T175: =T174+'Tableau d''amortissement B'!H189 -> 137123.2068
C176: ='Tableau d''amortissement A'!C190 -> 2032-03-01 | D176: ='Tableau d''amortissement A'!I190 -> 53403.52051 | I176: ='Tableau d''amortissement B'!C190 -> 2025-03-01 | J176: ='Tableau d''amortissement B'!I190 -> 61990.29838 | M176: ='Tableau d''amortissement A'!C190 -> 2032-03-01 | N176: ='Tableau d''amortissement A'!K190 -> 28041.43635 | O176: =O175+'Tableau d''amortissement A'!H190 -> 116596.4795 | R176: ='Tableau d''amortissement B'!C190 -> 2025-03-01 | S176: ='Tableau d''amortissement B'!K190 -> 28951.00985 | T176: =T175+'Tableau d''amortissement B'!H190 -> 138009.7016
C177: ='Tableau d''amortissement A'!C191 -> 2032-04-01 | D177: ='Tableau d''amortissement A'!I191 -> 52643.11818 | I177: ='Tableau d''amortissement B'!C191 -> 2025-04-01 | J177: ='Tableau d''amortissement B'!I191 -> 61102.69543 | M177: ='Tableau d''amortissement A'!C191 -> 2032-04-01 | N177: ='Tableau d''amortissement A'!K191 -> 28117.09134 | O177: =O176+'Tableau d''amortissement A'!H191 -> 117356.8818 | R177: ='Tableau d''amortissement B'!C191 -> 2025-04-01 | S177: ='Tableau d''amortissement B'!K191 -> 29028.49772 | T177: =T176+'Tableau d''amortissement B'!H191 -> 138897.3046
C178: ='Tableau d''amortissement A'!C192 -> 2032-05-01 | D178: ='Tableau d''amortissement A'!I192 -> 51881.63861 | I178: ='Tableau d''amortissement B'!C192 -> 2025-05-01 | J178: ='Tableau d''amortissement B'!I192 -> 60213.98298 | M178: ='Tableau d''amortissement A'!C192 -> 2032-05-01 | N178: ='Tableau d''amortissement A'!K192 -> 28191.66909 | O178: =O177+'Tableau d''amortissement A'!H192 -> 118118.3614 | R178: ='Tableau d''amortissement B'!C192 -> 2025-05-01 | S178: ='Tableau d''amortissement B'!K192 -> 29104.87609 | T178: =T177+'Tableau d''amortissement B'!H192 -> 139786.017
C179: ='Tableau d''amortissement A'!C193 -> 2032-06-01 | D179: ='Tableau d''amortissement A'!I193 -> 51119.08028 | I179: ='Tableau d''amortissement B'!C193 -> 2025-06-01 | J179: ='Tableau d''amortissement B'!I193 -> 59324.15965 | M179: ='Tableau d''amortissement A'!C193 -> 2032-06-01 | N179: ='Tableau d''amortissement A'!K193 -> 28265.16808 | O179: =O178+'Tableau d''amortissement A'!H193 -> 118880.9197 | R179: ='Tableau d''amortissement B'!C193 -> 2025-06-01 | S179: ='Tableau d''amortissement B'!K193 -> 29180.14357 | T179: =T178+'Tableau d''amortissement B'!H193 -> 140675.8404
C180: ='Tableau d''amortissement A'!C194 -> 2032-07-01 | D180: ='Tableau d''amortissement A'!I194 -> 50355.44166 | I180: ='Tableau d''amortissement B'!C194 -> 2025-07-01 | J180: ='Tableau d''amortissement B'!I194 -> 58433.22403 | M180: ='Tableau d''amortissement A'!C194 -> 2032-07-01 | N180: ='Tableau d''amortissement A'!K194 -> 28337.58678 | O180: =O179+'Tableau d''amortissement A'!H194 -> 119644.5583 | R180: ='Tableau d''amortissement B'!C194 -> 2025-07-01 | S180: ='Tableau d''amortissement B'!K194 -> 29254.29877 | T180: =T179+'Tableau d''amortissement B'!H194 -> 141566.776
C181: ='Tableau d''amortissement A'!C195 -> 2032-08-01 | D181: ='Tableau d''amortissement A'!I195 -> 49590.72122 | I181: ='Tableau d''amortissement B'!C195 -> 2025-08-01 | J181: ='Tableau d''amortissement B'!I195 -> 57541.17474 | M181: ='Tableau d''amortissement A'!C195 -> 2032-08-01 | N181: ='Tableau d''amortissement A'!K195 -> 28408.92365 | O181: =O180+'Tableau d''amortissement A'!H195 -> 120409.2788 | R181: ='Tableau d''amortissement B'!C195 -> 2025-08-01 | S181: ='Tableau d''amortissement B'!K195 -> 29327.3403 | T181: =T180+'Tableau d''amortissement B'!H195 -> 142458.8253
C182: ='Tableau d''amortissement A'!C196 -> 2032-09-01 | D182: ='Tableau d''amortissement A'!I196 -> 48824.91743 | I182: ='Tableau d''amortissement B'!C196 -> 2025-09-01 | J182: ='Tableau d''amortissement B'!I196 -> 56648.01039 | M182: ='Tableau d''amortissement A'!C196 -> 2032-09-01 | N182: ='Tableau d''amortissement A'!K196 -> 28479.17718 | O182: =O181+'Tableau d''amortissement A'!H196 -> 121175.0826 | R182: ='Tableau d''amortissement B'!C196 -> 2025-09-01 | S182: ='Tableau d''amortissement B'!K196 -> 29399.26677 | T182: =T181+'Tableau d''amortissement B'!H196 -> 143351.9896
C183: ='Tableau d''amortissement A'!C197 -> 2032-10-01 | D183: ='Tableau d''amortissement A'!I197 -> 48058.02874 | I183: ='Tableau d''amortissement B'!C197 -> 2025-10-01 | J183: ='Tableau d''amortissement B'!I197 -> 55753.72959 | M183: ='Tableau d''amortissement A'!C197 -> 2032-10-01 | N183: ='Tableau d''amortissement A'!K197 -> 28548.34581 | O183: =O182+'Tableau d''amortissement A'!H197 -> 121941.9713 | R183: ='Tableau d''amortissement B'!C197 -> 2025-10-01 | S183: ='Tableau d''amortissement B'!K197 -> 29470.07678 | T183: =T182+'Tableau d''amortissement B'!H197 -> 144246.2704
C184: ='Tableau d''amortissement A'!C198 -> 2032-11-01 | D184: ='Tableau d''amortissement A'!I198 -> 47290.05363 | I184: ='Tableau d''amortissement B'!C198 -> 2025-11-01 | J184: ='Tableau d''amortissement B'!I198 -> 54858.33093 | M184: ='Tableau d''amortissement A'!C198 -> 2032-11-01 | N184: ='Tableau d''amortissement A'!K198 -> 28616.42802 | O184: =O183+'Tableau d''amortissement A'!H198 -> 122709.9464 | R184: ='Tableau d''amortissement B'!C198 -> 2025-11-01 | S184: ='Tableau d''amortissement B'!K198 -> 29539.76894 | T184: =T183+'Tableau d''amortissement B'!H198 -> 145141.6691
C185: ='Tableau d''amortissement A'!C199 -> 2032-12-01 | D185: ='Tableau d''amortissement A'!I199 -> 46520.99056 | I185: ='Tableau d''amortissement B'!C199 -> 2025-12-01 | J185: ='Tableau d''amortissement B'!I199 -> 53961.81303 | M185: ='Tableau d''amortissement A'!C199 -> 2032-12-01 | N185: ='Tableau d''amortissement A'!K199 -> 28683.42226 | O185: =O184+'Tableau d''amortissement A'!H199 -> 123479.0094 | R185: ='Tableau d''amortissement B'!C199 -> 2025-12-01 | S185: ='Tableau d''amortissement B'!K199 -> 29608.34186 | T185: =T184+'Tableau d''amortissement B'!H199 -> 146038.187
C186: ='Tableau d''amortissement A'!C200 -> 2033-01-01 | D186: ='Tableau d''amortissement A'!I200 -> 45750.83798 | I186: ='Tableau d''amortissement B'!C200 -> 2026-01-01 | J186: ='Tableau d''amortissement B'!I200 -> 53064.17447 | M186: ='Tableau d''amortissement A'!C200 -> 2033-01-01 | N186: ='Tableau d''amortissement A'!K200 -> 28749.32699 | O186: =O185+'Tableau d''amortissement A'!H200 -> 124249.162 | R186: ='Tableau d''amortissement B'!C200 -> 2026-01-01 | S186: ='Tableau d''amortissement B'!K200 -> 29675.79412 | T186: =T185+'Tableau d''amortissement B'!H200 -> 146935.8255
C187: ='Tableau d''amortissement A'!C201 -> 2033-02-01 | D187: ='Tableau d''amortissement A'!I201 -> 44979.59435 | I187: ='Tableau d''amortissement B'!C201 -> 2026-02-01 | J187: ='Tableau d''amortissement B'!I201 -> 52165.41387 | M187: ='Tableau d''amortissement A'!C201 -> 2033-02-01 | N187: ='Tableau d''amortissement A'!K201 -> 28814.14068 | O187: =O186+'Tableau d''amortissement A'!H201 -> 125020.4057 | R187: ='Tableau d''amortissement B'!C201 -> 2026-02-01 | S187: ='Tableau d''amortissement B'!K201 -> 29742.12434 | T187: =T186+'Tableau d''amortissement B'!H201 -> 147834.5861
C188: ='Tableau d''amortissement A'!C202 -> 2033-03-01 | D188: ='Tableau d''amortissement A'!I202 -> 44207.25812 | I188: ='Tableau d''amortissement B'!C202 -> 2026-03-01 | J188: ='Tableau d''amortissement B'!I202 -> 51265.52982 | M188: ='Tableau d''amortissement A'!C202 -> 2033-03-01 | N188: ='Tableau d''amortissement A'!K202 -> 28877.86177 | O188: =O187+'Tableau d''amortissement A'!H202 -> 125792.7419 | R188: ='Tableau d''amortissement B'!C202 -> 2026-03-01 | S188: ='Tableau d''amortissement B'!K202 -> 29807.33111 | T188: =T187+'Tableau d''amortissement B'!H202 -> 148734.4702
C189: ='Tableau d''amortissement A'!C203 -> 2033-04-01 | D189: ='Tableau d''amortissement A'!I203 -> 43433.82776 | I189: ='Tableau d''amortissement B'!C203 -> 2026-04-01 | J189: ='Tableau d''amortissement B'!I203 -> 50364.52092 | M189: ='Tableau d''amortissement A'!C203 -> 2033-04-01 | N189: ='Tableau d''amortissement A'!K203 -> 28940.48872 | O189: =O188+'Tableau d''amortissement A'!H203 -> 126566.1722 | R189: ='Tableau d''amortissement B'!C203 -> 2026-04-01 | S189: ='Tableau d''amortissement B'!K203 -> 29871.41302 | T189: =T188+'Tableau d''amortissement B'!H203 -> 149635.4791
C190: ='Tableau d''amortissement A'!C204 -> 2033-05-01 | D190: ='Tableau d''amortissement A'!I204 -> 42659.30169 | I190: ='Tableau d''amortissement B'!C204 -> 2026-05-01 | J190: ='Tableau d''amortissement B'!I204 -> 49462.38575 | M190: ='Tableau d''amortissement A'!C204 -> 2033-05-01 | N190: ='Tableau d''amortissement A'!K204 -> 29002.01998 | O190: =O189+'Tableau d''amortissement A'!H204 -> 127340.6983 | R190: ='Tableau d''amortissement B'!C204 -> 2026-05-01 | S190: ='Tableau d''amortissement B'!K204 -> 29934.36867 | T190: =T189+'Tableau d''amortissement B'!H204 -> 150537.6142
C191: ='Tableau d''amortissement A'!C205 -> 2033-06-01 | D191: ='Tableau d''amortissement A'!I205 -> 41883.67839 | I191: ='Tableau d''amortissement B'!C205 -> 2026-06-01 | J191: ='Tableau d''amortissement B'!I205 -> 48559.12292 | M191: ='Tableau d''amortissement A'!C205 -> 2033-06-01 | N191: ='Tableau d''amortissement A'!K205 -> 29062.45399 | O191: =O190+'Tableau d''amortissement A'!H205 -> 128116.3216 | R191: ='Tableau d''amortissement B'!C205 -> 2026-06-01 | S191: ='Tableau d''amortissement B'!K205 -> 29996.19666 | T191: =T190+'Tableau d''amortissement B'!H205 -> 151440.8771
C192: ='Tableau d''amortissement A'!C206 -> 2033-07-01 | D192: ='Tableau d''amortissement A'!I206 -> 41106.95628 | I192: ='Tableau d''amortissement B'!C206 -> 2026-07-01 | J192: ='Tableau d''amortissement B'!I206 -> 47654.731 | M192: ='Tableau d''amortissement A'!C206 -> 2033-07-01 | N192: ='Tableau d''amortissement A'!K206 -> 29121.7892 | O192: =O191+'Tableau d''amortissement A'!H206 -> 128893.0437 | R192: ='Tableau d''amortissement B'!C206 -> 2026-07-01 | S192: ='Tableau d''amortissement B'!K206 -> 30056.89556 | T192: =T191+'Tableau d''amortissement B'!H206 -> 152345.269
C193: ='Tableau d''amortissement A'!C207 -> 2033-08-01 | D193: ='Tableau d''amortissement A'!I207 -> 40329.13382 | I193: ='Tableau d''amortissement B'!C207 -> 2026-08-01 | J193: ='Tableau d''amortissement B'!I207 -> 46749.2086 | M193: ='Tableau d''amortissement A'!C207 -> 2033-08-01 | N193: ='Tableau d''amortissement A'!K207 -> 29180.02406 | O193: =O192+'Tableau d''amortissement A'!H207 -> 129670.8662 | R193: ='Tableau d''amortissement B'!C207 -> 2026-08-01 | S193: ='Tableau d''amortissement B'!K207 -> 30116.46397 | T193: =T192+'Tableau d''amortissement B'!H207 -> 153250.7914
C194: ='Tableau d''amortissement A'!C208 -> 2033-09-01 | D194: ='Tableau d''amortissement A'!I208 -> 39550.20944 | I194: ='Tableau d''amortissement B'!C208 -> 2026-09-01 | J194: ='Tableau d''amortissement B'!I208 -> 45842.55429 | M194: ='Tableau d''amortissement A'!C208 -> 2033-09-01 | N194: ='Tableau d''amortissement A'!K208 -> 29237.15699 | O194: =O193+'Tableau d''amortissement A'!H208 -> 130449.7906 | R194: ='Tableau d''amortissement B'!C208 -> 2026-09-01 | S194: ='Tableau d''amortissement B'!K208 -> 30174.90048 | T194: =T193+'Tableau d''amortissement B'!H208 -> 154157.4457
C195: ='Tableau d''amortissement A'!C209 -> 2033-10-01 | D195: ='Tableau d''amortissement A'!I209 -> 38770.18159 | I195: ='Tableau d''amortissement B'!C209 -> 2026-10-01 | J195: ='Tableau d''amortissement B'!I209 -> 44934.76667 | M195: ='Tableau d''amortissement A'!C209 -> 2033-10-01 | N195: ='Tableau d''amortissement A'!K209 -> 29293.18646 | O195: =O194+'Tableau d''amortissement A'!H209 -> 131229.8184 | R195: ='Tableau d''amortissement B'!C209 -> 2026-10-01 | S195: ='Tableau d''amortissement B'!K209 -> 30232.20368 | T195: =T194+'Tableau d''amortissement B'!H209 -> 155065.2333
C196: ='Tableau d''amortissement A'!C210 -> 2033-11-01 | D196: ='Tableau d''amortissement A'!I210 -> 37989.0487 | I196: ='Tableau d''amortissement B'!C210 -> 2026-11-01 | J196: ='Tableau d''amortissement B'!I210 -> 44025.84431 | M196: ='Tableau d''amortissement A'!C210 -> 2033-11-01 | N196: ='Tableau d''amortissement A'!K210 -> 29348.11088 | O196: =O195+'Tableau d''amortissement A'!H210 -> 132010.9513 | R196: ='Tableau d''amortissement B'!C210 -> 2026-11-01 | S196: ='Tableau d''amortissement B'!K210 -> 30288.37214 | T196: =T195+'Tableau d''amortissement B'!H210 -> 155974.1557
C197: ='Tableau d''amortissement A'!C211 -> 2033-12-01 | D197: ='Tableau d''amortissement A'!I211 -> 37206.8092 | I197: ='Tableau d''amortissement B'!C211 -> 2026-12-01 | J197: ='Tableau d''amortissement B'!I211 -> 43115.78579 | M197: ='Tableau d''amortissement A'!C211 -> 2033-12-01 | N197: ='Tableau d''amortissement A'!K211 -> 29401.9287 | O197: =O196+'Tableau d''amortissement A'!H211 -> 132793.1908 | R197: ='Tableau d''amortissement B'!C211 -> 2026-12-01 | S197: ='Tableau d''amortissement B'!K211 -> 30343.40444 | T197: =T196+'Tableau d''amortissement B'!H211 -> 156884.2142
C198: ='Tableau d''amortissement A'!C212 -> 2034-01-01 | D198: ='Tableau d''amortissement A'!I212 -> 36423.46153 | I198: ='Tableau d''amortissement B'!C212 -> 2027-01-01 | J198: ='Tableau d''amortissement B'!I212 -> 42204.58971 | M198: ='Tableau d''amortissement A'!C212 -> 2034-01-01 | N198: ='Tableau d''amortissement A'!K212 -> 29454.63835 | O198: =O197+'Tableau d''amortissement A'!H212 -> 133576.5385 | R198: ='Tableau d''amortissement B'!C212 -> 2027-01-01 | S198: ='Tableau d''amortissement B'!K212 -> 30397.29917 | T198: =T197+'Tableau d''amortissement B'!H212 -> 157795.4103
C199: ='Tableau d''amortissement A'!C213 -> 2034-02-01 | D199: ='Tableau d''amortissement A'!I213 -> 35639.00411 | I199: ='Tableau d''amortissement B'!C213 -> 2027-02-01 | J199: ='Tableau d''amortissement B'!I213 -> 41292.25463 | M199: ='Tableau d''amortissement A'!C213 -> 2034-02-01 | N199: ='Tableau d''amortissement A'!K213 -> 29506.23825 | O199: =O198+'Tableau d''amortissement A'!H213 -> 134360.9959 | R199: ='Tableau d''amortissement B'!C213 -> 2027-02-01 | S199: ='Tableau d''amortissement B'!K213 -> 30450.05491 | T199: =T198+'Tableau d''amortissement B'!H213 -> 158707.7454
C200: ='Tableau d''amortissement A'!C214 -> 2034-03-01 | D200: ='Tableau d''amortissement A'!I214 -> 34853.43539 | I200: ='Tableau d''amortissement B'!C214 -> 2027-03-01 | J200: ='Tableau d''amortissement B'!I214 -> 40378.77913 | M200: ='Tableau d''amortissement A'!C214 -> 2034-03-01 | N200: ='Tableau d''amortissement A'!K214 -> 29556.72684 | O200: =O199+'Tableau d''amortissement A'!H214 -> 135146.5646 | R200: ='Tableau d''amortissement B'!C214 -> 2027-03-01 | S200: ='Tableau d''amortissement B'!K214 -> 30501.67023 | T200: =T199+'Tableau d''amortissement B'!H214 -> 159621.2209
... 43 more rows

Sheet Tableau d'amortissement A
D2: TABLEAU D'AMORTISSEMENT A (Crédit résidence principale)
C6: Caractéristiques du prêt: | J6: Synthèse des éléments fournis :
C7: Montant du prêt | H7: =Profil_Investisseur!B109 -> 170000 | J7: Mensualité (hors assurances) | L7: =IF(Values_Entered,-PMT(Interest_Rate/Num_Pmt_Per_Year,Loan_Years*Num_Pmt_Per_Year,Loan_Amount),"") -> 836.057317
C8: Taux d'intérêt annuel | H8: =Profil_Investisseur!D109 -> 0.017 | J8: Nombre de mensualités prévues | L8: =IF(Values_Entered,Loan_Years*Num_Pmt_Per_Year,"") -> 240
C9: Durée du prêt en années | H9: =Profil_Investisseur!E109 -> 20 | J9: Montant des intérêts | L9: =Num_Pmt_Per_Year*Loan_Years*Scheduled_Monthly_Payment-Loan_Amount -> 30653.75609
C10: Nombre de versements par an | H10: =12 -> 12
C11: Date de début de l'emprunt | H11: =Profil_Investisseur!C109 -> 2017-10-01 | L11: =Scheduled_Monthly_Payment*L8 -> 200653.7561
L12: =L11-Loan_Amount -> 30653.75609
B17: Mensualilté n° | C17: Date du versement | D17: Montant mensualité (Hors assurances) | E17: Montant mensualité (Assurances comprises) | F17: Frais annexes (Assurances) | G17: Intérêts remboursés | H17: Capital remboursé (amortissement) | I17: Capital restant dû | K17: Intérêts cumulés
B18: =IF(Values_Entered,1,"") -> 1 | C18: =IF(Pay_Num<>"",DATE(YEAR(Loan_Start),MONTH(Loan_Start)+(Pay_Num)*12/Num_Pmt_Per_Year,DAY(Loan_Start)),"") -> 2017-11-01 | D18: =Scheduled_Monthly_Payment -> 836.057317 | E18: =D18+F18 -> 864.3906504 | F18: =(Loan_Amount*Profil_Investisseur!H109)/12 -> 28.33333333 | G18: =(Loan_Amount*Interest_Rate)/12 -> 240.8333333 | H18: =D18-G18 -> 595.2239837 | I18: =MAX(0,Loan_Amount-H18) -> 169404.776 | K18: =G18 -> 240.8333333
B19: =IF(Values_Entered,B18+1,"") -> 2 | C19: =IF(Pay_Num<>"",DATE(YEAR(Loan_Start),MONTH(Loan_Start)+(Pay_Num)*12/Num_Pmt_Per_Year,DAY(Loan_Start)),"") -> 2017-12-01 | D19: =Scheduled_Monthly_Payment -> 836.057317 | E19: =D19+F19 -> 864.3906504 | F19: =F18 -> 28.33333333 | G19: =I18*Interest_Rate/12 -> 239.9900994 | H19: =D19-G19 -> 596.0672177 | I19: =MAX(0,I18-H19) -> 168808.7088 | K19: =K18+G19 -> 480.8234327
